Workbook

Sheet Desarrollador (hidden)
A1: En Open Office | C1: En Excel
A2: CREAR NOMBRES DE RANGOS
A3: Insertar → nombres | C3: Fórmulas--> Asignar nombres
A4: Rangos para exportar y guardar (bloque_exportar y bloque_guardar)
A5: Rangos para imprimir (Fenton_boys, Anthro_Girls...)
A6: Rangos para ver ( (Fenton_boys_ver, Anthro_Girls_ver...)
A7: Rango “weight_kg” (para plotear en las gráficas Anthro con unidades en kg)
A8: Rango para seleccionar los datos de pacientes del archivo (Rango “DatosPacientes”)
A9: Area_Criterios (área de criterios con los encabezamientos)
A10: Sexo
A11: Tablas Fenton para z-scores (F_W_girls, F_L_girls…)
A13: RANGOS PARA FILTRO
A14: DatosPacientes (es la base de datos de la hoja archivo)
A15: Criterios (es el área de criterios de la hoja archivo)
A16: Destino (es el lugar donde se copia el resultado del filtro si interesa, es la casilla R1 de la hoja archivo)
A18: MODIFICAR GRÁFICAS
A19: Seleccionar la serie y botón derecho
A21: MACROS
A22: Exportar
A23: Guardar
A24: Ordenar
A25: Filtrar
A26: Imprimir
A27: Ver
A28: Para volver a la hoja “ENTER” (VerEnter)
A30: MACRO EXPORTAR PACIENTE
A31: En la hoja ENTER
A32: Seleccionar bloque_exportar
A33: Ctrl-C
A34: Ir a hoja EXPORT
A35: Ctrl-Inicio
A36: Ctrl-flecha derecha
A37: Ctrl-flecha abajo
A38: Borrar
A39: Ctrl-Inicio
A40: Pegado especial, solo texto con formato sin desplazar filas
A42: MACRO GUARDAR PACIENTE | C42: MACRO GUARDAR PACIENTE (Excel)
A43: En la hoja ENTER | C43: En la hoja ENTER
A44: Seleccionar bloque_guardar | C44: Ir a hoja Archivo
A45: Ctrl-C | C45: Se insertan las celdas necesarias
A46: Ir a hoja ARCHIVO | C46: Seleccionar "bloque_guardar"
A47: Ctrl-Inicio | C47: Ctrl-C para copiar
A48: Ctrl-Fin | C48: Hoja Archivo
A49: Inicio | C49: A15
A50: Flecha abajo | C50: Pegado especial, solo valores
A51: Flecha abajo (casilla A... dejando una fila en blanco) | C51: Se eliminan los puntos y se ordena
A52: Pegado especial, solo texto pero desplazando filas hacia abajo
A54: MACRO ORDENAR | C54: Ir a hoja ENTER
A55: En la hoja ARCHIVO | C55: Ctrl-Inicio
A56: Seleccionar bloque “DatosPacientes” | C56: D5
A57: Ordenar Apellidos → Número identificación personal → Fecha registro (ascendente)--> id
A58: Iniciar macro en E14 y terminar en E12
A60: MACRO FILTRAR PACIENTE
A61: Aplicar el filtro avanzado con los criterios (aplicar a "DatosPacientes")
A62: Iniciar macro en E14 y terminar en E12
A64: MACRO MOSTRAR PACIENTES | C64: MACRO MOSTRAR Y ORDENAR TODOS LOS PACIENTES (excel)
A65: En la hoja ARCHIVO | C65: E14 (este primer paso es para borrar celdas que no se ordenarán)
A66: Seleccionar bloque_DatosPacientes | C66: Seleccionar "DatosPacientes"
A67: Mostrar filas | C67: Buscar "."(coincidir contenido de toda la celda)
A68: Seleccionar bloque area_criterios | C68: Reemplazar "" todos
A69: Eliminar contenido | C69: E14
A70: Iniciar macro en E14 y terminar en E12 | C70: Borrar criterios
C71: Filtro avanzado (aplicar a "DatosPacientes")
A72: MACRO RECUPERAR PACIENTE | C72: E14
A73: En la hoja ARCHIVO | C73: Seleccionar "DatosPacientes"
A74: E14 | C74: Ordenar apellidos, nip, fecha registro, id
A75: Flecha abajo | C75: E12
A76: Ctrl-C | C76: (hay que editar el macro para que ordene teniendo en cuenta hasta la fila 1000000)
A77: Hoja ENTER
A78: D5 | C78: MACRO FILTRAR Y ORDENAR PACIENTE EN PANTALLA (excel)
A79: Pegar valores | C79: Aplicar el filtro avanzado con los criterios (aplicar a "DatosPacientes")
A80: Hola ARCHIVO... flecha derecha... Ctrl-C... | C80: Seleccionar B12:H12
A81: así para todos los datos básicos del paciente | C81: Copiar
A82: pegar datos en D7, D9, G5, G7 y J7 | C82: Pegar en T2 (solo valores y trasponer)
A83: En la hoja ARCHIVO | C83: Seleccionar B12:H12 y borrar criterios
A84: L14 | C84: E14
A85: Flecha abajo | C85: Filtro avanzado (aplicar a "DatosPacientes") (se muestra todo)
A86: Ctrl-May-Flecha abajo | C86: E14
A87: May-flecha derecha x3 | C87: Seleccionar "DatosPacientes"
A88: Ctrl-C | C88: Ordenar apellidos, nip, fecha registro, id
A89: Hoja ENTER | C89: Seleccionar T2:T8
A90: bloque_visitas | C90: Copiar
A91: Borrar | C91: Pegar en B12 (solo valores y trasponer)
A92: D12 | C92: E14
A93: Ctrl-V | C93: Filtro avanzado (aplicar a "DatosPacientes") (se muestra el paciente inicial)
A95: MACRO COPIAR VISITAS | C95: MACRO RECUPERAR PACIENTE (excel)
A96: En la hoja ARCHIVO con las casillas K:N seleccionadas | C96: En la hoja ARCHIVO
A97: Ctrl-C | C97: E14
A98: Hoja ENTER | C98: Filtro avanzado para copiar datos del paciente en otra área
A99: Ctrl-Inicio | C99: Y14
A100: Flechas hasta D12 | C100: Flecha abajo
A101: May-flechas para seleccionar las cuatro columnas hasta la G | C101: Ctrl-C
A102: May-AvPag | C102: Hoja ENTER
A103: May-flechas hasta seleccionar el registro 50 (G61) | C103: D5
A104: Borrar | C104: Pegar valores
A105: Ctrl-Inicio | C105: Hola ARCHIVO... flecha derecha... Ctrl-C...
A106: Flechas hasta D12 | C106: así para todos los datos básicos del paciente
A107: Ctrl-V | C107: pegar datos en D7, D9, G5, G7 y J7
A108: Flecha arriba | C108: En la hoja ARCHIVO
C109: AF14
C110: Borrar criterios
C111: Filtro avanzado para mostrar todo
C112: Seleccionar AF15 a AI64
C113: Ctrl-C
C114: Hoja ENTER
C115: D12
C116: Pegar valores
C117: D5

Sheet Instr_OpOfice_eng (hidden)
B2: INSTRUCTIONS
B4: This spreadsheet only works correctly in OpenOffice https://www.openoffice.org/
B5: When you open the file, you are prompted to activate the macros. You have to answer YES
B6: THIS FILE DOES NOT CONTAIN VIRUSES | E6: PROCEDURE (see “Instr_eng” sheet)
B8: You may see a warning like this when you open the file: | F8: 1- Enter the patient data (up to 50 records)
F9: 2- Then choose the corresponding sheet (boys or girls) to see the charts
F10: 3- Use the buttons to save or export the patient data or to print graphs
F12: 3- Fenton Girls and Boys show the baby's growth according to the Fenton curves (premature <50 weeks EG)
F14: 4- Anthro Girls and Boys show the baby's growth according to WHO growth standards
G15: using the corrected age up to 2 years.
F16: 5- Once the data is entered, they can be saved or formatted for export in a CVS file that
G17: can later be used in the Canadian Pediatric Endocrinology Group APP: http://apps.cpeg-gcep.net/
B19: In this case, go to Tools → Options → OpenOffice → Security
B44: Click on the "Macro Security..." button and another screen will appear where you have to select Security level "Medium" (see image)
B67: Then close the program and re-open the file. You will be asked if you want to activate the macros. You have to answer yes.
B69: ENTER DATA
B71: The data must be entered in the white background boxes of the "ENTER" sheet and must be done in the units indicated.
B72: To move from one square to another, it is easier to use the tab key.
B74: RESULTS
B76: Once you have entered the data of a specific patient, they are represented in all the graphs of the spreadsheet (both boys and girls), so pay attention to consult the corresponding gender graph.
B78: FentonBoys y FentonGirls, show the baby's growth according to the Fenton curves (premature <50 weeks EG).
B80: AnthroBoys y AnthroGirls, show the baby's growth according to WHO growth standards** using the corrected age up to 2 years.
B82: Clinical exact age calculator_Girls and Boys: in these sheets can calculate the z-scores and percentiles of patients at a given time.
B84: *Curves equal the WHO Growth Standard at 50 weeks. Fenton TR, Kim JH. A systematic review and meta-analysis to revise the Fenton growth chart for preterm infants. BMC Pediatr. 2013;13:59 Www.ucalgary.ca/fenton
B86: **WHO Child Growth Standards. http://www.who.int/childgrowth/en/
B88: SAVE DATA
B90: Once the patient data has been entered, they can be saved by pressing the "Save Patient" button. The data are stored in the "SAVE" sheet and a column with the recording date is added and another one with a personal identification number, constructed from his date of birth (aaammdd) and the first letter of his surname and name, in this order.
B92: Each time a patient is stored their data is placed at the beginning of the sheet.
B94: The data stored in the "SAVE" sheet are not protected, so they can be copied or modified according to the user's preferences.
B96: EXPORT DATA
B98: Once patient data has been entered, they can be formatted to be exported by pressing the "Export Patient" button. The data is stored in the "EXPORT" sheet.
B100: Then, this sheet can then be saved in .CSV format for use in the Canadian Pediatric Endocrinology Group (GCEP) APPs: http://apps.cpeg-gcep.net/
B102: Note that in order for the .CSV file can be used in the GCEP APPs the fields must be separated by commas (not semicolons) and the decimal point must be a dot (not comma). As the way the CSV file is saved depends on the regional configuration of your computer, if necessary you can perform these transformations easily using a word processor, replacing commas with dots and then semicolons with commas. Likewise, names can not contain accent marks or "ñ".
B104: VIEWING A PATIENT'S GRAPHS
B106: If you want to see the graphs of a saved patient again, follow these steps:
B108: - Order the "SAVE" sheet by Personal identification number and Date of visit, to have all the records of the same patient together.
B109: (To sort the data, select the whole sheet by clicking on the box in the upper left corner of the "SAVE" sheet, to the left of column A and above row 1. Then in the "Data" menu select "Sort". On the Options tab check "Range contains column labels" and order by History and then by Date of registration).
B111: - Copy the basic data of the patient (name, date of birth, sex, gestational age) into the appropriate boxes in the "ENTER" sheet.
B113: - Copy the patient data contained in the columns marked in red of the "SAVE" sheet (K#:N#) in the corresponding boxes on the "ENTER" sheet (D11:G60).
B116: NOTE
B117: The graphics presented in this spreadsheet are only intended to be an aid to the management of patients, which in no case can replace the clinical judgment of the physician.

Sheet Instr_OpOfice (hidden)
B2: Esta hoja de cálculo está pensada para realizar fácilmente el control del crecimiento de los bebés prematuros. Se pueden guardar hasta 10.000 registros en la hoja archivo, pero tenga la precaución de no eliminar filas en la hoja “Archivo”. En lugar de eso, seleccione las filas y utilice para borrarlas la tecla “backspace”.
B3: Se recomienda utilizar las gráficas de Fenton o InterGrowth-21st para los bebés prematuros hasta la 50 semana de edad gestacional y a partir de esta edad las gráficas de la OMS con la edad corregida.
B5: ÍNDICE
B6: =PROPER(B12) -> Instrucciones Generales
B7: =PROPER(B79) -> Introducción De Datos
B8: =PROPER(B85) -> Resultados
B9: =PROPER(B103) -> Guardar Datos
B10: =PROPER(B113) -> Recuperar Y Ver Las Gráficas De Un Paciente Guardado
B12: INSTRUCCIONES GENERALES
B14: Esta hoja de cálculo sólo funciona correctamente en OpenOffice https://www.openoffice.org/
B15: Cuando se abre el archivo se pregunta si se desean activar los macros. Hay que responder que SI.
B16: ESTE ARCHIVO NO CONTIENE VIRUS
B18: Es posible que al abrir el archivo por primera vez aparezca un aviso como este:
B29: En este caso, hay que ir a Herramientas → Opciones → OpenOffice.org → Seguridad
B54: Hacer clic en el botón “Seguridad de macros...” y aparecerá otra pantalla en la que hay que seleccionar Nivel de seguridad “Medio” (ver imagen)
B77: A continuación, cerrar el programa y volver a abrir el archivo. Se preguntará si se desean activar los macros. Hay que responder que sí.
B79: INTRODUCCIÓN DE DATOS
B81: Los datos se introducen en las casillas de fondo blanco de la hoja “ENTER” en las unidades que se indican.
B82: Para pasar de una casilla a otra resulta más cómodo utilizar el tabulador.
B83: Una vez introducidos los datos de un paciente, desde esta misma hoja se pueden ver las gráficas o imprimirlas, así como guardar los datos del paciente, mediante el botón correspondiente.
B85: RESULTADOS
B87: Una vez introducidos los datos de un paciente concreto, éstos aparecen representados en todas las gráficas de la hoja de cálculo (tanto de niños como de niñas), así que preste atención en consultar la gráfica del sexo correspondiente.
B89: FentonBoys y FentonGirls, muestran el crecimiento del paciente según las gráficas de Fenton* y se recomienda su uso para bebés prematuros hasta la 50 semana.
B91: IntGBoys e IntGGirls, muestran el crecimiento del paciente según los estándares Intergrowth-21st**.
B93: AnthroBoys y AnthroGirls, muestran el crecimiento del paciente según los estándares de OMS*** utilizando la edad corregida hasta los 2 años.
B95: Clinical exact age calculator_Girls and Boys: en estas pestañas pueden calcularse z-scores y percentiles de pacientes en un momento determinado.
B97: *Curves equal the WHO Growth Standard at 50 weeks. Fenton TR, Kim JH. A systematic review and meta-analysis to revise the Fenton growth chart for preterm infants. BMC Pediatr. 2013;13:59 Www.ucalgary.ca/fenton
B99: **© University of Oxford Villar et al. Lancet Glob Health 2015;3:e681-91 https://intergrowth21.tghn.org/
B101: ***WHO Child Growth Standards. http://www.who.int/childgrowth/en/
B103: GUARDAR DATOS
B105: Una vez que se han introducido los datos del paciente, pueden guardarse presionando el botón “Guardar Paciente”. Los datos se guardan en la hoja “ARCHIVO” y se añade una columna con la fecha de registro y otra con un número de historia del paciente construido a partir de su fecha de nacimiento (aaaammdd), la primera letra de su apellido y 3 letras de su nombre, por este orden.
B107: Cada vez que se guarda un paciente sus datos se colocan al final de esta hoja y suelen quedar filas vacías entre medio. Para eliminarlas basta con ordenar los datos de la hoja utilizando el botón “Ordenar” de la parte superior.
B109: Cada vez que se guardan los datos de un paciente, vuelven a guardarse también los antiguos y los registros del paciente quedan duplicados. Como se ordenan por fecha de registro, puede borrar los más antiguos. En lugar de eliminar filas, selecciónelas y utilice la tecla borrar (“backspace”).
B111: Los datos guardados en la hoja “ARCHIVO” no están protegidos, de manera que pueden copiarse o modificarse según las preferencias del usuario. También pueden ser borrados, así que tenga la precaución de no borrar o modificar las celdas de la zona gris y hacer copias de seguridad regularmente.
B113: RECUPERAR Y VER LAS GRÁFICAS DE UN PACIENTE GUARDADO
B115: Si desea volver a ver las gráficas de un paciente guardado o si tiene que añadir un nuevo registro del mismo paciente, siga estos pasos en la hoja “ARCHIVO”:
B117: - Ordene los registros de la hoja “ARCHIVO” utilizando el botón "Ordenar" de la parte superior. Esto ordena los registros por apellido y por fecha de registro, para tener juntos todos los registros de un mismo paciente.
B119: - Busque el paciente utilizando el botón "Buscar paciente" y colocando algún dato en las casillas de búsqueda (número de identificación personal, nombre, apellidos, fecha de nacimiento, sexo). Los datos del paciente que coloque en la misma fila son condiciones que se manejan con el operador "Y". Los datos del paciente que coloque en filas diferentes se manejan con el operador "O".
B121: - Recupere el paciente utilizando el botón "Recuperar paciente" una vez que tenga en pantalla solamente los datos del paciente buscado. Los datos del paciente se colocarán en la hoja "ENTER" para que pueda ver las gráficas, imprimirlas o continuar añadiendo más visitas del paciente.
B123: ADVERTENCIAS
B124: Los gráficos que se presentan en esta hoja de cálculo sólo pretenden ser una ayuda para el manejo de los pacientes, que en ningún caso pueden sustituir al criterio clínico del médico.
B126: Los desarrolladores no se hacen responsables del uso de la aplicación ni de la posible pérdida de los datos de los pacientes. Es responsabilidad del usuario realizar copias de seguridad debidamente protegidas.
B128: NO ESTÁ PERMITIDO EL USO COMERCIAL DE ESTA APLICACIÓN

Sheet Instr_Excel
B2: Esta hoja de cálculo está pensada para realizar fácilmente el control del crecimiento de los bebés prematuros. Se pueden guardar hasta 1000.000 registros en la hoja archivo.
B3: Se recomienda utilizar las gráficas de Fenton o InterGrowth-21st para los bebés prematuros hasta la 50 semana de edad gestacional y a partir de esta edad las gráficas de la OMS con la edad corregida.
B5: INTRODUCCIÓN DE DATOS
B7: Los datos se introducen en las casillas de fondo blanco de la hoja “ENTER” en las unidades que se indican.
B8: Para pasar de una casilla a otra resulta más cómodo utilizar el tabulador.
B9: Una vez introducidos los datos de un paciente, desde esta misma hoja se pueden ver las gráficas (yluego imprimirlas), así como guardar los datos del paciente, mediante el botón correspondiente.
B11: RESULTADOS
B13: Una vez introducidos los datos de un paciente concreto, éstos aparecen representados en todas las gráficas de la hoja de cálculo (tanto de niños como de niñas), así que preste atención en consultar la gráfica del sexo correspondiente.
B15: FentonBoys y FentonGirls, muestran el crecimiento del paciente según las gráficas de Fenton* y se recomienda su uso para bebés prematuros hasta la 50 semana.
B17: IntGBoys e IntGGirls, muestran el crecimiento del paciente según los estándares Intergrowth-21st**.
B19: AnthroBoys y AnthroGirls, muestran el crecimiento del paciente según los estándares de OMS*** utilizando la edad corregida hasta los 2 años.
B21: Clinical exact age calculator_Girls and Boys: en estas pestañas pueden calcularse z-scores y percentiles de pacientes en un momento determinado.
B23: *Curves equal the WHO Growth Standard at 50 weeks. Fenton TR, Kim JH. A systematic review and meta-analysis to revise the Fenton growth chart for preterm infants. BMC Pediatr. 2013;13:59 Www.ucalgary.ca/fenton
B25: **© University of Oxford Villar et al. Lancet Glob Health 2015;3:e681-91 https://intergrowth21.tghn.org/
B27: ***WHO Child Growth Standards. http://www.who.int/childgrowth/en/
B29: GUARDAR DATOS
B31: Una vez que se han introducido los datos del paciente, pueden guardarse presionando el botón “Guardar Paciente”. Los datos se guardan en la hoja “ARCHIVO” y se añade una columna con la fecha de registro y otra con un número de historia del paciente construido a partir de su fecha de nacimiento (aaaammdd), la primera letra de su apellido y 3 letras de su nombre, por este orden.
B33: Cada vez que se guardan los datos de un paciente, se conservan también los antiguos y los registros del paciente quedan duplicados. Como se ordenan por fecha de registro, puede borrar los más antiguos, seleccionando las filas y eliminándolas o borrando el contenido.
B35: Los datos guardados en la hoja “ARCHIVO” no están protegidos, de manera que pueden copiarse o modificarse según las preferencias del usuario.
B37: Tenga en cuenta que si graba el mismo paciente 2 veces el mismo día, la fecha de registro será la misma en todos los registros y la ordenación del paciente no será la adecuada (aunque no perderá datos y siempre podrá arreglarlo)
B39: RECUPERAR Y VER LAS GRÁFICAS DE UN PACIENTE GUARDADO
B41: Si desea volver a ver las gráficas de un paciente guardado o si tiene que añadir un nuevo registro del mismo paciente, siga estos pasos en la hoja “ARCHIVO”:
B43: 1- Busque el paciente utilizando el botón "Buscar paciente" y colocando algún dato en las casillas de búsqueda (número de identificación personal -NIP-, nombre, apellidos, fecha de nacimiento...).
B45: 2- Recupere el paciente utilizando el botón "Recuperar paciente" una vez que tenga en pantalla solamente los datos del paciente buscado. Los datos del paciente se colocarán en la hoja "ENTER" para que pueda ver las gráficas o continuar añadiendo más visitas del paciente.
B47: ADVERTENCIAS
B48: Los gráficos que se presentan en esta hoja de cálculo sólo pretenden ser una ayuda para el manejo de los pacientes, que en ningún caso pueden sustituir al criterio clínico del médico.
B50: Los desarrolladores no se hacen responsables del uso de la aplicación ni de la posible pérdida de los datos de los pacientes. Es responsabilidad del usuario realizar copias de seguridad debidamente protegidas.
B52: NO ESTÁ PERMITIDO EL USO COMERCIAL DE ESTA APLICACIÓN
B54: ESTE ARCHIVO NO CONTIENE VIRUS
B55: PARA SU FUNCIONAMIENTO DEBE PERMITIR "HABILITAR MACROS"

Sheet ENTER
D3: Prematurico | F3: DATOS DEL PACIENTE
B5: Nombre | D5: Steve | E5: Apellidos | F5: Jobs | I5: Edad gestacional | J5: 34 | K5: sem. | L5: y | M5: 3 | N5: días (0-6)
B7: Fecha nacim. | D7: 2018-08-03 | F7: Sexo (M / F) | G7: M | J7: =IF(M5<7," ","Error: los días deben ser entre 0 y 6") -> 
G9: =IF(Sexo="m"," ",IF(Sexo="f"," ","Error: el sexo debe ser 'M' o 'F'")) -> 
S10: CALCULOS INTERMEDIOS | V10: Edad cronológica | AS10: Peso | AT10: Peso | AU10: Peso | AV10: Long | AW10: Long | AX10: Long | AY10: PC | AZ10: PC | BA10: PC | BD10: PARA GUARDAR (peso en Kg) | BV10: PARA EXPORTAR (peso en gramos)
B11: id | D11: Fecha de la visita (dd-mm-aaaa) | E11: Peso (kg o gr) | F11: Longitud (cm) | G11: P. Craneal (cm) | H11: Z-Peso (Fenton) | I11: Z-Long (Fenton) | J11: Z-PC (Fenton) | S11: EG (dec) | T11: eg_SEM | U11: eg_DIAS | V11: Días | W11: Meses | X11: Años | Y11: Sem | Z11: Ecorr (sem) | AA11: Ecorr (mes) | AB11: Peso (Kg) | AC11: Peso (gr) | AD11: Long | AE11: PC | AF11: IMC | AG11: año | AH11: mes | AI11: dia | AJ11: L_w | AK11: M_w | AL11: S_w | AM11: L_l | AN11: M_l | AO11: S_l | AP11: L_hc | AQ11: M_hc | AR11: S_hc | AS11: Z_w | AT11: Z>3_w | AU11: Z<-3_w | AV11: Z_l | AW11: Z>3_l | AX11: Z<-3_l | AY11: Z_hc | AZ11: Z>3_hc | BA11: Z<-3_hc | BC11: N | BD11: fechahoy | BE11: historia | BF11: id | BG11: name | BH11: lastname | BI11: sex | BJ11: dob | BK11: egweeks | BL11: egdays | BM11: weeks | BN11: dov | BO11: weight | BP11: lenght | BQ11: hc | BR11: Z-Peso | BS11: Z-Long | BT11: Z-PC | BV11: id | BW11: name | BX11: lastname | BY11: sex | BZ11: dob | CA11: egweeks | CB11: egdays | CC11: weeks | CD11: dov | CE11: weight | CF11: lenght | CG11: hc
B12: 1 | D12: 2018-08-02 | E12: 1.92 | F12: 45 | G12: 32 | H12: =IF(S12<50,IF(AS12>3,AT12,IF(AS12<-3,AU12,AS12)),"") -> -0.9701449075 | I12: =IF(S12<50,IF(AV12>3,AW12,IF(AV12<-3,AX12,AV12)),"") -> -0.0380781402 | J12: =IF(S12<50,IF(AY12>3,AZ12,IF(AY12<-3,BA12,AY12)),"") -> 0.4280919815 | S12: =IF(AND(D12>0,$J$5>0),($J$5+$M$5/7)+(D12-$D$7)/7) -> 34.28571429 | T12: =IF(AND(D12>0,$J$5>0),INT(S12),"") -> 34 | U12: =IF(AND(D12>0,$J$5>0),MOD(($M$5+D12-$D$7),7),"") -> 2 | V12: =IF(D12-$D$7>0,D12-$D$7,IF(D12-$D$7=0,D12-$D$7,"")) ->  | W12: =IF(D12-$D$7>0,V12/30.4375,IF(D12-$D$7=0,V12/30.4375,"")) ->  | X12: =IF(D12-$D$7>0,V12/365.25,IF(D12-$D$7=0,V12/365.25,"")) ->  | Y12: =IF(D12-$D$7>0,V12/7,IF(D12-$D$7=0,V12/7,"")) ->  | Z12: =IF(D12>0,IF(S12>0,0-(40-S12),""),"") -> -5.714285714 | AA12: =IF(D12>0,IF(S12>0,Z12*7/30.4375,"")) -> -1.314168378 | AB12: =IF(E12>200,E12/1000,E12) -> 1.92 | AC12: =IF(AND(D12>0,E12>0),AB12*1000,"") -> 1920 | AD12: =F12 -> 45 | AE12: =IF(AND(D12>0,G12>0),G12,"") -> 32 | AF12: =IF(AND(AND(D12>0,E12>0,F12>0),F12>0),AB12/(F12/100)^2,"") -> 9.481481481 | AG12: =IF(D12>0,YEAR($D$7),"") -> 2018 | AH12: =IF(D12>0,IF(MONTH($D$7)<10,CONCATENATE(0,MONTH($D$7)),MONTH($D$7)),"") -> 08 | AI12: =IF(D12>0,IF(DAY($D$7)<10,CONCATENATE(0,DAY($D$7)),DAY($D$7)),"") -> 03 | AJ12: =IF($D12>0,IF(Sexo="M",VLOOKUP($S12,F_W_boys,3),VLOOKUP($S12,F_W_girls,3)),"") -> 1.043175959 | AK12: =IF($D12>0,IF(Sexo="M",VLOOKUP($S12,F_W_boys,4),VLOOKUP($S12,F_W_girls,4)),"") -> 2322.737181 | AL12: =IF($D12>0,IF(Sexo="M",VLOOKUP($S12,F_W_boys,5),VLOOKUP($S12,F_W_girls,5)),"") -> 0.178015407 | AM12: =IF($D12>0,IF(Sexo="M",VLOOKUP($S12,F_L_boys,3),VLOOKUP($S12,F_L_girls,3)),"") -> 1 | AN12: =IF($D12>0,IF(Sexo="M",VLOOKUP($S12,F_L_boys,4),VLOOKUP($S12,F_L_girls,4)),"") -> 45.09553701 | AO12: =IF($D12>0,IF(Sexo="M",VLOOKUP($S12,F_L_boys,5),VLOOKUP($S12,F_L_girls,5)),"") -> 0.05563682789 | AP12: =IF($D12>0,IF(Sexo="M",VLOOKUP($S12,F_HC_boys,3),VLOOKUP($S12,F_HC_girls,3)),"") -> 1 | AQ12: =IF($D12>0,IF(Sexo="M",VLOOKUP($S12,F_HC_boys,4),VLOOKUP($S12,F_HC_girls,4)),"") -> 31.360223 | AR12: =IF($D12>0,IF(Sexo="M",VLOOKUP($S12,F_HC_boys,5),VLOOKUP($S12,F_HC_girls,5)),"") -> 0.0476554293 | AS12: =IF($E12>0,(((AC12/AK12)^AJ12)-1)/(AJ12*AL12),"") -> -0.9701449075 | AT12: =IF($E12>0,3+(AC12-(AK12*(1+AJ12*AL12*3)^(1/AJ12)))/((AK12*(1+AJ12*AL12*3)^(1/AJ12))-(AK12*(1+AJ12*AL12*2)^(1/AJ12))),"") -> -1.007321535 | AU12: =IF($E12>0,-3+(AC12-(AK12*(1+AJ12*AL12*-3)^(1/AJ12)))/((AK12*(1+AJ12*AL12*-3)^(1/AJ12))-(AK12*(1+AJ12*AL12*-2)^(1/AJ12))),"") -> -5.016992951 | AV12: =IF($F12>0,(((AD12/AN12)^AM12)-1)/(AM12*AO12),"") -> -0.0380781402 | AW12: =IF($F12>0,3+(AD12-(AN12*(1+AM12*AO12*3)^(1/AM12)))/((AN12*(1+AM12*AO12*3)^(1/AM12))-(AN12*(1+AM12*AO12*2)^(1/AM12))),"") -> -0.0380781402 | AX12: =IF($F12>0,-3+(AD12-(AN12*(1+AM12*AO12*-3)^(1/AM12)))/((AN12*(1+AM12*AO12*-3)^(1/AM12))-(AN12*(1+AM12*AO12*-2)^(1/AM12))),"") -> -5.96192186 | AY12: =IF($G12>0,(((AE12/AQ12)^AP12)-1)/(AP12*AR12),"") -> 0.4280919815 | AZ12: =IF($G12>0,3+(AE12-(AQ12*(1+AP12*AR12*3)^(1/AP12)))/((AQ12*(1+AP12*AR12*3)^(1/AP12))-(AQ12*(1+AP12*AR12*2)^(1/AP12))),"") -> 0.4280919815 | BA12: =IF($G12>0,-3+(AE12-(AQ12*(1+AP12*AR12*-3)^(1/AP12)))/((AQ12*(1+AP12*AR12*-3)^(1/AP12))-(AQ12*(1+AP12*AR12*-2)^(1/AP12))),"") -> -6.428091981 | BD12: =IF(D12>0,TODAY(),".") -> 2020-01-20 | BE12: =IF(D12>0,CONCATENATE(AG12,AH12,AI12,UPPER(LEFT($F$5)),UPPER(LEFT($D$5)),UPPER(MID($D$5,3,1)),UPPER(RIGHT($D$5))),".") -> 20180803JSEE | BF12: =IF(D12>0,B12,".") -> 1 | BG12: =IF(AND(D12>0,$D$5>0),$D$5,".") -> Steve | BH12: =IF(AND(D12>0,$F$5>0),$F$5,".") -> Jobs | BI12: =IF(AND(D12>0,$G$7>0),$G$7,".") -> M | BJ12: =IF(AND(D12>0,$D$7>0),$D$7,".") -> 2018-08-03 | BK12: =IF(AND(D12>0,$J$5>0),$J$5,".") -> 34 | BL12: =IF(AND(D12>0,$M$5>=0),$M$5,".") -> 3 | BM12: =IF(S12<>FALSE,S12,".") -> 34.28571429 | BN12: =IF(D12>0,D12,".") -> 2018-08-02 | BO12: =IF(AND(D12>0,E12>0),E12,".") -> 1.92 | BP12: =IF(AND(D12>0,F12>0),F12,".") -> 45 | BQ12: =IF(AND(D12>0,G12>0),G12,".") -> 32 | BR12: =H12 -> -0.9701449075 | BS12: =I12 -> -0.0380781402 | BT12: =J12 -> 0.4280919815 | BV12: =BF12 -> 1 | BW12: =BG12 -> Steve | BX12: =BH12 -> Jobs | BY12: =BI12 -> M | BZ12: =BJ12 -> 2018-08-03 | CA12: =BK12 -> 34 | CB12: =BL12 -> 3 | CC12: =BM12 -> 34.28571429 | CD12: =BN12 -> 2018-08-02 | CE12: =AC12 -> 1920 | CF12: =BP12 -> 45 | CG12: =BQ12 -> 32
B13: 2 | D13: 2018-08-14 | E13: 2.15 | H13: =IF(S13<50,IF(AS13>3,AT13,IF(AS13<-3,AU13,AS13)),"") -> -1.343623064 | I13: =IF(S13<50,IF(AV13>3,AW13,IF(AV13<-3,AX13,AV13)),"") ->  | J13: =IF(S13<50,IF(AY13>3,AZ13,IF(AY13<-3,BA13,AY13)),"") ->  | S13: =IF(AND(D13>0,$J$5>0),($J$5+$M$5/7)+(D13-$D$7)/7) -> 36 | T13: 36 | U13: 0 | V13: 11 | W13: 0.3613963039 | X13: 0.03011635866 | Y13: 1.571428571 | Z13: -4 | AA13: -0.9199178645 | AB13: 2.15 | AC13: =IF(AND(D13>0,E13>0),AB13*1000,"") -> 2150 | AD13: 0 | AE13: =IF(AND(D13>0,G13>0),G13,"") ->  | AG13: 2018 | AH13: 08 | AI13: 03 | AJ13: 0.8461228972 | AK13: 2725.69827 | AL13: 0.1599846295 | AM13: 1 | AN13: 47.17853523 | AO13: 0.05191141923 | AP13: 1 | AQ13: 32.65849659 | AR13: 0.04552375 | AS13: -1.343623064 | AT13: -1.192594372 | AU13: -4.675451916 | BD13: =IF(D13>0,TODAY(),".") -> 2020-01-20 | BE13: =IF(D13>0,CONCATENATE(AG13,AH13,AI13,UPPER(LEFT($F$5)),UPPER(LEFT($D$5)),UPPER(MID($D$5,3,1)),UPPER(RIGHT($D$5))),".") -> 20180803JSEE | BF13: =IF(D13>0,B13,".") -> 2 | BG13: =IF(AND(D13>0,$D$5>0),$D$5,".") -> Steve | BH13: =IF(AND(D13>0,$F$5>0),$F$5,".") -> Jobs | BI13: =IF(AND(D13>0,$G$7>0),$G$7,".") -> M | BJ13: =IF(AND(D13>0,$D$7>0),$D$7,".") -> 2018-08-03 | BK13: =IF(AND(D13>0,$J$5>0),$J$5,".") -> 34 | BL13: =IF(AND(D13>0,$M$5>=0),$M$5,".") -> 3 | BM13: =IF(S13<>FALSE,S13,".") -> 36 | BN13: =IF(D13>0,D13,".") -> 2018-08-14 | BO13: =IF(AND(D13>0,E13>0),E13,".") -> 2.15 | BP13: =IF(AND(D13>0,F13>0),F13,".") -> . | BQ13: =IF(AND(D13>0,G13>0),G13,".") -> . | BR13: =H13 -> -1.343623064 | BS13: =I13 ->  | BT13: =J13 ->  | BV13: 2 | BW13: Steve | BX13: Jobs | BY13: M | BZ13: 2018-08-03 | CA13: 34 | CB13: 3 | CC13: 36 | CD13: 2018-08-14 | CE13: =AC13 -> 2150 | CF13: . | CG13: .
B14: 3 | D14: 2018-08-20 | E14: 2.38 | F14: 46 | G14: 33 | H14: -1.237393766 | I14: -0.8788183812 | J14: -0.1595830744 | S14: =IF(AND(D14>0,$J$5>0),($J$5+$M$5/7)+(D14-$D$7)/7) -> 36.85714286 | T14: 36 | U14: 6 | V14: 17 | W14: 0.5585215606 | X14: 0.04654346338 | Y14: 2.428571429 | Z14: -3.142857143 | AA14: -0.7227926078 | AB14: 2.38 | AC14: 2380 | AD14: 46 | AE14: =IF(AND(D14>0,G14>0),G14,"") -> 33 | AF14: 11.24763705 | AG14: 2018 | AH14: 08 | AI14: 03 | AJ14: 0.7621036988 | AK14: 2915.962748 | AL14: 0.1520630861 | AM14: 1 | AN14: 48.1169467 | AO14: 0.05006252266 | AP14: 1 | AQ14: 33.23574352 | AR14: 0.04444751968 | AS14: -1.237393766 | AT14: -1.027550159 | AU14: -4.795373925 | AV14: -0.8788183812 | AW14: -0.8788183812 | AX14: -5.121181619 | AY14: -0.1595830744 | AZ14: -0.1595830744 | BA14: -5.840416926 | BD14: 2020-01-20 | BE14: 20180803JSEE | BF14: 3 | BG14: Steve | BH14: Jobs | BI14: M | BJ14: 2018-08-03 | BK14: 34 | BL14: 3 | BM14: 36.85714286 | BN14: 2018-08-20 | BO14: 2.38 | BP14: 46 | BQ14: 33 | BR14: -1.237393766 | BS14: -0.8788183812 | BT14: -0.1595830744 | BV14: 3 | BW14: Steve | BX14: Jobs | BY14: M | BZ14: 2018-08-03 | CA14: 34 | CB14: 3 | CC14: 36.85714286 | CD14: 2018-08-20 | CE14: 2380 | CF14: 46 | CG14: 33
B15: 4 | D15: 2018-09-03 | E15: 3 | F15: 48.5 | G15: 35 | H15: -0.7388119125 | I15: -0.6967414753 | J15: 0.393575179 | S15: =IF(AND(D15>0,$J$5>0),($J$5+$M$5/7)+(D15-$D$7)/7) -> 38.85714286 | T15: 38 | U15: 6 | V15: 31 | W15: 1.018480493 | X15: 0.0848733744 | Y15: 4.428571429 | Z15: -1.142857143 | AA15: -0.2628336756 | AB15: 3 | AC15: 3000 | AD15: 48.5 | AE15: 35 | AF15: 12.75374641 | AG15: 2018 | AH15: 08 | AI15: 03 | AJ15: 0.6017519536 | AK15: 3331.249407 | AL15: 0.1373867342 | AM15: 1 | AN15: 50.10454327 | AO15: 0.04596239613 | AP15: 1 | AQ15: 34.4313642 | AR15: 0.04196162172 | AS15: -0.7388119125 | AT15: -0.5003491046 | AU15: -5.357629357 | AV15: -0.6967414753 | AW15: -0.6967414753 | AX15: -5.303258525 | AY15: 0.393575179 | AZ15: 0.393575179 | BA15: -6.393575179 | BD15: 2020-01-20 | BE15: 20180803JSEE | BF15: 4 | BG15: Steve | BH15: Jobs | BI15: M | BJ15: 2018-08-03 | BK15: 34 | BL15: 3 | BM15: 38.85714286 | BN15: 2018-09-03 | BO15: 3 | BP15: 48.5 | BQ15: 35 | BR15: -0.7388119125 | BS15: -0.6967414753 | BT15: 0.393575179 | BV15: 4 | BW15: Steve | BX15: Jobs | BY15: M | BZ15: 2018-08-03 | CA15: 34 | CB15: 3 | CC15: 38.85714286 | CD15: 2018-09-03 | CE15: 3000 | CF15: 48.5 | CG15: 35
B16: 5 | D16: 2018-10-01 | E16: 4.4 | F16: 53 | G16: 38.5 | H16: 0.3379234156 | I16: -0.3278983497 | J16: 1.508477064 | S16: 42.85714286 | T16: 42 | U16: 6 | V16: 59 | W16: 1.938398357 | X16: 0.1615331964 | Y16: 8.428571429 | Z16: 2.857142857 | AA16: 0.6570841889 | AB16: 4.4 | AC16: 4400 | AD16: 53 | AE16: 38.5 | AF16: 15.66393734 | AG16: 2018 | AH16: 08 | AI16: 03 | AJ16: 0.3879880879 | AK16: 4217.144745 | AL16: 0.1266490664 | AM16: 1 | AN16: 53.6980896 | AO16: 0.03964725288 | AP16: 1 | AQ16: 36.44453475 | AR16: 0.03738858396 | AS16: 0.3379234156 | AT16: 0.4878169327 | AU16: -6.693052714 | AV16: -0.3278983497 | AW16: -0.3278983497 | AX16: -5.67210165 | AY16: 1.508477064 | AZ16: 1.508477064 | BA16: -7.508477064 | BD16: 2020-01-20 | BE16: 20180803JSEE | BF16: 5 | BG16: Steve | BH16: Jobs | BI16: M | BJ16: 2018-08-03 | BK16: 34 | BL16: 3 | BM16: 42.85714286 | BN16: 2018-10-01 | BO16: 4.4 | BP16: 53 | BQ16: 38.5 | BR16: 0.3379234156 | BS16: -0.3278983497 | BT16: 1.508477064 | BV16: 5 | BW16: Steve | BX16: Jobs | BY16: M | BZ16: 2018-08-03 | CA16: 34 | CB16: 3 | CC16: 42.85714286 | CD16: 2018-10-01 | CE16: 4400 | CF16: 53 | CG16: 38.5
B17: 6 | D17: 2018-10-31 | E17: 5.4 | F17: 55 | G17: 40 | H17: 0.2641161267 | I17: -1.081669665 | J17: 1.320876132 | S17: 47.14285714 | T17: 47 | U17: 1 | V17: 89 | W17: 2.924024641 | X17: 0.2436687201 | Y17: 12.71428571 | Z17: 7.142857143 | AA17: 1.642710472 | AB17: 5.4 | AC17: 5400 | AD17: 55 | AE17: 40 | AF17: 17.85123967 | AG17: 2018 | AH17: 08 | AI17: 03 | AJ17: 0.260652344 | AK17: 5227.14701 | AL17: 0.1237018726 | AM17: 1 | AN17: 57.21670794 | AO17: 0.03581714466 | AP17: 1 | AQ17: 38.32350442 | AR17: 0.03311883898 | AS17: 0.2641161267 | AT17: 0.4569677511 | AU17: -6.653866639 | AV17: -1.081669665 | AW17: -1.081669665 | AX17: -4.918330335 | AY17: 1.320876132 | AZ17: 1.320876132 | BA17: -7.320876132 | BD17: 2020-01-20 | BE17: 20180803JSEE | BF17: 6 | BG17: Steve | BH17: Jobs | BI17: M | BJ17: 2018-08-03 | BK17: 34 | BL17: 3 | BM17: 47.14285714 | BN17: 2018-10-31 | BO17: 5.4 | BP17: 55 | BQ17: 40 | BR17: 0.2641161267 | BS17: -1.081669665 | BT17: 1.320876132 | BV17: 6 | BW17: Steve | BX17: Jobs | BY17: M | BZ17: 2018-08-03 | CA17: 34 | CB17: 3 | CC17: 47.14285714 | CD17: 2018-10-31 | CE17: 5400 | CF17: 55 | CG17: 40
B18: 7 | D18: 2018-12-10 | E18: 6.24 | F18: 62.5 | G18: 42 | S18: 52.85714286 | T18: 52 | U18: 6 | V18: 129 | W18: 4.238193018 | X18: 0.3531827515 | Y18: 18.42857143 | Z18: 12.85714286 | AA18: 2.95687885 | AB18: 6.24 | AC18: 6240 | AD18: =F18 -> 62.5 | AE18: 42 | AF18: 15.9744 | AG18: 2018 | AH18: 08 | AI18: 03 | AJ18: 0.2082574766 | AK18: 5835 | AL18: 0.12 | AM18: 1 | AN18: 59.36915908 | AO18: 0.03424707308 | AP18: 1 | AQ18: 39.4968517 | AR18: 0.0304601 | AS18: 0.5631418471 | AT18: 0.7131413246 | AU18: -7.06238641 | AV18: 1.539843712 | AW18: 1.539843712 | AX18: -7.539843712 | AY18: 2.080620031 | AZ18: 2.080620031 | BA18: -8.080620031 | BD18: 2020-01-20 | BE18: 20180803JSEE | BF18: 7 | BG18: Steve | BH18: Jobs | BI18: M | BJ18: 2018-08-03 | BK18: 34 | BL18: 3 | BM18: 52.85714286 | BN18: 2018-12-10 | BO18: 6.24 | BP18: 62.5 | BQ18: 42 | BV18: 7 | BW18: Steve | BX18: Jobs | BY18: M | BZ18: 2018-08-03 | CA18: 34 | CB18: 3 | CC18: 52.85714286 | CD18: 2018-12-10 | CE18: 6240 | CF18: 62.5 | CG18: 42
B19: 8 | D19: 2019-02-04 | E19: 8.3 | F19: 66 | G19: 44 | S19: 60.85714286 | T19: 60 | U19: 6 | V19: 185 | W19: 6.078028747 | X19: 0.5065023956 | Y19: 26.42857143 | Z19: 20.85714286 | AA19: =IF(D19>0,IF(S19>0,Z19*7/30.4375,"")) -> 4.796714579 | AB19: 8.3 | AC19: 8300 | AD19: 66 | AE19: 44 | AF19: 19.05417815 | AG19: 2018 | AH19: 08 | AI19: 03 | AJ19: 0.2082574766 | AK19: 5835 | AL19: 0.12 | AM19: 1 | AN19: 59.36915908 | AO19: 0.03424707308 | AP19: 1 | AQ19: 39.4968517 | AR19: 0.0304601 | AS19: 3.046944672 | AT19: 3.049168293 | AU19: -10.82098765 | AV19: 3.261251194 | AW19: 3.261251194 | AX19: -9.261251194 | AY19: 3.743022563 | AZ19: 3.743022563 | BA19: -9.743022563 | BD19: 2020-01-20 | BE19: 20180803JSEE | BF19: 8 | BG19: Steve | BH19: Jobs | BI19: M | BJ19: 2018-08-03 | BK19: 34 | BL19: 3 | BM19: 60.85714286 | BN19: 2019-02-04 | BO19: 8.3 | BP19: 66 | BQ19: 44 | BV19: 8 | BW19: Steve | BX19: Jobs | BY19: M | BZ19: 2018-08-03 | CA19: 34 | CB19: 3 | CC19: 60.85714286 | CD19: 2019-02-04 | CE19: 8300 | CF19: 66 | CG19: 44
B20: 9 | S20: FALSE | AA20: FALSE | AB20: 0 | AD20: 0 | BD20: . | BE20: . | BF20: . | BG20: . | BH20: . | BI20: . | BJ20: . | BK20: . | BL20: . | BM20: . | BN20: . | BO20: . | BP20: . | BQ20: . | BV20: . | BW20: . | BX20: . | BY20: . | BZ20: . | CA20: . | CB20: . | CC20: . | CD20: . | CF20: . | CG20: .
B21: 10 | S21: FALSE | AA21: FALSE | AB21: 0 | AD21: 0 | BD21: . | BE21: . | BF21: . | BG21: . | BH21: . | BI21: . | BJ21: . | BK21: . | BL21: . | BM21: . | BN21: . | BO21: . | BP21: . | BQ21: . | BV21: . | BW21: . | BX21: . | BY21: . | BZ21: . | CA21: . | CB21: . | CC21: . | CD21: . | CF21: . | CG21: .
B22: 11 | S22: FALSE | AA22: FALSE | AB22: 0 | AD22: 0 | BD22: . | BE22: . | BF22: . | BG22: . | BH22: . | BI22: . | BJ22: . | BK22: . | BL22: . | BM22: . | BN22: . | BO22: . | BP22: . | BQ22: . | BV22: . | BW22: . | BX22: . | BY22: . | BZ22: . | CA22: . | CB22: . | CC22: . | CD22: . | CF22: . | CG22: .
B23: 12 | S23: FALSE | AA23: FALSE | AB23: 0 | AD23: 0 | BD23: . | BE23: . | BF23: . | BG23: . | BH23: . | BI23: . | BJ23: . | BK23: . | BL23: . | BM23: . | BN23: . | BO23: . | BP23: . | BQ23: . | BV23: . | BW23: . | BX23: . | BY23: . | BZ23: . | CA23: . | CB23: . | CC23: . | CD23: . | CF23: . | CG23: .
B24: 13 | S24: FALSE | AA24: FALSE | AB24: 0 | AD24: 0 | BD24: . | BE24: . | BF24: . | BG24: . | BH24: . | BI24: . | BJ24: . | BK24: . | BL24: . | BM24: . | BN24: . | BO24: . | BP24: . | BQ24: . | BV24: . | BW24: . | BX24: . | BY24: . | BZ24: . | CA24: . | CB24: . | CC24: . | CD24: . | CF24: . | CG24: .
B25: 14 | S25: FALSE | AA25: FALSE | AB25: 0 | AD25: 0 | BD25: . | BE25: . | BF25: . | BG25: . | BH25: . | BI25: . | BJ25: . | BK25: . | BL25: . | BM25: . | BN25: . | BO25: . | BP25: . | BQ25: . | BV25: . | BW25: . | BX25: . | BY25: . | BZ25: . | CA25: . | CB25: . | CC25: . | CD25: . | CF25: . | CG25: .
B26: 15 | S26: FALSE | AA26: FALSE | AB26: 0 | AD26: 0 | BD26: . | BE26: . | BF26: . | BG26: . | BH26: . | BI26: . | BJ26: . | BK26: . | BL26: . | BM26: . | BN26: . | BO26: . | BP26: . | BQ26: . | BV26: . | BW26: . | BX26: . | BY26: . | BZ26: . | CA26: . | CB26: . | CC26: . | CD26: . | CF26: . | CG26: .
B27: 16 | S27: FALSE | AA27: FALSE | AB27: =IF(E27>200,E27/1000,E27) -> 0 | AD27: =F27 -> 0 | BD27: . | BE27: . | BF27: . | BG27: . | BH27: . | BI27: . | BJ27: . | BK27: . | BL27: . | BM27: . | BN27: . | BO27: . | BP27: . | BQ27: . | BV27: . | BW27: . | BX27: . | BY27: . | BZ27: . | CA27: . | CB27: . | CC27: . | CD27: . | CF27: . | CG27: .
B28: 17 | S28: FALSE | AA28: FALSE | AB28: 0 | AD28: =F28 -> 0 | BD28: . | BE28: . | BF28: . | BG28: . | BH28: . | BI28: . | BJ28: . | BK28: . | BL28: . | BM28: . | BN28: . | BO28: . | BP28: . | BQ28: . | BV28: . | BW28: . | BX28: . | BY28: . | BZ28: . | CA28: . | CB28: . | CC28: . | CD28: . | CF28: . | CG28: .
B29: 18 | S29: FALSE | AA29: FALSE | AB29: 0 | AD29: 0 | BD29: . | BE29: . | BF29: . | BG29: . | BH29: . | BI29: . | BJ29: . | BK29: . | BL29: . | BM29: . | BN29: . | BO29: . | BP29: . | BQ29: . | BV29: . | BW29: . | BX29: . | BY29: . | BZ29: . | CA29: . | CB29: . | CC29: . | CD29: . | CF29: . | CG29: .
B30: 19 | S30: FALSE | AA30: FALSE | AB30: 0 | AD30: 0 | BD30: . | BE30: . | BF30: . | BG30: . | BH30: . | BI30: . | BJ30: . | BK30: . | BL30: . | BM30: . | BN30: . | BO30: . | BP30: . | BQ30: . | BV30: . | BW30: . | BX30: . | BY30: . | BZ30: . | CA30: . | CB30: . | CC30: . | CD30: . | CF30: . | CG30: .
B31: 20 | S31: FALSE | AA31: FALSE | AB31: 0 | AD31: 0 | BD31: . | BE31: . | BF31: . | BG31: . | BH31: . | BI31: . | BJ31: . | BK31: . | BL31: . | BM31: . | BN31: . | BO31: . | BP31: . | BQ31: . | BV31: . | BW31: . | BX31: . | BY31: . | BZ31: . | CA31: . | CB31: . | CC31: . | CD31: . | CF31: . | CG31: .
B32: 21 | S32: FALSE | AA32: FALSE | AB32: 0 | AD32: 0 | BD32: . | BE32: . | BF32: . | BG32: . | BH32: . | BI32: . | BJ32: . | BK32: . | BL32: . | BM32: . | BN32: . | BO32: . | BP32: . | BQ32: . | BV32: . | BW32: . | BX32: . | BY32: . | BZ32: . | CA32: . | CB32: . | CC32: . | CD32: . | CF32: . | CG32: .
B33: 22 | S33: FALSE | AA33: FALSE | AB33: 0 | AD33: 0 | BD33: . | BE33: . | BF33: . | BG33: . | BH33: . | BI33: . | BJ33: . | BK33: . | BL33: . | BM33: . | BN33: . | BO33: . | BP33: . | BQ33: . | BV33: . | BW33: . | BX33: . | BY33: . | BZ33: . | CA33: . | CB33: . | CC33: . | CD33: . | CF33: . | CG33: .
B34: 23 | S34: FALSE | AA34: FALSE | AB34: 0 | AD34: 0 | BD34: . | BE34: . | BF34: . | BG34: . | BH34: . | BI34: . | BJ34: . | BK34: . | BL34: . | BM34: . | BN34: . | BO34: . | BP34: . | BQ34: . | BV34: . | BW34: . | BX34: . | BY34: . | BZ34: . | CA34: . | CB34: . | CC34: . | CD34: . | CF34: . | CG34: .
B35: 24 | S35: FALSE | AA35: FALSE | AB35: 0 | AD35: 0 | BD35: . | BE35: . | BF35: . | BG35: . | BH35: . | BI35: . | BJ35: . | BK35: . | BL35: . | BM35: . | BN35: . | BO35: . | BP35: . | BQ35: . | BV35: . | BW35: . | BX35: . | BY35: . | BZ35: . | CA35: . | CB35: . | CC35: . | CD35: . | CF35: . | CG35: .
B36: 25 | S36: FALSE | AA36: FALSE | AB36: 0 | AD36: 0 | BD36: . | BE36: . | BF36: . | BG36: . | BH36: . | BI36: . | BJ36: . | BK36: . | BL36: . | BM36: . | BN36: . | BO36: . | BP36: . | BQ36: . | BV36: . | BW36: . | BX36: . | BY36: . | BZ36: . | CA36: . | CB36: . | CC36: . | CD36: . | CF36: . | CG36: .
B37: 26 | S37: FALSE | AA37: FALSE | AB37: 0 | AD37: 0 | BD37: . | BE37: . | BF37: . | BG37: . | BH37: . | BI37: . | BJ37: . | BK37: . | BL37: . | BM37: . | BN37: . | BO37: . | BP37: . | BQ37: . | BV37: . | BW37: . | BX37: . | BY37: . | BZ37: . | CA37: . | CB37: . | CC37: . | CD37: . | CF37: . | CG37: .
B38: 27 | S38: FALSE | AA38: FALSE | AB38: 0 | AD38: 0 | BD38: . | BE38: . | BF38: . | BG38: . | BH38: . | BI38: . | BJ38: . | BK38: . | BL38: . | BM38: . | BN38: . | BO38: . | BP38: . | BQ38: . | BV38: . | BW38: . | BX38: . | BY38: . | BZ38: . | CA38: . | CB38: . | CC38: . | CD38: . | CF38: . | CG38: .
B39: 28 | S39: FALSE | AA39: FALSE | AB39: 0 | AD39: 0 | BD39: . | BE39: . | BF39: . | BG39: . | BH39: . | BI39: . | BJ39: . | BK39: . | BL39: . | BM39: . | BN39: . | BO39: . | BP39: . | BQ39: . | BV39: . | BW39: . | BX39: . | BY39: . | BZ39: . | CA39: . | CB39: . | CC39: . | CD39: . | CF39: . | CG39: .
B40: 29 | S40: FALSE | AA40: FALSE | AB40: 0 | AD40: 0 | BD40: . | BE40: . | BF40: . | BG40: . | BH40: . | BI40: . | BJ40: . | BK40: . | BL40: . | BM40: . | BN40: . | BO40: . | BP40: . | BQ40: . | BV40: . | BW40: . | BX40: . | BY40: . | BZ40: . | CA40: . | CB40: . | CC40: . | CD40: . | CF40: . | CG40: .
B41: 30 | S41: FALSE | AA41: FALSE | AB41: 0 | AD41: 0 | BD41: . | BE41: . | BF41: . | BG41: . | BH41: . | BI41: . | BJ41: . | BK41: . | BL41: . | BM41: . | BN41: . | BO41: . | BP41: . | BQ41: . | BV41: . | BW41: . | BX41: . | BY41: . | BZ41: . | CA41: . | CB41: . | CC41: . | CD41: . | CF41: . | CG41: .
B42: 31 | S42: FALSE | AA42: FALSE | AB42: 0 | AD42: 0 | BD42: . | BE42: . | BF42: . | BG42: . | BH42: . | BI42: . | BJ42: . | BK42: . | BL42: . | BM42: . | BN42: . | BO42: . | BP42: . | BQ42: . | BV42: . | BW42: . | BX42: . | BY42: . | BZ42: . | CA42: . | CB42: . | CC42: . | CD42: . | CF42: . | CG42: .
B43: 32 | S43: FALSE | AA43: FALSE | AB43: 0 | AD43: 0 | BD43: . | BE43: . | BF43: . | BG43: . | BH43: . | BI43: . | BJ43: . | BK43: . | BL43: . | BM43: . | BN43: . | BO43: . | BP43: . | BQ43: . | BV43: . | BW43: . | BX43: . | BY43: . | BZ43: . | CA43: . | CB43: . | CC43: . | CD43: . | CF43: . | CG43: .
B44: 33 | S44: FALSE | T44: =IF(AND(D44>0,$J$5>0),INT(S44),"") ->  | U44: =IF(AND(D44>0,$J$5>0),MOD(($M$5+D44-$D$7),7),"") ->  | V44: =IF(D44-$D$7>0,D44-$D$7,IF(D44-$D$7=0,D44-$D$7,"")) ->  | W44: =IF(D44-$D$7>0,V44/30.4375,IF(D44-$D$7=0,V44/30.4375,"")) ->  | X44: =IF(D44-$D$7>0,V44/365.25,IF(D44-$D$7=0,V44/365.25,"")) ->  | Y44: =IF(D44-$D$7>0,V44/7,IF(D44-$D$7=0,V44/7,"")) ->  | Z44: =IF(D44>0,IF(S44>0,0-(40-S44),""),"") ->  | AA44: FALSE | AB44: 0 | AC44: =IF(AND(D44>0,E44>0),AB44*1000,"") ->  | AD44: 0 | AF44: =IF(AND(AND(D44>0,E44>0,F44>0),F44>0),AB44/(F44/100)^2,"") ->  | AG44: =IF(D44>0,YEAR($D$7),"") ->  | AH44: =IF(D44>0,IF(MONTH($D$7)<10,CONCATENATE(0,MONTH($D$7)),MONTH($D$7)),"") ->  | AI44: =IF(D44>0,IF(DAY($D$7)<10,CONCATENATE(0,DAY($D$7)),DAY($D$7)),"") ->  | AJ44: =IF($D44>0,IF(Sexo="M",VLOOKUP($S44,F_W_boys,3),VLOOKUP($S44,F_W_girls,3)),"") ->  | AK44: =IF($D44>0,IF(Sexo="M",VLOOKUP($S44,F_W_boys,4),VLOOKUP($S44,F_W_girls,4)),"") ->  | AL44: =IF($D44>0,IF(Sexo="M",VLOOKUP($S44,F_W_boys,5),VLOOKUP($S44,F_W_girls,5)),"") ->  | AM44: =IF($D44>0,IF(Sexo="M",VLOOKUP($S44,F_L_boys,3),VLOOKUP($S44,F_L_girls,3)),"") ->  | AN44: =IF($D44>0,IF(Sexo="M",VLOOKUP($S44,F_L_boys,4),VLOOKUP($S44,F_L_girls,4)),"") ->  | AO44: =IF($D44>0,IF(Sexo="M",VLOOKUP($S44,F_L_boys,5),VLOOKUP($S44,F_L_girls,5)),"") ->  | AP44: =IF($D44>0,IF(Sexo="M",VLOOKUP($S44,F_HC_boys,3),VLOOKUP($S44,F_HC_girls,3)),"") ->  | AQ44: =IF($D44>0,IF(Sexo="M",VLOOKUP($S44,F_HC_boys,4),VLOOKUP($S44,F_HC_girls,4)),"") ->  | AR44: =IF($D44>0,IF(Sexo="M",VLOOKUP($S44,F_HC_boys,5),VLOOKUP($S44,F_HC_girls,5)),"") ->  | AS44: =IF($E44>0,(((AC44/AK44)^AJ44)-1)/(AJ44*AL44),"") ->  | AT44: =IF($E44>0,3+(AC44-(AK44*(1+AJ44*AL44*3)^(1/AJ44)))/((AK44*(1+AJ44*AL44*3)^(1/AJ44))-(AK44*(1+AJ44*AL44*2)^(1/AJ44))),"") ->  | AU44: =IF($E44>0,-3+(AC44-(AK44*(1+AJ44*AL44*-3)^(1/AJ44)))/((AK44*(1+AJ44*AL44*-3)^(1/AJ44))-(AK44*(1+AJ44*AL44*-2)^(1/AJ44))),"") ->  | AV44: =IF($F44>0,(((AD44/AN44)^AM44)-1)/(AM44*AO44),"") ->  | AW44: =IF($F44>0,3+(AD44-(AN44*(1+AM44*AO44*3)^(1/AM44)))/((AN44*(1+AM44*AO44*3)^(1/AM44))-(AN44*(1+AM44*AO44*2)^(1/AM44))),"") ->  | AX44: =IF($F44>0,-3+(AD44-(AN44*(1+AM44*AO44*-3)^(1/AM44)))/((AN44*(1+AM44*AO44*-3)^(1/AM44))-(AN44*(1+AM44*AO44*-2)^(1/AM44))),"") ->  | AY44: =IF($G44>0,(((AE44/AQ44)^AP44)-1)/(AP44*AR44),"") ->  | AZ44: =IF($G44>0,3+(AE44-(AQ44*(1+AP44*AR44*3)^(1/AP44)))/((AQ44*(1+AP44*AR44*3)^(1/AP44))-(AQ44*(1+AP44*AR44*2)^(1/AP44))),"") ->  | BA44: =IF($G44>0,-3+(AE44-(AQ44*(1+AP44*AR44*-3)^(1/AP44)))/((AQ44*(1+AP44*AR44*-3)^(1/AP44))-(AQ44*(1+AP44*AR44*-2)^(1/AP44))),"") ->  | BD44: . | BE44: . | BF44: . | BG44: . | BH44: . | BI44: . | BJ44: . | BK44: . | BL44: . | BM44: . | BN44: . | BO44: . | BP44: . | BQ44: . | BV44: =BF44 -> . | BW44: =BG44 -> . | BX44: =BH44 -> . | BY44: =BI44 -> . | BZ44: =BJ44 -> . | CA44: =BK44 -> . | CB44: =BL44 -> . | CC44: =BM44 -> . | CD44: =BN44 -> . | CE44: =AC44 ->  | CF44: =BP44 -> . | CG44: =BQ44 -> .
B45: 34 | S45: FALSE | AA45: FALSE | AB45: 0 | AD45: 0 | BD45: . | BE45: . | BF45: . | BG45: . | BH45: . | BI45: . | BJ45: . | BK45: . | BL45: . | BM45: . | BN45: . | BO45: . | BP45: . | BQ45: . | BV45: . | BW45: . | BX45: . | BY45: . | BZ45: . | CA45: . | CB45: . | CC45: . | CD45: . | CF45: . | CG45: .
B46: 35 | S46: FALSE | AA46: FALSE | AB46: 0 | AD46: 0 | BD46: . | BE46: . | BF46: . | BG46: . | BH46: . | BI46: . | BJ46: . | BK46: . | BL46: . | BM46: . | BN46: . | BO46: . | BP46: . | BQ46: . | BV46: . | BW46: . | BX46: . | BY46: . | BZ46: . | CA46: . | CB46: . | CC46: . | CD46: . | CF46: . | CG46: .
B47: 36 | S47: FALSE | AA47: FALSE | AB47: 0 | AD47: 0 | BD47: . | BE47: . | BF47: . | BG47: . | BH47: . | BI47: . | BJ47: . | BK47: . | BL47: . | BM47: . | BN47: . | BO47: . | BP47: . | BQ47: . | BV47: . | BW47: . | BX47: . | BY47: . | BZ47: . | CA47: . | CB47: . | CC47: . | CD47: . | CF47: . | CG47: .
B48: 37 | S48: FALSE | AA48: FALSE | AB48: 0 | AD48: 0 | BD48: . | BE48: . | BF48: . | BG48: . | BH48: . | BI48: . | BJ48: . | BK48: . | BL48: . | BM48: . | BN48: . | BO48: . | BP48: . | BQ48: . | BV48: . | BW48: . | BX48: . | BY48: . | BZ48: . | CA48: . | CB48: . | CC48: . | CD48: . | CF48: . | CG48: .
B49: 38 | S49: FALSE | AA49: FALSE | AB49: 0 | AD49: 0 | BD49: . | BE49: . | BF49: . | BG49: . | BH49: . | BI49: . | BJ49: . | BK49: . | BL49: . | BM49: . | BN49: . | BO49: . | BP49: . | BQ49: . | BV49: . | BW49: . | BX49: . | BY49: . | BZ49: . | CA49: . | CB49: . | CC49: . | CD49: . | CF49: . | CG49: .
B50: 39 | S50: FALSE | AA50: FALSE | AB50: 0 | AD50: 0 | BD50: . | BE50: . | BF50: . | BG50: . | BH50: . | BI50: . | BJ50: . | BK50: . | BL50: . | BM50: . | BN50: . | BO50: . | BP50: . | BQ50: . | BV50: . | BW50: . | BX50: . | BY50: . | BZ50: . | CA50: . | CB50: . | CC50: . | CD50: . | CF50: . | CG50: .
B51: 40 | S51: FALSE | AA51: FALSE | AB51: 0 | AD51: 0 | BD51: . | BE51: . | BF51: . | BG51: . | BH51: . | BI51: . | BJ51: . | BK51: . | BL51: . | BM51: . | BN51: . | BO51: . | BP51: . | BQ51: . | BV51: . | BW51: . | BX51: . | BY51: . | BZ51: . | CA51: . | CB51: . | CC51: . | CD51: . | CF51: . | CG51: .
B52: 41 | S52: FALSE | AA52: FALSE | AB52: 0 | AD52: 0 | BD52: . | BE52: . | BF52: . | BG52: . | BH52: . | BI52: . | BJ52: . | BK52: . | BL52: . | BM52: . | BN52: . | BO52: . | BP52: . | BQ52: . | BV52: . | BW52: . | BX52: . | BY52: . | BZ52: . | CA52: . | CB52: . | CC52: . | CD52: . | CF52: . | CG52: .
B53: 42 | S53: FALSE | AA53: FALSE | AB53: 0 | AD53: 0 | BD53: . | BE53: . | BF53: . | BG53: . | BH53: . | BI53: . | BJ53: . | BK53: . | BL53: . | BM53: . | BN53: . | BO53: . | BP53: . | BQ53: . | BV53: . | BW53: . | BX53: . | BY53: . | BZ53: . | CA53: . | CB53: . | CC53: . | CD53: . | CF53: . | CG53: .
B54: 43 | S54: FALSE | AA54: FALSE | AB54: 0 | AD54: 0 | BD54: . | BE54: . | BF54: . | BG54: . | BH54: . | BI54: . | BJ54: . | BK54: . | BL54: . | BM54: . | BN54: . | BO54: . | BP54: . | BQ54: . | BV54: . | BW54: . | BX54: . | BY54: . | BZ54: . | CA54: . | CB54: . | CC54: . | CD54: . | CF54: . | CG54: .
B55: 44 | S55: FALSE | AA55: FALSE | AB55: 0 | AD55: 0 | BD55: . | BE55: . | BF55: . | BG55: . | BH55: . | BI55: . | BJ55: . | BK55: . | BL55: . | BM55: . | BN55: . | BO55: . | BP55: . | BQ55: . | BV55: . | BW55: . | BX55: . | BY55: . | BZ55: . | CA55: . | CB55: . | CC55: . | CD55: . | CF55: . | CG55: .
B56: 45 | S56: FALSE | AA56: FALSE | AB56: 0 | AD56: 0 | BD56: . | BE56: . | BF56: . | BG56: . | BH56: . | BI56: . | BJ56: . | BK56: . | BL56: . | BM56: . | BN56: . | BO56: . | BP56: . | BQ56: . | BV56: . | BW56: . | BX56: . | BY56: . | BZ56: . | CA56: . | CB56: . | CC56: . | CD56: . | CF56: . | CG56: .
B57: 46 | S57: FALSE | AA57: FALSE | AB57: 0 | AD57: 0 | BD57: . | BE57: . | BF57: . | BG57: . | BH57: . | BI57: . | BJ57: . | BK57: . | BL57: . | BM57: . | BN57: . | BO57: . | BP57: . | BQ57: . | BV57: . | BW57: . | BX57: . | BY57: . | BZ57: . | CA57: . | CB57: . | CC57: . | CD57: . | CF57: . | CG57: .
B58: 47 | S58: FALSE | AA58: FALSE | AB58: 0 | AD58: 0 | BD58: . | BE58: . | BF58: . | BG58: . | BH58: . | BI58: . | BJ58: . | BK58: . | BL58: . | BM58: . | BN58: . | BO58: . | BP58: . | BQ58: . | BV58: . | BW58: . | BX58: . | BY58: . | BZ58: . | CA58: . | CB58: . | CC58: . | CD58: . | CF58: . | CG58: .
B59: 48 | S59: FALSE | AA59: FALSE | AB59: 0 | AD59: 0 | BD59: . | BE59: . | BF59: . | BG59: . | BH59: . | BI59: . | BJ59: . | BK59: . | BL59: . | BM59: . | BN59: . | BO59: . | BP59: . | BQ59: . | BV59: . | BW59: . | BX59: . | BY59: . | BZ59: . | CA59: . | CB59: . | CC59: . | CD59: . | CF59: . | CG59: .
B60: 49 | S60: FALSE | AA60: FALSE | AB60: 0 | AD60: 0 | BD60: . | BE60: . | BF60: . | BG60: . | BH60: . | BI60: . | BJ60: . | BK60: . | BL60: . | BM60: . | BN60: . | BO60: . | BP60: . | BQ60: . | BV60: . | BW60: . | BX60: . | BY60: . | BZ60: . | CA60: . | CB60: . | CC60: . | CD60: . | CF60: . | CG60: .
B61: 50 | S61: FALSE | AA61: FALSE | AB61: 0 | AD61: 0 | BD61: . | BE61: . | BF61: . | BG61: . | BH61: . | BI61: . | BJ61: . | BK61: . | BL61: . | BM61: . | BN61: . | BO61: . | BP61: . | BQ61: . | BV61: . | BW61: . | BX61: . | BY61: . | BZ61: . | CA61: . | CB61: . | CC61: . | CD61: . | CF61: . | CG61: .

Sheet Archivo
B2: Archivo de pacientes
I7: 1º BUSQUE el paciente | K7: 2º RECUPERE el paciente
I8: mediante el cuadro | K8: Esto lo llevará a la hoja ENTER para
I9: de búsqueda | K9: añadirle más registros o ver sus gráficas | U9: Área pegado | V9: Área pegado | W9: Área pegado | X9: Área pegado | Y9: Área pegado | Z9: Área pegado | AA9: Área pegado
U10: 1 | V10: 2 | W10: 3 | X10: 4 | Y10: 5 | Z10: 6 | AA10: 7
A11: N | B11: Fecha de registro | C11: NIP | D11: id | E11: Nombre | F11: Apellidos | G11: Sexo (M / F) | H11: Fecha de nacimiento | X11: steve
A14: N | B14: Fecha de registro | C14: NIP | D14: id | E14: Nombre | F14: Apellidos | G14: Sexo (M / F) | H14: Fecha de nacimiento | I14: Edad gest. (sem) | J14: Edad gest. (días) | K14: Edad gest. (decimal) | L14: Fecha de la visita | M14: Peso | N14: Longitud | O14: Perímetro craneal | P14: Z-Peso (Fenton) | Q14: Z-Long (Fenton) | R14: Z-PC (Fenton) | S14: NOTAS | U14: N | V14: Fecha de registro | W14: NIP | X14: id | Y14: Nombre | Z14: Apellidos | AA14: Sexo (M / F) | AB14: Fecha de nacimiento | AC14: Edad gest. (sem) | AD14: Edad gest. (días) | AE14: Edad gest. (decimal) | AF14: Fecha de la visita | AG14: Peso | AH14: Longitud | AI14: Perímetro craneal | AJ14: Z-Peso (Fenton) | AK14: Z-Long (Fenton) | AL14: Z-PC (Fenton) | AM14: NOTAS
B15: 2018-10-04 | C15: 20161008CMRE | D15: 1 | E15: Marie | F15: Curie | G15: f | H15: 2016-10-08 | I15: 29 | J15: 2 | K15: 29.28571429 | L15: 2016-10-08 | M15: 1.45 | N15: 41 | P15: 0.9540982364 | Q15: 1.42114565 | V15: 2019-12-12 | W15: 20180803JSEE | X15: 1 | Y15: Steve | Z15: Jobs | AA15: M | AB15: 2018-08-03 | AC15: 34 | AD15: 3 | AE15: 34.28571429 | AF15: 2018-08-02 | AG15: 1.92 | AH15: 45 | AI15: 32 | AJ15: -0.9701449075 | AK15: -0.0380781402 | AL15: 0.4280919815
B16: 2018-10-04 | C16: 20161008CMRE | D16: 2 | E16: Marie | F16: Curie | G16: f | H16: 2016-10-08 | I16: 29 | J16: 2 | K16: 36.14285714 | L16: 2016-11-25 | M16: 2.47 | O16: 35 | P16: -0.3796905391 | R16: 1.810334748 | V16: 2019-12-12 | W16: 20180803JSEE | X16: 2 | Y16: Steve | Z16: Jobs | AA16: M | AB16: 2018-08-03 | AC16: 34 | AD16: 3 | AE16: 36 | AF16: 2018-08-14 | AG16: 2.15 | AJ16: -1.343623064
B17: 2018-10-04 | C17: 20161008CMRE | D17: 3 | E17: Marie | F17: Curie | G17: f | H17: 2016-10-08 | I17: 29 | J17: 2 | K17: 37.57142857 | L17: 2016-12-05 | M17: 2.66 | N17: 46 | P17: -0.6698236335 | Q17: -0.8776938047 | V17: 2019-12-12 | W17: 20180803JSEE | X17: 3 | Y17: Steve | Z17: Jobs | AA17: M | AB17: 2018-08-03 | AC17: 34 | AD17: 3 | AE17: 36.85714286 | AF17: 2018-08-20 | AG17: 2.38 | AH17: 46 | AI17: 33 | AJ17: -1.237393766 | AK17: -0.8788183812 | AL17: -0.1595830744
B18: 2018-10-04 | C18: 20161008CMRE | D18: 4 | E18: Marie | F18: Curie | G18: f | H18: 2016-10-08 | I18: 29 | J18: 2 | K18: 42 | L18: 2017-01-05 | M18: 3.27 | N18: 50 | O18: 38.5 | P18: -1.02974483 | Q18: -0.9832781586 | R18: 2.13324504 | V18: 2019-12-12 | W18: 20180803JSEE | X18: 4 | Y18: Steve | Z18: Jobs | AA18: M | AB18: 2018-08-03 | AC18: 34 | AD18: 3 | AE18: 38.85714286 | AF18: 2018-09-03 | AG18: 3 | AH18: 48.5 | AI18: 35 | AJ18: -0.7388119125 | AK18: -0.6967414753 | AL18: 0.393575179
B19: 2018-10-04 | C19: 20161008CMRE | D19: 5 | E19: Marie | F19: Curie | G19: f | H19: 2016-10-08 | I19: 29 | J19: 2 | K19: 46.85714286 | L19: 2017-02-08 | M19: 3.95 | N19: 53.5 | O19: 40 | P19: -1.404809902 | Q19: -1.10778277 | R19: 1.917762438 | V19: 2019-12-12 | W19: 20180803JSEE | X19: 5 | Y19: Steve | Z19: Jobs | AA19: M | AB19: 2018-08-03 | AC19: 34 | AD19: 3 | AE19: 42.85714286 | AF19: 2018-10-01 | AG19: 4.4 | AH19: 53 | AI19: 38.5 | AJ19: 0.3379234156 | AK19: -0.3278983497 | AL19: 1.508477064
B20: 2018-10-04 | C20: 20161008CMRE | D20: 6 | E20: Marie | F20: Curie | G20: f | H20: 2016-10-08 | I20: 29 | J20: 2 | K20: 51.14285714 | L20: 2017-03-10 | M20: 4.45 | N20: 55.5 | V20: 2019-12-12 | W20: 20180803JSEE | X20: 6 | Y20: Steve | Z20: Jobs | AA20: M | AB20: 2018-08-03 | AC20: 34 | AD20: 3 | AE20: 47.14285714 | AF20: 2018-10-31 | AG20: 5.4 | AH20: 55 | AI20: 40 | AJ20: 0.2641161267 | AK20: -1.081669665 | AL20: 1.320876132
B21: 2018-10-04 | C21: 20161008CMRE | D21: 7 | E21: Marie | F21: Curie | G21: f | H21: 2016-10-08 | I21: 29 | J21: 2 | K21: 55.14285714 | L21: 2017-04-07 | M21: 4.94 | N21: 58 | O21: 42 | V21: 2019-12-12 | W21: 20180803JSEE | X21: 7 | Y21: Steve | Z21: Jobs | AA21: M | AB21: 2018-08-03 | AC21: 34 | AD21: 3 | AE21: 52.85714286 | AF21: 2018-12-10 | AG21: 6.24 | AH21: 62.5 | AI21: 42
B22: 2018-10-04 | C22: 20161008CMRE | D22: 8 | E22: Marie | F22: Curie | G22: f | H22: 2016-10-08 | I22: 29 | J22: 2 | K22: 59.85714286 | L22: 2017-05-10 | M22: 5.5 | N22: 60.5 | O22: 43.5 | V22: 2019-12-12 | W22: 20180803JSEE | X22: 8 | Y22: Steve | Z22: Jobs | AA22: M | AB22: 2018-08-03 | AC22: 34 | AD22: 3 | AE22: 60.85714286 | AF22: 2019-02-04 | AG22: 8.3 | AH22: 66 | AI22: 44
B23: 2018-10-04 | C23: 20161008CMRE | D23: 9 | E23: Marie | F23: Curie | G23: f | H23: 2016-10-08 | I23: 29 | J23: 2 | K23: 69.57142857 | L23: 2017-07-17 | M23: 6.3 | N23: 65 | O23: 45.5
B24: 2018-10-04 | C24: 20161008CMRE | D24: 10 | E24: Marie | F24: Curie | G24: f | H24: 2016-10-08 | I24: 29 | J24: 2 | K24: 77.57142857 | L24: 2017-09-11 | M24: 6.98 | N24: 68
B25: 2018-10-04 | C25: 20161008CMRE | D25: 11 | E25: Marie | F25: Curie | G25: f | H25: 2016-10-08 | I25: 29 | J25: 2 | K25: 81.14285714 | L25: 2017-10-06 | M25: 7.36 | N25: 70 | O25: 46
B26: 2018-10-04 | C26: 20161008CMRE | D26: 12 | E26: Marie | F26: Curie | G26: f | H26: 2016-10-08 | I26: 29 | J26: 2 | K26: 94.57142857 | L26: 2018-01-08 | M26: 7.85 | N26: 72.5 | O26: 49
B27: 2018-10-04 | C27: 20161008CMRE | D27: 13 | E27: Marie | F27: Curie | G27: f | H27: 2016-10-08 | I27: 29 | J27: 2 | K27: 107.5714286 | L27: 2018-04-09 | M27: 8.82 | N27: 75 | O27: 49
B28: 2018-10-04 | C28: 20161008CMRE | D28: 14 | E28: Marie | F28: Curie | G28: f | H28: 2016-10-08 | I28: 29 | J28: 2 | K28: 133 | L28: 2018-10-04 | M28: 9.58 | N28: 80.5 | O28: 49.5
B29: 2019-02-04 | C29: 20180803JSEE | D29: 1 | E29: Steve | F29: Jobs | G29: M | H29: 2018-08-03 | I29: 34 | J29: 3 | K29: 34.28571429 | L29: 2018-08-02 | M29: 1.92 | N29: 45 | O29: 32 | P29: -0.9701449075 | Q29: -0.0380781402 | R29: 0.4280919815
B30: 2019-02-04 | C30: 20180803JSEE | D30: 2 | E30: Steve | F30: Jobs | G30: M | H30: 2018-08-03 | I30: 34 | J30: 3 | K30: 36 | L30: 2018-08-14 | M30: 2.15 | P30: -1.343623064
B31: 2019-02-04 | C31: 20180803JSEE | D31: 3 | E31: Steve | F31: Jobs | G31: M | H31: 2018-08-03 | I31: 34 | J31: 3 | K31: 36.85714286 | L31: 2018-08-20 | M31: 2.38 | N31: 46 | O31: 33 | P31: -1.237393766 | Q31: -0.8788183812 | R31: -0.1595830744
B32: 2019-02-04 | C32: 20180803JSEE | D32: 4 | E32: Steve | F32: Jobs | G32: M | H32: 2018-08-03 | I32: 34 | J32: 3 | K32: 38.85714286 | L32: 2018-09-03 | M32: 3 | N32: 48.5 | O32: 35 | P32: -0.7388119125 | Q32: -0.6967414753 | R32: 0.393575179
B33: 2019-02-04 | C33: 20180803JSEE | D33: 5 | E33: Steve | F33: Jobs | G33: M | H33: 2018-08-03 | I33: 34 | J33: 3 | K33: 42.85714286 | L33: 2018-10-01 | M33: 4.4 | N33: 53 | O33: 38.5 | P33: 0.3379234156 | Q33: -0.3278983497 | R33: 1.508477064
B34: 2019-02-04 | C34: 20180803JSEE | D34: 6 | E34: Steve | F34: Jobs | G34: M | H34: 2018-08-03 | I34: 34 | J34: 3 | K34: 47.14285714 | L34: 2018-10-31 | M34: 5.4 | N34: 55 | O34: 40 | P34: 0.2641161267 | Q34: -1.081669665 | R34: 1.320876132
B35: 2019-02-04 | C35: 20180803JSEE | D35: 7 | E35: Steve | F35: Jobs | G35: M | H35: 2018-08-03 | I35: 34 | J35: 3 | K35: 52.85714286 | L35: 2018-12-10 | M35: 6.24 | N35: 62.5 | O35: 42
B36: 2019-02-04 | C36: 20180803JSEE | D36: 8 | E36: Steve | F36: Jobs | G36: M | H36: 2018-08-03 | I36: 34 | J36: 3 | K36: 60.85714286 | L36: 2019-02-04 | M36: 8.3 | N36: 66 | O36: 44
T352: 50

Sheet FentonGirls
B2: Nombre paciente: | C2: =IF(Sexo="F",CONCATENATE(ENTER!D5," ",ENTER!F5),"¿ es niña?") -> ¿ es niña? | G2: Fecha nacimiento: | H2: =IF(Sexo="F",ENTER!D7,"") ->  | K2: Edad gestacional: | L2: =IF(Sexo="F",CONCATENATE(ENTER!J5,IF(ISBLANK(ENTER!M5)=1," +0"," +"),ENTER!M5," sem."),"") ->  | M2: Sexo: | N2: =IF(Sexo="F",IF(OR(ENTER!G7="m",G4="M"),"niño","niña"),"") -> 

Sheet FentonBoys
B2: Nombre paciente: | C2: =IF(Sexo="M",CONCATENATE(ENTER!D5," ",ENTER!F5),"¿ es niño?") -> Steve Jobs | G2: Fecha nacimiento: | H2: =IF(Sexo="M",ENTER!D7,"") -> 2018-08-03 | K2: Edad gestacional: | L2: =IF(Sexo="M",CONCATENATE(ENTER!J5,IF(ISBLANK(ENTER!M5)=1," +0"," +"),ENTER!M5," sem."),"") -> 34 +3 sem. | M2: Sexo: | N2: =IF(Sexo="M",IF(OR(ENTER!G7="m",G4="M"),"niño","niña"),"") -> niño

Sheet IG_Girls
B2: Nombre paciente: | C2: =IF(Sexo="F",CONCATENATE(ENTER!D5," ",ENTER!F5),"¿ es niña?") -> ¿ es niña? | G2: Fecha nacimiento: | H2: =IF(Sexo="F",ENTER!D7,"") ->  | K2: Edad gestacional: | L2: =IF(Sexo="F",CONCATENATE(ENTER!J5,IF(ISBLANK(ENTER!M5)=1," +0"," +"),ENTER!M5," sem."),"") ->  | M2: Sexo: | N2: =IF(Sexo="F",IF(OR(ENTER!G7="m",G4="M"),"niño","niña"),"") -> 

Sheet IG_Boys
B2: Nombre paciente: | C2: =IF(Sexo="M",CONCATENATE(ENTER!D5," ",ENTER!F5),"¿ es niño?") -> Steve Jobs | G2: Fecha nacimiento: | H2: =IF(Sexo="M",ENTER!D7,"") -> 2018-08-03 | K2: Edad gestacional: | L2: =IF(Sexo="M",CONCATENATE(ENTER!J5,IF(ISBLANK(ENTER!M5)=1," +0"," +"),ENTER!M5," sem."),"") -> 34 +3 sem. | M2: Sexo: | N2: =IF(Sexo="M",IF(OR(ENTER!G7="m",G4="M"),"niño","niña"),"") -> niño

Sheet AnthroGirls
B2: Nombre paciente: | C2: =IF(Sexo="F",CONCATENATE(ENTER!D5," ",ENTER!F5),"¿ es niña?") -> ¿ es niña? | F2: Fecha nacimiento: | G2: =IF(Sexo="F",ENTER!D7,"") ->  | I2: Edad gestacional: | J2: =IF(Sexo="F",CONCATENATE(ENTER!J5,IF(ISBLANK(ENTER!M5)=1," +0"," +"),ENTER!M5," sem."),"") ->  | L2: Sexo: | M2: =IF(Sexo="F",IF(OR(ENTER!G7="m",G4="M"),"niño","niña"),"") -> 

Sheet AnthroBoys
B2: Nombre paciente: | C2: =IF(Sexo="M",CONCATENATE(ENTER!D5," ",ENTER!F5),"¿ es niño?") -> Steve Jobs | F2: Fecha nacimiento: | G2: =IF(Sexo="M",ENTER!D7,"") -> 2018-08-03 | I2: Edad gestacional: | J2: =IF(Sexo="M",CONCATENATE(ENTER!J5,IF(ISBLANK(ENTER!M5)=1," +0"," +"),ENTER!M5," sem."),"") -> 34 +3 sem. | L2: Sexo: | M2: =IF(Sexo="M",IF(OR(ENTER!G7="m",G4="M"),"niño","niña"),"") -> niño

Sheet Clinical exact age calculator_G
A1: ENTER ONLY DATA AGE AS WEEKS & DAYS. DO NOT ENTER COMPLETED WEEKS DATA AS IT CAUSES CALCULATOR TO INCORRECTLY ROUND UP OR DOWN. IF YOU HAVE ONLY WHOLE WEEKS FOR AGE, USE THE COMPLETED WEEKS CALCULATOR.
A2: **SGA is defined AT BIRTH ONLY as < 10th percentile for weight, LGA is > 90th percentile for weight
A3: Data Entry Cells - Girls (Enter up to 20 data rows) | H3: Calculated Cells Girls | O3: May 2 2014 - changed age coding to days from weeks
B4: Gest Age or | D4: Weight | E4: Length | F4: HC | H4: z-scores | L4: Percentiles | O4: April 2017 - incorporated the SD23 correction for extreme z-scores | AH4: Days>22w
B5: Postmenstrual Age | C5: Day: 0-6 | D5: 22.5-50 wks | E5: 23.5-50 wks | F5: 23.5-50 wks | H5: SGA, AGA or LGA | AH5: Girls | AI5: Weight | AS5: Girls | AT5: Lenght | BC5: Girls | BD5: HC | BM5: Source:
A6: ID | D6: grams | E6: cm | F6: cm | H6: by weight at birth** | I6: Weight Z | J6: Length Z | K6: Head circumference Z | L6: Weight % | M6: Length % | N6: Head circumference % | O6: age detail | Q6: wtl | R6: wtm | S6: wts | T6: ltl | U6: ltm | V6: lts | W6: hcl | X6: hcm | Y6: hcs | Z6: SGA | AA6: LGA | AB6: S3Pos | AC6: S23Pos | AD6: S3Neg | AE6: S23Neg | AG6: Weeks | AH6: Time, decimal | AI6: L | AJ6: M | AK6: S | AL6: 3 | AM6: 10 | AN6: 50 | AO6: 90 | AP6: 97 | AR6: Weeks | AS6: Time, decimal | AT6: L | AU6: M | AV6: S | AW6: 3 | AX6: 10 | AY6: 50 | AZ6: 90 | BA6: 97 | BC6: Time, decimal | BD6: L | BE6: M | BF6: S | BG6: 3 | BH6: 10 | BI6: 50 | BJ6: 90 | BK6: 97 | BM6: Fenton TR, Kim JH. A systematic review and meta-analysis to revise the Fenton growth chart for preterm infants. BMC Pediatr. 2013;13:59.
B7: 34 | C7: 5 | D7: 2380 | E7: 45.5 | F7: 31.5 | H7: =IF(O7<4,"",IF(O7>196,"",IF(D7="","",IF(D7<Z7,"SGA",IF(D7>AA7,"LGA","AGA"))))) -> AGA | I7: =IF(B7<22.5,"",IF(B7>50,"",IF(D7="","", IF(((D7/R7)^(Q7)-1)/(Q7*S7)>3,3+(D7-AB7)/AC7,IF(((D7/R7)^(Q7)-1)/(Q7*S7)<-3,-3+(D7-AD7)/AE7, ((D7/R7)^(Q7)-1)/(Q7*S7))) ))) -> 0.201289919 | J7: =IF(O7<11,"",IF(O7>196,"",IF(E7="","",((E7/U7)^(T7)-1)/(T7*V7)))) -> 0.2230641871 | K7: =IF(O7<11,"",IF(O7>196,"",IF(F7="","",((F7/X7)^(W7)-1)/(W7*Y7)))) -> 0.1724602638 | L7: =IF(O7<4,"",IF(O7>196,"",IF(D7="","",NORMSDIST(I7)))) -> 0.5797640577 | M7: =IF(O7<11,"",IF(O7>196,"",IF(E7="","",NORMSDIST(J7)))) -> 0.5882572247 | N7: =IF(O7<11,"",IF(O7>196,"",IF(F7="","",NORMSDIST(K7)))) -> 0.5684621509 | O7: =((B7-22)*7)+C7 -> 89 | Q7: =LOOKUP(O7,$AH$7:$AH$200,$AI$7:$AI$200) -> 0.628622278 | R7: =LOOKUP(O7,$AH$7:$AH$200,$AJ$7:$AJ$200) -> 2294.266465 | S7: =LOOKUP(O7,$AH$7:$AH$200,$AK$7:$AK$200) -> 0.1843790262 | T7: =LOOKUP(O7,$AS$7:$AS$193,$AT$7:$AT$193) -> 1 | U7: =LOOKUP(O7,$AS$7:$AS$193,$AU$7:$AU$193) -> 44.91405252 | V7: =LOOKUP(O7,$AS$7:$AS$193,$AV$7:$AV$193) -> 0.05848528353 | W7: =LOOKUP(O7,$BC$7:$BC$193,$BD$7:$BD$193) -> 1 | X7: =LOOKUP(O7,$BC$7:$BC$193,$BE$7:$BE$193) -> 31.24427314 | Y7: =LOOKUP(O7,$BC$7:$BC$193,$BF$7:$BF$193) -> 0.04745881368 | Z7: =LOOKUP(O7,$AH$7:$AH$200,$AM$7:$AM$200) -> 1776.431531 | AA7: =LOOKUP(O7,$AH$7:$AH$200,$AO$7:$AO$200) -> 2859.724468 | AB7: =$R7*(1+$Q7*$S7*3)^(1/$Q7) -> 3688.12431 | AC7: =$R7*(1+$Q7*$S7*3)^(1/$Q7)-$R7*(1+$Q7*$S7*2)^(1/$Q7) -> 491.5943755 | AD7: =$R7*(1+$Q7*$S7*(-3))^(1/$Q7) -> 1162.666737 | AE7: =$R7*(1+$Q7*$S7*(-2))^(1/$Q7)-$R7*(1+$Q7*$S7*(-3))^(1/$Q7) -> 345.5024188 | AG7: =22+AH7/7 -> 22.5 | AH7: =((22.5-22)*7) -> 3.5 | AI7: 0.07 | AJ7: 509 | AK7: 0.141 | AL7: 389.4606648 | AM7: 424.3632364 | AN7: 509 | AO7: 609.1230234 | AP7: 661.9628311 | BM7: Paper is available free with open access from:
B8: 34 | C8: 5 | D8: 2165 | H8: AGA | I8: -0.3088662413 | L8: 0.3787116388 | O8: 89 | Q8: 0.628622278 | R8: 2294.266465 | S8: 0.1843790262 | T8: 1 | U8: 44.91405252 | V8: 0.05848528353 | W8: 1 | X8: 31.24427314 | Y8: 0.04745881368 | Z8: 1776.431531 | AA8: 2859.724468 | AB8: 3688.12431 | AC8: 491.5943755 | AD8: 1162.666737 | AE8: 345.5024188 | AG8: 22.57142857 | AH8: =((23-22)*7)-3 -> 4 | AI8: 0.09095614235 | AJ8: 512.9417451 | AK8: 0.1417533138 | AL8: 391.566251 | AM8: 427.0552531 | AN8: 512.9417451 | AO8: 614.2203011 | AP8: 667.5305966 | BM8: http://www.biomedcentral.com/1471-2431/13/59
B9: 34 | C9: 5 | D9: 2305 | E9: 47 | F9: 31.5 | H9: AGA | I9: 0.02535191367 | J9: 0.7940987782 | K9: 0.1724602638 | L9: 0.510112867 | M9: 0.7864310356 | N9: 0.5684621509 | O9: 89 | Q9: 0.628622278 | R9: 2294.266465 | S9: 0.1843790262 | T9: 1 | U9: 44.91405252 | V9: 0.05848528353 | W9: 1 | X9: 31.24427314 | Y9: 0.04745881368 | Z9: 1776.431531 | AA9: 2859.724468 | AB9: 3688.12431 | AC9: 491.5943755 | AD9: 1162.666737 | AE9: 345.5024188 | AG9: 22.71428571 | AH9: =((23-22)*7)-2 -> 5 | AI9: 0.1329265722 | AJ9: 520.8651338 | AK9: 0.1432726248 | AL9: 395.7826831 | AM9: 432.4562611 | AN9: 520.8651338 | AO9: 624.4742103 | AP9: 678.7334369
B10: 34 | C10: 5 | D10: 2390 | E10: 49 | F10: 32.5 | H10: AGA | I10: 0.2245916995 | J10: 1.555478233 | K10: 0.8468527085 | L10: 0.5888515386 | M10: 0.9400838926 | N10: 0.8014613876 | O10: 89 | Q10: 0.628622278 | R10: 2294.266465 | S10: 0.1843790262 | T10: 1 | U10: 44.91405252 | V10: 0.05848528353 | W10: 1 | X10: 31.24427314 | Y10: 0.04745881368 | Z10: 1776.431531 | AA10: 2859.724468 | AB10: 3688.12431 | AC10: 491.5943755 | AD10: 1162.666737 | AE10: 345.5024188 | AG10: 22.85714286 | AH10: =((23-22)*7)-1 -> 6 | AI10: 0.1750714373 | AJ10: 528.9082177 | AK10: 0.1448299864 | AL10: 400.0148938 | AM10: 437.9081927 | AN10: 528.9082177 | AO10: 634.906181 | AP10: 690.1382051 | BM10: Calculator written with assistance of Timothy P Stevens, MD, MPH, University of Rochester, Rochester, NY
B11: 34 | C11: 5 | D11: 2820 | E11: 48.5 | F11: 34 | H11: AGA | I11: 1.194829463 | J11: 1.365133369 | K11: 1.858441376 | L11: 0.8839231668 | M11: 0.9138944321 | N11: 0.9684468194 | O11: 89 | Q11: 0.628622278 | R11: 2294.266465 | S11: 0.1843790262 | T11: 1 | U11: 44.91405252 | V11: 0.05848528353 | W11: 1 | X11: 31.24427314 | Y11: 0.04745881368 | Z11: 1776.431531 | AA11: 2859.724468 | AB11: 3688.12431 | AC11: 491.5943755 | AD11: 1162.666737 | AE11: 345.5024188 | AG11: 23 | AH11: =((23-22)*7)+0 -> 7 | AI11: 0.2175070281 | AJ11: 537.1507938 | AK11: 0.1464507657 | AL11: 404.2734021 | AM11: 443.4449968 | AN11: 537.1507938 | AO11: 645.6349206 | AP11: 701.8795198
O12: -154 | AG12: 23.14285714 | AH12: =((23-22)*7)+1 -> 8 | AI12: 0.2603496347 | AJ12: 545.6726589 | AK12: 0.1481603295 | AL12: 408.568727 | AM12: 449.1006225 | AN12: 545.6726589 | AO12: 656.7791368 | AP12: 714.0919996 | BM12: * Data not available for length and head circumference of infants < 23.5 weeks gestation
O13: -154 | AG13: 23.28571429 | AH13: =((23-22)*7)+2 -> 9 | AI13: 0.3037155473 | AJ13: 554.5536099 | AK13: 0.1499840451 | AL13: 412.9113877 | AM13: 454.9090189 | AN13: 554.5536099 | AO13: 668.4575371 | AP13: 726.9102631
O14: -154 | AG14: 23.42857143 | AH14: =((23-22)*7)+3 -> 10 | AI14: 0.3477210562 | AJ14: 563.8734436 | AK14: 0.1519472793 | AL14: 417.3119032 | AM14: 460.904135 | AN14: 563.8734436 | AO14: 680.7888292 | AP14: 740.4689289 | AR14: =22+AS14/7 -> 23.5 | AS14: =((23.5-22)*7) -> 10.5 | AT14: 1 | AU14: 29.59185955 | AV14: 0.060939 | AW14: 26.20021605 | AX14: 27.28075241 | AY14: 29.59185955 | AZ14: 31.90296668 | BA14: 32.98350304 | BC14: =((23.5-22)*7) -> 10.5 | BD14: 1 | BE14: 20.87742773 | BF14: 0.05664700117 | BG14: 18.65311151 | BH14: 19.3617516 | BI14: 20.87742773 | BJ14: 22.39310386 | BK14: 23.10174395 | BM14: **SGA is defined AT BIRTH ONLY as < 10th percentile for weight, LGA is > 90th percentile for weight
O15: -154 | AG15: 23.57142857 | AH15: =((23-22)*7)+4 -> 11 | AI15: 0.3924736581 | AJ15: 573.709334 | AK15: 0.1540743733 | AL15: 421.7800419 | AM15: 467.1185958 | AN15: 573.709334 | AO15: 693.8878385 | AP15: 754.8981876 | AR15: 23.57142857 | AS15: =((24-22)*7)-3 -> 11 | AT15: 1 | AU15: 29.68754375 | AV15: 0.06106437145 | AW15: 26.27776675 | AX15: 27.36408022 | AY15: 29.68754375 | AZ15: 32.01100728 | BA15: 33.09732076 | BC15: =((24-22)*7)-3 -> 11 | BD15: 1 | BE15: 20.9436698 | BF15: 0.05663345046 | BG15: 18.71284044 | BH15: 19.42355553 | BI15: 20.9436698 | BJ15: 22.46378406 | BK15: 23.17449915
O16: -154 | AG16: 23.71428571 | AH16: =((23-22)*7)+5 -> 12 | AI16: 0.4378785971 | AJ16: 584.0781278 | AK16: 0.1563660669 | AL16: 426.308311 | AM16: 473.5545734 | AN16: 584.0781278 | AO16: 707.7801012 | AP16: 770.2263851 | AR16: 23.71428571 | AS16: 12 | AT16: 1 | AU16: 29.87892235 | AV16: 0.06131470819 | AW16: 26.43288515 | AX16: 27.53075068 | AY16: 29.87892235 | AZ16: 32.22709402 | BA16: 33.32495955 | BC16: 12 | BD16: 1 | BE16: 21.07615679 | BF16: 0.05660621868 | BG16: 18.83230759 | BH16: 19.54717065 | BI16: 21.07615679 | BJ16: 22.60514293 | BK16: 23.32000599
O17: -154 | AG17: 23.85714286 | AH17: =((23-22)*7)+6 -> 13 | AI17: 0.4836388648 | AJ17: 594.9363443 | AK17: 0.1587994994 | AL17: 430.8719555 | AM17: 480.1837872 | AN17: 594.9363443 | AO17: 722.4018639 | AP17: 786.3800224 | AR17: 23.85714286 | AS17: 13 | AT17: 1 | AU17: 30.07033148 | AV17: 0.06156382646 | AW17: 26.58805454 | AX17: 27.69746561 | AY17: 30.07033148 | AZ17: 32.44319736 | BA17: 33.55260843 | BC17: 13 | BD17: 1 | BE17: 21.20865236 | BF17: 0.05657859582 | BG17: 18.95180263 | BH17: 19.6708075 | BI17: 21.20865236 | BJ17: 22.74649722 | BK17: 23.46550209 | BM17: Version 8 - includes SD23 correction for extreme weight z-scores, to improve accuracy of extreme
O18: -154 | AG18: 24 | AH18: 14 | AI18: 0.5294486594 | AJ18: 606.23788 | AK18: 0.161350784 | AL18: 435.4454702 | AM18: 486.9766326 | AN18: 606.23788 | AO18: 737.6854914 | AP18: 803.2811728 | AR18: 24 | AS18: 14 | AT18: 1 | AU18: 30.26179151 | AV18: 0.06181091395 | AW18: 26.74330891 | AX18: 27.86425467 | AY18: 30.26179151 | AZ18: 32.65932836 | BA18: 33.78027411 | BC18: 14 | BD18: 1 | BE18: 21.34116222 | BF18: 0.05655032118 | BG18: 19.07134414 | BH18: 19.79448057 | BI18: 21.34116222 | BJ18: 22.88784387 | BK18: 23.6109803 | BM18: values. While assessment revealed minimal differences with the SD23 correction, we wanted to
O19: -154 | AG19: 24.14285714 | AH19: 15 | AI19: 0.575002179 | AJ19: 617.9366315 | AK19: 0.1639960337 | AL19: 440.00335 | AM19: 493.9035048 | AN19: 617.9366315 | AO19: 753.5633482 | AP19: 820.8519093 | AR19: 24.14285714 | AS19: 15 | AT19: 1 | AU19: 30.4533228 | AV19: 0.06205515834 | AW19: 26.89868227 | AX19: 28.0311475 | AY19: 30.4533228 | AZ19: 32.8754981 | BA19: 34.00796333 | BC19: 15 | BD19: 1 | BE19: 21.47369209 | BF19: 0.05652113402 | BG19: 19.1909507 | BH19: 19.91820434 | BI19: 21.47369209 | BJ19: 23.02917984 | BK19: 23.75643348 | BM19: follow the WHO's lead to provide the most accurate extreme z-scores as possible [1].
O20: -154 | AG20: 24.28571429 | AH20: 16 | AI20: 0.6199936216 | AJ20: 629.9864952 | AK20: 0.1667113617 | AL20: 444.5200895 | AM20: 500.9347991 | AN20: 629.9864952 | AO20: 769.9677991 | AP20: 839.0143052 | AR20: 24.28571429 | AS20: 16 | AT20: 1 | AU20: 30.6449457 | AV20: 0.06229574733 | AW20: 27.05420861 | AX20: 28.19817377 | AY20: 30.6449457 | AZ20: 33.09171764 | BA20: 34.23568279 | BC20: 16 | BD20: 1 | BE20: 21.60624769 | BF20: 0.05649077365 | BG20: 19.31064091 | BH20: 20.0419933 | BI20: 21.60624769 | BJ20: 23.17050207 | BK20: 23.90185446 | BM20: Head circumference and length were normally distributed throughout these charts so no
O21: -154 | AG21: 24.42857143 | AH21: 17 | AI21: 0.6641171854 | AJ21: 642.3413675 | AK21: 0.1694728809 | AL21: 448.9701835 | AM21: 508.0409109 | AN21: 642.3413675 | AO21: 786.8312085 | AP21: 857.6904335 | AR21: 24.42857143 | AS21: 17 | AT21: 1 | AU21: 30.83668057 | AV21: 0.06253186861 | AW21: 27.20992192 | AX21: 28.36536311 | AY21: 30.83668057 | AZ21: 33.30799804 | BA21: 34.46343923 | BC21: 17 | BD21: 1 | BE21: 21.73883472 | BF21: 0.05645897934 | BG21: 19.43043335 | BH21: 20.16586195 | BI21: 21.73883472 | BJ21: 23.3118075 | BK21: 24.04723609 | BM21: corection was needed.
O22: -154 | AG22: 24.57142857 | AH22: 18 | AI22: 0.7070719833 | AJ22: 654.9558479 | AK22: 0.1722569796 | AL22: 453.3288095 | AM22: 515.1928833 | AN22: 654.9558479 | AO22: 804.0868882 | AP22: 876.8034731 | AR22: 24.57142857 | AS22: 18 | AT22: 1 | AU22: 31.02854735 | AV22: 0.06276272684 | AW22: 27.3658558 | AX22: 28.53274477 | AY22: 31.02854735 | AZ22: 33.52434994 | BA22: 34.69123891 | BC22: 18 | BD22: 1 | BE22: 21.8714588 | BF22: 0.05642549582 | BG22: 19.55034624 | BH22: 20.28982447 | BI22: 21.8714588 | BJ22: 23.45309313 | BK22: 24.19257135 | BM22: Reference
O23: -154 | AG23: 24.71428571 | AH23: 19 | AI23: 0.7486701722 | AJ23: 667.8007001 | AK23: 0.1750463695 | AL23: 457.586847 | AM23: 522.3766578 | AN23: 667.8007001 | AO23: 821.6899288 | AP23: 896.3020362 | AR23: 24.71428571 | AS23: 19 | AT23: 1 | AU23: 31.22055618 | AV23: 0.0629879175 | AW23: 27.52203477 | AX23: 28.7003387 | AY23: 31.22055618 | AZ23: 33.74077366 | BA23: 34.91907758 | BC23: 19 | BD23: 1 | BE23: 22.00412276 | BF23: 0.05639019327 | BG23: 19.67038927 | BH23: 20.41388837 | BI23: 22.00412276 | BJ23: 23.59435715 | BK23: 24.33785625 | BM23: WHO Multicentre Growth Reference Study Group. WHO Child Growth Standards: Length/height-for-age,
O24: -154 | AG24: 24.85714286 | AH24: 20 | AI24: 0.7888369524 | AJ24: 680.8628528 | AK24: 0.1778300863 | AL24: 461.750878 | AM24: 529.5930748 | AN24: 680.8628528 | AO24: 839.6172006 | AP24: 916.160168 | AR24: 24.85714286 | AS24: 20 | AT24: 1 | AU24: 31.41270739 | AV24: 0.06320742686 | AW24: 27.67847426 | AX24: 28.86815551 | AY24: 31.41270739 | AZ24: 33.95725927 | BA24: 35.14694052 | BC24: 20 | BD24: 1 | BE24: 22.13682671 | BF24: 0.05635306728 | BG24: 19.79056359 | BH24: 20.53805447 | BI24: 22.13682671 | BJ24: 23.73559894 | BK24: 24.48308983 | BM24: weight-for-age, weight-for-length, weight-for-height and body mass index-for-age: Methods and
O25: -154 | AG25: 25 | AH25: 21 | AI25: 0.8275024394 | AJ25: 694.1299374 | AK25: 0.1805974408 | AL25: 465.8281668 | AM25: 536.8436221 | AN25: 694.1299374 | AO25: 857.8465205 | AP25: 936.3530197 | AR25: 25 | AS25: 21 | AT25: 1 | AU25: 31.60500091 | AV25: 0.06342125816 | AW25: 27.83518932 | AX25: 29.03620543 | AY25: 31.60500091 | AZ25: 34.17379639 | BA25: 35.37481251 | BC25: 21 | BD25: 1 | BE25: 22.26957061 | BF25: 0.05631411888 | BG25: 19.91086997 | BH25: 20.6623233 | BI25: 22.26957061 | BJ25: 23.87681792 | BK25: 24.62827126 | BM25: development. Geneva: World Health Organization, 2006 p 302
O26: -154 | AG26: 25.14285714 | AH26: 22 | AI26: 0.8645967485 | AJ26: 707.5895852 | AK26: 0.1833377435 | AL26: 469.8259781 | AM26: 544.1297877 | AN26: 707.5895852 | AO26: 876.3557056 | AP26: 956.8557423 | AR26: 25.14285714 | AS26: 22 | AT26: 1 | AU26: 31.79743666 | AV26: 0.06362941466 | AW26: 27.99219497 | AX26: 29.20449868 | AY26: 31.79743666 | AZ26: 34.39037464 | BA26: 35.60267835 | BC26: 22 | BD26: 1 | BE26: 22.40235446 | BF26: 0.05627334913 | BG26: 20.0313092 | BH26: 20.78669538 | BI26: 22.40235446 | BJ26: 24.01801353 | BK26: 24.77339971 | BM26: http://www.who.int/childgrowth/standards/technical_report/en/
AG27: 25.28571429 | AH27: 23 | AI27: 0.900049995 | AJ27: 721.2294277 | AK27: 0.1860403051 | AL27: 473.7515762 | AM27: 551.4530596 | AN27: 721.2294277 | AO27: 895.1225728 | AP27: 977.6434868 | AR27: 25.28571429 | AS27: 23 | AT27: 1 | AU27: 31.99001455 | AV27: 0.06383189961 | AW27: 28.14950626 | AX27: 29.37304548 | AY27: 31.99001455 | AZ27: 34.60698362 | BA27: 35.83052284 | BC27: 23 | BD27: 1 | BE27: 22.53517821 | BF27: 0.05623075906 | BG27: 20.15188207 | BH27: 20.91117123 | BI27: 22.53517821 | BJ27: 24.1591852 | BK27: 24.91847435
A28: Procedure to calculate Z-scores and percentiles: | AG28: 25.42857143 | AH28: 24 | AI28: 0.9337922944 | AJ28: 735.0370962 | AK28: 0.1886944362 | AL28: 477.6122256 | AM28: 558.8149259 | AN28: 735.0370962 | AO28: 914.1249392 | AP28: 998.6914045 | AR28: 25.42857143 | AS28: 24 | AT28: 1 | AU28: 32.1827345 | AV28: 0.06402871627 | AW28: 28.30713822 | AX28: 29.54185605 | AY28: 32.1827345 | AZ28: 34.82361296 | BA28: 36.05833079 | BC28: 24 | BD28: 1 | BE28: 22.66804186 | BF28: 0.05618634972 | BG28: 20.27258935 | BH28: 21.03575138 | BI28: 22.66804186 | BJ28: 24.30033234 | BK28: 25.06349437
A29: 1 | B29: Use actual age, gestational/post menstrual age, including weeks and day of age | AG29: 25.57142857 | AH29: 25 | AI29: 0.9657558673 | AJ29: 749.0006573 | AK29: 0.1912896282 | AL29: 481.4154844 | AM29: 566.2171611 | AN29: 749.0006573 | AO29: 933.3412735 | AP29: 1019.97539 | AR29: 25.57142857 | AS29: 25 | AT29: 1 | AU29: 32.37559655 | AV29: 0.06421986333 | AW29: 28.46510605 | AX29: 29.71094075 | AY29: 32.37559655 | AZ29: 35.04025235 | BA29: 36.28608706 | BC29: 25 | BD29: 1 | BE29: 22.80094541 | BF29: 0.05614012069 | BG29: 20.39343194 | BH29: 21.16043644 | BI29: 22.80094541 | BJ29: 24.44145437 | BK29: 25.20845888
A30: 2 | B30: Daily flucutations reflect both fluid status and growth | AG30: 25.71428571 | AH30: 26 | AI30: 0.9959213559 | AJ30: 763.1181885 | AK30: 0.1938195243 | AL30: 485.1756604 | AM30: 573.6681344 | AN30: 763.1181885 | AO30: 952.7650322 | AP30: 1041.488437 | AR30: 25.71428571 | AS30: 26 | AT30: 1 | AU30: 32.56860335 | AV30: 0.06440523478 | AW30: 28.62342842 | AX30: 29.88031316 | AY30: 32.56860335 | AZ30: 35.25689355 | BA30: 36.51377829 | BC30: 26 | BD30: 1 | BE30: 22.9338896 | BF30: 0.05609203795 | BG30: 20.51441324 | BH30: 21.28522898 | BI30: 22.9338896 | BJ30: 24.58255023 | BK30: 25.35336596
A31: 3 | B31: At least a week between percentile/z-score calculations is recommended between calculations of percentiles/z-scores to reflect growth | AG31: 25.85714286 | AH31: 27 | AI31: 1.024317824 | AJ31: 777.3977777 | AK31: 0.1962819203 | AL31: 488.9138111 | AM31: 581.1828095 | AN31: 777.3977777 | AO31: 972.4046596 | AP31: 1063.240638 | AR31: 25.85714286 | AS31: 27 | AT31: 1 | AU31: 32.76176019 | AV31: 0.06458461991 | AW31: 28.7821275 | AX31: 30.04999006 | AY31: 32.76176019 | AZ31: 35.47353031 | BA31: 36.74139287 | BC31: 27 | BD31: 1 | BE31: 23.06687593 | BF31: 0.05604203387 | BG31: 20.63553921 | BH31: 21.41013351 | BI31: 23.06687593 | BJ31: 24.72361835 | BK31: 25.49821265
A32: 4 | B32: This application will calculate boys exact Z-score and Percentile placement on the Fenton 2013 Preterm Growth Chart, with the SD23 correction*. | AG32: 26 | AH32: 28 | AI32: 1.05097644 | AJ32: 791.8479483 | AK32: 0.1986747925 | AL32: 492.6512876 | AM32: 588.7764367 | AN32: 791.8479483 | AO32: 992.2692518 | AP32: 1085.242832 | AR32: 26 | AS32: 28 | AT32: 1 | AU32: 32.95507245 | AV32: 0.06475780342 | AW32: 28.94122561 | AX32: 30.21998839 | AY32: 32.95507245 | AZ32: 35.69015651 | BA32: 36.96891929 | BC32: 28 | BD32: 1 | BE32: 23.1999059 | BF32: 0.05599003935 | BG32: 20.75681587 | BH32: 21.53515463 | BI32: 23.1999059 | BJ32: 24.86465716 | BK32: 25.64299593
AG33: 26.14285714 | AH33: 29 | AI33: 1.075928373 | AJ33: 806.4772236 | AK33: 0.200996117 | AL33: 496.4094411 | AM33: 596.4642663 | AN33: 806.4772236 | AO33: 1012.367905 | AP33: 1107.505855 | AR33: 26.14285714 | AS33: 29 | AT33: 1 | AU33: 33.14854554 | AV33: 0.06492457005 | AW33: 29.10074508 | AX33: 30.39032506 | AY33: 33.14854554 | AZ33: 35.90676602 | BA33: 37.196346 | BC33: 29 | BD33: 1 | BE33: 23.33298103 | BF33: 0.05593598529 | BG33: 20.87824927 | BH33: 21.66029695 | BI33: 23.33298103 | BJ33: 25.0056651 | BK33: 25.78771278
AG34: 26.28571429 | AH34: 30 | AI34: 1.099204792 | AJ34: 821.2941269 | AK34: 0.2032438702 | AL34: 500.2096226 | AM34: 604.2615487 | AN34: 821.2941269 | AO34: 1032.709715 | AP34: 1130.040543 | AR34: 26.28571429 | AS34: 30 | AT34: 1 | AU34: 33.34218485 | AV34: 0.06508470452 | AW34: 29.26070821 | AX34: 30.56101701 | AY34: 33.34218485 | AZ34: 36.12335268 | BA34: 37.42366148 | BC34: 30 | BD34: 1 | BE34: 23.46610283 | BF34: 0.05587980261 | BG34: 20.99984547 | BH34: 21.78556506 | BI34: 23.46610283 | BJ34: 25.14664059 | BK34: 25.93236019
AG35: 26.42857143 | AH35: 31 | AI35: 1.120836866 | AJ35: 836.3071815 | AK35: 0.2054160283 | AL35: 504.0731832 | AM35: 612.1835343 | AN35: 836.3071815 | AO35: 1053.303777 | AP35: 1152.857733 | AR35: 26.42857143 | AS35: 31 | AT35: 1 | AU35: 33.53599577 | AV35: 0.06523799155 | AW35: 29.42113733 | AX35: 30.73208117 | AY35: 33.53599577 | AZ35: 36.33991037 | BA35: 37.65085421 | BC35: 31 | BD35: 1 | BE35: 23.59927282 | BF35: 0.0558214222 | BG35: 21.12161051 | BH35: 21.91096358 | BI35: 23.59927282 | BJ35: 25.28758206 | BK35: 26.07693514
AG36: 26.57142857 | AH36: 32 | AI36: 1.140855763 | AJ36: 851.5249612 | AK36: 0.2075105872 | AL36: 508.0216193 | AM36: 620.245536 | AN36: 851.5249612 | AO36: 1074.159257 | AP36: 1175.968337 | AR36: 26.57142857 | AS36: 32 | AT36: 1 | AU36: 33.72998367 | AV36: 0.06538421708 | AW36: 29.58205476 | AX36: 30.90353445 | AY36: 33.72998367 | AZ36: 36.55643289 | BA36: 37.87791258 | BC36: 32 | BD36: 1 | BE36: 23.73249251 | BF36: 0.05576077537 | BG36: 21.24355041 | BH36: 22.03649708 | BI36: 23.73249251 | BJ36: 25.42848794 | BK36: 26.22143462
AG37: 26.71428571 | AH37: 33 | AI37: 1.159292654 | AJ37: 866.9572003 | AK37: 0.209525997 | AL37: 512.0797718 | AM37: 628.4643078 | AN37: 866.9572003 | AO37: 1095.286905 | AP37: 1199.384957 | AR37: 26.71428571 | AS37: 33 | AT37: 1 | AU37: 33.92415322 | AV37: 0.06552319512 | AW37: 29.74348299 | AX37: 31.07539366 | AY37: 33.92415322 | AZ37: 36.77291277 | BA37: 38.10482345 | BC37: 33 | BD37: 1 | BE37: 23.86576321 | BF37: 0.05569780242 | BG37: 21.36567076 | BH37: 22.1621698 | BI37: 23.86576321 | BJ37: 25.56935661 | BK37: 26.36585565
AG38: 26.85714286 | AH38: 34 | AI38: 1.176178706 | AJ38: 882.6147937 | AK38: 0.2114611617 | AL38: 516.2758252 | AM38: 636.8580448 | AN38: 882.6147937 | AO38: 1116.699055 | AP38: 1223.121892 | AR38: 26.85714286 | AS38: 34 | AT38: 1 | AU38: 34.11850836 | AV38: 0.06565476772 | AW38: 29.90544461 | AX38: 31.24767547 | AY38: 34.11850836 | AZ38: 36.98934126 | BA38: 38.33157211 | BC38: 34 | BD38: 1 | BE38: 23.99908602 | BF38: 0.05563245265 | BG38: 21.48797671 | BH38: 22.28798559 | BI38: 23.99908602 | BJ38: 25.71018645 | BK38: 26.51019532
AG39: =22+AH39/7 -> 27 | AH39: 35 | AI39: 1.191545088 | AJ39: 898.5086868 | AK39: 0.2133150051 | AL39: 520.6381097 | AM39: 645.4450044 | AN39: 898.5086868 | AO39: 1138.40811 | AP39: 1247.193512 | AR39: 27 | AS39: 35 | AT39: 1 | AU39: 34.31305304 | AV39: 0.06577877815 | AW39: 30.06796227 | AX39: 31.42039654 | AY39: 34.31305304 | AZ39: 37.20570953 | BA39: 38.55814381 | BC39: 35 | BD39: 1 | BE39: 24.13246205 | BF39: 0.05556467577 | BG39: 21.6104734 | BH39: 22.4139483 | BI39: 24.13246205 | BJ39: 25.85097579 | BK39: 26.6544507
AG40: 27.14285714 | AH40: 36 | AI40: 1.205422969 | AJ40: 914.6498248 | AK40: 0.215086451 | AL40: 525.1949556 | AM40: 654.2434444 | AN40: 914.6498248 | AO40: 1160.426474 | AP40: 1271.614189 | AR40: 27.14285714 | AS40: 36 | AT40: 1 | AU40: 34.50779117 | AV40: 0.06589506971 | AW40: 30.23105857 | AX40: 31.59357355 | AY40: 34.50779117 | AZ40: 37.42200878 | BA40: 38.78452376 | BC40: 36 | BD40: 1 | BE40: 24.2658924 | BF40: 0.05549442147 | BG40: 21.73316594 | BH40: 22.54006178 | BI40: 24.2658924 | BJ40: 25.99172302 | BK40: 26.79861886
AG41: 27.28571429 | AH41: 37 | AI41: 1.217843519 | AJ41: 931.0491531 | AK41: 0.2167744232 | AL41: 529.974693 | AM41: 663.2716224 | AN41: 931.0491531 | AO41: 1182.766551 | AP41: 1296.398293 | AR41: 27.28571429 | AS41: 37 | AT41: 1 | AU41: 34.70272668 | AV41: 0.06600348566 | AW41: 30.39475615 | AX41: 31.76722316 | AY41: 34.70272668 | AZ41: 37.6382302 | BA41: 39.01069721 | BC41: 37 | BD41: 1 | BE41: 24.39937818 | BF41: 0.05542163945 | BG41: 21.85605949 | BH41: 22.66632988 | BI41: 24.39937818 | BJ41: 26.13242647 | BK41: 26.94269687
AG42: 27.42857143 | AH42: 38 | AI42: 1.228837906 | AJ42: 947.7176172 | AK42: 0.2183778454 | AL42: 535.0056521 | AM42: 672.547796 | AN42: 947.7176172 | AO42: 1205.440743 | AP42: 1321.560195 | AR42: 27.42857143 | AS42: 38 | AT42: 1 | AU42: 34.8978635 | AV42: 0.06610386929 | AW42: 30.55907764 | AX42: 31.94136203 | AY42: 34.8978635 | AZ42: 37.85436498 | BA42: 39.23664937 | BC42: 38 | BD42: 1 | BE42: 24.53292049 | BF42: 0.05534627941 | BG42: 21.97915916 | BH42: 22.79275645 | BI42: 24.53292049 | BJ42: 26.27308452 | BK42: 27.08668181
AG43: 27.57142857 | AH43: 39 | AI43: 1.238437299 | AJ43: 964.6661487 | AK43: 0.2198956362 | AL43: 540.316226 | AM43: 682.0902492 | AN43: 964.6661487 | AO43: 1228.461396 | AP43: 1347.114187 | AR43: 27.57142857 | AS43: 39 | AT43: 1 | AU43: 35.09320558 | AV43: 0.06619606354 | AW43: 30.72404569 | AX43: 32.11600688 | AY43: 35.09320558 | AZ43: 38.07040428 | BA43: 39.46236546 | BC43: 39 | BD43: 1 | BE43: 24.66652043 | BF43: 0.05526829095 | BG43: 22.1024701 | BH43: 22.91934534 | BI43: 24.66652043 | BJ43: 26.41369551 | BK43: 27.23057075
AG44: 27.71428571 | AH44: 40 | AI44: 1.246672867 | AJ44: 981.9053687 | AK44: 0.2213265924 | AL44: 545.936258 | AM44: 691.9178725 | AN44: 981.9053687 | AO44: 1251.839509 | AP44: 1373.072745 | AR44: 27.71428571 | AS44: 40 | AT44: 1 | AU44: 35.28875702 | AV44: 0.06627990384 | AW44: 30.88968408 | AX44: 32.2911752 | AY44: 35.28875702 | AZ44: 38.28633884 | BA44: 39.68782997 | BC44: 40 | BD44: 1 | BE44: 24.80017916 | BF44: 0.05518762125 | BG44: 22.22599783 | BH44: 23.04610069 | BI44: 24.80017916 | BJ44: 26.55425763 | BK44: 27.37436049
AG45: 27.85714286 | AH45: 41 | AI45: 1.253575779 | AJ45: 999.445587 | AK45: 0.2226693891 | AL45: 551.8970416 | AM45: 702.0501629 | AN45: 999.445587 | AO45: 1275.584734 | AP45: 1399.446526 | AR45: 27.85714286 | AS45: 41 | AT45: 1 | AU45: 35.48452215 | AV45: 0.06635521812 | AW45: 31.05601766 | AX45: 32.46688532 | AY45: 35.48452215 | AZ45: 38.50215899 | BA45: 39.91302665 | BC45: 41 | BD45: 1 | BE45: 24.93389789 | BF45: 0.05510421507 | BG45: 22.34974821 | BH45: 23.17302686 | BI45: 24.93389789 | BJ45: 26.69476893 | BK45: 27.51804758
AG46: 28 | AH46: 42 | AI46: 1.259177204 | AJ46: 1017.2971 | AK46: 0.2239226963 | AL46: 558.2299332 | AM46: 712.5066439 | AN46: 1017.2971 | AO46: 1299.706665 | AP46: 1426.246109 | AR46: =22+AS46/7 -> 28 | AS46: 42 | AT46: 1 | AU46: 35.68050529 | AV46: 0.06642183396 | AW46: 31.22307133 | AX46: 32.64315556 | AY46: 35.68050529 | AZ46: 38.71785502 | BA46: 40.13793925 | BC46: 42 | BD46: 1 | BE46: 25.06767785 | BF46: 0.05501801708 | BG46: 22.47372713 | BH46: 23.30012827 | BI46: 25.06767785 | BJ46: 26.83522742 | BK46: 27.66162856
AG47: 28.14285714 | AH47: 43 | AI47: 1.26350831 | AJ47: 1035.470204 | AK47: 0.2250851838 | AL47: 564.966289 | AM47: 723.3068388 | AN47: 1035.470204 | AO47: 1324.214896 | AP47: 1453.482072 | AR47: 28.14285714 | AS47: 43 | AT47: 1 | AU47: 35.87671075 | AV47: 0.06647957895 | AW47: 31.39086999 | AX47: 32.82000429 | AY47: 35.87671075 | AZ47: 38.93341722 | BA47: 40.36255152 | BC47: 43 | BD47: 1 | BE47: 25.20152023 | BF47: 0.05492897195 | BG47: 22.59794048 | BH47: 23.42740931 | BI47: 25.20152023 | BJ47: 26.97563114 | BK47: 27.80509998
AG48: 28.28571429 | AH48: 44 | AI48: 1.266600267 | AJ48: 1053.975196 | AK48: 0.2261555216 | AL48: 572.1374657 | AM48: 734.4702711 | AN48: 1053.975196 | AO48: 1349.119022 | AP48: 1481.164995 | AR48: 28.28571429 | AS48: 44 | AT48: 1 | AU48: 36.07314287 | AV48: 0.06652828068 | AW48: 31.55943855 | AX48: 32.99744983 | AY48: 36.07314287 | AZ48: 39.1488359 | BA48: 40.58684719 | BC48: 44 | BD48: 1 | BE48: 25.33542625 | BF48: 0.05483702433 | BG48: 22.72239414 | BH48: 23.55487438 | BI48: 25.33542625 | BJ48: 27.11597812 | BK48: 27.94845836
AG49: 28.42857143 | AH49: 45 | AI49: 1.268484243 | AJ49: 1072.822373 | AK49: 0.2271323795 | AL49: 579.7748195 | AM49: 746.0164642 | AN49: 1072.822373 | AO49: 1374.428635 | AP49: 1509.305457 | AR49: 28.42857143 | AS49: 45 | AT49: 1 | AU49: 36.26980595 | AV49: 0.06656776673 | AW49: 31.7288019 | AX49: 33.17551055 | AY49: 36.26980595 | AZ49: 39.36410135 | BA49: 40.81081 | BC49: 45 | BD49: 1 | BE49: 25.46939713 | BF49: 0.05474211889 | BG49: 22.847094 | BH49: 23.68252788 | BI49: 25.46939713 | BJ49: 27.25626638 | BK49: 28.09170026
AG50: 28.57142857 | AH50: 46 | AI50: 1.269191407 | AJ50: 1092.022033 | AK50: 0.2280144289 | AL50: 587.9095976 | AM50: 757.9649347 | AN50: 1092.022033 | AO50: 1400.153276 | AP50: 1537.913954 | AR50: 28.57142857 | AS50: 46 | AT50: 1 | AU50: 36.46670432 | AV50: 0.06659786478 | AW50: 31.89898498 | AX50: 33.3542048 | AY50: 36.46670432 | AZ50: 39.57920384 | BA50: 41.03442366 | BC50: 46 | BD50: 1 | BE50: 25.60343408 | BF50: 0.05464420033 | BG50: 22.97204596 | BH50: 23.81037421 | BI50: 25.60343408 | BJ50: 27.39649396 | BK50: 28.2348222
AG51: 28.71428571 | AH51: 47 | AI51: 1.268752929 | AJ51: 1111.584561 | AK51: 0.2288003736 | AL51: 596.5705325 | AM51: 770.3350457 | AN51: 1111.584561 | AO51: 1426.30123 | AP51: 1566.999076 | AR51: 28.71428571 | AS51: 47 | AT51: 1 | AU51: 36.66384225 | AV51: 0.06661840453 | AW51: 32.07001357 | AX51: 33.5335515 | AY51: 36.66384225 | AZ51: 39.794133 | BA51: 41.25767093 | BC51: 47 | BD51: 1 | BE51: 25.7375383 | BF51: 0.05454321397 | BG51: 23.09725605 | BH51: 23.93841785 | BI51: 25.7375383 | BJ51: 27.53665874 | BK51: 28.37782055
AG52: 28.85714286 | AH52: 48 | AI52: 1.267199976 | AJ52: 1131.520422 | AK52: 0.2294889502 | AL52: 605.7838423 | AM52: 783.1460066 | AN52: 1131.520422 | AO52: 1452.87953 | AP52: 1596.567511 | AR52: 28.85714286 | AS52: 48 | AT52: 1 | AU52: 36.86122395 | AV52: 0.06662921767 | AW52: 32.24191424 | AX52: 33.71357012 | AY52: 36.86122395 | AZ52: 40.00887778 | BA52: 41.48053367 | BC52: 48 | BD52: 1 | BE52: 25.87171097 | BF52: 0.05443910581 | BG52: 23.22273042 | BH52: 24.0666634 | BI52: 25.87171097 | BJ52: 27.67675854 | BK52: 28.52069151
AG53: 29 | AH53: 49 | AI53: 1.264563719 | AJ53: 1151.840087 | AK53: 0.2300788966 | AL53: 615.5756357 | AM53: 796.4170202 | AN53: 1151.840087 | AO53: 1479.895154 | AP53: 1626.625863 | AR53: 29 | AS53: 49 | AT53: 1 | AU53: 37.05885364 | AV53: 0.066630136 | AW53: 32.41471362 | AX53: 33.89428013 | AY53: 37.05885364 | AZ53: 40.22342716 | BA53: 41.70299367 | BC53: 49 | BD53: 1 | BE53: 26.00595327 | BF53: 0.05433182185 | BG53: 23.34847526 | BH53: 24.19511543 | BI53: 26.00595327 | BJ53: 27.81679112 | BK53: 28.66343129
AG54: 29.14285714 | AH54: 50 | AI54: 1.260875326 | AJ54: 1172.554027 | AK54: 0.2305689506 | AL54: 625.9720214 | AM54: 810.1672891 | AN54: 1172.554027 | AO54: 1507.355079 | AP54: 1657.180735 | AR54: 29.14285714 | AS54: 50 | AT54: 1 | AU54: 37.25673554 | AV54: 0.0666209913 | AW54: 32.58843833 | AX54: 34.07570103 | AY54: 37.25673554 | AZ54: 40.43777006 | BA54: 41.92503276 | BC54: 50 | BD54: 1 | BE54: 26.1402664 | BF54: 0.05422130811 | BG54: 23.47449674 | BH54: 24.32377852 | BI54: 26.1402664 | BJ54: 27.95675428 | BK54: 28.80603606
AG55: 29.28571429 | AH55: 51 | AI55: 1.256165965 | AJ55: 1193.67271 | AK55: 0.2309578503 | AL55: 636.9991082 | AM55: 824.416016 | AN55: 1193.67271 | AO55: 1535.266282 | AP55: 1688.238731 | AR55: 29.28571429 | AS55: 51 | AT55: 1 | AU55: 37.45487387 | AV55: 0.06660161539 | AW55: 32.76311501 | AX55: 34.25785231 | AY55: 37.45487387 | AZ55: 40.65189543 | BA55: 42.14663273 | BC55: 51 | BD55: 1 | BE55: 26.27465153 | BF55: 0.05410751061 | BG55: 23.60080102 | BH55: 24.45265726 | BI55: 26.27465153 | BJ55: 28.0966458 | BK55: 28.94850204
AG56: 29.42857143 | AH56: 52 | AI56: 1.250466807 | AJ56: 1215.206607 | AK56: 0.2312443335 | AL56: 648.6830048 | AM56: 839.1824037 | AN56: 1215.206607 | AO56: 1563.635743 | AP56: 1719.806456 | AR56: 29.42857143 | AS56: 52 | AT56: 1 | AU56: 37.65327283 | AV56: 0.06657184003 | AW56: 32.93877027 | AX56: 34.44075343 | AY56: 37.65327283 | AZ56: 40.86579222 | BA56: 42.36777539 | BC56: 52 | BD56: 1 | BE56: 26.40910985 | BF56: 0.05399037535 | BG56: 23.72739428 | BH56: 24.58175623 | BI56: 26.40910985 | BJ56: 28.23646346 | BK56: 29.09082541
AG57: 29.57142857 | AH57: 53 | AI57: 1.243809018 | AJ57: 1237.166187 | AK57: 0.2314271378 | AL57: 661.0496712 | AM57: 854.4856463 | AN57: 1237.166187 | AO57: 1592.470325 | AP57: 1751.890339 | AR57: 29.57142857 | AS57: 53 | AT57: 1 | AU57: 37.85193664 | AV57: 0.06653149701 | AW57: 33.11543079 | AX57: 34.62442393 | AY57: 37.85193664 | AZ57: 41.07944935 | BA57: 42.58844249 | BC57: 53 | BD57: 1 | BE57: 26.54364253 | BF57: 0.05386984835 | BG57: 23.8542827 | BH57: 24.71108003 | BI57: 26.54364253 | BJ57: 28.37620504 | BK57: 29.23300237
AG58: 29.71428571 | AH58: 54 | AI58: 1.23622377 | AJ58: 1259.561898 | AK58: 0.231504992 | AL58: 674.1216464 | AM58: 870.3447417 | AN58: 1259.561898 | AO58: 1621.774313 | AP58: 1784.492827 | AR58: 29.71428571 | AS58: 54 | AT58: 1 | AU58: 38.05086954 | AV58: 0.06648041755 | AW58: 33.29312438 | AX58: 34.80888411 | AY58: 38.05086954 | AZ58: 41.29285497 | BA58: 42.8086147 | BC58: 54 | BD58: 1 | BE58: 26.67825078 | BF58: 0.05374587542 | BG58: 23.98147272 | BH58: 24.8406334 | BI58: 26.67825078 | BJ58: 28.51586815 | BK58: 29.37502883
AG59: 29.85714286 | AH59: 55 | AI59: 1.227742229 | AJ59: 1282.404164 | AK59: 0.2314766162 | AL59: 687.9180486 | AM59: 886.7784914 | AN59: 1282.404164 | AO59: 1651.549407 | AP59: 1817.61238 | AR59: 29.85714286 | AS59: 55 | AT59: 1 | AU59: 38.25007577 | AV59: 0.06641843234 | AW59: 33.47188002 | AX59: 34.99415505 | AY59: 38.25007577 | AZ59: 41.50599648 | BA59: 43.02827151 | BC59: 55 | BD59: 1 | BE59: 26.81293578 | BF59: 0.05361840224 | BG59: 24.10897105 | BH59: 24.97042132 | BI59: 26.81293578 | BJ59: 28.65545023 | BK59: 29.5169005
AG60: 30 | AH60: 56 | AI60: 1.218395566 | AJ60: 1305.703411 | AK60: 0.23134073 | AL60: 702.4578471 | AM60: 903.8056886 | AN60: 1305.703411 | AO60: 1681.797194 | AP60: 1851.247284 | AR60: 30 | AS60: 56 | AT60: 1 | AU60: 38.44955956 | AV60: 0.06634537205 | AW60: 33.65172669 | AX60: 35.18025788 | AY60: 38.44955956 | AZ60: 41.71886125 | BA60: 43.24739243 | BC60: 56 | BD60: 1 | BE60: 26.94769871 | BF60: 0.05348737445 | BG60: 24.23678438 | BH60: 25.10044871 | BI60: 26.94769871 | BJ60: 28.79494872 | BK60: 29.65861305
AG61: 30.14285714 | AH61: 57 | AI61: 1.208214949 | AJ61: 1329.470063 | AK61: 0.2310960532 | AL61: 717.7600114 | AM61: 921.4451263 | AN61: 1329.470063 | AO61: 1712.519263 | AP61: 1885.395827 | AR61: 30.14285714 | AS61: 57 | AT61: 1 | AU61: 38.64932518 | AV61: 0.06626106735 | AW61: 33.83269343 | AX61: 35.36721371 | AY61: 38.64932518 | AZ61: 41.93143664 | BA61: 43.46595692 | BC61: 57 | BD61: 1 | BE61: 27.08254079 | BF61: 0.05335273771 | BG61: 24.36491943 | BH61: 25.23072053 | BI61: 27.08254079 | BJ61: 28.93436104 | BK61: 29.80016214
AG62: 30.28571429 | AH62: 58 | AI62: 1.197231548 | AJ62: 1353.714544 | AK62: 0.2307413054 | AL62: 733.843511 | AM62: 939.7155975 | AN62: 1353.714544 | AO62: 1743.717203 | AP62: 1920.056295 | AR62: 30.28571429 | AS62: 58 | AT62: 1 | AU62: 38.84937685 | AV62: 0.06616534889 | AW62: 34.01480923 | AX62: 35.55504366 | AY62: 38.84937685 | AZ62: 42.14371004 | BA62: 43.68394447 | BC62: 58 | BD62: 1 | BE62: 27.21746319 | BF62: 0.05321443766 | BG62: 24.49338291 | BH62: 25.36124174 | BI62: 27.21746319 | BJ62: 29.07368463 | BK62: 29.94154346
AG63: 30.42857143 | AH63: 59 | AI63: 1.18547653 | AJ63: 1378.447279 | AK63: 0.2302752063 | AL63: 750.7273151 | AM63: 958.6358952 | AN63: 1378.447279 | AO63: 1775.392601 | AP63: 1955.226975 | AR63: 30.42857143 | AS63: 59 | AT63: 1 | AU63: 39.04971882 | AV63: 0.06605804735 | AW63: 34.1981031 | AX63: 35.74376885 | AY63: 39.04971882 | AZ63: 42.3556688 | BA63: 43.90133455 | BC63: 59 | BD63: 1 | BE63: 27.3524671 | BF63: 0.05307241996 | BG63: 24.62218152 | BH63: 25.49201729 | BI63: 27.3524671 | BJ63: 29.21291691 | BK63: 30.08275269
AG64: 30.57142857 | AH64: 60 | AI64: 1.172981065 | AJ64: 1403.678183 | AK64: 0.2296966034 | AL64: 768.4296133 | AM64: 978.224163 | AN64: 1403.678183 | AO64: 1807.546538 | AP64: 1990.905623 | AR64: 30.57142857 | AS64: 60 | AT64: 1 | AU64: 39.25035387 | AV64: 0.0659390025 | AW64: 34.38260209 | AX64: 35.93340859 | AY64: 39.25035387 | AZ64: 42.56729916 | BA64: 44.11810566 | BC64: 60 | BD64: 1 | BE64: 27.48755274 | BF64: 0.05292663339 | BG64: 24.75132091 | BH64: 25.62305109 | BI64: 27.48755274 | BJ64: 29.3520544 | BK64: 30.22378457
AG65: 30.71428571 | AH65: 61 | AI65: 1.159776322 | AJ65: 1429.405418 | AK65: 0.2290072799 | AL65: 786.950659 | AM65: 998.4836047 | AN65: 1429.405418 | AO65: 1840.1684 | AP65: 2027.077748 | AR65: 30.71428571 | AS65: 61 | AT65: 1 | AU65: 39.45125096 | AV65: 0.06580826383 | AW65: 34.56828792 | AX65: 36.12394055 | AY65: 39.45125096 | AZ65: 42.77856138 | BA65: 44.334214 | BC65: 61 | BD65: 1 | BE65: 27.62269768 | BF65: 0.05277709902 | BG65: 24.8807825 | BH65: 25.75432332 | BI65: 27.62269768 | BJ65: 29.49107204 | BK65: 30.36461286
AG66: 30.85714286 | AH66: 62 | AI66: 1.145893469 | AJ66: 1455.6154 | AK66: 0.2282119555 | AL66: 806.2727692 | AM66: 1019.402485 | AN66: 1455.6154 | AO66: 1873.235878 | AP66: 2063.716617 | AR66: 30.85714286 | AS66: 62 | AT66: 1 | AU66: 39.65234522 | AV66: 0.06566609049 | AW66: 34.75509703 | AX66: 36.31530073 | AY66: 39.65234522 | AZ66: 42.98938971 | BA66: 44.54959341 | BC66: 62 | BD66: 1 | BE66: 27.75785685 | BF66: 0.05262391016 | BG66: 25.0105234 | BH66: 25.88579041 | BI66: 27.75785685 | BJ66: 29.62992328 | BK66: 30.50519029
AG67: 31 | AH67: 63 | AI67: 1.131363676 | AJ67: 1482.294034 | AK67: 0.2273154772 | AL67: 826.3774811 | AM67: 1040.968418 | AN67: 1482.294034 | AO67: 1906.726158 | AP67: 2100.794965 | AR67: 31 | AS67: 63 | AT67: 1 | AU67: 39.85357032 | AV67: 0.06551275079 | AW67: 34.94296387 | AX67: 36.50742335 | AY67: 39.85357032 | AZ67: 43.19971729 | BA67: 44.76417677 | BC67: 63 | BD67: 1 | BE67: 27.8929842 | BF67: 0.05246716326 | BG67: 25.14049971 | BH67: 26.01740778 | BI67: 27.8929842 | BJ67: 29.76856061 | BK67: 30.64546869
AG68: 31.14285714 | AH68: 64 | AI68: 1.116218112 | AJ68: 1509.427223 | AK68: 0.2263226922 | AL68: 847.2463318 | AM68: 1063.169019 | AN68: 1509.427223 | AO68: 1940.616424 | AP68: 2138.285525 | AR68: 31.14285714 | AS68: 64 | AT68: 1 | AU68: 40.05485993 | AV68: 0.065348513 | AW68: 35.13182289 | AX68: 36.70024261 | AY68: 40.05485993 | AZ68: 43.40947726 | BA68: 44.97789698 | BC68: 64 | BD68: 1 | BE68: 28.02803369 | BF68: 0.05230695477 | BG68: 25.27066751 | BH68: 26.14913083 | BI68: 28.02803369 | BJ68: 29.90693654 | BK68: 30.78539986
AG69: 31.28571429 | AH69: 65 | AI69: 1.100487945 | AJ69: 1537.000871 | AK69: 0.2252384477 | AL69: 868.8608587 | AM69: 1085.991903 | AN69: 1537.000871 | AO69: 1974.883859 | AP69: 2176.161033 | AR69: 31.28571429 | AS69: 65 | AT69: 1 | AU69: 40.25614773 | AV69: 0.0651736454 | AW69: 35.32160856 | AX69: 36.89369271 | AY69: 40.25614773 | AZ69: 43.61860275 | BA69: 45.1906869 | BC69: 65 | BD69: 1 | BE69: 28.16295926 | BF69: 0.05214338115 | BG69: 25.40098288 | BH69: 26.28091496 | BI69: 28.16295926 | BJ69: 30.04500356 | BK69: 30.92493563
AG70: 31.42857143 | AH70: 66 | AI70: 1.084204344 | AJ70: 1565.000884 | AK70: 0.2240675908 | AL70: 891.202599 | AM70: 1109.424685 | AN70: 1565.000884 | AO70: 2009.505649 | AP70: 2214.394222 | AR70: 31.42857143 | AS70: 66 | AT70: 1 | AU70: 40.45736737 | AV70: 0.06498841629 | AW70: 35.51225532 | AX70: 37.08770786 | AY70: 40.45736737 | AZ70: 43.82702688 | BA70: 45.40247943 | BC70: 66 | BD70: 1 | BE70: 28.29771487 | BF70: 0.05197653887 | BG70: 25.53140191 | BH70: 26.41271557 | BI70: 28.29771487 | BJ70: 30.18271417 | BK70: 31.06402782
AG71: =22+AH71/7 -> 31.57142857 | AH71: 67 | AI71: 1.067398478 | AJ71: 1593.413164 | AK71: 0.2228149686 | AL71: 914.2529849 | AM71: 1133.45488 | AN71: 1593.413164 | AO71: 2044.459029 | AP71: 2252.957877 | AR71: 31.57142857 | AS71: 67 | AT71: 1 | AU71: 40.65845253 | AV71: 0.06479309394 | AW71: 35.70369755 | AX71: 37.28222221 | AY71: 40.65845253 | AZ71: 44.03468286 | BA71: 45.61320752 | BC71: 67 | BD71: 1 | BE71: 28.43225446 | BF71: 0.05180652436 | BG71: 25.66188066 | BH71: 26.54448805 | BI71: 28.43225446 | BJ71: 30.32002088 | BK71: 31.20262827
AG72: 31.71428571 | AH72: 68 | AI72: 1.050101517 | AJ72: 1622.223623 | AK72: 0.2214854276 | AL72: 937.9910376 | AM72: 1158.067739 | AN72: 1622.223623 | AO72: 2079.722425 | AP72: 2291.82596 | AR72: 31.71428571 | AS72: 68 | AT72: 1 | AU72: 40.85933689 | AV72: 0.0645879466 | AW72: 35.89586772 | AX72: 37.47716861 | AY72: 40.85933689 | AZ72: 44.24150516 | BA72: 45.82280606 | BC72: 68 | BD72: 1 | BE72: 28.566532 | BF72: 0.05163343407 | BG72: 25.79237458 | BH72: 26.67618739 | BI72: 28.566532 | BJ72: 30.45687662 | BK72: 31.34068942
AG73: 31.85714286 | AH73: 69 | AI73: 1.032344628 | AJ73: 1651.418176 | AK73: 0.2200838137 | AL73: 962.3933671 | AM73: 1183.246246 | AN73: 1651.418176 | AO73: 2115.275452 | AP73: 2330.973607 | AR73: 31.85714286 | AS73: 69 | AT73: 1 | AU73: 41.0599541 | AV73: 0.06437324249 | AW73: 36.08869638 | AX73: 37.67247862 | AY73: 41.0599541 | AZ73: 44.44742958 | BA73: 46.03121182 | BC73: 69 | BD73: 1 | BE73: 28.70050143 | BF73: 0.05145736444 | BG73: 25.92283854 | BH73: 26.80776815 | BI73: 28.70050143 | BJ73: 30.59323472 | BK73: 31.47816432
AG74: 32 | AH74: 70 | AI74: 1.014158981 | AJ74: 1680.982739 | AK74: 0.2186149727 | AL74: 987.4364783 | AM74: 1208.973286 | AN74: 1680.982739 | AO74: 2151.097777 | AP74: 2370.376005 | AR74: 32 | AS74: 70 | AT74: 1 | AU74: 41.26023785 | AV74: 0.06414924979 | AW74: 36.28211403 | AX74: 37.86808372 | AY74: 41.26023785 | AZ74: 44.65239197 | BA74: 46.23836166 | BC74: 70 | BD74: 1 | BE74: 28.83411671 | BF74: 0.05127841189 | BG74: 26.05322738 | BH74: 26.93918489 | BI74: 28.83411671 | BJ74: 30.72904852 | BK74: 31.61500603
AG75: 32.14285714 | AH75: 71 | AI75: 0.9955757454 | AJ75: 1710.90323 | AK75: 0.2170837505 | AL75: 1013.096876 | AM75: 1235.231744 | AN75: 1710.90323 | AO75: 2187.169069 | AP75: 2410.008342 | AR75: 32.14285714 | AS75: 71 | AT75: 1 | AU75: 41.46012179 | AV75: 0.06391623672 | AW75: 36.47605114 | AX75: 38.06391542 | AY75: 41.46012179 | AZ75: 44.85632817 | BA75: 46.44419245 | BC75: 71 | BD75: 1 | BE75: 28.96733178 | BF75: 0.05109667285 | BG75: 26.18349594 | BH75: 27.07039217 | BI75: 28.96733178 | BJ75: 30.86427138 | BK75: 31.75116761
AG76: 32.28571429 | AH76: 72 | AI76: 0.976626089 | AJ76: 1741.165564 | AK76: 0.2154949929 | AL76: 1039.351066 | AM76: 1262.004505 | AN76: 1741.165564 | AO76: 2223.468993 | AP76: 2449.845805 | AR76: 32.28571429 | AS76: 72 | AT76: 1 | AU76: 41.65953962 | AV76: 0.06367447148 | AW76: 36.6704382 | AX76: 38.25990522 | AY76: 41.65953962 | AZ76: 45.05917402 | BA76: 46.64864104 | BC76: 72 | BD76: 1 | BE76: 29.10010059 | BF76: 0.05091224375 | BG76: 26.31359905 | BH76: 27.20134455 | BI76: 29.10010059 | BJ76: 30.99885664 | BK76: 31.88660213
AG77: 32.42857143 | AH77: 73 | AI77: 0.9573411811 | AJ77: 1771.755659 | AK77: 0.2138535457 | AL77: 1066.175553 | AM77: 1289.274455 | AN77: 1771.755659 | AO77: 2259.977218 | AP77: 2489.863581 | AR77: 32.42857143 | AS77: 73 | AT77: 1 | AU77: 41.85842499 | AV77: 0.06342422227 | AW77: 36.86520567 | AX77: 38.4559846 | AY77: 41.85842499 | AZ77: 45.26086537 | BA77: 46.85164431 | BC77: 73 | BD77: 1 | BE77: 29.23237711 | BF77: 0.05072522101 | BG77: 26.44349156 | BH77: 27.33199657 | BI77: 29.23237711 | BJ77: 31.13275765 | BK77: 32.02126265
AG78: 32.57142857 | AH78: 74 | AI78: 0.9377521908 | AJ78: 1802.659428 | AK78: 0.2121642549 | AL78: 1093.546779 | AM78: 1317.024397 | AN78: 1802.659428 | AO78: 2296.673514 | AP78: 2530.036994 | AR78: =22+AS78/7 -> 32.57142857 | AS78: 74 | AT78: 1 | AU78: 42.05671157 | AV78: 0.06316575731 | AW78: 37.06028396 | AX78: 38.65208501 | AY78: 42.05671157 | AZ78: 45.46133813 | BA78: 47.05313919 | BC78: 74 | BD78: 1 | BE78: 29.36411528 | BF78: 0.05053570108 | BG78: 26.57312828 | BH78: 27.46230278 | BI78: 29.36411528 | BJ78: 31.26592777 | BK78: 32.15510227
AG79: 32.71428571 | AH79: 75 | AI79: 0.9178902867 | AJ79: 1833.86276 | AK79: 0.2104319663 | AL79: 1121.439759 | AM79: 1345.235262 | AN79: 1833.86276 | AO79: 2333.540023 | AP79: 2570.344501 | AR79: 32.71428571 | AS79: 75 | AT79: 1 | AU79: 42.25433305 | AV79: 0.0628993448 | AW79: 37.25560153 | AX79: 38.84813658 | AY79: 42.25433305 | AZ79: 45.66052951 | BA79: 47.25306456 | BC79: 75 | BD79: 1 | BE79: 29.49526905 | BF79: 0.05034378038 | BG79: 26.70246343 | BH79: 27.59221732 | BI79: 29.49526905 | BJ79: 31.39832077 | BK79: 32.28807466
AG80: 32.85714286 | AH80: 76 | AI80: 0.8977866379 | AJ80: 1865.351515 | AK80: 0.2086615263 | AL80: 1149.828073 | AM80: 1373.886102 | AN80: 1865.351515 | AO80: 2370.561258 | AP80: 2610.767694 | AR80: 32.85714286 | AS80: 76 | AT80: 1 | AU80: 42.45122308 | AV80: 0.06262525298 | AW80: 37.45108492 | AX80: 39.04406811 | AY80: 42.45122308 | AZ80: 45.85837805 | BA80: 47.45136124 | BC80: 76 | BD80: 1 | BE80: 29.62579237 | BF80: 0.05014955534 | BG80: 26.83145067 | BH80: 27.72169394 | BI80: 29.62579237 | BJ80: 31.5298908 | BK80: 32.42013408
AG81: 33 | AH81: 77 | AI81: 0.8774724132 | AJ81: 1897.111553 | AK81: 0.2068577809 | AL81: 1178.685245 | AM81: 1402.955892 | AN81: 1897.111553 | AO81: 2407.721837 | AP81: 2651.2883 | AR81: 33 | AS81: 77 | AT81: 1 | AU81: 42.64731534 | AV81: 0.06234375006 | AW81: 37.64666057 | AX81: 39.23980835 | AY81: 42.64731534 | AZ81: 46.05482233 | BA81: 47.64797011 | BC81: 77 | BD81: 1 | BE81: 29.7556392 | BF81: 0.0499531224 | BG81: 26.96004361 | BH81: 27.85068636 | BI81: 29.7556392 | BJ81: 31.66059205 | BK81: 32.5512348
AG82: 33.14285714 | AH82: 78 | AI82: 0.8569787815 | AJ82: 1929.128731 | AK82: 0.2050255764 | AL82: 1207.984793 | AM82: 1432.423605 | AN82: 1929.128731 | AO82: 2445.006376 | AP82: 2691.888046 | AR82: 33.14285714 | AS82: 78 | AT82: 1 | AU82: 42.8425435 | AV82: 0.06205510427 | AW82: 37.84225494 | AX82: 39.43528605 | AY82: 42.8425435 | AZ82: 46.24980095 | BA82: 47.84283206 | BC82: 78 | BD82: 1 | BE82: 29.88476349 | BF82: 0.04975457801 | BG82: 27.08819588 | BH82: 27.9791483 | BI82: 29.88476349 | BJ82: 31.79037869 | BK82: 32.68133111
AG83: 33.28571429 | AH83: 79 | AI83: 0.8363369118 | AJ83: 1961.388911 | AK83: 0.203169759 | AL83: 1237.700239 | AM83: 1462.268214 | AN83: 1961.388911 | AO83: 2482.399493 | AP83: 2732.548659 | AR83: 33.28571429 | AS83: 79 | AT83: 1 | AU83: 43.03684123 | AV83: 0.06175958384 | AW83: 38.03779448 | AX83: 39.63042996 | AY83: 43.03684123 | AZ83: 46.44325251 | BA83: 48.03588799 | BC83: 79 | BD83: 1 | BE83: 30.0131192 | BF83: 0.04955401858 | BG83: 27.2158611 | BH83: 28.1070335 | BI83: 30.0131192 | BJ83: 31.91920489 | BK83: 32.81037729
AG84: 33.42857143 | AH84: 80 | AI84: 0.8155779729 | AJ84: 1993.87795 | AK84: 0.2012951749 | AL84: 1267.805103 | AM84: 1492.468693 | AN84: 1993.87795 | AO84: 2519.885805 | AP84: 2773.251866 | AR84: 33.42857143 | AS84: 80 | AT84: 1 | AU84: 43.23014221 | AV84: 0.061457457 | AW84: 38.23320562 | AX84: 39.82516883 | AY84: 43.23014221 | AZ84: 46.63511558 | BA84: 48.22707879 | BC84: 80 | BD84: 1 | BE84: 30.14066026 | BF84: 0.04935154057 | BG84: 27.3429929 | BH84: 28.23429569 | BI84: 30.14066026 | BJ84: 32.04702483 | BK84: 32.93832762
AG85: 33.57142857 | AH85: 81 | AI85: 0.7947331337 | AJ85: 2026.581712 | AK85: 0.1994066702 | AL85: 1298.272836 | AM85: 1523.003935 | AN85: 2026.581712 | AO85: 2557.450091 | AP85: 2813.979637 | AR85: 33.57142857 | AS85: 81 | AT85: 1 | AU85: 43.42238009 | AV85: 0.06114899198 | AW85: 38.42841475 | AX85: 40.01943136 | AY85: 43.42238009 | AZ85: 46.82532883 | BA85: 48.41634544 | BC85: 81 | BD85: 1 | BE85: 30.26734063 | BF85: 0.0491472404 | BG85: 27.46954486 | BH85: 28.36088856 | BI85: 30.26734063 | BJ85: 32.17379271 | BK85: 33.06513641
AG86: 33.71428571 | AH86: 82 | AI86: 0.7738335632 | AJ86: 2059.486165 | AK86: 0.1975090911 | AL86: 1329.075251 | AM86: 1553.851044 | AN86: 2059.486165 | AO86: 2595.080883 | AP86: 2854.71948 | AR86: 33.71428571 | AS86: 82 | AT86: 1 | AU86: 43.61348856 | AV86: 0.06083445698 | AW86: 38.62334614 | AX86: 40.21314481 | AY86: 43.61348856 | AZ86: 47.01383232 | BA86: 48.60363099 | BC86: 82 | BD86: 1 | BE86: 30.39311427 | BF86: 0.04894121452 | BG86: 27.59546998 | BH86: 28.48676542 | BI86: 30.39311427 | BJ86: 32.29946313 | BK86: 33.19075856
AG87: 33.85714286 | AH87: 83 | AI87: 0.7529104301 | AJ87: 2092.57738 | AK87: 0.1956072836 | AL87: 1360.182527 | AM87: 1584.985327 | AN87: 2092.57738 | AO87: 2632.770462 | AP87: 2895.464447 | AR87: 33.85714286 | AS87: 83 | AT87: 1 | AU87: 43.80340128 | AV87: 0.06051412025 | AW87: 38.81792202 | AX87: 40.40623506 | AY87: 43.80340128 | AZ87: 47.20056751 | BA87: 48.78888055 | BC87: 83 | BD87: 1 | BE87: 30.51793513 | BF87: 0.04873355935 | BG87: 27.72072066 | BH87: 28.61187917 | BI87: 30.51793513 | BJ87: 32.4239911 | BK87: 33.3151496
AG88: 34 | AH88: 84 | AI88: 0.7319949035 | AJ88: 2125.841433 | AK88: 0.193706094 | AL88: 1391.564771 | AM88: 1616.382013 | AN88: 2125.841433 | AO88: 2670.511276 | AP88: 2936.207829 | AR88: 34 | AS88: 84 | AT88: 1 | AU88: 43.99205193 | AV88: 0.06018824998 | AW88: 39.01206452 | AX88: 40.59862793 | AY88: 43.99205193 | AZ88: 47.38547594 | BA88: 48.97203934 | BC88: 84 | BD88: 1 | BE88: 30.64175716 | BF88: 0.04852437133 | BG88: 27.84524927 | BH88: 28.73618266 | BI88: 30.64175716 | BJ88: 32.54733166 | BK88: 33.43826505
AG89: 34.14285714 | AH89: 85 | AI89: 0.7111181522 | AJ89: 2159.2644 | AK89: 0.1918103683 | AL89: 1423.192092 | AM89: 1648.016332 | AN89: 2159.2644 | AO89: 2708.295768 | AP89: 2976.942918 | AR89: 34.14285714 | AS89: 85 | AT89: 1 | AU89: 44.17937418 | AV89: 0.05985711442 | AW89: 39.20569578 | AX89: 40.79024921 | AY89: 44.17937418 | AZ89: 47.56849914 | BA89: 49.15305257 | BC89: 85 | BD89: 1 | BE89: 30.76453431 | BF89: 0.0483137469 | BG89: 27.96900816 | BH89: 28.85962878 | BI89: 30.76453431 | BJ89: 32.66943983 | BK89: 33.56006045
AG90: 34.28571429 | AH90: 86 | AI90: 0.6903113451 | AJ90: 2192.832356 | AK90: 0.1899249526 | AL90: 1455.034597 | AM90: 1679.863513 | AN90: 2192.832356 | AO90: 2746.116384 | AP90: 3017.663007 | AR90: 34.28571429 | AS90: 86 | AT90: 1 | AU90: 44.36530168 | AV90: 0.05952098177 | AW90: 39.39873793 | AX90: 40.98102472 | AY90: 44.36530168 | AZ90: 47.74957865 | BA90: 49.33186544 | BC90: 86 | BD90: 1 | BE90: 30.88622053 | BF90: 0.04810178248 | BG90: 28.09194971 | BH90: 28.9821704 | BI90: 30.88622053 | BJ90: 32.79027065 | BK90: 33.68049134
AG91: 34.42857143 | AH91: 87 | AI91: 0.6696056511 | AJ91: 2226.531378 | AK91: 0.1880546929 | AL91: 1487.062394 | AM91: 1711.898787 | AN91: 2226.531378 | AO91: 2783.96557 | AP91: 3058.361387 | AR91: 34.42857143 | AS91: 87 | AT91: 1 | AU91: 44.54976813 | AV91: 0.05918012026 | AW91: 39.5911131 | AX91: 41.17088027 | AY91: 44.54976813 | AZ91: 47.92865599 | BA91: 49.50842316 | BC91: 87 | BD91: 1 | BE91: 31.00676977 | BF91: 0.04788857452 | BG91: 28.21402629 | BH91: 29.10376039 | BI91: 31.00676977 | BJ91: 32.90977915 | BK91: 33.79951325
AG92: 34.57142857 | AH92: 88 | AI92: 0.6490322391 | AJ92: 2260.347524 | AK92: 0.1862044354 | AL92: 1519.245467 | AM92: 1744.097272 | AN92: 2260.347524 | AO92: 2821.835958 | AP92: 3099.031661 | AR92: 34.57142857 | AS92: 88 | AT92: 1 | AU92: 44.73270718 | AV92: 0.05883479811 | AW92: 39.78274334 | AX92: 41.35974161 | AY92: 44.73270718 | AZ92: 48.10567276 | BA92: 49.68267103 | BC92: 88 | BD92: 1 | BE92: 31.12613599 | BF92: 0.04767421944 | BG92: 28.33519024 | BH92: 29.2243516 | BI92: 31.12613599 | BJ92: 33.02792038 | BK92: 33.91708174
AG93: 34.71428571 | AH93: 89 | AI93: 0.628622278 | AJ93: 2294.266465 | AK93: 0.1843790262 | AL93: 1551.550966 | AM93: 1776.431531 | AN93: 2294.266465 | AO93: 2859.724468 | AP93: 3139.674607 | AR93: 34.71428571 | AS93: 89 | AT93: 1 | AU93: 44.91405252 | AV93: 0.05848528353 | AW93: 39.97354855 | AX93: 41.54753301 | AY93: 44.91405252 | AZ93: 48.28057202 | BA93: 49.85455649 | BC93: 89 | BD93: 1 | BE93: 31.24427314 | BF93: 0.04745881368 | BG93: 28.45539327 | BH93: 29.34389647 | BI93: 31.24427314 | BJ93: 33.14464981 | BK93: 34.033153
AG94: 34.85714286 | AH94: 90 | AI94: 0.6084069367 | AJ94: 2328.273485 | AK94: 0.1825833115 | AL94: 1583.943211 | AM94: 1808.871572 | AN94: 2328.273485 | AO94: 2897.632309 | AP94: 3180.298172 | AR94: 34.85714286 | AS94: 90 | AT94: 1 | AU94: 45.0937378 | AV94: 0.05813184476 | AW94: 40.1634465 | AX94: 41.73417733 | AY94: 45.0937378 | AZ94: 48.45329827 | BA94: 50.02402911 | BC94: 90 | BD94: 1 | BE94: 31.36113516 | BF94: 0.04724245368 | BG94: 28.57458651 | BH94: 29.46234701 | BI94: 31.36113516 | BJ94: 33.25992332 | BK94: 34.14768382
AG95: 35 | AH95: 91 | AI95: 0.5884173841 | AJ95: 2362.35385 | AK95: 0.1808221372 | AL95: 1616.386394 | AM95: 1841.387292 | AN95: 2362.35385 | AO95: 2935.560878 | AP95: 3220.910618 | AR95: 35 | AS95: 91 | AT95: 1 | AU95: 45.2716967 | AV95: 0.05777475 | AW95: 40.35235486 | AX95: 41.91959733 | AY95: 45.2716967 | AZ95: 48.62379608 | BA95: 50.19103855 | BC95: 91 | BD95: 1 | BE95: 31.47667602 | BF95: 0.04702523587 | BG95: 28.69272103 | BH95: 29.57965522 | BI95: 31.47667602 | BJ95: 33.37369682 | BK95: 34.26063102
AG96: 35.14285714 | AH96: 92 | AI96: 0.5686847891 | AJ96: 2396.492826 | AK96: 0.1791003496 | AL96: 1648.844711 | AM96: 1873.948588 | AN96: 2396.492826 | AO96: 2973.51157 | AP96: 3261.520204 | AR96: 35.14285714 | AS96: 92 | AT96: 1 | AU96: 45.4478629 | AV96: 0.0574142675 | AW96: 40.54019132 | AX96: 42.10371578 | AY96: 45.4478629 | AZ96: 48.79201002 | BA96: 50.35553448 | BC96: 92 | BD96: 1 | BE96: 31.59084966 | BF96: 0.04680725668 | BG96: 28.80974792 | BH96: 29.6957731 | BI96: 31.59084966 | BJ96: 33.48592622 | BK96: 34.37195141
AG97: 35.28571429 | AH97: 93 | AI97: 0.5492403206 | AJ97: 2430.67568 | AK97: 0.1774227948 | AL97: 1681.282355 | AM97: 1906.525355 | AN97: 2430.67568 | AO97: 3011.485781 | AP97: 3302.13519 | AR97: 35.28571429 | AS97: 93 | AT97: 1 | AU97: 45.62217006 | AV97: 0.05705066545 | AW97: 40.72687355 | AX97: 42.28645546 | AY97: 45.62217006 | AZ97: 48.95788465 | BA97: 50.51746657 | BC97: 93 | BD97: 1 | BE97: 31.70361004 | BF97: 0.04658861256 | BG97: 28.92561826 | BH97: 29.81065265 | BI97: 31.70361004 | BJ97: 33.59656743 | BK97: 34.48160182
AG98: 35.42857143 | AH98: 94 | AI98: 0.5301151474 | AJ98: 2464.887677 | AK98: 0.1757943189 | AL98: 1713.663521 | AM98: 1939.087492 | AN98: 2464.887677 | AO98: 3049.484906 | AP98: 3342.763838 | AR98: 35.42857143 | AS98: 94 | AT98: 1 | AU98: 45.79455185 | AV98: 0.0566842121 | AW98: 40.91231922 | AX98: 42.46773914 | AY98: 45.79455185 | AZ98: 49.12136455 | BA98: 50.67678447 | BC98: 94 | BD98: 1 | BE98: 31.8149111 | BF98: 0.04636939993 | BG98: 29.04028314 | BH98: 29.92424586 | BI98: 31.8149111 | BJ98: 33.70557635 | BK98: 34.58953906
AG99: 35.57142857 | AH99: 95 | AI99: 0.5113404386 | AJ99: 2499.113677 | AK99: 0.1742196397 | AL99: 1745.952549 | AM99: 1971.604884 | AN99: 2499.113677 | AO99: 3087.509481 | AP99: 3383.413315 | AR99: 35.57142857 | AS99: 95 | AT99: 1 | AU99: 45.9649441 | AV99: 0.05631517566 | AW99: 41.09644788 | AX99: 42.64749155 | AY99: 45.9649441 | AZ99: 49.28239664 | BA99: 50.83344031 | BC99: 95 | BD99: 1 | BE99: 31.92470827 | BF99: 0.04614971522 | BG99: 29.15369496 | BH99: 30.03650609 | BI99: 31.92470827 | BJ99: 33.81291044 | BK99: 34.69572158
AG100: 35.71428571 | AH100: 96 | AI100: 0.4929473629 | AJ100: 2533.329193 | AK100: 0.1727005227 | AL100: 1778.117127 | AM100: 2004.047167 | AN100: 2533.329193 | AO100: 3125.54024 | AP100: 3424.06564 | AR100: 35.71428571 | AS100: 96 | AT100: 1 | AU100: 46.13333229 | AV100: 0.05594382434 | AW100: 41.27922199 | AX100: 42.82568248 | AY100: 46.13333229 | AZ100: 49.4409821 | BA100: 50.9874426 | BC100: 96 | BD100: 1 | BE100: 32.03299063 | BF100: 0.04592965488 | BG100: 29.26583652 | BH100: 30.14741816 | BI100: 32.03299063 | BJ100: 33.9185631 | BK100: 34.80014474
AG101: 35.85714286 | AH101: 97 | AI101: 0.4749670894 | AJ101: 2567.500387 | AK101: 0.1712357813 | AL101: 1810.12829 | AM101: 2036.38373 | AN101: 2567.500387 | AO101: 3163.538114 | AP101: 3464.677688 | AR101: 35.85714286 | AS101: 97 | AT101: 1 | AU101: 46.29975157 | AV101: 0.05557042638 | AW101: 41.4606469 | AX101: 43.00232678 | AY101: 46.29975157 | AZ101: 49.59717635 | BA101: 51.13885623 | BC101: 97 | BD101: 1 | BE101: 32.13978097 | BF101: 0.04570931534 | BG101: 29.37672103 | BH101: 30.25699831 | BI101: 32.13978097 | BJ101: 34.02256363 | BK101: 34.90284091
AG102: 36 | AH102: 98 | AI102: 0.4574307868 | AJ102: 2601.593015 | AK102: 0.1698241004 | AL102: 1841.957221 | AM102: 2068.58395 | AN102: 2601.593015 | AO102: 3201.463177 | AP102: 3505.205239 | AR102: 36 | AS102: 98 | AT102: 1 | AU102: 46.4642392 | AV102: 0.05519525 | AW102: 41.64072985 | AX102: 43.17744125 | AY102: 46.4642392 | AZ102: 49.75103716 | BA102: 51.28774856 | BC102: 98 | BD102: 1 | BE102: 32.24510352 | BF102: 0.04548879303 | BG102: 29.48636301 | BH102: 30.36526417 | BI102: 32.24510352 | BJ102: 34.12494287 | BK102: 35.00384404
AG103: =22+AH103/7 -> 36.14285714 | AH103: 99 | AI103: 0.440369624 | AJ103: 2635.572834 | AK103: 0.1684641651 | AL103: 1873.5751 | AM103: 2100.617203 | AN103: 2635.572834 | AO103: 3239.275499 | AP103: 3545.604073 | AR103: 36.14285714 | AS103: 99 | AT103: 1 | AU103: 46.6268325 | AV103: 0.05481856341 | AW103: 41.81947805 | AX103: 43.3510427 | AY103: 46.6268325 | AZ103: 49.9026223 | BA103: 51.43418695 | BC103: 99 | BD103: 1 | BE103: 32.34898253 | BF103: 0.04526818439 | BG103: 29.59477698 | BH103: 30.47223336 | BI103: 32.34898253 | BJ103: 34.2257317 | BK103: 35.10318809
AG104: 36.28571429 | AH104: 100 | AI104: 0.4238147701 | AJ104: 2669.405601 | AK104: 0.1671546603 | AL104: 1904.953109 | AM104: 2132.452866 | AN104: 2669.405601 | AO104: 3276.935152 | AP104: 3585.829971 | AR104: 36.28571429 | AS104: 100 | AT104: 1 | AU104: 46.78756875 | AV104: 0.05444063484 | AW104: 41.99689875 | AX104: 43.52314793 | AY104: 46.78756875 | AZ104: 50.05198957 | BA104: 51.57823875 | BC104: 100 | BD104: 1 | BE104: 32.45144224 | BF104: 0.04504758585 | BG104: 29.70197747 | BH104: 30.5779235 | BI104: 32.45144224 | BJ104: 34.32496098 | BK104: 35.20090701
AG105: 36.42857143 | AH105: 101 | AI105: 0.4077973938 | AJ105: 2703.057072 | AK105: 0.165894271 | AL105: 1936.062429 | AM105: 2164.060317 | AN105: 2703.057072 | AO105: 3314.402209 | AP105: 3625.838714 | AR105: 36.42857143 | AS105: 101 | AT105: 1 | AU105: 46.94648524 | AV105: 0.05406173251 | AW105: 42.17299916 | AX105: 43.69377376 | AY105: 46.94648524 | AZ105: 50.19919672 | BA105: 51.71997131 | BC105: 101 | BD105: 1 | BE105: 32.55250689 | BF105: 0.04482709384 | BG105: 29.80797901 | BH105: 30.6823522 | BI105: 32.55250689 | BJ105: 34.42266157 | BK105: 35.29703477
AG106: 36.57142857 | AH106: 102 | AI106: 0.3923477904 | AJ106: 2736.492769 | AK106: 0.1646816822 | AL106: 1966.874152 | AM106: 2195.408789 | AN106: 2736.492769 | AO106: 3351.636479 | AP106: 3665.585839 | AR106: 36.57142857 | AS106: 102 | AT106: 1 | AU106: 47.10361926 | AV106: 0.05368212464 | AW106: 42.3477865 | AX106: 43.86293696 | AY106: 47.10361926 | AZ106: 50.34430156 | BA106: 51.85945202 | BC106: 102 | BD106: 1 | BE106: 32.65220071 | BF106: 0.04460680481 | BG106: 29.91279611 | BH106: 30.78553709 | BI106: 32.65220071 | BJ106: 34.51886433 | BK106: 35.39160531
AG107: 36.71428571 | AH107: 103 | AI107: 0.3774761621 | AJ107: 2769.67281 | AK107: 0.1635155789 | AL107: 1997.357317 | AM107: 2226.464239 | AN107: 2769.67281 | AO107: 3388.591744 | AP107: 3705.021331 | AR107: 36.71428571 | AS107: 103 | AT107: 1 | AU107: 47.25900811 | AV107: 0.05330207945 | AW107: 42.52126726 | AX107: 44.03065386 | AY107: 47.25900811 | AZ107: 50.48736235 | BA107: 51.99674895 | BC107: 103 | BD107: 1 | BE107: 32.75054795 | BF107: 0.04438681518 | BG107: 30.01644323 | BH107: 30.88749573 | BI107: 32.75054795 | BJ107: 34.61360017 | BK107: 35.48465268
AG108: 36.85714286 | AH108: 104 | AI108: 0.3631726181 | AJ108: 2802.551911 | AK108: 0.1623946461 | AL108: 2027.478908 | AM108: 2257.189344 | AN108: 2802.551911 | AO108: 3425.215762 | AP108: 3744.089617 | AR108: 36.85714286 | AS108: 104 | AT108: 1 | AU108: 47.41268907 | AV108: 0.05292186516 | AW108: 42.6934473 | AX108: 44.19694032 | AY108: 47.41268907 | AZ108: 50.62843781 | BA108: 52.13193083 | BC108: 104 | BD108: 1 | BE108: 32.84757286 | BF108: 0.04416722139 | BG108: 30.11893475 | BH108: 30.98824565 | BI108: 32.84757286 | BJ108: 34.70690006 | BK108: 35.57621097
AG109: 37 | AH109: 105 | AI109: 0.3494263937 | AJ109: 2835.084551 | AK109: 0.1613175688 | AL109: 2057.205819 | AM109: 2287.54664 | AN109: 2835.084551 | AO109: 3461.456027 | AP109: 3782.734882 | AR109: 37 | AS109: 105 | AT109: 1 | AU109: 47.56469943 | AV109: 0.05254175 | AW109: 42.86433243 | AX109: 44.36181218 | AY109: 47.56469943 | AZ109: 50.76758669 | BA109: 52.26506643 | BC109: 105 | BD109: 1 | BE109: 32.94329966 | BF109: 0.04394811987 | BG109: 30.22028505 | BH109: 31.08780438 | BI109: 32.94329966 | BJ109: 34.79879494 | BK109: 35.66631427
AG110: 37.14285714 | AH110: 106 | AI110: 0.3362267245 | AJ110: 2867.225211 | AK110: 0.1602830319 | AL110: 2086.504947 | AM110: 2317.498662 | AN110: 2867.225211 | AO110: 3497.260033 | AP110: 3820.901312 | AR110: =22+AS110/7 -> 37.14285714 | AS110: 106 | AT110: 1 | AU110: 47.7150765 | AV110: 0.05216200219 | AW110: 43.03392845 | AX110: 44.52528527 | AY110: 47.7150765 | AZ110: 50.90486772 | BA110: 52.39622454 | BC110: 106 | BD110: 1 | BE110: 33.0377526 | BF110: 0.04372960707 | BG110: 30.32050851 | BH110: 31.18618942 | BI110: 33.0377526 | BJ110: 34.88931578 | BK110: 35.7549967
AG111: 37.28571429 | AH111: 107 | AI111: 0.3235628458 | AJ111: 2898.928371 | AK111: 0.1592897205 | AL111: 2115.343185 | AM111: 2347.007945 | AN111: 2898.928371 | AO111: 3532.575275 | AP111: 3858.533094 | AR111: 37.28571429 | AS111: 107 | AT111: 1 | AU111: 47.86385755 | AV111: 0.05178288994 | AW111: 43.20224118 | AX111: 44.68737544 | AY111: 47.86385755 | AZ111: 51.04033965 | BA111: 52.52547392 | BC111: 107 | BD111: 1 | BE111: 33.13095593 | BF111: 0.0435117794 | BG111: 30.41961952 | BH111: 31.28341832 | BI111: 33.13095593 | BJ111: 34.97849354 | BK111: 35.84229234
AG112: 37.42857143 | AH112: 108 | AI112: 0.3114239932 | AJ112: 2930.148511 | AK112: 0.1583363195 | AL112: 2143.687429 | AM112: 2376.037023 | AN112: 2930.148511 | AO112: 3567.349246 | AP112: 3895.574412 | AR112: 37.42857143 | AS112: 108 | AT112: 1 | AU112: 48.01107988 | AV112: 0.05140468149 | AW112: 43.36927641 | AX112: 44.84809853 | AY112: 48.01107988 | AZ112: 51.17406123 | BA112: 52.65288335 | BC112: 108 | BD112: 1 | BE112: 33.22293388 | BF112: 0.04329473332 | BG112: 30.51763245 | BH112: 31.37950858 | BI112: 33.22293388 | BJ112: 35.06635918 | BK112: 35.9282353
AG113: 37.57142857 | AH113: 109 | AI113: 0.2997994022 | AJ113: 2960.841219 | AK113: 0.1574215139 | AL113: 2171.505404 | AM113: 2404.549352 | AN113: 2960.841219 | AO113: 3601.530749 | AP113: 3931.970864 | AR113: 37.57142857 | AS113: 109 | AT113: 1 | AU113: 48.15678079 | AV113: 0.05102764504 | AW113: 43.53503995 | AX113: 45.00747036 | AY113: 48.15678079 | AZ113: 51.30609122 | BA113: 52.77852162 | BC113: 109 | BD113: 1 | BE113: 33.31371069 | BF113: 0.04307856525 | BG113: 30.61456169 | BH113: 31.47447772 | BI113: 33.31371069 | BJ113: 35.15294365 | BK113: 36.01285969
AG114: 37.71428571 | AH114: 110 | AI114: 0.2886783081 | AJ114: 2990.987548 | AK114: 0.1565439888 | AL114: 2198.783929 | AM114: 2432.529519 | AN114: 2990.987548 | AO114: 3635.098638 | AP114: 3967.700465 | AR114: 37.71428571 | AS114: 110 | AT114: 1 | AU114: 48.30099755 | AV114: 0.05065204883 | AW114: 43.69953699 | AX114: 45.16550635 | AY114: 48.30099755 | AZ114: 51.43648876 | BA114: 52.90245812 | BC114: 110 | BD114: 1 | BE114: 33.4033106 | BF114: 0.04286337162 | BG114: 30.71042155 | BH114: 31.56834324 | BI114: 33.4033106 | BJ114: 35.23827796 | BK114: 36.09619965
AG115: 37.85714286 | AH115: 111 | AI115: 0.2780499464 | AJ115: 3020.594019 | AK115: 0.155702429 | AL115: 2225.528914 | AM115: 2459.983247 | AN115: 3020.594019 | AO115: 3668.061821 | AP115: 4002.77366 | AR115: 37.85714286 | AS115: 111 | AT115: 1 | AU115: 48.44376747 | AV115: 0.05027816108 | AW115: 43.86277216 | AX115: 45.32222154 | AY115: 48.44376747 | AZ115: 51.56531341 | BA115: 53.02476279 | BC115: 111 | BD115: 1 | BE115: 33.49175786 | BF115: 0.04264924888 | BG115: 30.80522631 | BH115: 31.66112258 | BI115: 33.49175786 | BJ115: 35.32239314 | BK115: 36.17828941
AG116: 38 | AH116: 112 | AI116: 0.2679035525 | AJ116: 3049.66826 | AK116: 0.1548955197 | AL116: 2251.747101 | AM116: 2486.917178 | AN116: 3049.66826 | AO116: 3700.430516 | AP116: 4037.202297 | AR116: 38 | AS116: 112 | AT116: 1 | AU116: 48.58512784 | AV116: 0.04990625 | AW116: 44.02475007 | AX116: 45.47763095 | AY116: 48.58512784 | AZ116: 51.69262473 | BA116: 53.14550561 | BC116: 112 | BD116: 1 | BE116: 33.5790767 | BF116: 0.04243629345 | BG116: 30.89899023 | BH116: 31.75283318 | BI116: 33.5790767 | BJ116: 35.40532023 | BK116: 36.25916318
AG117: 38.14285714 | AH117: 113 | AI117: 0.2582283619 | AJ117: 3078.217898 | AK117: 0.1541219457 | AL117: 2277.445231 | AM117: 2513.337954 | AN117: 3078.217898 | AO117: 3732.214936 | AP117: 4070.998227 | AR117: 38.14285714 | AS117: 113 | AT117: 1 | AU117: 48.72511594 | AV117: 0.04953658382 | AW117: 44.18547531 | AX117: 45.63174959 | AY117: 48.72511594 | AZ117: 51.8184823 | BA117: 53.26475658 | BC117: 113 | BD117: 1 | BE117: 33.66529137 | BF117: 0.04222460177 | BG117: 30.99172759 | BH117: 31.84349248 | BI117: 33.66529137 | BJ117: 35.48709026 | BK117: 36.33885516
AG118: 38.28571429 | AH118: 114 | AI118: 0.2490136099 | AJ118: 3106.250562 | AK118: 0.1533803921 | AL118: 2302.630046 | AM118: 2539.252216 | AN118: 3106.250562 | AO118: 3763.425299 | AP118: 4104.173303 | AR118: 38.28571429 | AS118: 114 | AT118: 1 | AU118: 48.86376907 | AV118: 0.04916943076 | AW118: 44.34495249 | AX118: 45.78459248 | AY118: 48.86376907 | AZ118: 51.94294567 | BA118: 53.38258566 | BC118: 114 | BD118: 1 | BE118: 33.75042611 | BF118: 0.04201427028 | BG118: 31.08345263 | BH118: 31.93311794 | BI118: 33.75042611 | BJ118: 35.56773428 | BK118: 36.41739959
AG119: 38.42857143 | AH119: 115 | AI119: 0.2402485321 | AJ119: 3133.773878 | AK119: 0.1526695439 | AL119: 2327.308287 | AM119: 2564.666605 | AN119: 3133.773878 | AO119: 3794.07182 | AP119: 4136.739374 | AR119: 38.42857143 | AS119: 115 | AT119: 1 | AU119: 49.00112452 | AV119: 0.04880505904 | AW119: 44.50318621 | AX119: 45.93617464 | AY119: 49.00112452 | AZ119: 52.06607441 | BA119: 53.49906284 | BC119: 115 | BD119: 1 | BE119: 33.83450515 | BF119: 0.04180539541 | BG119: 31.17417964 | BH119: 32.02172699 | BI119: 33.83450515 | BJ119: 35.64728332 | BK119: 36.49483066
AG120: 38.57142857 | AH120: 116 | AI120: 0.2319223637 | AJ120: 3160.796583 | AK120: 0.151988086 | AL120: 2351.487588 | AM120: 2589.588722 | AN120: 3160.796583 | AO120: 3824.165986 | AP120: 4168.709649 | AR120: 38.57142857 | AS120: 116 | AT120: 1 | AU120: 49.13721958 | AV120: 0.04844373688 | AW120: 44.66018106 | AX120: 46.08651107 | AY120: 49.13721958 | AZ120: 52.1879281 | BA120: 53.61425811 | BC120: 116 | BD120: 1 | BE120: 33.91755274 | BF120: 0.04159807359 | BG120: 31.26392288 | BH120: 32.10933707 | BI120: 33.91755274 | BJ120: 35.72576841 | BK120: 36.5711826
AG121: 38.71428571 | AH121: 117 | AI121: 0.2240243404 | AJ121: 3187.352877 | AK121: 0.1513347034 | AL121: 2375.196096 | AM121: 2614.048209 | AN121: 3187.352877 | AO121: 3853.748535 | AP121: 4200.128555 | AR121: 38.71428571 | AS121: 117 | AT121: 1 | AU121: 49.27209155 | AV121: 0.04808573251 | AW121: 44.8159412 | AX121: 46.23561649 | AY121: 49.27209155 | AZ121: 52.3085666 | BA121: 53.72824189 | BC121: 117 | BD121: 1 | BE121: 33.99959312 | BF121: 0.04139240126 | BG121: 31.3526966 | BH121: 32.19596564 | BI121: 33.99959312 | BJ121: 35.80322061 | BK121: 36.64648964
AG122: 38.85714286 | AH122: 118 | AI122: 0.2165436977 | AJ122: 3213.502428 | AK122: 0.1507080812 | AL122: 2398.482473 | AM122: 2638.096749 | AN122: 3213.502428 | AO122: 3882.889452 | AP122: 4231.07174 | AR122: 38.85714286 | AS122: 118 | AT122: 1 | AU122: 49.4057777 | AV122: 0.04773131414 | AW122: 44.97047041 | AX122: 46.38350536 | AY122: 49.4057777 | AZ122: 52.42805004 | BA122: 53.84108499 | BC122: 118 | BD122: 1 | BE122: 34.08065053 | BF122: 0.04118847486 | BG122: 31.44051506 | BH122: 32.28163011 | BI122: 34.08065053 | BJ122: 35.87967095 | BK122: 36.72078599
AG123: 39 | AH123: 119 | AI123: 0.2094696711 | AJ123: 3239.306012 | AK123: 0.1501069043 | AL123: 2421.396273 | AM123: 2661.786987 | AN123: 3239.306012 | AO123: 3911.659997 | AP123: 4261.616207 | AR123: 39 | AS123: 119 | AT123: 1 | AU123: 49.53831534 | AV123: 0.04738075 | AW123: 45.12377243 | AX123: 46.5301921 | AY123: 49.53831534 | AZ123: 52.54643858 | BA123: 53.95285825 | BC123: 119 | BD123: 1 | BE123: 34.1607492 | BF123: 0.04098639081 | BG123: 31.52739251 | BH123: 32.36634792 | BI123: 34.1607492 | BJ123: 35.95515049 | BK123: 36.7941059
AG124: 39.14285714 | AH124: 120 | AI124: 0.2027914963 | AJ124: 3264.824403 | AK124: 0.1495298577 | AL124: 2443.98705 | AM124: 2685.171564 | AN124: 3264.824403 | AO124: 3940.131427 | AP124: 4291.838962 | AR124: 39.14285714 | AS124: 120 | AT124: 1 | AU124: 49.66974176 | AV124: 0.04703430831 | AW124: 45.27585101 | AX124: 46.67569115 | AY124: 49.66974176 | AZ124: 52.66379236 | BA124: 54.0636325 | BC124: 120 | BD124: 1 | BE124: 34.23991339 | BF124: 0.04078624556 | BG124: 31.61334319 | BH124: 32.4501365 | BI124: 34.23991339 | BJ124: 36.02969028 | BK124: 36.8664836
AG125: 39.28571429 | AH125: 121 | AI125: 0.1964984089 | AJ125: 3290.118378 | AK125: 0.1489756264 | AL125: 2466.304359 | AM125: 2708.303122 | AN125: 3290.118378 | AO125: 3968.375001 | AP125: 4321.817007 | AR125: 39.28571429 | AS125: 121 | AT125: 1 | AU125: 49.80009424 | AV125: 0.04669225729 | AW125: 45.42670989 | AX125: 46.82001694 | AY125: 49.80009424 | AZ125: 52.78017154 | BA125: 54.17347859 | BC125: 121 | BD125: 1 | BE125: 34.31816733 | BF125: 0.04058813553 | BG125: 31.69838135 | BH125: 32.53301329 | BI125: 34.31816733 | BJ125: 36.10332137 | BK125: 36.93795331
AG126: 39.42857143 | AH126: 122 | AI126: 0.1905796443 | AJ126: 3315.248711 | AK126: 0.1484428953 | AL126: 2488.397752 | AM126: 2731.234305 | AN126: 3315.248711 | AO126: 3996.461977 | AP126: 4351.627348 | AR126: 39.42857143 | AS126: 122 | AT126: 1 | AU126: 49.92941008 | AV126: 0.04635486516 | AW126: 45.57635281 | AX126: 46.9631839 | AY126: 49.92941008 | AZ126: 52.89563625 | BA126: 54.28246734 | BC126: 122 | BD126: 1 | BE126: 34.39553526 | BF126: 0.04039215716 | BG126: 31.78252124 | BH126: 32.61499572 | BI126: 34.39553526 | BJ126: 36.1760748 | BK126: 37.00854928
AG127: 39.57142857 | AH127: 123 | AI127: 0.1850244383 | AJ127: 3340.275942 | AK127: 0.1479303496 | AL127: 2510.316666 | AM127: 2754.017604 | AN127: 3340.275942 | AO127: 4024.463273 | AP127: 4381.346591 | AR127: 39.57142857 | AS127: 123 | AT127: 1 | AU127: 50.05772657 | AV127: 0.04602240015 | AW127: 45.72478351 | AX127: 47.10520646 | AY127: 50.05772657 | AZ127: 53.01024667 | BA127: 54.39066962 | BC127: 123 | BD127: 1 | BE127: 34.47204142 | BF127: 0.04019840689 | BG127: 31.86577711 | BH127: 32.69610122 | BI127: 34.47204142 | BJ127: 36.24798162 | BK127: 37.07830573
AG128: 39.71428571 | AH128: 124 | AI128: 0.179822026 | AJ128: 3365.25521 | AK128: 0.147436674 | AL128: 2532.107808 | AM128: 2776.702052 | AN128: 3365.25521 | AO128: 4052.441947 | AP128: 4411.042183 | AR128: 39.71428571 | AS128: 124 | AT128: 1 | AU128: 50.18508099 | AV128: 0.04569513047 | AW128: 45.87200528 | AX128: 47.24609874 | AY128: 50.18508099 | AZ128: 53.12406325 | BA128: 54.49815671 | BC128: 124 | BD128: 1 | BE128: 34.54771005 | BF128: 0.04000698115 | BG128: 31.94816321 | BH128: 32.77634721 | BI128: 34.54771005 | BJ128: 36.3190729 | BK128: 37.1472569
AG129: 39.85714286 | AH129: 125 | AI129: 0.1749616425 | AJ129: 3390.236247 | AK129: 0.1469605538 | AL129: 2553.815155 | AM129: 2799.333217 | AN129: 3390.236247 | AO129: 4080.453206 | AP129: 4440.772413 | AR129: 39.85714286 | AS129: 125 | AT129: 1 | AU129: 50.31151066 | AV129: 0.04537332434 | AW129: 46.01802099 | AX129: 47.38587457 | AY129: 50.31151066 | AZ129: 53.23714674 | BA129: 54.60500032 | BC129: 125 | BD129: 1 | BE129: 34.6225654 | BF129: 0.03981797638 | BG129: 32.02969376 | BH129: 32.85575112 | BI129: 34.6225654 | BJ129: 36.38937968 | BK129: 37.21543705
AG130: 40 | AH130: 126 | AI130: 0.1704325228 | AJ130: 3415.268552 | AK130: 0.1465006737 | AL130: 2575.482568 | AM130: 2821.956521 | AN130: 3415.268552 | AO130: 4108.551913 | AP130: 4470.595172 | AR130: 40 | AS130: 126 | AT130: 1 | AU130: 50.43705284 | AV130: 0.04505725 | AW130: 46.16283348 | AX130: 47.52454778 | AY130: 50.43705284 | AZ130: 53.34955791 | BA130: 54.7112722 | BC130: 126 | BD130: 1 | BE130: 34.6966317 | BF130: 0.03963148901 | BG130: 32.110383 | BH130: 32.93433038 | BI130: 34.6966317 | BJ130: 36.45893303 | BK130: 37.28288041
AG131: 40.14285714 | AH131: 127 | AI131: 0.1662239018 | AJ131: 3440.401625 | AK131: 0.1460557189 | AL131: 2597.153907 | AM131: 2844.617383 | AN131: 3440.401625 | AO131: 4136.792929 | AP131: 4500.56835 | AR131: 40.14285714 | AS131: 127 | AT131: 1 | AU131: 50.56174484 | AV131: 0.04474717566 | AW131: 46.30644561 | AX131: 47.66213218 | AY131: 50.56174484 | AZ131: 53.4613575 | BA131: 54.81704407 | BC131: 127 | BD131: 1 | BE131: 34.7699332 | BF131: 0.03944761547 | BG131: 32.19024517 | BH131: 33.0121024 | BI131: 34.7699332 | BJ131: 36.52776401 | BK131: 37.34962123
AG132: 40.28571429 | AH132: 128 | AI132: 0.1623250147 | AJ132: 3465.684964 | AK132: 0.1456243743 | AL132: 2618.873032 | AM132: 2867.361222 | AN132: 3465.684964 | AO132: 4165.231119 | AP132: 4530.749838 | AR132: 40.28571429 | AS132: 128 | AT132: 1 | AU132: 50.68562394 | AV132: 0.04444336953 | AW132: 46.44886021 | AX132: 47.79864159 | AY132: 50.68562394 | AZ132: 53.5726063 | BA132: 54.92238768 | BC132: 128 | BD132: 1 | BE132: 34.84249413 | BF132: 0.0392664522 | BG132: 32.2692945 | BH132: 33.0890846 | BI132: 34.84249413 | BJ132: 36.59590367 | BK132: 37.41569377
AG133: 40.42857143 | AH133: 129 | AI133: 0.1587250963 | AJ133: 3491.168068 | AK133: 0.1452053249 | AL133: 2640.683802 | AM133: 2890.23346 | AN133: 3491.168068 | AO133: 4193.921345 | AP133: 4561.197527 | AR133: 40.42857143 | AS133: 129 | AT133: 1 | AU133: 50.80872745 | AV133: 0.04414609985 | AW133: 46.59008013 | AX133: 47.93408984 | AY133: 50.80872745 | AZ133: 53.68336505 | BA133: 55.02737476 | BC133: 129 | BD133: 1 | BE133: 34.91433874 | BF133: 0.03908809563 | BG133: 32.34754523 | BH133: 33.16529442 | BI133: 34.91433874 | BJ133: 36.66338307 | BK133: 37.48113226
AG134: 40.57142857 | AH134: 130 | AI134: 0.1554133818 | AJ134: 3516.899201 | AK134: 0.1447972772 | AL134: 2662.629051 | AM134: 2913.278425 | AN134: 3516.899201 | AO134: 4222.917079 | AP134: 4591.967838 | AR134: 40.57142857 | AS134: 130 | AT134: 1 | AU134: 50.93109207 | AV134: 0.04385562719 | AW134: 46.73010844 | AX134: 48.06849072 | AY134: 50.93109207 | AZ134: 53.79369343 | BA134: 55.13207571 | BC134: 130 | BD134: 1 | BE134: 34.98549096 | BF134: 0.03891263932 | BG134: 32.42501149 | BH134: 33.24074911 | BI134: 34.98549096 | BJ134: 36.73023282 | BK134: 37.54597043
AG135: =22+AH135/7 -> 40.71428571 | AH135: 131 | AI135: 0.1523791072 | AJ135: 3542.898234 | AK135: 0.1443994306 | AL135: 2684.727965 | AM135: 2936.515366 | AN135: 3542.898234 | AO135: 4252.239765 | AP135: 4623.083379 | AR135: 40.71428571 | AS135: 131 | AT135: 1 | AU135: 51.05274161 | AV135: 0.04357203608 | AW135: 46.86895328 | AX135: 48.20185735 | AY135: 51.05274161 | AZ135: 53.90362588 | BA135: 55.23652995 | BC135: 131 | BD135: 1 | BE135: 35.05596778 | BF135: 0.03874011039 | BG135: 32.50170547 | BH135: 33.31546237 | BI135: 35.05596778 | BJ135: 36.79647319 | BK135: 37.61023009
AG136: 40.85714286 | AH136: 132 | AI136: 0.1496115097 | AJ136: 3569.156641 | AK136: 0.1440114781 | AL136: 2706.97609 | AM136: 2959.938455 | AN136: 3569.156641 | AO136: 4281.878826 | AP136: 4654.53295 | AR136: 40.85714286 | AS136: 132 | AT136: 1 | AU136: 51.17368691 | AV136: 0.04329523506 | AW136: 47.00662785 | AX136: 48.33420217 | AY136: 51.17368691 | AZ136: 54.01317164 | BA136: 55.34074597 | BC136: 132 | BD136: 1 | BE136: 35.1257792 | BF136: 0.03857046957 | BG136: 32.57763733 | BH136: 33.38944433 | BI136: 35.1257792 | BJ136: 36.86211407 | BK136: 37.67392107
AG137: 41 | AH137: 133 | AI137: 0.1470998263 | AJ137: 3595.664661 | AK137: 0.1436331338 | AL137: 2729.367941 | AM137: 2983.54077 | AN137: 3595.664661 | AO137: 4311.822292 | AP137: 4686.303879 | AR137: 41 | AS137: 133 | AT137: 1 | AU137: 51.29393824 | AV137: 0.043025125 | AW137: 47.14314557 | AX137: 48.46553762 | AY137: 51.29393824 | AZ137: 54.12233886 | BA137: 55.4447309 | BC137: 133 | BD137: 1 | BE137: 35.19493494 | BF137: 0.0384036747 | BG137: 32.65281717 | BH137: 33.46270497 | BI137: 35.19493494 | BJ137: 36.92716492 | BK137: 37.73705272
AG138: 41.14285714 | AH138: 134 | AI138: 0.1448332943 | AJ138: 3622.412536 | AK138: 0.143264112 | AL138: 2751.898035 | AM138: 3007.31539 | AN138: 3622.412536 | AO138: 4342.058191 | AP138: 4718.383495 | AR138: 41.14285714 | AS138: 134 | AT138: 1 | AU138: 51.41350589 | AV138: 0.04276160677 | AW138: 47.27851988 | AX138: 48.59587612 | AY138: 51.41350589 | AZ138: 54.23113566 | BA138: 55.5484919 | BC138: 134 | BD138: 1 | BE138: 35.26344472 | BF138: 0.03823968363 | BG138: 32.72725508 | BH138: 33.53525425 | BI138: 35.26344472 | BJ138: 36.9916352 | BK138: 37.79963436
AG139: 41.28571429 | AH139: 135 | AI139: 0.1428011507 | AJ139: 3649.390505 | AK139: 0.1429041269 | AL139: 2774.560887 | AM139: 3031.255395 | AN139: 3649.390505 | AO139: 4372.574552 | AP139: 4750.759125 | AR139: 41.28571429 | AS139: 135 | AT139: 1 | AU139: 51.53240013 | AV139: 0.04250458126 | AW139: 47.41276418 | AX139: 48.72523008 | AY139: 51.53240013 | AZ139: 54.33957019 | BA139: 55.65203609 | BC139: 135 | BD139: 1 | BE139: 35.33131825 | BF139: 0.03807845417 | BG139: 32.80096115 | BH139: 33.60710214 | BI139: 35.33131825 | BJ139: 37.05553436 | BK139: 37.86167534
AG140: 41.42857143 | AH140: 136 | AI140: 0.1409926328 | AJ140: 3676.588809 | AK140: 0.1425528926 | AL140: 2797.351015 | AM140: 3055.353864 | AN140: 3676.588809 | AO140: 4403.359406 | AP140: 4783.418098 | AR140: 41.42857143 | AS140: 136 | AT140: 1 | AU140: 51.65063126 | AV140: 0.04225394934 | AW140: 47.54589191 | AX140: 48.85361194 | AY140: 51.65063126 | AZ140: 54.44765058 | BA140: 55.7553706 | BC140: 136 | BD140: 1 | BE140: 35.39856524 | BF140: 0.03791994418 | BG140: 32.87394548 | BH140: 33.67825863 | BI140: 35.39856524 | BJ140: 37.11887185 | BK140: 37.92318499
AG141: 41.57142857 | AH141: 137 | AI141: 0.1393969774 | AJ141: 3703.997671 | AK141: 0.1422101234 | AL141: 2820.26292 | AM141: 3079.603862 | AN141: 3703.997671 | AO141: 4434.400761 | AP141: 4816.347723 | AR141: 41.57142857 | AS141: 137 | AT141: 1 | AU141: 51.76820954 | AV141: 0.04200961188 | AW141: 47.67791652 | AX141: 48.98103412 | AY141: 51.76820954 | AZ141: 54.55538497 | BA141: 55.85850256 | BC141: 137 | BD141: 1 | BE141: 35.46519541 | BF141: 0.03776411149 | BG141: 32.94621817 | BH141: 33.74873368 | BI141: 35.46519541 | BJ141: 37.18165714 | BK141: 37.98417264
AG142: 41.71428571 | AH142: 138 | AI142: 0.1380034179 | AJ142: 3731.606927 | AK142: 0.1418755336 | AL142: 2843.290754 | AM142: 3103.998098 | AN142: 3731.606927 | AO142: 4465.686192 | AP142: 4849.534851 | AR142: =22+AS142/7 -> 41.71428571 | AS142: 138 | AT142: 1 | AU142: 51.88514527 | AV142: 0.04177146976 | AW142: 47.80885203 | AX142: 49.10750947 | AY142: 51.88514527 | AZ142: 54.66278107 | BA142: 55.96143851 | BC142: 138 | BD142: 1 | BE142: 35.53121846 | BF142: 0.03761091395 | BG142: 33.0177895 | BH142: 33.81853739 | BI142: 35.53121846 | BJ142: 37.24389953 | BK142: 38.04464742
AG143: 41.85714286 | AH143: 139 | AI143: 0.1368011834 | AJ143: 3759.406025 | AK143: 0.1415488373 | AL143: 2866.428325 | AM143: 3128.528929 | AN143: 3759.406025 | AO143: 4497.202831 | AP143: 4882.965876 | AR143: 41.85714286 | AS143: 139 | AT143: 1 | AU143: 52.00144872 | AV143: 0.04153942384 | AW143: 47.93871304 | AX143: 49.2330512 | AY143: 52.00144872 | AZ143: 54.76984623 | BA143: 56.06418439 | BC143: 139 | BD143: 1 | BE143: 35.59664412 | BF143: 0.03746030937 | BG143: 33.08866994 | BH143: 33.88768 | BI143: 35.59664412 | BJ143: 37.30560824 | BK143: 38.10461831
AG144: 42 | AH144: 140 | AI144: 0.1357795031 | AJ144: 3787.384395 | AK144: 0.1412297488 | AL144: 2889.669424 | AM144: 3153.188696 | AN144: 3787.384395 | AO144: 4528.937794 | AP144: 4916.627172 | AR144: 42 | AS144: 140 | AT144: 1 | AU144: 52.11713017 | AV144: 0.04131337501 | AW144: 48.06751417 | AX144: 49.35767256 | AY144: 52.11713017 | AZ144: 54.87658778 | BA144: 56.16674617 | BC144: 140 | BD144: 1 | BE144: 35.6614821 | BF144: 0.03731225561 | BG144: 33.15886995 | BH144: 33.95617174 | BI144: 35.6614821 | BJ144: 37.36679246 | BK144: 38.16409425
AG145: 42.14285714 | AH145: 141 | AI145: 0.1349276061 | AJ145: 3815.53147 | AK145: 0.1409179823 | AL145: 2913.007842 | AM145: 3177.969739 | AN145: 3815.53147 | AO145: 4560.878196 | AP145: 4950.505115 | AR145: 42.14285714 | AS145: 141 | AT145: 1 | AU145: 52.2321999 | AV145: 0.04109322414 | AW145: 48.19527003 | AX145: 49.48138678 | AY145: 52.2321999 | AZ145: 54.98301303 | BA145: 56.26912978 | BC145: 141 | BD145: 1 | BE145: 35.72574211 | BF145: 0.03716671051 | BG145: 33.22840003 | BH145: 34.02402284 | BI145: 35.72574211 | BJ145: 37.42746138 | BK145: 38.22308419
AG146: 42.28571429 | AH146: 142 | AI146: 0.1342347216 | AJ146: 3843.83668 | AK146: 0.140613252 | AL146: 2936.43737 | AM146: 3202.864401 | AN146: 3843.83668 | AO146: 4593.011153 | AP146: 4984.586078 | AR146: 42.28571429 | AS146: 142 | AT146: 1 | AU146: 52.3466682 | AV146: 0.0408788721 | AW146: 48.32199526 | AX146: 49.6042071 | AY146: 52.3466682 | AZ146: 55.08912931 | BA146: 56.37134115 | BC146: 142 | BD146: 1 | BE146: 35.78943387 | BF146: 0.03702363189 | BG146: 33.29727064 | BH146: 34.09124353 | BI146: 35.78943387 | BJ146: 37.48762421 | BK146: 38.28159709
AG147: 42.42857143 | AH147: 143 | AI147: 0.1336900786 | AJ147: 3872.289458 | AK147: 0.1403152721 | AL147: 2959.951801 | AM147: 3227.865023 | AN147: 3872.289458 | AO147: 4625.32378 | AP147: 5018.856435 | AR147: 42.42857143 | AS147: 143 | AT147: 1 | AU147: 52.46054535 | AV147: 0.04067021976 | AW147: 48.44770447 | AX147: 49.72614676 | AY147: 52.46054535 | AZ147: 55.19494394 | BA147: 56.47338623 | BC147: 143 | BD147: 1 | BE147: 35.85256708 | BF147: 0.03688297759 | BG147: 33.36549226 | BH147: 34.15784404 | BI147: 35.85256708 | BJ147: 37.54729012 | BK147: 38.3396419
AG148: 42.57142857 | AH148: 144 | AI148: 0.133282907 | AJ148: 3900.879237 | AK148: 0.1400237569 | AL148: 2983.544933 | AM148: 3252.963952 | AN148: 3900.879237 | AO148: 4657.803194 | AP148: 5053.302563 | AR148: 42.57142857 | AS148: 144 | AT148: 1 | AU148: 52.57384162 | AV148: 0.040467168 | AW148: 48.57241231 | AX148: 49.84721901 | AY148: 52.57384162 | AZ148: 55.30046424 | BA148: 56.57527094 | BC148: 144 | BD148: 1 | BE148: 35.91515147 | BF148: 0.03674470546 | BG148: 33.43307537 | BH148: 34.22383462 | BI148: 35.91515147 | BJ148: 37.60646832 | BK148: 38.39722757
AG149: 42.71428571 | AH149: 145 | AI149: 0.1330024508 | AJ149: 3929.595558 | AK149: 0.1397384205 | AL149: 3007.210778 | AM149: 3278.153711 | AN149: 3929.595558 | AO149: 4690.436563 | AP149: 5087.910875 | AR149: 42.71428571 | AS149: 145 | AT149: 1 | AU149: 52.68656731 | AV149: 0.04026961769 | AW149: 48.69613385 | AX149: 49.9674374 | AY149: 52.68656731 | AZ149: 55.40569721 | BA149: 56.67700077 | BC149: 145 | BD149: 1 | BE149: 35.97719675 | BF149: 0.03660877334 | BG149: 33.5000306 | BH149: 34.2892256 | BI149: 35.97719675 | BJ149: 37.6651679 | BK149: 38.4543629
AG150: 42.85714286 | AH150: 146 | AI150: 0.1328379685 | AJ150: 3958.42806 | AK150: 0.1394589772 | AL150: 3030.943557 | AM150: 3303.426995 | AN150: 3958.42806 | AO150: 4723.211107 | AP150: 5122.667821 | AR150: 42.85714286 | AS150: 146 | AT150: 1 | AU150: 52.79873268 | AV150: 0.04007746971 | AW150: 48.81888461 | AX150: 50.08681579 | AY150: 52.79873268 | AZ150: 55.51064956 | BA150: 56.77858074 | BC150: 146 | BD150: 1 | BE150: 36.03871262 | BF150: 0.03647513905 | BG150: 33.56636871 | BH150: 34.35402741 | BI150: 36.03871262 | BJ150: 37.72339784 | BK150: 38.51105653
AG151: 43 | AH151: 147 | AI151: 0.1327787192 | AJ151: 3987.366391 | AK151: 0.1391851412 | AL151: 3054.7375 | AM151: 3328.776507 | AN151: 3987.366391 | AO151: 4756.114048 | AP151: 5157.559854 | AR151: 43 | AS151: 147 | AT151: 1 | AU151: 52.91034802 | AV151: 0.03989062495 | AW151: 48.94068014 | AX151: 50.20536804 | AY151: 52.91034802 | AZ151: 55.615328 | BA151: 56.88001589 | BC151: 147 | BD151: 1 | BE151: 36.09970881 | BF151: 0.03634376044 | BG151: 33.6321005 | BH151: 34.41825049 | BI151: 36.09970881 | BJ151: 37.78116714 | BK151: 38.56731713
AG152: 43.14285714 | AH152: 148 | AI152: 0.1328139618 | AJ152: 4016.400196 | AK152: 0.1389166268 | AL152: 3078.586838 | AM152: 3354.19495 | AN152: 4016.400196 | AO152: 4789.132606 | AP152: 5192.573424 | AR152: 43.14285714 | AS152: 148 | AT152: 1 | AU152: 53.02142361 | AV152: 0.03970898427 | AW152: 49.06153598 | AX152: 50.323108 | AY152: 53.02142361 | AZ152: 55.71973921 | BA152: 56.98131124 | BC152: 148 | BD152: 1 | BE152: 36.16019503 | BF152: 0.03621459535 | BG152: 33.69723673 | BH152: 34.48190528 | BI152: 36.16019503 | BJ152: 37.83848478 | BK152: 38.62315333
AG153: 43.28571429 | AH153: 149 | AI153: 0.1329329555 | AJ153: 4045.51912 | AK153: 0.1386531481 | AL153: 3102.485799 | AM153: 3379.675026 | AN153: 4045.51912 | AO153: 4822.254003 | AP153: 5227.694984 | AR153: 43.28571429 | AS153: 149 | AT153: 1 | AU153: 53.13196973 | AV153: 0.03953244857 | AW153: 49.18146765 | AX153: 50.44004956 | AY153: 53.13196973 | AZ153: 55.82388989 | BA153: 57.0824718 | BC153: 149 | BD153: 1 | BE153: 36.22018099 | BF153: 0.03608760163 | BG153: 33.76178818 | BH153: 34.54500222 | BI153: 36.22018099 | BJ153: 37.89535975 | BK153: 38.67857379
AG154: 43.42857143 | AH154: 150 | AI154: 0.1331249594 | AJ154: 4074.71281 | AK154: 0.1383944194 | AL154: 3126.428614 | AM154: 3405.20944 | AN154: 4074.71281 | AO154: 4855.46546 | AP154: 5262.910987 | AR154: 43.42857143 | AS154: 150 | AT154: 1 | AU154: 53.24199665 | AV154: 0.03936091871 | AW154: 49.30049072 | AX154: 50.55620656 | AY154: 53.24199665 | AZ154: 55.92778675 | BA154: 57.18350259 | BC154: 150 | BD154: 1 | BE154: 36.2796764 | BF154: 0.0359627371 | BG154: 33.82576564 | BH154: 34.60755176 | BI154: 36.2796764 | BJ154: 37.95180103 | BK154: 38.73358715
AG155: 43.57142857 | AH155: 151 | AI155: 0.1333792301 | AJ155: 4103.97091 | AK155: 0.1381401549 | AL155: 3150.409521 | AM155: 3430.790897 | AN155: 4103.97091 | AO155: 4888.754195 | AP155: 5298.207879 | AR155: 43.57142857 | AS155: 151 | AT155: 1 | AU155: 53.35151468 | AV155: 0.03919429558 | AW155: 49.41862072 | AX155: 50.67159289 | AY155: 53.35151468 | AZ155: 56.03143646 | BA155: 57.28440863 | BC155: 151 | BD155: 1 | BE155: 36.33869097 | BF155: 0.03583995961 | BG155: 33.8891799 | BH155: 34.66956433 | BI155: 36.33869097 | BJ155: 38.00781762 | BK155: 38.78820205
AG156: 43.71428571 | AH156: 152 | AI156: 0.1336849708 | AJ156: 4133.283042 | AK156: 0.1378900688 | AL156: 3174.422914 | AM156: 3456.412195 | AN156: 4133.283042 | AO156: 4922.107342 | AP156: 5333.572019 | AR156: 43.71428571 | AS156: 152 | AT156: 1 | AU156: 53.46053407 | AV156: 0.03903248004 | AW156: 49.53587363 | AX156: 50.7862227 | AY156: 53.46053407 | AZ156: 56.13484543 | BA156: 57.3851945 | BC156: 152 | BD156: 1 | BE156: 36.39723443 | BF156: 0.035719227 | BG156: 33.95204185 | BH156: 34.73105046 | BI156: 36.39723443 | BJ156: 38.0634184 | BK156: 38.84242701
AG157: 43.85714286 | AH157: 153 | AI157: 0.1340313314 | AJ157: 4162.638802 | AK157: 0.1376438753 | AL157: 3198.463347 | AM157: 3482.066222 | AN157: 4162.638802 | AO157: 4955.511948 | AP157: 5368.989672 | AR157: 43.85714286 | AS157: 153 | AT157: 1 | AU157: 53.56906512 | AV157: 0.03887537296 | AW157: 49.65226585 | AX157: 50.90011045 | AY157: 53.56906512 | AZ157: 56.23801979 | BA157: 57.48586438 | BC157: 153 | BD157: 1 | BE157: 36.45531649 | BF157: 0.03560049709 | BG157: 34.01436256 | BH157: 34.79202079 | BI157: 36.45531649 | BJ157: 38.11861219 | BK157: 38.89627042
AG158: 44 | AH158: 154 | AI158: 0.134407459 | AJ158: 4192.027788 | AK158: 0.1374012886 | AL158: 3222.525381 | AM158: 3507.74587 | AN158: 4192.027788 | AO158: 4988.955058 | AP158: 5404.447099 | AR158: 44 | AS158: 154 | AT158: 1 | AU158: 53.6771181 | AV158: 0.0387228752 | AW158: 49.76781378 | AX158: 51.01327058 | AY158: 53.6771181 | AZ158: 56.34096563 | BA158: 57.58642243 | BC158: 154 | BD158: 1 | BE158: 36.51294686 | BF158: 0.03548372771 | BG158: 34.07615308 | BH158: 34.85248593 | BI158: 36.51294686 | BJ158: 38.17340778 | BK158: 38.94974063
AG159: 44.14285714 | AH159: 155 | AI159: 0.1348025012 | AJ159: 4221.439596 | AK159: 0.137162023 | AL159: 3246.603576 | AM159: 3533.44403 | AN159: 4221.439596 | AO159: 5022.423716 | AP159: 5439.930563 | AR159: 44.14285714 | AS159: 155 | AT159: 1 | AU159: 53.78470331 | AV159: 0.0385748876 | AW159: 49.88253383 | AX159: 51.12571756 | AY159: 53.78470331 | AZ159: 56.44368907 | BA159: 57.6868728 | BC159: 155 | BD159: 1 | BE159: 36.57013525 | BF159: 0.03536887671 | BG159: 34.13742446 | BH159: 34.91245652 | BI159: 36.57013525 | BJ159: 38.22781398 | BK159: 39.00284605
AG160: 44.28571429 | AH160: 156 | AI160: 0.1352056051 | AJ160: 4250.863822 | AK160: 0.1369257927 | AL160: 3270.692492 | AM160: 3559.153595 | AN160: 4250.863822 | AO160: 5055.904969 | AP160: 5475.426326 | AR160: 44.28571429 | AS160: 156 | AT160: 1 | AU160: 53.89183102 | AV160: 0.03843131104 | AW160: 49.9964424 | AX160: 51.23746583 | AY160: 53.89183102 | AZ160: 56.54619622 | BA160: 57.78721964 | BC160: 156 | BD160: 1 | BE160: 36.62689139 | BF160: 0.0352559019 | BG160: 34.19818775 | BH160: 34.97194318 | BI160: 36.62689139 | BJ160: 38.28183959 | BK160: 39.05559503
AG161: 44.42857143 | AH161: 157 | AI161: 0.1356059183 | AJ161: 4280.290063 | AK161: 0.1366923118 | AL161: 3294.78669 | AM161: 3584.867457 | AN161: 4280.290063 | AO161: 5089.385859 | AP161: 5510.92065 | AR161: 44.42857143 | AS161: 157 | AT161: 1 | AU161: 53.99851152 | AV161: 0.03829204636 | AW161: 50.1095559 | AX161: 51.34852985 | AY161: 53.99851152 | AZ161: 56.64849318 | BA161: 57.88746713 | BC161: 157 | BD161: 1 | BE161: 36.68322498 | BF161: 0.03514476112 | BG161: 34.25845401 | BH161: 35.03095655 | BI161: 36.68322498 | BJ161: 38.33549342 | BK161: 39.10799595
AG162: 44.57142857 | AH162: 158 | AI162: 0.1359925967 | AJ162: 4309.707915 | AK162: 0.1364612946 | AL162: 3318.880739 | AM162: 3610.578512 | AN162: 4309.707915 | AO162: 5122.853428 | AP162: 5546.399789 | AR162: 44.57142857 | AS162: 158 | AT162: 1 | AU162: 54.10475508 | AV162: 0.03815699444 | AW162: 50.22189076 | AX162: 51.4589241 | AY162: 54.10475508 | AZ162: 56.75058606 | BA162: 57.9876194 | BC162: 158 | BD162: 1 | BE162: 36.73914575 | BF162: 0.0350354122 | BG162: 34.3182343 | BH162: 35.08950724 | BI162: 36.73914575 | BJ162: 38.38878426 | BK162: 39.1600572
AG163: 44.71428571 | AH163: 159 | AI163: 0.1363549961 | AJ163: 4339.106966 | AK163: 0.1362324553 | AL163: 3342.969383 | AM163: 3636.279773 | AN163: 4339.106966 | AO163: 5156.294596 | AP163: 5581.849833 | AR163: 44.71428571 | AS163: 159 | AT163: 1 | AU163: 54.21057199 | AV163: 0.03802605616 | AW163: 50.33346376 | AX163: 51.56866328 | AY163: 54.21057199 | AZ163: 56.85248071 | BA163: 58.08768022 | BC163: 159 | BD163: 1 | BE163: 36.7946634 | BF163: 0.034927813 | BG163: 34.37753979 | BH163: 35.14760597 | BI163: 36.7946634 | BJ163: 38.44172084 | BK163: 39.21178702
AG164: 44.85714286 | AH164: 160 | AI164: 0.1366826721 | AJ164: 4368.476795 | AK164: 0.1360055082 | AL164: 3367.047548 | AM164: 3661.964364 | AN164: 4368.476795 | AO164: 5189.696172 | AP164: 5617.256707 | AR164: 44.85714286 | AS164: 160 | AT164: 1 | AU164: 54.31597252 | AV164: 0.03789913245 | AW164: 50.44429204 | AX164: 51.67776234 | AY164: 54.31597252 | AZ164: 56.9541827 | BA164: 58.187653 | BC164: 160 | BD164: 1 | BE164: 36.84978765 | BF164: 0.03482192136 | BG164: 34.43638176 | BH164: 35.20526351 | BI164: 36.84978765 | BJ164: 38.49431179 | BK164: 39.26319355
AG165: 45 | AH165: 161 | AI165: 0.136965189 | AJ165: 4397.806981 | AK165: 0.1357801675 | AL165: 3391.110167 | AM165: 3687.625419 | AN165: 4397.806981 | AO165: 5223.044955 | AP165: 5652.606329 | AR165: 45 | AS165: 161 | AT165: 1 | AU165: 54.42096695 | AV165: 0.03777612427 | AW165: 50.55439277 | AX165: 51.78623627 | AY165: 54.42096695 | AZ165: 57.05569763 | BA165: 58.28754113 | BC165: 161 | BD165: 1 | BE165: 36.9045282 | BF165: 0.03471769515 | BG165: 34.49477148 | BH165: 35.26249066 | BI165: 36.9045282 | BJ165: 38.54656574 | BK165: 39.31428491
AG166: 45.14285714 | AH166: 162 | AI166: 0.1371921109 | AJ166: 4427.087105 | AK166: 0.1355561475 | AL166: 3415.15217 | AM166: 3713.256068 | AN166: 4427.087105 | AO166: 5256.327747 | AP166: 5687.884617 | AR166: 45.14285714 | AS166: 162 | AT166: 1 | AU166: 54.52556555 | AV166: 0.03765693252 | AW166: 50.66378312 | AX166: 51.89410002 | AY166: 54.52556555 | AZ166: 57.15703108 | BA166: 58.38734798 | BC166: 162 | BD166: 1 | BE166: 36.95889475 | BF166: 0.03461509224 | BG166: 34.55272025 | BH166: 35.31929817 | BI166: 36.95889475 | BJ166: 38.59849133 | BK166: 39.36506925
AG167: =22+AH167/7 -> 45.28571429 | AH167: 163 | AI167: 0.1373530022 | AJ167: 4456.306744 | AK167: 0.1353331623 | AL167: 3439.168491 | AM167: 3738.849443 | AN167: 4456.306744 | AO167: 5289.531348 | AP167: 5723.077489 | AR167: 45.28571429 | AS167: 163 | AT167: 1 | AU167: 54.6297786 | AV167: 0.03754145816 | AW167: 50.77248024 | AX167: 52.00136857 | AY167: 54.6297786 | AZ167: 57.25818862 | BA167: 58.48707695 | BC167: 163 | BD167: 1 | BE167: 37.01289702 | BF167: 0.0345140705 | BG167: 34.61023935 | BH167: 35.37569685 | BI167: 37.01289702 | BJ167: 38.65009719 | BK167: 39.4155547
AG168: 45.42857143 | AH168: 164 | AI168: 0.1374374271 | AJ168: 4485.455479 | AK168: 0.1351109263 | AL168: 3463.154062 | AM168: 3764.398675 | AN168: 4485.455479 | AO168: 5322.64256 | AP168: 5758.170861 | AR168: 45.42857143 | AS168: 164 | AT168: 1 | AU168: 54.73361636 | AV168: 0.03742960211 | AW168: 50.8805013 | AX168: 52.10805689 | AY168: 54.73361636 | AZ168: 57.35917584 | BA168: 58.58673142 | BC168: 164 | BD168: 1 | BE168: 37.06654472 | BF168: 0.03441458777 | BG168: 34.66734006 | BH168: 35.43169748 | BI168: 37.06654472 | BJ168: 38.70139196 | BK168: 39.46574938
AG169: 45.57142857 | AH169: 165 | AI169: 0.1374349174 | AJ169: 4514.523063 | AK169: 0.1348891596 | AL169: 3487.103919 | AM169: 3789.897019 | AN169: 4514.523063 | AO169: 5355.648433 | AP169: 5793.150946 | AR169: 45.57142857 | AS169: 165 | AT169: 1 | AU169: 54.83708913 | AV169: 0.03732126531 | AW169: 50.98786348 | AX169: 52.21417994 | AY169: 54.83708913 | AZ169: 57.45999831 | BA169: 58.68631477 | BC169: 165 | BD169: 1 | BE169: 37.11984755 | BF169: 0.03431660192 | BG169: 34.72403367 | BH169: 35.48731083 | BI169: 37.11984755 | BJ169: 38.75238427 | BK169: 39.51566143
AG170: 45.71428571 | AH170: 166 | AI170: 0.1373342594 | AJ170: 4543.503301 | AK170: 0.134667717 | AL170: 3511.015513 | AM170: 3815.340572 | AN170: 4543.503301 | AO170: 5388.541765 | AP170: 5828.010703 | AR170: 45.71428571 | AS170: 166 | AT170: 1 | AU170: 54.94020717 | AV170: 0.03721634854 | AW170: 51.0945843 | AX170: 52.31975297 | AY170: 54.94020717 | AZ170: 57.56066138 | BA170: 58.78583004 | BC170: 166 | BD170: 1 | BE170: 37.17281523 | BF170: 0.03422007077 | BG170: 34.78033159 | BH170: 35.54254777 | BI170: 37.17281523 | BJ170: 38.8030827 | BK170: 39.56529888
AG171: 45.85714286 | AH171: 167 | AI171: 0.137123494 | AJ171: 4572.394042 | AK171: 0.1344465878 | AL171: 3534.888708 | AM171: 3840.728269 | AN171: 4572.394042 | AO171: 5421.321099 | AP171: 5862.74984 | AR171: 45.85714286 | AS171: 167 | AT171: 1 | AU171: 55.04298081 | AV171: 0.03711475246 | AW171: 51.20068167 | AX171: 52.42479143 | AY171: 55.04298081 | AZ171: 57.66117019 | BA171: 58.88527995 | BC171: 167 | BD171: 1 | BE171: 37.22545751 | BF171: 0.03412495204 | BG171: 34.83624532 | BH171: 35.59741926 | BI171: 37.22545751 | BJ171: 38.85349576 | BK171: 39.6146697
AG172: 46 | AH172: 168 | AI172: 0.1367906295 | AJ172: 4601.193312 | AK172: 0.1342257675 | AL172: 3558.723472 | AM172: 3866.059171 | AN172: 4601.193312 | AO172: 5453.98523 | AP172: 5897.368359 | AR172: 46 | AS172: 168 | AT172: 1 | AU172: 55.14542034 | AV172: 0.03701637774 | AW172: 51.30617348 | AX172: 52.52931082 | AY172: 55.14542034 | AZ172: 57.76152986 | BA172: 58.98466721 | BC172: 168 | BD172: 1 | BE172: 37.27778411 | BF172: 0.03403120349 | BG172: 34.89178638 | BH172: 35.65193623 | BI172: 37.27778411 | BJ172: 38.90363199 | BK172: 39.66378184
AG173: 46.14285714 | AH173: 169 | AI173: 0.1363236744 | AJ173: 4629.899137 | AK173: 0.1340052513 | AL173: 3582.519773 | AM173: 3891.332339 | AN173: 4629.899137 | AO173: 5486.53295 | AP173: 5931.866263 | AR173: 46.14285714 | AS173: 169 | AT173: 1 | AU173: 55.24753607 | AV173: 0.03692112501 | AW173: 51.41107763 | AX173: 52.63332662 | AY173: 55.24753607 | AZ173: 57.86174552 | BA173: 59.08399451 | BC173: 169 | BD173: 1 | BE173: 37.32980477 | BF173: 0.03393878286 | BG173: 34.94696628 | BH173: 35.70610963 | BI173: 37.32980477 | BJ173: 38.9534999 | BK173: 39.71264325
AG174: 46.28571429 | AH174: 170 | AI174: 0.135710637 | AJ174: 4658.509542 | AK174: 0.1337850345 | AL174: 3606.277581 | AM174: 3916.546833 | AN174: 4658.509542 | AO174: 5518.963053 | AP174: 5966.243551 | AR174: =22+AS174/7 -> 46.28571429 | AS174: 170 | AT174: 1 | AU174: 55.34933829 | AV174: 0.03682889495 | AW174: 51.51541203 | AX174: 52.7368543 | AY174: 55.34933829 | AZ174: 57.96182229 | BA174: 59.18326456 | BC174: 170 | BD174: 1 | BE174: 37.38152922 | BF174: 0.0338476479 | BG174: 35.00179655 | BH174: 35.75995043 | BI174: 37.38152922 | BJ174: 39.00310801 | BK174: 39.76126189
AG175: 46.42857143 | AH175: 171 | AI175: 0.1349395257 | AJ175: 4687.022555 | AK175: 0.1335651124 | AL175: 3629.996863 | AM175: 3941.701713 | AN175: 4687.022555 | AO175: 5551.274333 | AP175: 6000.500227 | AR175: 46.42857143 | AS175: 171 | AT175: 1 | AU175: 55.45083733 | AV175: 0.03673958819 | AW175: 51.61919459 | AX175: 52.83990936 | AY175: 55.45083733 | AZ175: 58.0617653 | BA175: 59.28248006 | BC175: 171 | BD175: 1 | BE175: 37.43296721 | BF175: 0.03375775634 | BG175: 35.0562887 | BH175: 35.81346956 | BI175: 37.43296721 | BJ175: 39.05246486 | BK175: 39.80964572
AG176: 46.57142857 | AH176: 172 | AI176: 0.13399847 | AJ176: 4715.43619 | AK176: 0.1333454804 | AL176: 3653.677566 | AM176: 3966.796024 | AN176: 4715.43619 | AO176: 5583.465563 | AP176: 6034.636257 | AR176: 46.57142857 | AS176: 172 | AT176: 1 | AU176: 55.55204346 | AV176: 0.03665310541 | AW176: 51.72244322 | AX176: 52.94250727 | AY176: 55.55204346 | AZ176: 58.16157966 | BA176: 59.38164371 | BC176: 172 | BD176: 1 | BE176: 37.48412846 | BF176: 0.03366906594 | BG176: 35.11045424 | BH176: 35.86667797 | BI176: 37.48412846 | BJ176: 39.10157895 | BK176: 39.85780268
AG177: 46.71428571 | AH177: 173 | AI177: 0.1328783814 | AJ177: 4743.748247 | AK177: 0.1331261341 | AL177: 3677.319133 | AM177: 3991.828464 | AN177: 4743.748247 | AO177: 5615.535026 | AP177: 6068.650808 | AR177: 46.71428571 | AS177: 173 | AT177: 1 | AU177: 55.65296696 | AV177: 0.03656934779 | AW177: 51.82517606 | AX177: 53.04466367 | AY177: 55.65296696 | AZ177: 58.26127024 | BA177: 59.48075785 | BC177: 173 | BD177: 1 | BE177: 37.53502266 | BF177: 0.03358153467 | BG177: 35.16430475 | BH177: 35.91958664 | BI177: 37.53502266 | BJ177: 39.15045868 | BK177: 39.90574057
AG178: 46.85714286 | AH178: 174 | AI178: 0.131572954 | AJ178: 4771.956304 | AK178: 0.1329070693 | AL178: 3700.920502 | AM178: 4016.797379 | AN178: 4771.956304 | AO178: 5647.48052 | AP178: 6102.542243 | AR178: 46.85714286 | AS178: 174 | AT178: 1 | AU178: 55.753618 | AV178: 0.03648821702 | AW178: 51.92741148 | AX178: 53.14639433 | AY178: 55.753618 | AZ178: 58.36084167 | BA178: 59.57982453 | BC178: 174 | BD178: 1 | BE178: 37.58565944 | BF178: 0.0334951207 | BG178: 35.21785183 | BH178: 35.97220653 | BI178: 37.58565944 | BJ178: 39.19911236 | BK178: 39.95346706
AG179: 47 | AH179: 175 | AI179: 0.1300760025 | AJ179: 4800.057931 | AK179: 0.1326882817 | AL179: 3724.48059 | AM179: 4041.701102 | AN179: 4800.057931 | AO179: 5679.299822 | AP179: 6136.308892 | AR179: 47 | AS179: 175 | AT179: 1 | AU179: 55.8540068 | AV179: 0.03640961478 | AW179: 52.02916787 | AX179: 53.24771502 | AY179: 55.8540068 | AZ179: 58.46029858 | BA179: 59.67884573 | BC179: 175 | BD179: 1 | BE179: 37.63604844 | BF179: 0.03340978223 | BG179: 35.27110708 | BH179: 36.02454863 | BI179: 37.63604844 | BJ179: 39.24754826 | BK179: 40.0009898
AG180: 47.14285714 | AH180: 176 | AI180: 0.1283813419 | AJ180: 4828.050698 | AK180: 0.1324697673 | AL180: 3747.998315 | AM180: 4066.537966 | AN180: 4828.050698 | AO180: 5710.990706 | AP180: 6169.949087 | AR180: 47.14285714 | AS180: 176 | AT180: 1 | AU180: 55.95414354 | AV180: 0.03633344278 | AW180: 52.1304636 | AX180: 53.34864151 | AY180: 55.95414354 | AZ180: 58.55964556 | BA180: 59.77782348 | BC180: 176 | BD180: 1 | BE180: 37.68619929 | BF180: 0.03332547745 | BG180: 35.32408214 | BH180: 36.07662393 | BI180: 37.68619929 | BJ180: 39.29577466 | BK180: 40.04831645
AG181: 47.28571429 | AH181: 177 | AI181: 0.1264827871 | AJ181: 4855.932174 | AK181: 0.132251522 | AL181: 3771.472593 | AM181: 4091.306303 | AN181: 4855.932174 | AO181: 5742.550949 | AP181: 6203.461157 | AR181: 47.28571429 | AS181: 177 | AT181: 1 | AU181: 56.05403842 | AV181: 0.03625960273 | AW181: 52.23131705 | AX181: 53.44918958 | AY181: 56.05403842 | AZ181: 58.65888726 | BA181: 59.87675978 | BC181: 177 | BD181: 1 | BE181: 37.73612163 | BF181: 0.03324216453 | BG181: 35.37678859 | BH181: 36.1284434 | BI181: 37.73612163 | BJ181: 39.34379986 | BK181: 40.09545466
AG182: 47.42857143 | AH182: 178 | AI182: 0.124374153 | AJ182: 4883.699928 | AK182: 0.1320335414 | AL182: 3794.902341 | AM182: 4116.004445 | AN182: 4883.699928 | AO182: 5773.978327 | AP182: 6236.843432 | AR182: 47.42857143 | AS182: 178 | AT182: 1 | AU182: 56.15370163 | AV182: 0.03618799631 | AW182: 52.33174662 | AX182: 53.54937499 | AY182: 56.15370163 | AZ182: 58.75802827 | BA182: 59.97565664 | BC182: 178 | BD182: 1 | BE182: 37.78582508 | BF182: 0.03315980168 | BG182: 35.42923806 | BH182: 36.18001802 | BI182: 37.78582508 | BJ182: 39.39163213 | BK182: 40.14241209
AG183: 47.57142857 | AH183: 179 | AI183: 0.122048803 | AJ183: 4911.351566 | AK183: 0.1318158216 | AL183: 3818.286556 | AM183: 4140.630782 | AN183: 4911.351566 | AO183: 5805.270701 | AP183: 6270.094387 | AR183: 47.57142857 | AS183: 179 | AT183: 1 | AU183: 56.25314338 | AV183: 0.03611852516 | AW183: 52.43177069 | AX183: 53.64921354 | AY183: 56.25314338 | AZ183: 58.85707321 | BA183: 60.07451607 | BC183: 179 | BD183: 1 | BE183: 37.83531928 | BF183: 0.03307834704 | BG183: 35.48144217 | BH183: 36.23135878 | BI183: 37.83531928 | BJ183: 39.43927978 | BK183: 40.18919639
AG184: 47.71428571 | AH184: 180 | AI184: 0.119489717 | AJ184: 4938.885511 | AK184: 0.1315983572 | AL184: 3841.626103 | AM184: 4165.184993 | AN184: 4938.885511 | AO184: 5836.427916 | AP184: 6303.215858 | AR184: 47.71428571 | AS184: 180 | AT184: 1 | AU184: 56.35237407 | AV184: 0.03605108901 | AW184: 52.53140826 | AX184: 53.74872148 | AY184: 56.35237407 | AZ184: 58.95602665 | BA184: 60.17333987 | BC184: 180 | BD184: 1 | BE184: 37.88461406 | BF184: 0.03299775798 | BG184: 35.53341277 | BH184: 36.2824769 | BI184: 37.88461406 | BJ184: 39.48675122 | BK184: 40.23581535
AG185: 47.85714286 | AH185: 181 | AI185: 0.1166694911 | AJ185: 4966.301004 | AK185: 0.1313811422 | AL185: 3864.92371 | AM185: 4189.668047 | AN185: 4966.301004 | AO185: 5867.451796 | AP185: 6336.213036 | AR185: 47.85714286 | AS185: 181 | AT185: 1 | AU185: 56.45140428 | AV185: 0.03598558574 | AW185: 52.63067886 | AX185: 53.8479155 | AY185: 56.45140428 | AZ185: 59.05489306 | BA185: 60.2721297 | BC185: 181 | BD185: 1 | BE185: 37.93371943 | BF185: 0.03291799106 | BG185: 35.58516198 | BH185: 36.33338381 | BI185: 37.93371943 | BJ185: 39.53405506 | BK185: 40.28227689
AG186: 48 | AH186: 182 | AI186: 0.1135602701 | AJ186: 4993.597322 | AK186: 0.1311641705 | AL186: 3888.182187 | AM186: 4214.080972 | AN186: 4993.597322 | AO186: 5898.344253 | AP186: 6369.09126 | AR186: 48 | AS186: 182 | AT186: 1 | AU186: 56.55024462 | AV186: 0.03592191314 | AW186: 52.72960208 | AX186: 53.94681232 | AY186: 56.55024462 | AZ186: 59.15367693 | BA186: 60.37088716 | BC186: 182 | BD186: 1 | BE186: 37.98264541 | BF186: 0.0328390028 | BG186: 35.63670189 | BH186: 36.38409096 | BI186: 37.98264541 | BJ186: 39.58119986 | BK186: 40.32858893
AG187: 48.14285714 | AH187: 183 | AI187: 0.1101341988 | AJ187: 5020.773742 | AK187: 0.1309474359 | AL187: 3911.404343 | AM187: 4238.424794 | AN187: 5020.773742 | AO187: 5929.107198 | AP187: 6401.855868 | AR187: 48.14285714 | AS187: 183 | AT187: 1 | AU187: 56.6489057 | AV187: 0.03585996901 | AW187: 52.82819749 | AX187: 54.04542865 | AY187: 56.6489057 | AZ187: 59.25238275 | BA187: 60.4696139 | BC187: 183 | BD187: 1 | BE187: 38.03140201 | BF187: 0.03276074973 | BG187: 35.68804462 | BH187: 36.43460978 | BI187: 38.03140201 | BJ187: 39.62819423 | BK187: 40.37475939
AG188: 48.28571429 | AH188: 184 | AI188: 0.1063634218 | AJ188: 5047.829539 | AK188: 0.1307309322 | AL188: 3934.59299 | AM188: 4262.700538 | AN188: 5047.829539 | AO188: 5959.742543 | AP188: 6434.512198 | AR188: 48.28571429 | AS188: 184 | AT188: 1 | AU188: 56.7473981 | AV188: 0.03579965114 | AW188: 52.92648467 | AX188: 54.1437812 | AY188: 56.7473981 | AZ188: 59.35101499 | BA188: 60.56831153 | BC188: 184 | BD188: 1 | BE188: 38.07999924 | BF188: 0.03268318837 | BG188: 35.73920229 | BH188: 36.48495172 | BI188: 38.07999924 | BJ188: 39.67504675 | BK188: 40.42079618
AG189: 48.42857143 | AH189: 185 | AI189: 0.102220084 | AJ189: 5074.763992 | AK189: 0.1305146534 | AL189: 3957.750936 | AM189: 4286.909232 | AN189: 5074.763992 | AO189: 5990.252198 | AP189: 6467.065588 | AR189: 48.42857143 | AS189: 185 | AT189: 1 | AU189: 56.84573243 | AV189: 0.03574085733 | AW189: 53.02448318 | AX189: 54.2418867 | AY189: 56.84573243 | AZ189: 59.44957816 | BA189: 60.66698169 | BC189: 185 | BD189: 1 | BE189: 38.12844712 | BF189: 0.03260627526 | BG189: 35.790187 | BH189: 36.53512823 | BI189: 38.12844712 | BJ189: 39.72176601 | BK189: 40.46670724
AG190: 48.57142857 | AH190: 186 | AI190: 0.09768269171 | AJ190: 5101.576243 | AK190: 0.1302985935 | AL190: 3980.880102 | AM190: 4311.051401 | AN190: 5101.576243 | AO190: 6020.637369 | AP190: 6499.519946 | AR190: 48.57142857 | AS190: 186 | AT190: 1 | AU190: 56.94391927 | AV190: 0.03568348566 | AW190: 53.12221256 | AX190: 54.33976183 | AY190: 56.94391927 | AZ190: 59.5480767 | BA190: 60.76562597 | BC190: 186 | BD190: 1 | BE190: 38.17675564 | BF190: 0.03252996705 | BG190: 35.84101084 | BH190: 36.58515072 | BI190: 38.17675564 | BJ190: 39.76836056 | BK190: 40.51250043
AG191: 48.71428571 | AH191: 187 | AI191: 0.09287606944 | AJ191: 5128.262384 | AK191: 0.1300827499 | AL191: 4003.961954 | AM191: 4335.116042 | AN191: 5128.262384 | AO191: 6050.883001 | AP191: 6531.846276 | AR191: 48.71428571 | AS191: 187 | AT191: 1 | AU191: 57.04196844 | AV191: 0.03562744123 | AW191: 53.21969156 | AX191: 54.43742248 | AY191: 57.04196844 | AZ191: 59.64651441 | BA191: 60.86424532 | BC191: 187 | BD191: 1 | BE191: 38.22493409 | BF191: 0.03245422337 | BG191: 35.89168537 | BH191: 36.63503003 | BI191: 38.22493409 | BJ191: 39.81483815 | BK191: 40.55818281
AG192: 48.85714286 | AH192: 188 | AI192: 0.08807135978 | AJ192: 5154.815452 | AK192: 0.1298671238 | AL192: 4026.9575 | AM192: 4359.080631 | AN192: 5154.815452 | AO192: 6080.957784 | AP192: 6563.982681 | AR192: 48.85714286 | AS192: 188 | AT192: 1 | AU192: 57.13988908 | AV192: 0.0355726361 | AW192: 53.31693809 | AX192: 54.53488377 | AY192: 57.13988908 | AZ192: 59.74489439 | BA192: 60.96284007 | BC192: 188 | BD192: 1 | BE192: 38.2729911 | BF192: 0.03237900682 | BG192: 35.94222164 | BH192: 36.68477644 | BI192: 38.2729911 | BJ192: 39.86120577 | BK192: 40.60376056
AG193: 49 | AH193: 189 | AI193: 0.08354606696 | AJ193: 5181.228351 | AK193: 0.1296517166 | AL193: 4049.826863 | AM193: 4382.922137 | AN193: 5181.228351 | AO193: 6110.829698 | AP193: 6595.865833 | AR193: 49 | AS193: 189 | AT193: 1 | AU193: 57.23769028 | AV193: 0.03551898265 | AW193: 53.41397005 | AX193: 54.6321608 | AY193: 57.23769028 | AZ193: 59.84321975 | BA193: 61.0614105 | BC193: 189 | BD193: 1 | BE193: 38.32093526 | BF193: 0.03230428013 | BG193: 35.99263066 | BH193: 36.73440018 | BI193: 38.32093526 | BJ193: 39.90747033 | BK193: 40.64923985
AG194: 49.14285714 | AH194: 190 | AI194: 0.07957769524 | AJ194: 5207.493987 | AK194: 0.1294365294 | AL194: 4072.530161 | AM194: 4406.617532 | AN194: 5207.493987 | AO194: 6140.466726 | AP194: 6627.432401 | AR194: 49.14285714 | AS194: 190 | AT194: 1 | AU194: 57.33538111 | AV194: 0.03546639326 | AW194: 53.51080533 | AX194: 54.72926864 | AY194: 57.33538111 | AZ194: 59.94149357 | BA194: 61.15995689 | BC194: 190 | BD194: 1 | BE194: 38.36877514 | BF194: 0.03223000602 | BG194: 36.04292345 | BH194: 36.78391151 | BI194: 38.36877514 | BJ194: 39.95363877 | BK194: 40.69462682
AG195: 49.28571429 | AH195: 191 | AI195: 0.07644374885 | AJ195: 5233.605264 | AK195: 0.1292215634 | AL195: 4095.027515 | AM195: 4430.143789 | AN195: 5233.605264 | AO195: 6169.836849 | AP195: 6658.619057 | AR195: 49.28571429 | AS195: 191 | AT195: 1 | AU195: 57.43297067 | AV195: 0.0354147803 | AW195: 53.60746181 | AX195: 54.82622239 | AY195: 57.43297067 | AZ195: 60.03971894 | BA195: 61.25847952 | BC195: 191 | BD195: 1 | BE195: 38.41651933 | BF195: 0.03215614724 | BG195: 36.09311103 | BH195: 36.83332065 | BI195: 38.41651933 | BJ195: 39.99971802 | BK195: 40.73992764
AG196: 49.42857143 | AH196: 192 | AI196: 0.07442173203 | AJ196: 5259.555087 | AK196: 0.1290068201 | AL196: 4117.279046 | AM196: 4453.477879 | AN196: 5259.555087 | AO196: 6198.908049 | AP196: 6689.362473 | AR196: 49.42857143 | AS196: 192 | AT196: 1 | AU196: 57.53046804 | AV196: 0.03536405615 | AW196: 53.70395739 | AX196: 54.92303713 | AY196: 57.53046804 | AZ196: 60.13789895 | BA196: 61.3569787 | BC196: 192 | BD196: 1 | BE196: 38.46417643 | BF196: 0.0320826665 | BG196: 36.1432044 | BH196: 36.88263785 | BI196: 38.46417643 | BJ196: 40.04571501 | BK196: 40.78514846
AG197: 49.57142857 | AH197: 193 | AI197: 0.07377427135 | AJ197: 5285.337533 | AK197: 0.1287922992 | AL197: 4139.247524 | AM197: 4476.598603 | AN197: 5285.337533 | AO197: 6227.651039 | AP197: 6719.603844 | AR197: 49.57142857 | AS197: 193 | AT197: 1 | AU197: 57.6278826 | AV197: 0.03531413051 | AW197: 53.80031038 | AX197: 55.01972833 | AY197: 57.6278826 | AZ197: 60.23603687 | BA197: 61.45545482 | BC197: 193 | BD197: 1 | BE197: 38.51175528 | BF197: 0.0320095254 | BG197: 36.19321482 | BH197: 36.93187361 | BI197: 38.51175528 | BJ197: 40.09163695 | BK197: 40.83029573
AG198: 49.71428571 | AH198: 194 | AI198: 0.07442180664 | AJ198: 5310.97364 | AK198: 0.1285779694 | AL198: 4160.956672 | AM198: 4499.526833 | AN198: 5310.97364 | AO198: 6256.099375 | AP198: 6749.388394 | AR198: 49.71428571 | AS198: 194 | AT198: 1 | AU198: 57.7252301 | AV198: 0.03526485135 | AW198: 53.89654888 | AX198: 55.11632014 | AY198: 57.7252301 | AZ198: 60.33414007 | BA198: 61.55391133 | BC198: 194 | BD198: 1 | BE198: 38.55927077 | BF198: 0.03193665927 | BG198: 36.2431589 | BH198: 36.98104397 | BI198: 38.55927077 | BJ198: 40.13749758 | BK198: 40.87538265
AG199: =22+AH199/7 -> 49.85714286 | AH199: 195 | AI199: 0.07594259104 | AJ199: 5336.511405 | AK199: 0.1283637678 | AL199: 4182.491168 | AM199: 4522.325515 | AN199: 5336.511405 | AO199: 6284.349454 | AP199: 6778.865382 | AR199: 49.85714286 | AS199: 195 | AT199: 1 | AU199: 57.82253272 | AV199: 0.03521600498 | AW199: 53.99271077 | AX199: 55.21284546 | AY199: 57.82253272 | AZ199: 60.43221999 | BA199: 61.65235467 | BC199: 195 | BD199: 1 | BE199: 38.60674386 | BF199: 0.03186397724 | BG199: 36.29305859 | BH199: 37.03017057 | BI199: 38.60674386 | BJ199: 40.18331715 | BK199: 40.92042912
AG200: =22+AH200/7 -> 50 | AH200: 196 | AI200: 0.0779 | AJ200: 5362 | AK200: 0.1281496304 | AL200: 4203.938337 | AM200: 4545.059423 | AN200: 5362 | AO200: 6312.500403 | AP200: 6808.18859 | AR200: 50 | AS200: 196 | AT200: 1 | AU200: 57.9198129 | AV200: 0.035167375 | AW200: 54.08883436 | AX200: 55.30933752 | AY200: 57.9198129 | AZ200: 60.53028828 | BA200: 61.75079143 | BC200: 196 | BD200: 1 | BE200: 38.65419574 | BF200: 0.03179138724 | BG200: 36.34293609 | BH200: 37.0792753 | BI200: 38.65419574 | BJ200: 40.22911618 | BK200: 40.96545538

Sheet Clinical exact age calculator_B
A1: ENTER ONLY DATA AGE AS WEEKS & DAYS. DO NOT ENTER COMPLETED WEEKS DATA AS IT CAUSES CALCULATOR TO INCORRECTLY ROUND UP OR DOWN. IF YOU HAVE ONLY WHOLE WEEKS FOR AGE, USE THE COMPLETED WEEKS CALCULATOR.
A2: **SGA is defined AT BIRTH ONLY as < 10th percentile for weight, LGA is > 90th percentile for weight
A3: Data Entry Cells - Boys (Enter up to 20 data rows) | H3: Calculated Cells - Boys | O3: May 2 2014 - changed age coding to days from weeks
B4: Gest Age or | D4: Weight | E4: Length | F4: HC | H4: z-scores | L4: Percentiles | O4: April 2017 - incorporated the SD23 correction for extreme z-scores | AH4: Days>22w
B5: Postmenstrual Age | C5: Day: 0-6 | D5: 22.5-50 wks | E5: 23.5-50 wks | F5: 23.5-50 wks | H5: SGA, AGA or LGA | AH5: Boys | AI5: Weight | AS5: Boys | AT5: Lenght | BC5: Boys | BD5: HC | BM5: Source:
A6: ID | D6: grams | E6: cm | F6: cm | H6: by weight at birth** | I6: Weight Z | J6: Length Z | K6: Head circumference Z | L6: Weight % | M6: Length % | N6: Head circumference % | O6: age detail | Q6: wtl | R6: wtm | S6: wts | T6: ltl | U6: ltm | V6: lts | W6: hcl | X6: hcm | Y6: hcs | Z6: SGA | AA6: LGA | AB6: S3Pos | AC6: S23Pos | AD6: S3Neg | AE6: S23Neg | AG6: Weeks | AH6: Time, decimal | AI6: L | AJ6: M | AK6: S | AL6: 3 | AM6: 10 | AN6: 50 | AO6: 90 | AP6: 97 | AR6: Weeks | AS6: Time, decimal | AT6: L | AU6: M | AV6: S | AW6: 3 | AX6: 10 | AY6: 50 | AZ6: 90 | BA6: 97 | BC6: Time, decimal | BD6: L | BE6: M | BF6: S | BG6: 3 | BH6: 10 | BI6: 50 | BJ6: 90 | BK6: 97 | BM6: Fenton TR, Kim JH. A systematic review and meta-analysis to revise the Fenton growth chart for preterm infants. BMC Pediatr. 2013;13:59.
B7: 34 | C7: 3 | D7: 2.78 | E7: 48 | F7: 34 | H7: =IF(O7<4,"",IF(O7>196,"",IF(D7="","",IF(D7<Z7,"SGA",IF(D7>AA7,"LGA","AGA"))))) -> SGA | I7: =IF(B7<22.5,"",IF(B7>50,"",IF(D7="","", IF(((D7/R7)^(Q7)-1)/(Q7*S7)>3,3+(D7-AB7)/AC7,IF(((D7/R7)^(Q7)-1)/(Q7*S7)<-3,-3+(D7-AD7)/AE7, ((D7/R7)^(Q7)-1)/(Q7*S7))) ))) -> -5.594435098 | J7: =IF(O7<11,"",IF(O7>196,"",IF(E7="","",((E7/U7)^(T7)-1)/(T7*V7)))) -> 1.086108227 | K7: =IF(O7<11,"",IF(O7>196,"",IF(F7="","",((F7/X7)^(W7)-1)/(W7*Y7)))) -> 1.68926707 | L7: =IF(O7<4,"",IF(O7>196,"",IF(D7="","",NORMSDIST(I7)))) -> 1.106706236e-08 | M7: =IF(O7<11,"",IF(O7>196,"",IF(E7="","",NORMSDIST(J7)))) -> 0.8612844436 | N7: =IF(O7<11,"",IF(O7>196,"",IF(F7="","",NORMSDIST(K7)))) -> 0.9544158695 | O7: =((B7-22)*7)+C7 -> 87 | Q7: =LOOKUP(O7,$AH$7:$AH$200,$AI$7:$AI$200) -> 1.025854711 | R7: =LOOKUP(O7,$AH$7:$AH$200,$AJ$7:$AJ$200) -> 2356.835985 | S7: =LOOKUP(O7,$AH$7:$AH$200,$AK$7:$AK$200) -> 0.1764580363 | T7: =LOOKUP(O7,$AS$7:$AS$193,$AT$7:$AT$193) -> 1 | U7: =LOOKUP(O7,$AS$7:$AS$193,$AU$7:$AU$193) -> 45.279037 | V7: =LOOKUP(O7,$AS$7:$AS$193,$AV$7:$AV$193) -> 0.05532894006 | W7: =LOOKUP(O7,$BC$7:$BC$193,$BD$7:$BD$193) -> 1 | X7: =LOOKUP(O7,$BC$7:$BC$193,$BE$7:$BE$193) -> 31.47546921 | Y7: =LOOKUP(O7,$BC$7:$BC$193,$BF$7:$BF$193) -> 0.04747993805 | Z7: =LOOKUP(O7,$AH$7:$AH$200,$AM$7:$AM$200) -> 1822.142243 | AA7: =LOOKUP(O7,$AH$7:$AH$200,$AO$7:$AO$200) -> 2888.383758 | AB7: =$R7*(1+$Q7*$S7*3)^(1/$Q7) -> 3597.200108 | AC7: =$R7*(1+$Q7*$S7*3)^(1/$Q7)-$R7*(1+$Q7*$S7*2)^(1/$Q7) -> 411.9949207 | AD7: =$R7*(1+$Q7*$S7*(-3))^(1/$Q7) -> 1098.39939 | AE7: =$R7*(1+$Q7*$S7*(-2))^(1/$Q7)-$R7*(1+$Q7*$S7*(-3))^(1/$Q7) -> 422.2959328 | AG7: =22+AH7/7 -> 22.5 | AH7: =((22.5-22)*7) -> 3.5 | AI7: 0.6625943925 | AJ7: 533 | AK7: 0.136886896 | AL7: 401.9135606 | AM7: 442.3160356 | AN7: 533 | AO7: 629.2234228 | AP7: 676.028106 | BM7: Paper is available free with open access from:
B8: 35 | D8: 2300 | E8: 47 | F8: 33 | H8: AGA | I8: -0.4549357635 | J8: 0.4033414128 | K8: 0.7203480076 | L8: 0.3245777264 | M8: 0.6566514599 | N8: 0.7643446234 | O8: 91 | Q8: 0.9574341121 | R8: 2492.763349 | S8: 0.1702658207 | T8: 1 | U8: 45.99651323 | V8: 0.05408961924 | W8: 1 | X8: 31.92437159 | Y8: 0.04677325 | Z8: 1951.527707 | AA8: 3039.082167 | AB8: 3778.148993 | AC8: 430.9219295 | AD8: 1236.203851 | AE8: 414.6127184 | AG8: 22.57142857 | AH8: =((23-22)*7)-3 -> 4 | AI8: 0.6749350817 | AJ8: 538.3337779 | AK8: 0.1381401294 | AL8: 404.4436094 | AM8: 445.7530096 | AN8: 538.3337779 | AO8: 636.3736495 | AP8: 683.9944032 | BM8: http://www.biomedcentral.com/1471-2431/13/59
B9: 35 | C9: 1 | D9: 2300 | E9: 46 | F9: 30 | H9: AGA | I9: -0.5328011898 | J9: -0.06902834842 | K9: -1.362308327 | L9: 0.2970856051 | M9: 0.4724835273 | N9: 0.08655030042 | O9: 92 | Q9: 0.9407197692 | R9: 2526.526385 | S9: 0.1687409935 | T9: 1 | U9: 46.17139942 | V9: 0.05377851677 | W9: 1 | X9: 32.03340139 | Y9: 0.04659557216 | Z9: 1983.89606 | AA9: 3076.20192 | AB9: 3822.36566 | AC9: 435.3888098 | AD9: 1270.515611 | AE9: 412.8892837 | AG9: 22.71428571 | AH9: =((23-22)*7)-2 -> 5 | AI9: 0.6995934919 | AJ9: 549.0177618 | AK9: 0.140644177 | AL9: 409.5043496 | AM9: 452.6336931 | AN9: 549.0177618 | AO9: 650.6965114 | AP9: 699.951179
B10: 37 | D10: 2500 | E10: 47 | F10: 33 | H10: AGA | I10: -1.025412663 | J10: -0.5277395945 | K10: -0.2221329786 | L10: 0.1525842579 | M10: 0.2988400439 | N10: 0.4121051829 | O10: 105 | Q10: 0.7490658878 | R10: 2946.660647 | S10: 0.1508312971 | T10: 1 | U10: 48.26746662 | V10: 0.04975793462 | W10: 1 | X10: 33.32772614 | Y10: 0.04426825 | Z10: 2391.340352 | AA10: 3529.663351 | AB10: 4350.699249 | AC10: 483.0411607 | AD10: 1695.686725 | AE10: 397.5861368 | AG10: 22.85714286 | AH10: =((23-22)*7)-1 -> 6 | AI10: 0.7241829973 | AJ10: 559.7510299 | AK10: 0.1431409671 | AL10: 414.5670173 | AM10: 459.5345835 | AN10: 559.7510299 | AO10: 665.0865988 | AP10: 715.9804991 | BM10: Calculator written with assistance of Timothy P Stevens, MD, MPH, University of Rochester, Rochester, NY
B11: 24 | D11: 602 | E11: 29 | F11: 21 | H11: AGA | I11: -0.4657298361 | J11: -0.9744361962 | K11: -0.5970239767 | L11: 0.3207044466 | M11: 0.1649200023 | N11: 0.2752456864 | O11: 14 | Q11: 0.9132045858 | R11: 651.0479355 | S11: 0.1623048541 | T11: 1 | U11: 30.92383772 | V11: 0.06384422846 | W11: 1 | X11: 21.74744252 | Y11: 0.05756756173 | Z11: 516.9723838 | AA11: 787.6025216 | AB11: 974.0047787 | AC11: 108.8772713 | AD11: 341.9006196 | AE11: 101.0998557 | AG11: 23 | AH11: =((23-22)*7)+0 -> 7 | AI11: 0.7486576614 | AJ11: 570.5664382 | AK11: 0.1456256613 | AL11: 419.6328973 | AM11: 466.4691517 | AN11: 570.5664382 | AO11: 679.5887287 | AP11: 732.1307264
B12: 24 | C12: 1 | D12: 650 | E12: 30 | F12: 20.5 | H12: AGA | I12: -0.1226615402 | J12: -0.5630150323 | K12: -1.103206771 | L12: 0.4511875601 | M12: 0.2867123239 | N12: 0.1349686909 | O12: 15 | Q12: 0.9354427264 | R12: 663.3812059 | S12: 0.164553982 | T12: 1 | U12: 31.12346849 | V12: 0.06411400616 | W12: 1 | X12: 21.88755666 | Y12: 0.05746408862 | Z12: 524.5338272 | AA12: 804.1609547 | AB12: 995.4697503 | AC12: 111.6388224 | AD12: 342.0937099 | AE12: 105.5447407 | AG12: 23.14285714 | AH12: =((23-22)*7)+1 -> 8 | AI12: 0.7729715477 | AJ12: 581.4968429 | AK12: 0.1480934212 | AL12: 424.7032747 | AM12: 473.450869 | AN12: 581.4968429 | AO12: 694.2477181 | AP12: 748.4502238 | BM12: * Data not available for length and head circumference of infants < 23.5 weeks gestation
B13: 37 | D13: 2300 | E13: 47 | F13: 33 | H13: SGA | I13: -1.499229886 | J13: -0.5277395945 | K13: -0.2221329786 | L13: 0.06690700219 | M13: 0.2988400439 | N13: 0.4121051829 | O13: 105 | Q13: 0.7490658878 | R13: 2946.660647 | S13: 0.1508312971 | T13: 1 | U13: 48.26746662 | V13: 0.04975793462 | W13: 1 | X13: 33.32772614 | Y13: 0.04426825 | Z13: 2391.340352 | AA13: 3529.663351 | AB13: 4350.699249 | AC13: 483.0411607 | AD13: 1695.686725 | AE13: 397.5861368 | AG13: 23.28571429 | AH13: =((23-22)*7)+2 -> 9 | AI13: 0.7970787196 | AJ13: 592.5751 | AK13: 0.1505394085 | AL13: 429.7794344 | AM13: 480.4932066 | AN13: 592.5751 | AO13: 709.1083841 | AP13: 764.9873542
O14: -154 | AG14: 23.42857143 | AH14: =((23-22)*7)+3 -> 10 | AI14: 0.8209332406 | AJ14: 603.8340656 | AK14: 0.1529587849 | AL14: 434.8626614 | AM14: 487.6096357 | AN14: 603.8340656 | AO14: 724.2155436 | AP14: 781.7904804 | AR14: =22+AS14/7 -> 23.5 | AS14: =((23.5-22)*7) -> 10.5 | AT14: 1 | AU14: 30.22445169 | AV14: 0.06285390769 | AW14: 26.65144911 | AX14: 27.78976426 | AY14: 30.22445169 | AZ14: 32.65913912 | BA14: 33.79745428 | BC14: 10.5 | BD14: 1 | BE14: 21.25674091 | BF14: 0.0579276 | BG14: 18.9408141 | BH14: 19.67864021 | BI14: 21.25674091 | BJ14: 22.83484161 | BK14: 23.57266772 | BM14: **SGA is defined AT BIRTH ONLY as < 10th percentile for weight, LGA is > 90th percentile for weight
O15: -154 | AG15: 23.57142857 | AH15: =((23-22)*7)+4 -> 11 | AI15: 0.8444900445 | AJ15: 615.3057615 | AK15: 0.1553468037 | AL15: 439.954196 | AM15: 494.813297 | AN15: 615.3057615 | AO15: 739.6128388 | AP15: 798.9066857 | AR15: 23.57142857 | AS15: =((24-22)*7)-3 -> 11 | AT15: 1 | AU15: 30.32439629 | AV15: 0.06299757727 | AW15: 26.73117512 | AX15: 27.87593167 | AY15: 30.32439629 | AZ15: 32.7728609 | BA15: 33.91761745 | BC15: 11 | BD15: 1 | BE15: 21.32685553 | BF15: 0.0578762668 | BG15: 19.00539641 | BH15: 19.74498505 | BI15: 21.32685553 | BJ15: 22.90872601 | BK15: 23.64831464
O16: -154 | AG16: 23.71428571 | AH16: =((23-22)*7)+5 -> 12 | AI16: 0.867724081 | AJ16: 627.0030181 | AK16: 0.1577008263 | AL16: 445.0542549 | AM16: 502.1097336 | AN16: 627.0030181 | AO16: 755.3168932 | AP16: 816.3536219 | AR16: 23.71428571 | AS16: 12 | AT16: 1 | AU16: 30.52426932 | AV16: 0.06328381884 | AW16: 26.89066081 | AX16: 28.04828428 | AY16: 30.52426932 | AZ16: 33.00025436 | BA16: 34.15787783 | BC16: 12 | BD16: 1 | BE16: 21.46707757 | BF16: 0.05777354998 | BG16: 19.1345617 | BH16: 19.87767288 | BI16: 21.46707757 | BJ16: 23.05648225 | BK16: 23.79959343
O17: -154 | AG17: 23.85714286 | AH17: =((23-22)*7)+6 -> 13 | AI17: 0.8906303161 | AJ17: 638.9194745 | AK17: 0.1600203227 | AL17: 450.1620302 | AM17: 509.4968909 | AN17: 638.9194745 | AO17: 771.3173109 | AP17: 834.1195094 | AR17: 23.85714286 | AS17: 13 | AT17: 1 | AU17: 30.7240939 | AV17: 0.06356676763 | AW17: 27.05024752 | AX17: 28.22069028 | AY17: 30.7240939 | AZ17: 33.22749752 | BA17: 34.39794028 | BC17: 13 | BD17: 1 | BE17: 21.60727803 | BF17: 0.05767068191 | BG17: 19.26372896 | BH17: 20.01035518 | BI17: 21.60727803 | BJ17: 23.20420087 | BK17: 23.9508271 | BM17: Version 8 - includes SD23 correction for extreme weight z-scores, to improve accuracy of extreme
O18: -154 | AG18: 24 | AH18: 14 | AI18: 0.9132045858 | AJ18: 651.0479355 | AK18: 0.1623048541 | AL18: 455.27667 | AM18: 516.9723838 | AN18: 651.0479355 | AO18: 787.6025216 | AP18: 852.1912892 | AR18: 24 | AS18: 14 | AT18: 1 | AU18: 30.92383772 | AV18: 0.06384422846 | AW18: 27.21000259 | AX18: 28.39318528 | AY18: 30.92383772 | AZ18: 33.45449016 | BA18: 34.63767286 | BC18: 14 | BD18: 1 | BE18: 21.74744252 | BF18: 0.05756756173 | BG18: 19.3928995 | BH18: 20.14302826 | BI18: 21.74744252 | BJ18: 23.35185678 | BK18: 24.10198554 | BM18: values. While assessment revealed minimal differences with the SD23 correction, we wanted to
O19: -154 | AG19: 24.14285714 | AH19: 15 | AI19: 0.9354427264 | AJ19: 663.3812059 | AK19: 0.164553982 | AL19: 460.3973222 | AM19: 524.5338272 | AN19: 663.3812059 | AO19: 804.1609547 | AP19: 870.555902 | AR19: 24.14285714 | AS19: 15 | AT19: 1 | AU19: 31.12346849 | AV19: 0.06411400616 | AW19: 27.36999336 | AX19: 28.56580488 | AY19: 31.12346849 | AZ19: 33.6811321 | BA19: 34.87694361 | BC19: 15 | BD19: 1 | BE19: 21.88755666 | BF19: 0.05746408862 | BG19: 19.52207462 | BH19: 20.27568842 | BI19: 21.88755666 | BJ19: 23.49942489 | BK19: 24.25303869 | BM19: follow the WHO's lead to provide the most accurate extreme z-scores as possible [1].
O20: -154 | AG20: 24.28571429 | AH20: 16 | AI20: 0.9573405738 | AJ20: 675.9120904 | AK20: 0.166767268 | AL20: 465.5231346 | AM20: 532.1788362 | AN20: 675.9120904 | AO20: 820.9810399 | AP20: 889.2002885 | AR20: 24.28571429 | AS20: 16 | AT20: 1 | AU20: 31.32295389 | AV20: 0.06437390553 | AW20: 27.53028718 | AX20: 28.73858466 | AY20: 31.32295389 | AZ20: 33.90732312 | BA20: 35.11562059 | BC20: 16 | BD20: 1 | BE20: 22.02760605 | BF20: 0.05736016174 | BG20: 19.65125564 | BH20: 20.40833197 | BI20: 22.02760605 | BJ20: 23.64688012 | BK20: 24.40395645 | BM20: Head circumference and length were normally distributed throughout these charts so no
O21: -154 | AG21: 24.42857143 | AH21: 17 | AI21: 0.9788939642 | AJ21: 688.6333938 | AK21: 0.1689442733 | AL21: 470.6532552 | AM21: 539.9050257 | AN21: 688.6333938 | AO21: 838.0512067 | AP21: 908.1113897 | AR21: 24.42857143 | AS21: 17 | AT21: 1 | AU21: 31.52226162 | AV21: 0.06462173139 | AW21: 27.6909514 | AX21: 28.91156023 | AY21: 31.52226162 | AZ21: 34.13296301 | BA21: 35.35357184 | BC21: 17 | BD21: 1 | BE21: 22.16757631 | BF21: 0.05725568024 | BG21: 19.78044388 | BH21: 20.54095523 | BI21: 22.16757631 | BJ21: 23.79419739 | BK21: 24.55470874 | BM21: corection was needed.
O22: -154 | AG22: 24.57142857 | AH22: 18 | AI22: 1.000098501 | AJ22: 701.5381445 | AK22: 0.1710845349 | AL22: 475.786911 | AM22: 547.7101403 | AN22: 701.5381445 | AO22: 855.3601902 | AP22: 927.2764837 | AR22: 24.57142857 | AS22: 18 | AT22: 1 | AU22: 31.72136006 | AV22: 0.06485533449 | AW22: 27.85205256 | AX22: 29.08476686 | AY22: 31.72136006 | AZ22: 34.35795326 | BA22: 35.59066756 | BC22: 18 | BD22: 1 | BE22: 22.30745336 | BF22: 0.0571505454 | BG22: 19.90964057 | BH22: 20.67355455 | BI22: 22.30745336 | BJ22: 23.94135216 | BK22: 24.70526614 | BM22: Reference
O23: -154 | AG23: 24.71428571 | AH23: 19 | AI23: 1.020944423 | AJ23: 714.6245131 | AK23: 0.1731870247 | AL23: 480.9251495 | AM23: 555.5949056 | AN23: 714.6245131 | AO23: 872.9037551 | AP23: 946.6906093 | AR23: 24.71428571 | AS23: 19 | AT23: 1 | AU23: 31.92023312 | AV23: 0.06507362162 | AW23: 28.01363912 | AX23: 29.25823245 | AY23: 31.92023312 | AZ23: 34.5822338 | BA23: 35.82682713 | BC23: 19 | BD23: 1 | BE23: 22.44723002 | BF23: 0.057044707 | BG23: 20.03884534 | BH23: 20.8061274 | BI23: 22.44723002 | BJ23: 24.08833264 | BK23: 24.8556147 | BM23: WHO Multicentre Growth Reference Study Group. WHO Child Growth Standards: Length/height-for-age,
O24: -154 | AG24: 24.85714286 | AH24: 20 | AI24: 1.041416607 | AJ24: 727.8958124 | AK24: 0.1752501498 | AL24: 486.0708388 | AM24: 563.5630284 | AN24: 727.8958124 | AO24: 890.6846955 | AP24: 966.3565662 | AR24: 24.85714286 | AS24: 20 | AT24: 1 | AU24: 32.11888026 | AV24: 0.06527655565 | AW24: 28.17574142 | AX24: 29.43197748 | AY24: 32.11888026 | AZ24: 34.80578304 | BA24: 36.0620191 | BC24: 20 | BD24: 1 | BE24: 22.58690606 | BF24: 0.05693816333 | BG24: 20.16805621 | BH24: 20.93867235 | BI24: 22.58690606 | BJ24: 24.23513977 | BK24: 25.00575591 | BM24: weight-for-age, weight-for-length, weight-for-height and body mass index-for-age: Methods and
O25: -154 | AG25: 25 | AH25: 21 | AI25: 1.061499696 | AJ25: 741.355579 | AK25: 0.1772722928 | AL25: 491.226926 | AM25: 571.6183451 | AN25: 741.355579 | AO25: 908.7061113 | AP25: 986.277491 | AR25: 25 | AS25: 21 | AT25: 1 | AU25: 32.3173016 | AV25: 0.06546414539 | AW25: 28.33838899 | AX25: 29.60602215 | AY25: 32.3173016 | AZ25: 35.02858105 | BA25: 36.2962142 | BC25: 21 | BD25: 1 | BE25: 22.72648153 | BF25: 0.05683091481 | BG25: 20.29727112 | BH25: 21.07118801 | BI25: 22.72648153 | BJ25: 24.38177506 | BK25: 25.15569194 | BM25: development. Geneva: World Health Organization, 2006 p 302
M26: =IF(O26<4,"",IF(O26>196,"",IF(E26="","",NORMSDIST(J26)))) ->  | N26: =IF(O26<4,"",IF(O26>196,"",IF(F26="","",NORMSDIST(K26)))) ->  | O26: -154 | AG26: 25.14285714 | AH26: 22 | AI26: 1.081178334 | AJ26: 755.0073494 | AK26: 0.1792518361 | AL26: 496.3963584 | AM26: 579.7646921 | AN26: 755.0073494 | AO26: 926.9711021 | AP26: 1006.456521 | AR26: 25.14285714 | AS26: 22 | AT26: 1 | AU26: 32.51549727 | AV26: 0.06563639961 | AW26: 28.50161141 | AX26: 29.78038661 | AY26: 32.51549727 | AZ26: 35.25060792 | BA26: 36.52938313 | BC26: 22 | BD26: 1 | BE26: 22.86595649 | BF26: 0.05672296182 | BG26: 20.42648803 | BH26: 21.203673 | BI26: 22.86595649 | BJ26: 24.52823998 | BK26: 25.30542496 | BM26: http://www.who.int/childgrowth/standards/technical_report/en/
AG27: 25.28571429 | AH27: 23 | AI27: 1.100437163 | AJ27: 768.85466 | AK27: 0.1811871622 | AL27: 501.582083 | AM27: 588.0059057 | AN27: 768.85466 | AO27: 945.4827677 | AP27: 1026.896792 | AR27: 25.28571429 | AS27: 23 | AT27: 1 | AU27: 32.7134674 | AV27: 0.06579332711 | AW27: 28.66543821 | AX27: 29.95509106 | AY27: 32.7134674 | AZ27: 35.47184374 | BA27: 36.76149659 | BC27: 23 | BD27: 1 | BE27: 23.005331 | BF27: 0.05661430478 | BG27: 20.55570487 | BH27: 21.33612595 | BI27: 23.005331 | BJ27: 24.67453605 | BK27: 25.45495714
A28: Procedure to calculate Z-scores and percentiles: | AG28: 25.42857143 | AH28: 24 | AI28: 1.119260827 | AJ28: 782.9010474 | AK28: 0.1830766537 | AL28: 506.7870471 | AM28: 596.3458224 | AN28: 782.9010474 | AO28: 964.2442078 | AP28: 1047.601443 | AR28: 25.42857143 | AS28: 24 | AT28: 1 | AU28: 32.91121213 | AV28: 0.06593493669 | AW28: 28.82989894 | AX28: 30.13015567 | AY28: 32.91121213 | AZ28: 35.69226858 | BA28: 36.99252531 | BC28: 24 | BD28: 1 | BE28: 23.14460512 | BF28: 0.05650494409 | BG28: 20.68491959 | BH28: 21.46854548 | BI28: 23.14460512 | BJ28: 24.82066476 | BK28: 25.60429064
A29: 1 | B29: Use actual age, gestational/post menstrual age, including weeks and day of age | AG29: 25.57142857 | AH29: 25 | AI29: 1.137634031 | AJ29: 797.1501597 | AK29: 0.1849186997 | AL29: 512.0143955 | AM29: 604.7884288 | AN29: 797.1501597 | AO29: 983.2586449 | AP29: 1068.573745 | AR29: 25.57142857 | AS29: 25 | AT29: 1 | AU29: 33.10873188 | AV29: 0.06606124113 | AW29: 28.99502283 | AX29: 30.30560049 | AY29: 33.10873188 | AZ29: 35.91186327 | BA29: 37.22244093 | BC29: 25 | BD29: 1 | BE29: 23.28377882 | BF29: 0.05639487959 | BG29: 20.81413017 | BH29: 21.60093019 | BI29: 23.28377882 | BJ29: 24.96662744 | BK29: 25.75342746
A30: 2 | B30: Daily flucutations reflect both fluid status and growth | AG30: 25.71428571 | AH30: 26 | AI30: 1.155542919 | AJ30: 811.608214 | AK30: 0.1867118406 | AL30: 517.2718192 | AM30: 613.3411722 | AN30: 811.608214 | AO30: 1002.532124 | AP30: 1089.820112 | AR30: 25.71428571 | AS30: 26 | AT30: 1 | AU30: 33.30603423 | AV30: 0.06617234524 | AW30: 29.16083141 | AX30: 30.4814426 | AY30: 33.30603423 | AZ30: 36.13062585 | BA30: 37.45123704 | BC30: 26 | BD30: 1 | BE30: 23.42285022 | BF30: 0.05628409811 | BG30: 20.94333508 | BH30: 21.73327844 | BI30: 23.42285022 | BJ30: 25.11242199 | BK30: 25.90236535
A31: 3 | B31: At least a week between percentile/z-score calculations is recommended between calculations of percentiles/z-scores to reflect growth | AG31: 25.85714286 | AH31: 27 | AI31: 1.172975069 | AJ31: 826.2839963 | AK31: 0.1884547683 | AL31: 522.571555 | AM31: 622.01496 | AN31: 826.2839963 | AO31: 1022.073514 | AP31: 1111.350093 | AR31: 25.85714286 | AS31: 27 | AT31: 1 | AU31: 33.50313385 | AV31: 0.06626844587 | AW31: 29.32733854 | AX31: 30.65769613 | AY31: 33.50313385 | AZ31: 36.34857156 | BA31: 37.67892915 | BC31: 27 | BD31: 1 | BE31: 23.56181559 | BF31: 0.05617257351 | BG31: 21.07253332 | BH31: 21.86558837 | BI31: 23.56181559 | BJ31: 25.25804282 | BK31: 26.05109786
A32: 4 | B32: This application will calculate boys exact Z-score and Percentile placement on the Fenton 2013 Preterm Growth Chart, with the SD23 correction*. | AG32: 26 | AH32: 28 | AI32: 1.189918125 | AJ32: 841.1864045 | AK32: 0.190146181 | AL32: 527.9260376 | AM32: 630.8208501 | AN32: 841.1864045 | AO32: 1041.891806 | AP32: 1133.173375 | AR32: 26 | AS32: 28 | AT32: 1 | AU32: 33.70004573 | AV32: 0.06634974384 | AW32: 29.49455776 | AX32: 30.83437507 | AY32: 33.70004573 | AZ32: 36.5657164 | BA32: 37.90553371 | BC32: 28 | BD32: 1 | BE32: 23.70067113 | BF32: 0.05606027905 | BG32: 21.2017239 | BH32: 21.99785808 | BI32: 23.70067113 | BJ32: 25.40348417 | BK32: 26.19961836
AG33: 26.14285714 | AH33: 29 | AI33: 1.206359728 | AJ33: 856.3243362 | AK33: 0.1917847774 | AL33: 533.3477016 | AM33: 639.7699004 | AN33: 856.3243362 | AO33: 1061.99599 | AP33: 1155.299646 | AR33: 26.14285714 | AS33: 29 | AT33: 1 | AU33: 33.89678488 | AV33: 0.06641643999 | AW33: 29.66250257 | AX33: 31.01149341 | AY33: 33.89678488 | AZ33: 36.78207635 | BA33: 38.13106718 | BC33: 29 | BD33: 1 | BE33: 23.83941301 | BF33: 0.05594718801 | BG33: 21.33090583 | BH33: 22.1300857 | BI33: 23.83941301 | BJ33: 25.54874032 | BK33: 26.34792019
AG34: 26.28571429 | AH34: 30 | AI34: 1.222287521 | AJ34: 871.7066891 | AK34: 0.1933692556 | AL34: 538.8489818 | AM34: 648.8731687 | AN34: 871.7066891 | AO34: 1082.395056 | AP34: 1177.738591 | AR34: 26.28571429 | AS34: 30 | AT34: 1 | AU34: 34.09336627 | AV34: 0.06646873515 | AW34: 29.83118653 | AX34: 31.18906514 | AY34: 34.09336627 | AZ34: 36.9976674 | BA34: 38.35554602 | BC34: 30 | BD34: 1 | BE34: 23.97803742 | BF34: 0.05583327366 | BG34: 21.46007813 | BH34: 22.26226933 | BI34: 23.97803742 | BJ34: 25.69380552 | BK34: 26.49599672
AG35: 26.42857143 | AH35: 31 | AI35: 1.237689147 | AJ35: 887.342361 | AK35: 0.1948983142 | AL35: 544.4423126 | AM35: 658.141713 | AN35: 887.342361 | AO35: 1103.097997 | AP35: 1200.499899 | AR35: 26.42857143 | AS35: 31 | AT35: 1 | AU35: 34.28980491 | AV35: 0.06650683017 | AW35: 30.00062314 | AX35: 31.36710428 | AY35: 34.28980491 | AZ35: 37.21250555 | BA35: 38.57898669 | BC35: 31 | BD35: 1 | BE35: 24.11654056 | BF35: 0.0557185093 | BG35: 21.58923981 | BH35: 22.39440709 | BI35: 24.11654056 | BJ35: 25.83867403 | BK35: 26.6438413
AG36: 26.57142857 | AH36: 32 | AI36: 1.25255223 | AJ36: 903.2402656 | AK36: 0.1963706499 | AL36: 550.1402635 | AM36: 667.5866545 | AN36: 903.2402656 | AO36: 1124.113818 | AP36: 1223.593274 | AR36: 26.57142857 | AS36: 32 | AT36: 1 | AU36: 34.48611584 | AV36: 0.06653092917 | AW36: 30.17082579 | AX36: 31.54562471 | AY36: 34.48611584 | AZ36: 37.42660697 | BA36: 38.80140588 | BC36: 32 | BD36: 1 | BE36: 24.25491862 | BF36: 0.05560286833 | BG36: 21.7183899 | BH36: 22.52649709 | BI36: 24.25491862 | BJ36: 25.98334016 | BK36: 26.79144735
AG37: 26.71428571 | AH37: 33 | AI37: 1.266864012 | AJ37: 919.409686 | AK37: 0.1977849186 | AL37: 555.9585021 | AM37: 677.2205721 | AN37: 919.409686 | AO37: 1145.45185 | AP37: 1247.028812 | AR37: 26.71428571 | AS37: 33 | AT37: 1 | AU37: 34.6823152 | AV37: 0.06654131211 | AW37: 30.34180443 | AX37: 31.72463836 | AY37: 34.6823152 | AZ37: 37.63999205 | BA37: 39.02282598 | BC37: 33 | BD37: 1 | BE37: 24.39316832 | BF37: 0.05548632767 | BG37: 21.84752732 | BH37: 22.65853758 | BI37: 24.39316832 | BJ37: 26.12779907 | BK37: 26.93880932
AG38: 26.85714286 | AH38: 34 | AI38: 1.280611348 | AJ38: 935.8602743 | AK38: 0.1991397358 | AL38: 561.9157943 | AM38: 687.0575026 | AN38: 935.8602743 | AO38: 1167.121754 | AP38: 1270.817007 | AR38: 26.85714286 | AS38: 34 | AT38: 1 | AU38: 34.87842028 | AV38: 0.06653833475 | AW38: 30.51356555 | AX38: 31.90415517 | AY38: 34.87842028 | AZ38: 37.85268539 | BA38: 39.24327501 | BC38: 34 | BD38: 1 | BE38: 24.53128686 | BF38: 0.05536886772 | BG38: 21.97665099 | BH38: 22.7905269 | BI38: 24.53128686 | BJ38: 26.27204682 | BK38: 27.08592273
AG39: =22+AH39/7 -> 27 | AH39: 35 | AI39: 1.293781076 | AJ39: 952.6016988 | AK39: 0.2004337155 | AL39: 568.0310408 | AM39: 697.111546 | AN39: 952.6016988 | AO39: 1189.133206 | AP39: 1294.968366 | AR39: 27 | AS39: 35 | AT39: 1 | AU39: 35.0744484 | AV39: 0.06652235619 | AW39: 30.68611554 | AX39: 32.084185 | AY39: 35.0744484 | AZ39: 38.06471179 | BA39: 39.46278126 | BC39: 35 | BD39: 1 | BE39: 24.66927146 | BF39: 0.05525046901 | BG39: 22.10575978 | BH39: 22.92246342 | BI39: 24.66927146 | BJ39: 26.4160795 | BK39: 27.23278314
AG40: 27.14285714 | AH40: 36 | AI40: 1.306360035 | AJ40: 969.6436276 | AK40: 0.2016654713 | AL40: 574.3231422 | AM40: 707.3968023 | AN40: 969.6436276 | AO40: 1211.495878 | AP40: 1319.493399 | AR40: 27.14285714 | AS40: 36 | AT40: 1 | AU40: 35.27041687 | AV40: 0.06649373548 | AW40: 30.85946073 | AX40: 32.2647377 | AY40: 35.27041687 | AZ40: 38.27609604 | BA40: 39.68137301 | BC40: 36 | BD40: 1 | BE40: 24.80711935 | BF40: 0.0551311121 | BG40: 22.23485259 | BH40: 23.05434549 | BI40: 24.80711935 | BJ40: 26.55989321 | BK40: 27.3793861
AG41: 27.28571429 | AH41: 37 | AI41: 1.318335064 | AJ41: 986.9957291 | AK41: 0.2028336169 | AL41: 580.8109992 | AM41: 717.9273717 | AN41: 986.9957291 | AO41: 1234.219446 | AP41: 1344.402614 | AR41: 27.28571429 | AS41: 37 | AT41: 1 | AU41: 35.46634302 | AV41: 0.06645283171 | AW41: 31.0336075 | AX41: 32.44582311 | AY41: 35.46634302 | AZ41: 38.48686292 | BA41: 39.89907853 | BC41: 37 | BD41: 1 | BE41: 24.94482775 | BF41: 0.05501077753 | BG41: 22.36392831 | BH41: 23.18617147 | BI41: 24.94482775 | BJ41: 26.70348402 | BK41: 27.52572718
AG42: 27.42857143 | AH42: 38 | AI42: 1.329693002 | AJ42: 1004.667671 | AK42: 0.2039367662 | AL42: 587.5135125 | AM42: 728.7173541 | AN42: 1004.667671 | AO42: 1257.313584 | AP42: 1369.706521 | AR42: 27.42857143 | AS42: 38 | AT42: 1 | AU42: 35.66224416 | AV42: 0.06640000394 | AW42: 31.20856221 | AX42: 32.6274511 | AY42: 35.66224416 | AZ42: 38.69703722 | BA42: 40.11592611 | BC42: 38 | BD42: 1 | BE42: 25.08239388 | BF42: 0.05488944584 | BG42: 22.49298582 | BH42: 23.31793972 | BI42: 25.08239388 | BJ42: 26.84684803 | BK42: 27.67180194
AG43: 27.57142857 | AH43: 39 | AI43: 1.340420691 | AJ43: 1022.669118 | AK43: 0.2049735334 | AL43: 594.4497581 | AM43: 739.7809235 | AN43: 1022.669118 | AO43: 1280.787937 | AP43: 1395.415592 | AR43: 27.57142857 | AS43: 39 | AT43: 1 | AU43: 35.85813761 | AV43: 0.06633561037 | AW43: 31.38433116 | AX43: 32.80963147 | AY43: 35.85813761 | AZ43: 38.90664375 | BA43: 40.33194406 | BC43: 39 | BD43: 1 | BE43: 25.21981496 | BF43: 0.05476709754 | BG43: 22.62202401 | BH43: 23.4496486 | BI43: 25.21981496 | BJ43: 26.98998132 | BK43: 27.81760592
AG44: 27.71428571 | AH44: 40 | AI44: 1.350505079 | AJ44: 1041.009635 | AK44: 0.2059425435 | AL44: 601.6428497 | AM44: 751.1339524 | AN44: 1041.009635 | AO44: 1304.651456 | AP44: 1421.539467 | AR44: 27.71428571 | AS44: 40 | AT44: 1 | AU44: 36.05404038 | AV44: 0.06625998886 | AW44: 31.56091956 | AX44: 32.99237319 | AY44: 36.05404038 | AZ44: 39.11570756 | BA44: 40.54716119 | BC44: 40 | BD44: 1 | BE44: 25.35708809 | BF44: 0.0546437122 | BG44: 22.75104187 | BH44: 23.58129649 | BI44: 25.35708809 | BJ44: 27.13287968 | BK44: 27.9631343
AG45: 27.85714286 | AH45: 41 | AI45: 1.359933215 | AJ45: 1059.698688 | AK45: 0.2068424326 | AL45: 609.1199382 | AM45: 762.7940116 | AN45: 1059.698688 | AO45: 1328.912397 | AP45: 1448.086953 | AR45: 27.85714286 | AS45: 41 | AT45: 1 | AU45: 36.24996916 | AV45: 0.06617345699 | AW45: 31.73833149 | AX45: 33.17568437 | AY45: 36.24996916 | AZ45: 39.32425396 | BA45: 40.76160684 | BC45: 41 | BD45: 1 | BE45: 25.4942102 | BF45: 0.05451926846 | BG45: 22.88003848 | BH45: 23.71288179 | BI45: 25.4942102 | BJ45: 27.27553861 | BK45: 28.10838192
AG46: 28 | AH46: 42 | AI46: 1.368692152 | AJ46: 1078.745738 | AK46: 0.2076718371 | AL46: 616.9083499 | AM46: 774.7787462 | AN46: 1078.745738 | AO46: 1353.57899 | AP46: 1475.066821 | AR46: =22+AS46/7 -> 28 | AS46: 42 | AT46: 1 | AU46: 36.44594068 | AV46: 0.06607633141 | AW46: 31.91657097 | AX46: 33.35957306 | AY46: 36.44594068 | AZ46: 39.53230829 | BA46: 40.97531038 | BC46: 42 | BD46: 1 | BE46: 25.63117825 | BF46: 0.05439374491 | BG46: 23.00901291 | BH46: 23.84440289 | BI46: 25.63117825 | BJ46: 27.41795361 | BK46: 28.25334359
AG47: 28.14285714 | AH47: 43 | AI47: 1.376768945 | AJ47: 1098.160248 | AK47: 0.2084293934 | AL47: 625.0354113 | AM47: 787.105801 | AN47: 1098.160248 | AO47: 1378.659462 | AP47: 1502.487843 | AR47: 28.14285714 | AS47: 43 | AT47: 1 | AU47: 36.64197161 | AV47: 0.0659689288 | AW47: 32.09564205 | AX47: 33.54404734 | AY47: 36.64197161 | AZ47: 39.73989587 | BA47: 41.18830116 | BC47: 43 | BD47: 1 | BE47: 25.76798918 | BF47: 0.05426712015 | BG47: 23.13796424 | BH47: 23.97585819 | BI47: 25.76798918 | BJ47: 27.56012017 | BK47: 28.39801413
AG48: 28.28571429 | AH48: 44 | AI48: 1.384150648 | AJ48: 1117.951679 | AK48: 0.2091137379 | AL48: 633.5284488 | AM48: 799.7928208 | AN48: 1117.951679 | AO48: 1404.16204 | AP48: 1530.358788 | AR48: 28.28571429 | AS48: 44 | AT48: 1 | AU48: 36.83807865 | AV48: 0.06585156584 | AW48: 32.27554876 | AX48: 33.72911528 | AY48: 36.83807865 | AZ48: 39.94704202 | BA48: 41.40060854 | BC48: 44 | BD48: 1 | BE48: 25.90463995 | BF48: 0.05413937277 | BG48: 23.26689156 | BH48: 24.10724611 | BI48: 25.90463995 | BJ48: 27.70203378 | BK48: 28.54238833
AG49: 28.42857143 | AH49: 45 | AI49: 1.390824315 | AJ49: 1138.129493 | AK49: 0.2097235072 | AL49: 642.4147888 | AM49: 812.8574505 | AN49: 1138.129493 | AO49: 1430.094951 | AP49: 1558.688429 | AR49: 28.42857143 | AS49: 45 | AT49: 1 | AU49: 37.03427851 | AV49: 0.0657245592 | AW49: 32.45629512 | AX49: 33.91478494 | AY49: 37.03427851 | AZ49: 40.15377208 | BA49: 41.6122619 | BC49: 45 | BD49: 1 | BE49: 26.04112749 | BF49: 0.05401048139 | BG49: 23.39579394 | BH49: 24.23856503 | BI49: 26.04112749 | BJ49: 27.84368994 | BK49: 28.68646103
AG50: 28.57142857 | AH50: 46 | AI50: 1.396776998 | AJ50: 1158.703153 | AK50: 0.2102573676 | AL50: 651.7217791 | AM50: 826.3173386 | AN50: 1158.703153 | AO50: 1456.466437 | AP50: 1587.485557 | AR50: 28.57142857 | AS50: 46 | AT50: 1 | AU50: 37.23058788 | AV50: 0.06558822579 | AW50: 32.63788511 | AX50: 34.10106434 | AY50: 37.23058788 | AZ50: 40.36011142 | BA50: 41.82329065 | BC50: 46 | BD50: 1 | BE50: 26.17744875 | BF50: 0.05388042459 | BG50: 23.52467047 | BH50: 24.36981336 | BI50: 26.17744875 | BJ50: 27.98508413 | BK50: 28.83022702
AG51: 28.71428571 | AH51: 47 | AI51: 1.401995723 | AJ51: 1179.682148 | AK51: 0.2107146748 | AL51: 661.477258 | AM51: 840.1902172 | AN51: 1179.682148 | AO51: 1483.285036 | AP51: 1616.75946 | AR51: 28.71428571 | AS51: 47 | AT51: 1 | AU51: 37.42702355 | AV51: 0.06544288796 | AW51: 32.82032105 | AX51: 34.28796043 | AY51: 37.42702355 | AZ51: 40.56608667 | BA51: 42.03372604 | BC51: 47 | BD51: 1 | BE51: 26.31360072 | BF51: 0.05374918125 | BG51: 23.65352027 | BH51: 24.50098954 | BI51: 26.31360072 | BJ51: 28.12621189 | BK51: 28.97368116
AG52: 28.85714286 | AH52: 48 | AI52: 1.406467488 | AJ52: 1201.075994 | AK52: 0.211095474 | AL52: 671.7095547 | AM52: 854.4939018 | AN52: 1201.075994 | AO52: 1510.559583 | AP52: 1646.519919 | AR52: 28.85714286 | AS52: 48 | AT52: 1 | AU52: 37.62360237 | AV52: 0.06528887352 | AW52: 33.00360364 | AX52: 34.47547903 | AY52: 37.62360237 | AZ52: 40.7717257 | BA52: 42.24360109 | BC52: 48 | BD52: 1 | BE52: 26.44958041 | BF52: 0.05361673047 | BG52: 23.78234249 | BH52: 24.63209205 | BI52: 26.44958041 | BJ52: 28.26706878 | BK52: 29.11681833
AG53: 29 | AH53: 49 | AI53: 1.410179288 | AJ53: 1222.894209 | AK53: 0.21139984 | AL53: 682.4470195 | AM53: 869.2462117 | AN53: 1222.894209 | AO53: 1538.298926 | AP53: 1676.776736 | AR53: 29 | AS53: 49 | AT53: 1 | AU53: 37.82034121 | AV53: 0.06512651048 | AW53: 33.18773351 | AX53: 34.66362596 | AY53: 37.82034121 | AZ53: 40.97705645 | BA53: 42.45294891 | BC53: 49 | BD53: 1 | BE53: 26.58538485 | BF53: 0.05348305137 | BG53: 23.91113631 | BH53: 24.76311937 | BI53: 26.58538485 | BJ53: 28.40765034 | BK53: 29.25963339
AG54: 29.14285714 | AH54: 50 | AI54: 1.413118121 | AJ54: 1245.146309 | AK54: 0.2116278479 | AL54: 693.7180029 | AM54: 884.4649662 | AN54: 1245.146309 | AO54: 1566.511915 | AP54: 1707.539715 | AR54: 29.14285714 | AS54: 50 | AT54: 1 | AU54: 38.01725693 | AV54: 0.0649561269 | AW54: 33.37271127 | AX54: 34.85240702 | AY54: 38.01725693 | AZ54: 41.18210684 | BA54: 42.66180258 | BC54: 50 | BD54: 1 | BE54: 26.72101106 | BF54: 0.05334812306 | BG54: 24.03990089 | BH54: 24.89406998 | BI54: 26.72101106 | BJ54: 28.54795215 | BK54: 29.40212124
AG55: 29.28571429 | AH55: 51 | AI55: 1.415270982 | AJ55: 1267.841812 | AK55: 0.2117795729 | AL55: 705.5508552 | AM55: 900.1679844 | AN55: 1267.841812 | AO55: 1595.207399 | AP55: 1738.818658 | AR55: 29.28571429 | AS55: 51 | AT55: 1 | AU55: 38.2143664 | AV55: 0.06477805081 | AW55: 33.55853757 | AX55: 35.041828 | AY55: 38.2143664 | AZ55: 41.3869048 | BA55: 42.87019523 | BC55: 51 | BD55: 1 | BE55: 26.85645606 | BF55: 0.05321192467 | BG55: 24.1686354 | BH55: 25.02494236 | BI55: 26.85645606 | BJ55: 28.68796976 | BK55: 29.54427673
AG56: 29.42857143 | AH56: 52 | AI56: 1.416624867 | AJ56: 1290.990234 | AK56: 0.2118550897 | AL56: 717.9739268 | AM56: 916.3730856 | AN56: 1290.990234 | AO56: 1624.394224 | AP56: 1770.623369 | AR56: 29.42857143 | AS56: 52 | AT56: 1 | AU56: 38.41168648 | AV56: 0.06459261023 | AW56: 33.74521302 | AX56: 35.2318947 | AY56: 38.41168648 | AZ56: 41.59147826 | BA56: 43.07815994 | BC56: 52 | BD56: 1 | BE56: 26.99171687 | BF56: 0.05307443531 | BG56: 24.29733899 | BH56: 25.155735 | BI56: 26.99171687 | BJ56: 28.82769874 | BK56: 29.68609476
AG57: 29.57142857 | AH57: 53 | AI57: 1.417166774 | AJ57: 1314.601093 | AK57: 0.2118544736 | AL57: 731.0155405 | AM57: 933.0981116 | AN57: 1314.601093 | AO57: 1654.081203 | AP57: 1802.963598 | AR57: 29.57142857 | AS57: 53 | AT57: 1 | AU57: 38.60923404 | AV57: 0.06440013314 | AW57: 33.93273819 | AX57: 35.42261287 | AY57: 38.60923404 | AZ57: 41.7958552 | BA57: 43.28572988 | BC57: 53 | BD57: 1 | BE57: 27.12679051 | BF57: 0.05293563411 | BG57: 24.42601083 | BH57: 25.28644638 | BI57: 27.12679051 | BJ57: 28.96713464 | BK57: 29.82757019
AG58: 29.71428571 | AH58: 54 | AI58: 1.416883707 | AJ58: 1338.683898 | AK58: 0.2117778003 | AL58: 744.7033819 | AM58: 950.3614258 | AN58: 1338.683898 | AO58: 1684.276248 | AP58: 1835.847924 | AR58: 29.71428571 | AS58: 54 | AT58: 1 | AU58: 38.80702591 | AV58: 0.06420094605 | AW58: 34.12111216 | AX58: 35.61398727 | AY58: 38.80702591 | AZ58: 42.00006454 | BA58: 43.49293966 | BC58: 54 | BD58: 1 | BE58: 27.26167399 | BF58: 0.05279550011 | BG58: 24.55465018 | BH58: 25.41707503 | BI58: 27.26167399 | BJ58: 29.10627294 | BK58: 29.9686978
AG59: 29.85714286 | AH59: 55 | AI59: 1.415762676 | AJ59: 1363.248151 | AK59: 0.2116251465 | AL59: 759.0644996 | AM59: 968.1819126 | AN59: 1363.248151 | AO59: 1714.986382 | AP59: 1869.28375 | AR59: 29.85714286 | AS59: 55 | AT59: 1 | AU59: 39.00507892 | AV59: 0.06399537402 | AW59: 34.31033255 | AX59: 35.80602163 | AY59: 39.00507892 | AZ59: 42.2041362 | BA59: 43.69982529 | BC59: 55 | BD59: 1 | BE59: 27.39636431 | BF59: 0.05265401229 | BG59: 24.68325634 | BH59: 25.54761953 | BI59: 27.39636431 | BJ59: 29.24510908 | BK59: 30.10947228
AG60: 30 | AH60: 56 | AI60: 1.413790695 | AJ60: 1388.303356 | AK60: 0.2113965887 | AL60: 774.1259148 | AM60: 986.5784793 | AN60: 1388.303356 | AO60: 1746.218584 | AP60: 1903.278428 | AR60: 30 | AS60: 56 | AT60: 1 | AU60: 39.20340988 | AV60: 0.06378374204 | AW60: 34.50039691 | AX60: 35.99871963 | AY60: 39.20340988 | AZ60: 42.40810014 | BA60: 43.90642286 | BC60: 56 | BD60: 1 | BE60: 27.53085847 | BF60: 0.05251114963 | BG60: 24.81182864 | BH60: 25.67807846 | BI60: 27.53085847 | BJ60: 29.38363848 | BK60: 30.24988831
AG61: 30.14285714 | AH61: 57 | AI61: 1.410954773 | AJ61: 1413.859014 | AK61: 0.2110922037 | AL61: 789.9146482 | AM61: 1005.570033 | AN61: 1413.859014 | AO61: 1777.979837 | AP61: 1937.839312 | AR61: 30.14285714 | AS61: 57 | AT61: 1 | AU61: 39.40203562 | AV61: 0.06356637509 | AW61: 34.69130278 | AX61: 36.19208496 | AY61: 39.40203562 | AZ61: 42.61198629 | BA61: 44.11276846 | BC61: 57 | BD61: 1 | BE61: 27.66515348 | BF61: 0.05236689112 | BG61: 24.94036639 | BH61: 25.80845041 | BI61: 27.66515348 | BJ61: 29.52185654 | BK61: 30.38994056
AG62: 30.28571429 | AH62: 58 | AI62: 1.407241924 | AJ62: 1439.924627 | AK62: 0.2107120681 | AL62: 806.4577208 | AM62: 1025.175481 | AN62: 1439.924627 | AO62: 1810.277122 | AP62: 1972.973752 | AR62: 30.28571429 | AS62: 58 | AT62: 1 | AU62: 39.60097296 | AV62: 0.06334359817 | AW62: 34.88304773 | AX62: 36.38612132 | AY62: 39.60097296 | AZ62: 42.81582461 | BA62: 44.31889819 | BC62: 58 | BD62: 1 | BE62: 27.79924633 | BF62: 0.05222121572 | BG62: 25.06886892 | BH62: 25.93873395 | BI62: 27.79924633 | BJ62: 29.6597587 | BK62: 30.52962373
AG63: 30.42857143 | AH63: 59 | AI63: 1.40263916 | AJ63: 1466.509698 | AK63: 0.2102562586 | AL63: 823.7821537 | AM63: 1045.41373 | AN63: 1466.509698 | AO63: 1843.117421 | AP63: 2008.689102 | AR63: 30.42857143 | AS63: 59 | AT63: 1 | AU63: 39.80023871 | AV63: 0.06311573626 | AW63: 35.07562929 | AX63: 36.58083238 | AY63: 39.80023871 | AZ63: 43.01964505 | BA63: 44.52484813 | BC63: 59 | BD63: 1 | BE63: 27.93313402 | BF63: 0.05207410243 | BG63: 25.19733556 | BH63: 26.06892767 | BI63: 27.93313402 | BJ63: 29.79734038 | BK63: 30.66893249
AG64: 30.57142857 | AH64: 60 | AI64: 1.397134489 | AJ64: 1493.623107 | AK64: 0.209724908 | AL64: 841.9140598 | AM64: 1066.302999 | AN64: 1493.623107 | AO64: 1876.506958 | AP64: 2044.991867 | AR64: 30.57142857 | AS64: 60 | AT64: 1 | AU64: 39.99984788 | AV64: 0.06288311039 | AW64: 35.26904366 | AX64: 36.77622034 | AY64: 39.99984788 | AZ64: 43.22347543 | BA64: 44.7306521 | BC64: 60 | BD64: 1 | BE64: 28.0668129 | BF64: 0.05192553138 | BG64: 25.32576494 | BH64: 26.19902948 | BI64: 28.0668129 | BJ64: 29.93459632 | BK64: 30.80786085
AG65: 30.71428571 | AH65: 61 | AI65: 1.39073889 | AJ65: 1521.259421 | AK65: 0.2091194458 | AL65: 860.8586694 | AM65: 1087.845664 | AN65: 1521.259421 | AO65: 1910.434572 | AP65: 2081.869094 | AR65: 30.71428571 | AS65: 61 | AT65: 1 | AU65: 40.19977368 | AV65: 0.06264595014 | AW65: 35.46325581 | AX65: 36.97225279 | AY65: 40.19977368 | AZ65: 43.42729458 | BA65: 44.93629156 | BC65: 61 | BD65: 1 | BE65: 28.20026393 | BF65: 0.05177550956 | BG65: 25.45414036 | BH65: 26.32902192 | BI65: 28.20026393 | BJ65: 30.07150594 | BK65: 30.9463875
AG66: 30.85714286 | AH66: 62 | AI66: 1.383486303 | AJ66: 1549.398895 | AK66: 0.2084425974 | AL66: 880.6003299 | AM66: 1110.028258 | AN66: 1549.398895 | AO66: 1944.87171 | AP66: 2119.288369 | AR66: 30.85714286 | AS66: 62 | AT66: 1 | AU66: 40.39994756 | AV66: 0.06240439368 | AW66: 35.65819947 | AX66: 37.16886272 | AY66: 40.39994756 | AZ66: 43.63103239 | BA66: 45.14169564 | BC66: 62 | BD66: 1 | BE66: 28.33345275 | BF66: 0.0516240708 | BG66: 25.58242971 | BH66: 26.45887219 | BI66: 28.33345275 | BJ66: 30.20803332 | BK66: 31.0844758
AG67: 31 | AH67: 63 | AI67: 1.375411671 | AJ67: 1578.021161 | AK67: 0.2076971447 | AL67: 901.1224807 | AM67: 1132.836625 | AN67: 1578.021161 | AO67: 1979.789067 | AP67: 2157.216429 | AR67: 31 | AS67: 63 | AT67: 1 | AU67: 40.60029911 | AV67: 0.06215857521 | AW67: 35.85380701 | AX67: 37.36598165 | AY67: 40.60029911 | AZ67: 43.83461656 | BA67: 45.3467912 | BC67: 63 | BD67: 1 | BE67: 28.46634433 | BF67: 0.0514712501 | BG67: 25.71060023 | BH67: 26.58854678 | BI67: 28.46634433 | BJ67: 30.34414189 | BK67: 31.22208843
AG68: 31.14285714 | AH68: 64 | AI68: 1.366549934 | AJ68: 1607.105852 | AK68: 0.2068858696 | AL68: 922.4085613 | AM68: 1156.256611 | AN68: 1607.105852 | AO68: 2015.157334 | AP68: 2195.620014 | AR68: 31.14285714 | AS68: 64 | AT68: 1 | AU68: 40.80075796 | AV68: 0.06190862892 | AW68: 36.05001083 | AX68: 37.56354107 | AY68: 40.80075796 | AZ68: 44.03797485 | BA68: 45.55150509 | BC68: 64 | BD68: 1 | BE68: 28.59890363 | BF68: 0.05131708244 | BG68: 25.83861916 | BH68: 26.71801221 | BI68: 28.59890363 | BJ68: 30.47979504 | BK68: 31.35918809
AG69: 31.28571429 | AH69: 65 | AI69: 1.356936034 | AJ69: 1636.632599 | AK69: 0.2060115539 | AL69: 944.4420112 | AM69: 1180.274059 | AN69: 1636.632599 | AO69: 2050.947206 | AP69: 2234.465864 | AR69: 31.28571429 | AS69: 65 | AT69: 1 | AU69: 41.00125372 | AV69: 0.061654689 | AW69: 36.24674329 | AX69: 37.76147248 | AY69: 41.00125372 | AZ69: 44.24103497 | BA69: 45.75576415 | BC69: 65 | BD69: 1 | BE69: 28.7310956 | BF69: 0.05116160281 | BG69: 25.96645373 | BH69: 26.847235 | BI69: 28.7310956 | BJ69: 30.6149562 | BK69: 31.49573746
AG70: 31.42857143 | AH70: 66 | AI70: 1.34660491 | AJ70: 1666.581036 | AK70: 0.2050769796 | AL70: 967.2062698 | AM70: 1204.874815 | AN70: 1666.581036 | AO70: 2087.129374 | AP70: 2273.720717 | AR70: 31.42857143 | AS70: 66 | AT70: 1 | AU70: 41.20171602 | AV70: 0.06139688964 | AW70: 36.44393678 | AX70: 37.95970737 | AY70: 41.20171602 | AZ70: 44.44372466 | BA70: 45.95949525 | BC70: 66 | BD70: 1 | BE70: 28.86288521 | BF70: 0.05100484622 | BG70: 26.09407118 | BH70: 26.97618165 | BI70: 28.86288521 | BJ70: 30.74958877 | BK70: 31.63169924
AG71: =22+AH71/7 -> 31.57142857 | AH71: 67 | AI71: 1.335591504 | AJ71: 1696.930794 | AK71: 0.2040849285 | AL71: 990.684599 | AM71: 1230.044617 | AN71: 1696.930794 | AO71: 2123.674554 | AP71: 2313.351327 | AR71: 31.57142857 | AS71: 67 | AT71: 1 | AU71: 41.40207445 | AV71: 0.06113536505 | AW71: 36.64152363 | AX71: 38.15817721 | AY71: 41.40207445 | AZ71: 44.6459717 | BA71: 46.16262528 | BC71: 67 | BD71: 1 | BE71: 28.99423743 | BF71: 0.05084684766 | BG71: 26.22143873 | BH71: 27.10481866 | BI71: 28.99423743 | BJ71: 30.88365619 | BK71: 31.76703612
AG72: 31.71428571 | AH72: 68 | AI72: 1.323930758 | AJ72: 1727.661506 | AK72: 0.2030381826 | AL72: 1014.856171 | AM72: 1255.766769 | AN72: 1727.661506 | AO72: 2160.553955 | AP72: 2353.324753 | AR72: 31.71428571 | AS72: 68 | AT72: 1 | AU72: 41.60225865 | AV72: 0.06087024929 | AW72: 36.83943504 | AX72: 38.3568127 | AY72: 41.60225865 | AZ72: 44.8477046 | BA72: 46.36508226 | BC72: 68 | BD72: 1 | BE72: 29.12511721 | BF72: 0.0506876421 | BG72: 26.34852331 | BH72: 27.23311235 | BI72: 29.12511721 | BJ72: 31.01712207 | BK72: 31.9017111
AG73: 31.85714286 | AH73: 69 | AI73: 1.311657613 | AJ73: 1758.752803 | AK73: 0.2019395239 | AL73: 1039.696071 | AM73: 1282.022141 | AN73: 1758.752803 | AO73: 2197.739279 | AP73: 2393.608361 | AR73: 31.85714286 | AS73: 69 | AT73: 1 | AU73: 41.80219821 | AV73: 0.06060167635 | AW73: 37.03760109 | AX73: 38.55554377 | AY73: 41.80219821 | AZ73: 45.04885266 | BA73: 46.56679534 | BC73: 69 | BD73: 1 | BE73: 29.25548952 | BF73: 0.05052726455 | BG73: 26.47529155 | BH73: 27.3610288 | BI73: 29.25548952 | BJ73: 31.14995023 | BK73: 32.03568748
AG74: 32 | AH74: 70 | AI74: 1.298807012 | AJ74: 1790.184316 | AK74: 0.2007917343 | AL74: 1065.179205 | AM74: 1308.791497 | AN74: 1790.184316 | AO74: 2235.202253 | AP74: 2434.169533 | AR74: 32 | AS74: 70 | AT74: 1 | AU74: 42.00182276 | AV74: 0.0603297802 | AW74: 37.23595181 | AX74: 38.75430032 | AY74: 42.00182276 | AZ74: 45.2493452 | BA74: 46.76769371 | BC74: 70 | BD74: 1 | BE74: 29.38531931 | BF74: 0.05036574997 | BG74: 26.60171006 | BH74: 27.48853411 | BI74: 29.38531931 | BJ74: 31.28210452 | BK74: 32.16892857
AG75: 32.14285714 | AH75: 71 | AI75: 1.285413897 | AJ75: 1821.935677 | AK75: 0.1995975959 | AL75: 1091.280478 | AM75: 1336.055601 | AN75: 1821.935677 | AO75: 2272.9146 | AP75: 2474.975648 | AR75: 32.14285714 | AS75: 71 | AT75: 1 | AU75: 42.2010619 | AV75: 0.06005469482 | AW75: 37.43441724 | AX75: 38.95301224 | AY75: 42.2010619 | AZ75: 45.44911156 | BA75: 46.96770657 | BC75: 71 | BD75: 1 | BE75: 29.51457156 | BF75: 0.05020313336 | BG75: 26.72774547 | BH75: 27.61559436 | BI75: 29.51457156 | BJ75: 31.41354876 | BK75: 32.30139766
AG76: 32.28571429 | AH76: 72 | AI76: 1.271513209 | AJ76: 1853.986517 | AK76: 0.1983598906 | AL76: 1117.974798 | AM76: 1363.795216 | AN76: 1853.986517 | AO76: 2310.848046 | AP76: 2515.994086 | AR76: 32.28571429 | AS76: 72 | AT76: 1 | AU76: 42.39984525 | AV76: 0.05977655418 | AW76: 37.6329274 | AX76: 39.15160944 | AY76: 42.39984525 | AZ76: 45.64808107 | BA76: 47.16676311 | BC76: 72 | BD76: 1 | BE76: 29.64321122 | BF76: 0.0500394497 | BG76: 26.85336438 | BH76: 27.74217565 | BI76: 29.64321122 | BJ76: 31.54424679 | BK76: 32.43305806
AG77: 32.42857143 | AH77: 73 | AI77: 1.257139892 | AJ77: 1886.316466 | AK77: 0.1970814005 | AL77: 1145.237071 | AM77: 1391.991107 | AN77: 1886.316466 | AO77: 2348.974316 | AP77: 2557.192229 | AR77: 32.42857143 | AS77: 73 | AT77: 1 | AU77: 42.59810242 | AV77: 0.05949549226 | AW77: 37.83141233 | AX77: 39.3500218 | AY77: 42.59810242 | AZ77: 45.84618304 | BA77: 47.36479252 | BC77: 73 | BD77: 1 | BE77: 29.77120325 | BF77: 0.04987473396 | BG77: 26.97853342 | BH77: 27.86824406 | BI77: 29.77120325 | BJ77: 31.67416244 | BK77: 32.56387308
AG78: 32.57142857 | AH78: 74 | AI78: 1.242328886 | AJ78: 1918.905158 | AK78: 0.1957649075 | AL78: 1173.042122 | AM78: 1420.623957 | AN78: 1918.905158 | AO78: 2387.265188 | AP78: 2598.537516 | AR78: =22+AS78/7 -> 32.57142857 | AS78: 74 | AT78: 1 | AU78: 42.79576302 | AV78: 0.05921164304 | AW78: 38.029802 | AX78: 39.5481792 | AY78: 42.79576302 | AZ78: 46.04334684 | BA78: 47.56172405 | BC78: 74 | BD78: 1 | BE78: 29.89851261 | BF78: 0.04970902114 | BG78: 27.10321919 | BH78: 27.99376567 | BI78: 29.89851261 | BJ78: 31.80325956 | BK78: 32.69380604
AG79: 32.71428571 | AH79: 75 | AI79: 1.227115134 | AJ79: 1951.732222 | AK79: 0.1944131937 | AL79: 1201.362952 | AM79: 1449.672602 | AN79: 1951.732222 | AO79: 2425.693658 | AP79: 2639.998777 | AR79: 32.71428571 | AS79: 75 | AT79: 1 | AU79: 42.99275667 | AV79: 0.05892514052 | AW79: 38.22802513 | AX79: 39.74601063 | AY79: 42.99275667 | AZ79: 46.2395027 | BA79: 47.7574882 | BC79: 75 | BD79: 1 | BE79: 30.02510427 | BF79: 0.04954234622 | BG79: 27.22738801 | BH79: 28.11870638 | BI79: 30.02510427 | BJ79: 31.93150216 | BK79: 32.82282053
AG80: 32.85714286 | AH80: 76 | AI80: 1.211533577 | AJ80: 1984.77729 | AK80: 0.1930290409 | AL80: 1230.170729 | AM80: 1479.114029 | AN80: 1984.77729 | AO80: 2464.233942 | AP80: 2681.546232 | AR80: 32.85714286 | AS80: 76 | AT80: 1 | AU80: 43.18901297 | AV80: 0.05863611872 | AW80: 38.4260092 | AX80: 39.94344426 | AY80: 43.18901297 | AZ80: 46.43458168 | BA80: 47.95201673 | BC80: 76 | BD80: 1 | BE80: 30.15094319 | BF80: 0.04937474418 | BG80: 27.35100594 | BH80: 28.24303188 | BI80: 30.15094319 | BJ80: 32.05885449 | BK80: 32.95088044
AG81: 33 | AH81: 77 | AI81: 1.195619158 | AJ81: 2018.019995 | AK81: 0.1916152313 | AL81: 1259.436545 | AM81: 1508.925147 | AN81: 2018.019995 | AO81: 2502.860307 | AP81: 2723.150161 | AR81: 33 | AS81: 77 | AT81: 1 | AU81: 43.38446154 | AV81: 0.05834471169 | AW81: 38.62368163 | AX81: 40.1404082 | AY81: 43.38446154 | AZ81: 46.62851489 | BA81: 48.14524145 | BC81: 77 | BD81: 1 | BE81: 30.27599432 | BF81: 0.04920625001 | BG81: 27.47403899 | BH81: 28.36670787 | BI81: 30.27599432 | BJ81: 32.18528077 | BK81: 33.07794965 | CH81: 81 | CI81: 1 | CJ81: 30.76762027 | CK81: 0.04852405175 | CL81: 27.95964306 | CM81: 28.85423044 | CN81: 30.76762027 | CO81: 32.68101009 | CP81: 33.57559747
AG82: 33.14285714 | AH82: 78 | AI82: 1.179406818 | AJ82: 2051.439968 | AK82: 0.1901745466 | AL82: 1289.13149 | AM82: 1539.082862 | AN82: 2051.439968 | AO82: 2541.547023 | AP82: 2764.780843 | AR82: 33.14285714 | AS82: 78 | AT82: 1 | AU82: 43.579032 | AV82: 0.05805105346 | AW82: 38.82096983 | AX82: 40.33683056 | AY82: 43.579032 | AZ82: 46.82123344 | BA82: 48.33709416 | BC82: 78 | BD82: 1 | BE82: 30.40022263 | BF82: 0.04903689869 | BG82: 27.59645319 | BH82: 28.48970003 | BI82: 30.40022263 | BJ82: 32.31074524 | BK82: 33.20399207 | CH82: 81 | CI82: 1 | CJ82: 30.76762027 | CK82: 0.04852405175 | CL82: 27.95964306 | CM82: 28.85423044 | CN82: 30.76762027 | CO82: 32.68101009 | CP82: 33.57559747
AG83: 33.28571429 | AH83: 79 | AI83: 1.162931499 | AJ83: 2085.01684 | AK83: 0.188709769 | AL83: 1319.226655 | AM83: 1569.564082 | AN83: 2085.01684 | AO83: 2580.268358 | AP83: 2806.408558 | AR83: 33.28571429 | AS83: 79 | AT83: 1 | AU83: 43.77265395 | AV83: 0.05775527806 | AW83: 39.01780123 | AX83: 40.53263946 | AY83: 43.77265395 | AZ83: 47.01266843 | BA83: 48.52750667 | BC83: 79 | BD83: 1 | BE83: 30.52359309 | BF83: 0.04886672522 | BG83: 27.71821459 | BH83: 28.61197405 | BI83: 30.52359309 | BJ83: 32.43521212 | BK83: 33.32897158 | CH83: 82 | CI83: 1 | CJ83: 30.88820691 | CK83: 0.04835162172 | CL83: 28.0792419 | CM83: 28.97414398 | CN83: 30.88820691 | CO83: 32.80226985 | CP83: 33.69717193
AG84: 33.42857143 | AH84: 80 | AI84: 1.146228142 | AJ84: 2118.730243 | AK84: 0.1872236803 | AL84: 1349.69313 | AM84: 1600.345715 | AN84: 2118.730243 | AO84: 2618.998579 | AP84: 2848.003586 | AR84: 33.42857143 | AS84: 80 | AT84: 1 | AU84: 43.96525701 | AV84: 0.05745751952 | AW84: 39.21410323 | AX84: 40.72776303 | AY84: 43.96525701 | AZ84: 47.20275099 | BA84: 48.71641079 | BC84: 80 | BD84: 1 | BE84: 30.64607064 | BF84: 0.04869576458 | BG84: 27.83928921 | BH84: 28.73349563 | BI84: 30.64607064 | BJ84: 32.55864566 | BK84: 33.45285208 | CH84: 83 | CI84: 1 | CJ84: 31.00779555 | CK84: 0.04817850947 | CL84: 28.19805116 | CM84: 29.09320154 | CN84: 31.00779555 | CO84: 32.92238956 | CP84: 33.81753994
AG85: 33.57142857 | AH85: 81 | AI85: 1.12933169 | AJ85: 2152.559809 | AK85: 0.1857190626 | AL85: 1380.501954 | AM85: 1631.4046 | AN85: 2152.559809 | AO85: 2657.71204 | AP85: 2889.536321 | AR85: 33.57142857 | AS85: 81 | AT85: 1 | AU85: 44.1567708 | AV85: 0.05715791188 | AW85: 39.40980321 | AX85: 40.92212934 | AY85: 44.1567708 | AZ85: 47.39141225 | BA85: 48.90373838 | BC85: 81 | BD85: 1 | BE85: 30.76762027 | BF85: 0.04852405175 | BG85: 27.95964306 | BH85: 28.85423044 | BI85: 30.76762027 | BJ85: 32.68101009 | BK85: 33.57559747 | CH85: 84 | CI85: 1 | CJ85: 31.12635114 | CK85: 0.04800475 | CL85: 28.3160363 | CM85: 29.21136842 | CN85: 31.12635114 | CO85: 33.04133385 | CP85: 33.93666597
AG86: 33.71428571 | AH86: 82 | AI86: 1.112277084 | AJ86: 2186.485169 | AK86: 0.1841986978 | AL86: 1411.622967 | AM86: 1662.716045 | AN86: 2186.485169 | AO86: 2696.385043 | AP86: 2930.979769 | AR86: 33.71428571 | AS86: 82 | AT86: 1 | AU86: 44.34712492 | AV86: 0.05685658916 | AW86: 39.60482729 | AX86: 41.11566563 | AY86: 44.34712492 | AZ86: 47.5785842 | BA86: 49.08942254 | BC86: 82 | BD86: 1 | BE86: 30.88820691 | BF86: 0.04835162172 | BG86: 28.0792419 | BH86: 28.97414398 | BI86: 30.88820691 | BJ86: 32.80226985 | BK86: 33.69717193 | CH86: 85 | CI86: 1 | CJ86: 31.24383863 | CK86: 0.04783037828 | CL86: 28.43316275 | CM86: 29.3286099 | CN86: 31.24383863 | CO86: 33.15906737 | CP86: 34.05451451
AG87: 33.85714286 | AH87: 83 | AI87: 1.095099266 | AJ87: 2220.485955 | AK87: 0.1826653678 | AL87: 1443.02481 | AM87: 1694.253817 | AN87: 2220.485955 | AO87: 2734.995843 | AP87: 2972.309552 | AR87: 33.85714286 | AS87: 83 | AT87: 1 | AU87: 44.53624898 | AV87: 0.05655368539 | AW87: 39.79910037 | AX87: 41.30829829 | AY87: 44.53624898 | AZ87: 47.76419967 | BA87: 49.27339759 | BC87: 83 | BD87: 1 | BE87: 31.00779555 | BF87: 0.04817850947 | BG87: 28.19805116 | BH87: 29.09320154 | BI87: 31.00779555 | BJ87: 32.92238956 | BK87: 33.81753994 | CH87: 86 | CI87: 1 | CJ87: 31.360223 | CK87: 0.0476554293 | CL87: 28.54939597 | CM87: 29.44489127 | CN87: 31.360223 | CO87: 33.27555474 | CP87: 34.17105004
AG88: 34 | AH88: 84 | AI88: 1.077833178 | AJ88: 2254.541798 | AK88: 0.1811218547 | AL88: 1474.676073 | AM88: 1725.99162 | AN88: 2254.541798 | AO88: 2773.522776 | AP88: 3013.501406 | AR88: 34 | AS88: 84 | AT88: 1 | AU88: 44.72407261 | AV88: 0.05624933457 | AW88: 39.9925473 | AX88: 41.4999537 | AY88: 44.72407261 | AZ88: 47.94819153 | BA88: 49.45559793 | BC88: 84 | BD88: 1 | BE88: 31.12635114 | BF88: 0.04800475 | BG88: 28.3160363 | BH88: 29.21136842 | BI88: 31.12635114 | BJ88: 33.04133385 | BK88: 33.93666597 | CH88: 87 | CI88: 1 | CJ88: 31.47546921 | CK88: 0.04747993805 | CL88: 28.66470138 | CM88: 29.56017782 | CN88: 31.47546921 | CO88: 33.39076059 | CP88: 34.28623703
AG89: 34.14285714 | AH89: 85 | AI89: 1.060513761 | AJ89: 2288.632329 | AK89: 0.1795709404 | AL89: 1506.545344 | AM89: 1757.903157 | AN89: 2288.632329 | AO89: 2811.944181 | AP89: 3054.531066 | AR89: 34.14285714 | AS89: 85 | AT89: 1 | AU89: 44.91052542 | AV89: 0.05594367074 | AW89: 40.1850929 | AX89: 41.69055822 | AY89: 44.91052542 | AZ89: 48.13049262 | BA89: 49.63595794 | BC89: 85 | BD89: 1 | BE89: 31.24383863 | BF89: 0.04783037828 | BG89: 28.43316275 | BH89: 29.3286099 | BI89: 31.24383863 | BJ89: 33.15906737 | BK89: 34.05451451 | CH89: 88 | CI89: 1 | CJ89: 31.5895422 | CK89: 0.0473039395 | CL89: 28.77904443 | CM89: 29.67443483 | CN89: 31.5895422 | CO89: 33.50464958 | CP89: 34.40003998
AG90: 34.28571429 | AH90: 86 | AI90: 1.043175959 | AJ90: 2322.737181 | AK90: 0.178015407 | AL90: 1538.601213 | AM90: 1789.96213 | AN90: 2322.737181 | AO90: 2850.238396 | AP90: 3095.374266 | AR90: 34.28571429 | AS90: 86 | AT90: 1 | AU90: 45.09553701 | AV90: 0.05563682789 | AW90: 40.37666203 | AX90: 41.88003819 | AY90: 45.09553701 | AZ90: 48.31103583 | BA90: 49.81441199 | BC90: 86 | BD90: 1 | BE90: 31.360223 | BF90: 0.0476554293 | BG90: 28.54939597 | BH90: 29.44489127 | BI90: 31.360223 | BJ90: 33.27555474 | BK90: 34.17105004 | CH90: 89 | CI90: 1 | CJ90: 31.70240696 | CK90: 0.04712746866 | CL90: 28.89239025 | CM90: 29.78762739 | CN90: 31.70240696 | CO90: 33.61718653 | CP90: 34.51242367
AG91: 34.42857143 | AH91: 87 | AI91: 1.025854711 | AJ91: 2356.835985 | AK91: 0.1764580363 | AL91: 1570.812268 | AM91: 1822.142243 | AN91: 2356.835985 | AO91: 2888.383758 | AP91: 3136.006742 | AR91: 34.42857143 | AS91: 87 | AT91: 1 | AU91: 45.279037 | AV91: 0.05532894006 | AW91: 40.56717953 | AX91: 42.06832 | AY91: 45.279037 | AZ91: 48.48975401 | BA91: 49.99089448 | BC91: 87 | BD91: 1 | BE91: 31.47546921 | BF91: 0.04747993805 | BG91: 28.66470138 | BH91: 29.56017782 | BI91: 31.47546921 | BJ91: 33.39076059 | BK91: 34.28623703 | CH91: 90 | CI91: 1 | CJ91: 31.81402844 | CK91: 0.0469505605 | CL91: 29.00470366 | CM91: 29.89972036 | CN91: 31.81402844 | CO91: 33.72833651 | CP91: 34.62335321
AG92: 34.57142857 | AH92: 88 | AI92: 1.008584961 | AJ92: 2390.908372 | AK92: 0.1749016103 | AL92: 1603.14705 | AM92: 1854.417138 | AN92: 2390.908372 | AO92: 2926.358717 | AP92: 3176.404397 | AR92: 34.57142857 | AS92: 88 | AT92: 1 | AU92: 45.46095501 | AV92: 0.05502014126 | AW92: 40.75657017 | AX92: 42.25532995 | AY92: 45.46095501 | AZ92: 48.66658006 | BA92: 50.16533984 | BC92: 88 | BD92: 1 | BE92: 31.5895422 | BF92: 0.0473039395 | BG92: 28.77904443 | BH92: 29.67443483 | BI92: 31.5895422 | BJ92: 33.50464958 | BK92: 34.40003998 | CH92: 91 | CI92: 1 | CJ92: 31.92437159 | CK92: 0.04677325 | CL92: 29.1159495 | CM92: 30.01067862 | CN92: 31.92437159 | CO92: 33.83806457 | CP92: 34.73279368
AG93: 34.71428571 | AH93: 89 | AI93: 0.9914016498 | AJ93: 2424.933974 | AK93: 0.1733489111 | AL93: 1635.572947 | AM93: 1886.759089 | AN93: 2424.933974 | AO93: 2964.144323 | AP93: 3216.54699 | AR93: 34.71428571 | AS93: 89 | AT93: 1 | AU93: 45.64122064 | AV93: 0.05471056551 | AW93: 40.94475747 | AX93: 42.4409935 | AY93: 45.64122064 | AZ93: 48.84144777 | BA93: 50.33768381 | BC93: 89 | BD93: 1 | BE93: 31.70240696 | BF93: 0.04712746866 | BG93: 28.89239025 | BH93: 29.78762739 | BI93: 31.70240696 | BJ93: 33.61718653 | BK93: 34.51242367 | CH93: 92 | CI93: 1 | CJ93: 32.03340139 | CK93: 0.04659557216 | CL93: 29.22609259 | CM93: 30.12046702 | CN93: 32.03340139 | CO93: 33.94633576 | CP93: 34.84071019
AG94: 34.85714286 | AH94: 90 | AI94: 0.9743397196 | AJ94: 2458.892423 | AK94: 0.1718027206 | AL94: 1668.056194 | AM94: 1919.138998 | AN94: 2458.892423 | AO94: 3001.72422 | AP94: 3256.418139 | AR94: 34.85714286 | AS94: 90 | AT94: 1 | AU94: 45.81976351 | AV94: 0.05440034683 | AW94: 41.13166364 | AX94: 42.62523522 | AY94: 45.81976351 | AZ94: 49.01429179 | BA94: 50.50786338 | BC94: 90 | BD94: 1 | BE94: 31.81402844 | BF94: 0.0469505605 | BG94: 29.00470366 | BH94: 29.89972036 | BI94: 31.81402844 | BJ94: 33.72833651 | BK94: 34.62335321 | CH94: 93 | CI94: 1 | CJ94: 32.14108279 | CK94: 0.04641756195 | CL94: 29.33509774 | CM94: 30.22905044 | CN94: 32.14108279 | CO94: 34.05311514 | CP94: 34.94706784
AG95: 35 | AH95: 91 | AI95: 0.9574341121 | AJ95: 2492.763349 | AK95: 0.1702658207 | AL95: 1700.562979 | AM95: 1951.527707 | AN95: 2492.763349 | AO95: 3039.082167 | AP95: 3296.001629 | AR95: 35 | AS95: 91 | AT95: 1 | AU95: 45.99651323 | AV95: 0.05408961924 | AW95: 41.31721082 | AX95: 42.80797965 | AY95: 45.99651323 | AZ95: 49.18504682 | BA95: 50.67581564 | BC95: 91 | BD95: 1 | BE95: 31.92437159 | BF95: 0.04677325 | BG95: 29.1159495 | BH95: 30.01067862 | BI95: 31.92437159 | BJ95: 33.83806457 | BK95: 34.73279368 | CH95: 94 | CI95: 1 | CJ95: 32.24738075 | CK95: 0.04623925437 | CL95: 29.44292977 | CM95: 30.33639374 | CN95: 32.24738075 | CO95: 34.15836777 | CP95: 35.05183173
AG96: 35.14285714 | AH96: 92 | AI96: 0.9407197692 | AJ96: 2526.526385 | AK96: 0.1687409935 | AL96: 1733.05949 | AM96: 1983.89606 | AN96: 2526.526385 | AO96: 3076.20192 | AP96: 3335.281243 | AR96: 35.14285714 | AS96: 92 | AT96: 1 | AU96: 46.17139942 | AV96: 0.05377851677 | AW96: 41.50132119 | AX96: 42.9891513 | AY96: 46.17139942 | AZ96: 49.35364754 | BA96: 50.84147765 | BC96: 92 | BD96: 1 | BE96: 32.03340139 | BF96: 0.04659557216 | BG96: 29.22609259 | BH96: 30.12046702 | BI96: 32.03340139 | BJ96: 33.94633576 | BK96: 34.84071019 | CH96: 95 | CI96: 1 | CJ96: 32.35226159 | CK96: 0.0460606844 | CL96: 29.54955474 | CM96: 30.44246305 | CN96: 32.35226159 | CO96: 34.26206012 | CP96: 35.15496843
AG97: 35.28571429 | AH97: 93 | AI97: 0.9242316326 | AJ97: 2560.161163 | AK97: 0.1672310209 | AL97: 1765.511912 | AM97: 2016.214899 | AN97: 2560.161163 | AO97: 3113.067239 | AP97: 3374.240767 | AR97: 35.28571429 | AS97: 93 | AT97: 1 | AU97: 46.34435168 | AV97: 0.05346717344 | AW97: 41.68391689 | AX97: 43.16867472 | AY97: 46.34435168 | AZ97: 49.52002864 | BA97: 51.00478647 | BC97: 93 | BD97: 1 | BE97: 32.14108279 | BF97: 0.04641756195 | BG97: 29.33509774 | BH97: 30.22905044 | BI97: 32.14108279 | BJ97: 34.05311514 | BK97: 34.94706784 | CH97: 96 | CI97: 1 | CJ97: 32.45572237 | CK97: 0.04588188703 | CL97: 29.65496667 | CM97: 30.54725336 | CN97: 32.45572237 | CO97: 34.36419137 | CP97: 35.25647806
AG98: 35.42857143 | AH98: 94 | AI98: 0.9080046443 | AJ98: 2593.647313 | AK98: 0.1657386849 | AL98: 1797.886433 | AM98: 2048.455067 | AN98: 2593.647313 | AO98: 3149.66188 | AP98: 3412.863985 | AR98: 35.42857143 | AS98: 94 | AT98: 1 | AU98: 46.51529963 | AV98: 0.05315572327 | AW98: 41.86492008 | AX98: 43.34647443 | AY98: 46.51529963 | AZ98: 49.68412484 | BA98: 51.16567919 | BC98: 94 | BD98: 1 | BE98: 32.24738075 | BF98: 0.04623925437 | BG98: 29.44292977 | BH98: 30.33639374 | BI98: 32.24738075 | BJ98: 34.15836777 | BK98: 35.05183173 | CH98: 97 | CI98: 1 | CJ98: 32.55779097 | CK98: 0.04570289723 | CL98: 29.75918758 | CM98: 30.65078858 | CN98: 32.55779097 | CO98: 34.46479335 | CP98: 35.35639435
AG99: 35.57142857 | AH99: 95 | AI99: 0.8920729176 | AJ99: 2626.964467 | AK99: 0.1642667187 | AL99: 1830.149523 | AM99: 2080.587571 | AN99: 2626.964467 | AO99: 3185.969561 | AP99: 3451.134656 | AR99: 35.57142857 | AS99: 95 | AT99: 1 | AU99: 46.6841755 | AV99: 0.05284429994 | AW99: 42.04425527 | AX99: 43.52247741 | AY99: 46.6841755 | AZ99: 49.84587359 | BA99: 51.32409573 | BC99: 95 | BD99: 1 | BE99: 32.35226159 | BF99: 0.0460606844 | BG99: 29.54955474 | BH99: 30.44246305 | BI99: 32.35226159 | BJ99: 34.26206012 | BK99: 35.15496843 | CH99: 98 | CI99: 1 | CJ99: 32.65849659 | CK99: 0.04552375 | CL99: 29.86224073 | CM99: 30.75309383 | CN99: 32.65849659 | CO99: 34.56389935 | CP99: 35.45475245
AG100: 35.71428571 | AH100: 96 | AI100: 0.876451515 | AJ100: 2660.092257 | AK100: 0.1628167347 | AL100: 1862.274171 | AM100: 2112.587226 | AN100: 2660.092257 | AO100: 3221.973019 | AP100: 3489.035947 | AR100: 35.71428571 | AS100: 96 | AT100: 1 | AU100: 46.85097149 | AV100: 0.05253302941 | AW100: 42.22190107 | AX100: 43.6966666 | AY100: 46.85097149 | AZ100: 50.00527638 | BA100: 51.4800419 | BC100: 96 | BD100: 1 | BE100: 32.45572237 | BF100: 0.04588188703 | BG100: 29.65496667 | BH100: 30.54725336 | BI100: 32.45572237 | BJ100: 34.36419137 | BK100: 35.25647806 | CH100: 99 | CI100: 1 | CJ100: 32.75786845 | CK100: 0.04534448032 | CL100: 29.96414936 | CM100: 30.85419428 | CN100: 32.75786845 | CO100: 34.66154262 | CP100: 35.55158754
AG101: 35.85714286 | AH101: 97 | AI101: 0.8611364473 | AJ101: 2693.010314 | AK101: 0.1613892241 | AL101: 1894.239884 | AM101: 2144.43265 | AN101: 2693.010314 | AO101: 3257.654017 | AP101: 3526.550432 | AR101: 35.85714286 | AS101: 97 | AT101: 1 | AU101: 47.0157398 | AV101: 0.05222202988 | AW101: 42.39789018 | AX101: 43.86908089 | AY101: 47.0157398 | AZ101: 50.1623987 | BA101: 51.63358941 | BC101: 97 | BD101: 1 | BE101: 32.55779097 | BF101: 0.04570289723 | BG101: 29.75918758 | BH101: 30.65078858 | BI101: 32.55779097 | BJ101: 34.46479335 | BK101: 35.35639435 | CH101: 100 | CI101: 1 | CJ101: 32.85593575 | CK101: 0.04516512318 | CL101: 30.06493671 | CM101: 30.95411505 | CN101: 32.85593575 | CO101: 34.75775645 | CP101: 35.64693479
AG102: 36 | AH102: 98 | AI102: 0.8461228972 | AJ102: 2725.69827 | AK102: 0.1599846295 | AL102: 1926.026451 | AM102: 2176.102627 | AN102: 2725.69827 | AO102: 3292.994274 | AP102: 3563.660659 | AR102: 36 | AS102: 98 | AT102: 1 | AU102: 47.17853523 | AV102: 0.05191141923 | AW102: 42.57225764 | AX102: 44.03976164 | AY102: 47.17853523 | AZ102: 50.31730882 | BA102: 51.78481283 | BC102: 98 | BD102: 1 | BE102: 32.65849659 | BF102: 0.04552375 | BG102: 29.86224073 | BH102: 30.75309383 | BI102: 32.65849659 | BJ102: 34.56389935 | BK102: 35.45475245 | CH102: 101 | CI102: 1 | CJ102: 32.9527277 | CK102: 0.04498571356 | CL102: 30.16462602 | CM102: 31.0528813 | CN102: 32.9527277 | CO102: 34.8525741 | CP102: 35.74082938
AG103: =22+AH103/7 -> 36.14285714 | AH103: 99 | AI103: 0.8314060475 | AJ103: 2758.135756 | AK103: 0.1586033937 | AL103: 1957.613663 | AM103: 2207.57594 | AN103: 2758.135756 | AO103: 3327.97551 | AP103: 3600.349178 | AR103: 36.14285714 | AS103: 99 | AT103: 1 | AU103: 47.3394126 | AV103: 0.05160131533 | AW103: 42.7450385 | AX103: 44.2087502 | AY103: 47.3394126 | AZ103: 50.470075 | BA103: 51.9337867 | BC103: 99 | BD103: 1 | BE103: 32.75786845 | BF103: 0.04534448032 | BG103: 29.96414936 | BH103: 30.85419428 | BI103: 32.75786845 | BJ103: 34.66154262 | BK103: 35.55158754 | CH103: 102 | CI103: 1 | CJ103: 33.04827351 | CK103: 0.04480628644 | CL103: 30.26324055 | CM103: 31.15051817 | CN103: 33.04827351 | CO103: 34.94602884 | CP103: 35.83330646
AG104: 36.28571429 | AH104: 100 | AI104: 0.8169810809 | AJ104: 2790.302405 | AK104: 0.1572459591 | AL104: 1988.981309 | AM104: 2238.831375 | AN104: 2790.302405 | AO104: 3362.579444 | AP104: 3636.598537 | AR104: 36.28571429 | AS104: 100 | AT104: 1 | AU104: 47.49842671 | AV104: 0.05129183605 | AW104: 42.91626781 | AX104: 44.3760879 | AY104: 47.49842671 | AZ104: 50.62076552 | BA104: 52.08058561 | BC104: 100 | BD104: 1 | BE104: 32.85593575 | BF104: 0.04516512318 | BG104: 30.06493671 | BH104: 30.95411505 | BI104: 32.85593575 | BJ104: 34.75775645 | BK104: 35.64693479 | CH104: 103 | CI104: 1 | CJ104: 33.14260238 | CK104: 0.04462687682 | CL104: 30.36080361 | CM104: 31.24705085 | CN104: 33.14260238 | CO104: 35.0381539 | CP104: 35.92440114
AG105: 36.42857143 | AH105: 101 | AI105: 0.80284318 | AJ105: 2822.177847 | AK105: 0.1559127685 | AL105: 2020.109181 | AM105: 2269.847714 | AN105: 2822.177847 | AO105: 3396.787796 | AP105: 3672.391285 | AR105: 36.42857143 | AS105: 101 | AT105: 1 | AU105: 47.65563237 | AV105: 0.05098309927 | AW105: 43.08598063 | AX105: 44.54181609 | AY105: 47.65563237 | AZ105: 50.76944865 | BA105: 52.2252841 | BC105: 101 | BD105: 1 | BE105: 32.9527277 | BF105: 0.04498571356 | BG105: 30.16462602 | BH105: 31.0528813 | BI105: 32.9527277 | BJ105: 34.8525741 | BK105: 35.74082938 | CH105: 104 | CI105: 1 | CJ105: 33.23574352 | CK105: 0.04444751968 | CL105: 30.45733857 | CM105: 31.34250459 | CN105: 33.23574352 | CO105: 35.12898244 | CP105: 36.01414846
AG106: 36.57142857 | AH106: 102 | AI106: 0.7889875276 | AJ106: 2853.74259 | AK106: 0.1546042643 | AL106: 2050.97769 | AM106: 2300.604449 | AN106: 2853.74259 | AO106: 3430.583346 | AP106: 3707.711126 | AR106: 36.57142857 | AS106: 102 | AT106: 1 | AU106: 47.81108438 | AV106: 0.05067522286 | AW106: 43.25421201 | AX106: 44.70597611 | AY106: 47.81108438 | AZ106: 50.91619265 | BA106: 52.36795675 | BC106: 102 | BD106: 1 | BE106: 33.04827351 | BF106: 0.04480628644 | BG106: 30.26324055 | BH106: 31.15051817 | BI106: 33.04827351 | BJ106: 34.94602884 | BK106: 35.83330646 | CH106: 105 | CI106: 1 | CJ106: 33.32772614 | CK106: 0.04426825 | CL106: 30.55286883 | CM106: 31.43690461 | CN106: 33.32772614 | CO106: 35.21854766 | CP106: 36.10258344
AG107: 36.71428571 | AH107: 103 | AI107: 0.7754093063 | AJ107: 2884.997289 | AK107: 0.1533208893 | AL107: 2081.581587 | AM107: 2331.097335 | AN107: 2884.997289 | AO107: 3463.973253 | AP107: 3742.568344 | AR107: 36.71428571 | AS107: 103 | AT107: 1 | AU107: 47.96483755 | AV107: 0.0503683247 | AW107: 43.4209971 | AX107: 44.86860939 | AY107: 47.96483755 | AZ107: 51.06106572 | BA107: 52.50867801 | BC107: 103 | BD107: 1 | BE107: 33.14260238 | BF107: 0.04462687682 | BG107: 30.36080361 | BH107: 31.24705085 | BI107: 33.14260238 | BJ107: 35.0381539 | BK107: 35.92440114
AG108: 36.85714286 | AH108: 104 | AI108: 0.7621036988 | AJ108: 2915.962748 | AK108: 0.1520630861 | AL108: 2111.929952 | AM108: 2361.338394 | AN108: 2915.962748 | AO108: 3496.989055 | AP108: 3776.999805 | AR108: 36.85714286 | AS108: 104 | AT108: 1 | AU108: 48.1169467 | AV108: 0.05006252266 | AW108: 43.58637113 | AX108: 45.02975739 | AY108: 48.1169467 | AZ108: 51.204136 | BA108: 52.64752226 | BC108: 104 | BD108: 1 | BE108: 33.23574352 | BF108: 0.04444751968 | BG108: 30.45733857 | BH108: 31.34250459 | BI108: 33.23574352 | BJ108: 35.12898244 | BK108: 36.01414846
AG109: 37 | AH109: 105 | AI109: 0.7490658878 | AJ109: 2946.660647 | AK109: 0.1508312971 | AL109: 2142.032494 | AM109: 2391.340352 | AN109: 2946.660647 | AO109: 3529.663351 | AP109: 3811.04353 | AR109: 37 | AS109: 105 | AT109: 1 | AU109: 48.26746662 | AV109: 0.04975793462 | AW109: 43.75036937 | AX109: 45.1894616 | AY109: 48.26746662 | AZ109: 51.34547163 | BA109: 52.78456386 | BC109: 105 | BD109: 1 | BE109: 33.32772614 | BF109: 0.04426825 | BG109: 30.55286883 | BH109: 31.43690461 | BI109: 33.32772614 | BJ109: 35.21854766 | BK109: 36.10258344
AG110: 37.14285714 | AH110: 106 | AI110: 0.7362910561 | AJ110: 2977.112664 | AK110: 0.1496259652 | AL110: 2171.898919 | AM110: 2421.115937 | AN110: 2977.112664 | AO110: 3562.028739 | AP110: 3844.737539 | AR110: =22+AS110/7 -> 37.14285714 | AS110: 106 | AT110: 1 | AU110: 48.41645212 | AV110: 0.04945467844 | AW110: 43.91302705 | AX110: 45.34776349 | AY110: 48.41645212 | AZ110: 51.48514074 | BA110: 52.91987718 | BC110: 106 | BD110: 1 | BE110: 33.41857944 | BF110: 0.04408910277 | BG110: 30.64741777 | BH110: 31.53027617 | BI110: 33.41857944 | BJ110: 35.30688271 | BK110: 36.18974111
AG111: 37.28571429 | AH111: 107 | AI111: 0.7237743863 | AJ111: 3007.340479 | AK111: 0.1484475327 | AL111: 2201.538932 | AM111: 2450.677878 | AN111: 3007.340479 | AO111: 3594.117819 | AP111: 3878.119854 | AR111: 37.28571429 | AS111: 107 | AT111: 1 | AU111: 48.56395801 | AV111: 0.049152872 | AW111: 44.07437943 | AX111: 45.50470455 | AY111: 48.56395801 | AZ111: 51.62321147 | BA111: 53.05353658 | BC111: 107 | BD111: 1 | BE111: 33.50833264 | BF111: 0.04391011297 | BG111: 30.74100878 | BH111: 31.6226445 | BI111: 33.50833264 | BJ111: 35.39402079 | BK111: 36.27565651
AG112: 37.42857143 | AH112: 108 | AI112: 0.711511061 | AJ112: 3037.365771 | AK112: 0.1472964425 | AL112: 2230.96224 | AM112: 2480.0389 | AN112: 3037.365771 | AO112: 3625.963189 | AP112: 3911.228494 | AR112: 37.42857143 | AS112: 108 | AT112: 1 | AU112: 48.71003909 | AV112: 0.04885263318 | AW112: 44.23446175 | AX112: 45.66032624 | AY112: 48.71003909 | AZ112: 51.75975194 | BA112: 53.18561644 | BC112: 108 | BD112: 1 | BE112: 33.59701495 | BF112: 0.0437313156 | BG112: 30.83366523 | BH112: 31.71403484 | BI112: 33.59701495 | BJ112: 35.47999505 | BK112: 36.36036466
AG113: 37.57142857 | AH113: 109 | AI113: 0.699496263 | AJ113: 3067.21022 | AK113: 0.1461731371 | AL113: 2260.178574 | AM113: 2509.21175 | AN113: 3067.21022 | AO113: 3657.59744 | AP113: 3944.101476 | AR113: 37.57142857 | AS113: 109 | AT113: 1 | AU113: 48.85475018 | AV113: 0.04855407985 | AW113: 44.39330926 | AX113: 45.81467006 | AY113: 48.85475018 | AZ113: 51.8948303 | BA113: 53.31619111 | BC113: 109 | BD113: 1 | BE113: 33.68465556 | BF113: 0.04355274563 | BG113: 30.92541052 | BH113: 31.80447242 | BI113: 33.68465556 | BJ113: 35.56483869 | BK113: 36.44390059
AG114: 37.71428571 | AH114: 110 | AI114: 0.6877251751 | AJ114: 3096.895506 | AK114: 0.145078059 | AL114: 2289.198204 | AM114: 2538.209576 | AN114: 3096.895506 | AO114: 3689.052967 | AP114: 3976.776675 | AR114: 37.71428571 | AS114: 110 | AT114: 1 | AU114: 48.99814608 | AV114: 0.04825732988 | AW114: 44.55095726 | AX114: 45.96777752 | AY114: 48.99814608 | AZ114: 52.02851464 | BA114: 53.4453349 | BC114: 110 | BD114: 1 | BE114: 33.77128368 | BF114: 0.04337443805 | BG114: 31.0162681 | BH114: 31.89398255 | BI114: 33.77128368 | BJ114: 35.64858482 | BK114: 36.52629927
AG115: 37.85714286 | AH115: 111 | AI115: 0.6761929798 | AJ115: 3126.443306 | AK115: 0.144011651 | AL115: 2318.031945 | AM115: 2567.045928 | AN115: 3126.443306 | AO115: 3720.361975 | AP115: 4009.29183 | AR115: 37.85714286 | AS115: 111 | AT115: 1 | AU115: 49.1402816 | AV115: 0.04796250115 | AW115: 44.70744111 | AX115: 46.11969017 | AY115: 49.1402816 | AZ115: 52.16087303 | BA115: 53.57312208 | BC115: 111 | BD115: 1 | BE115: 33.85692853 | BF115: 0.04319642784 | BG115: 31.10626146 | BH115: 31.98259052 | BI115: 33.85692853 | BJ115: 35.73126655 | BK115: 36.60759561
AG116: 38 | AH116: 112 | AI116: 0.6648948598 | AJ116: 3155.875301 | AK116: 0.1429743556 | AL116: 2346.690635 | AM116: 2595.734374 | AN116: 3155.875301 | AO116: 3751.556659 | AP116: 4041.684673 | AR116: 38 | AS116: 112 | AT116: 1 | AU116: 49.28121154 | AV116: 0.04766971154 | AW116: 44.86279617 | AX116: 46.27044955 | AY116: 49.28121154 | AZ116: 52.29197352 | BA116: 53.69962691 | BC116: 112 | BD116: 1 | BE116: 33.94161932 | BF116: 0.04301875 | BG116: 31.19541411 | BH116: 32.07032168 | BI116: 33.94161932 | BJ116: 35.81291696 | BK116: 36.68782453
AG117: 38.14285714 | AH117: 113 | AI117: 0.6538259979 | AJ117: 3185.213171 | AK117: 0.1419666154 | AL117: 2375.185109 | AM117: 2624.288484 | AN117: 3185.213171 | AO117: 3782.669215 | AP117: 4073.992935 | AR117: 38.14285714 | AS117: 113 | AT117: 1 | AU117: 49.42099071 | AV117: 0.04737907891 | AW117: 45.01705777 | AX117: 46.42009723 | AY117: 49.42099071 | AZ117: 52.42188419 | BA117: 53.82492364 | BC117: 113 | BD117: 1 | BE117: 34.02538524 | BF117: 0.0428414395 | BG117: 31.28374956 | BH117: 32.15720134 | BI117: 34.02538524 | BJ117: 35.89356914 | BK117: 36.76702092
AG118: 38.28571429 | AH118: 114 | AI118: 0.6429815768 | AJ118: 3214.478594 | AK118: 0.140988873 | AL118: 2403.526207 | AM118: 2652.721825 | AN118: 3214.478594 | AO118: 3813.731836 | AP118: 4106.25435 | AR118: 38.28571429 | AS118: 114 | AT118: 1 | AU118: 49.55967392 | AV118: 0.04709072114 | AW118: 45.17026129 | AX118: 46.56867476 | AY118: 49.55967392 | AZ118: 52.55067308 | BA118: 53.94908654 | BC118: 114 | BD118: 1 | BE118: 34.10825551 | BF118: 0.04266453134 | BG118: 31.37129132 | BH118: 32.24325482 | BI118: 34.10825551 | BJ118: 35.9732562 | BK118: 36.84521969
AG119: 38.42857143 | AH119: 115 | AI119: 0.6323567791 | AJ119: 3243.693249 | AK119: 0.1400415711 | AL119: 2431.724764 | AM119: 2681.047966 | AN119: 3243.693249 | AO119: 3844.776719 | AP119: 4138.506649 | AR119: 38.42857143 | AS119: 115 | AT119: 1 | AU119: 49.69731597 | AV119: 0.0468047561 | AW119: 45.32244208 | AX119: 46.71622368 | AY119: 49.69731597 | AZ119: 52.67840826 | BA119: 54.07218987 | BC119: 115 | BD119: 1 | BE119: 34.19025933 | BF119: 0.0424880605 | BG119: 31.4580629 | BH119: 32.32850745 | BI119: 34.19025933 | BJ119: 36.05201122 | BK119: 36.92245576
AG120: 38.57142857 | AH120: 116 | AI120: 0.6219467876 | AJ120: 3272.878817 | AK120: 0.1391251523 | AL120: 2459.791623 | AM120: 2709.280481 | AN120: 3272.878817 | AO120: 3875.836054 | AP120: 4170.787562 | AR120: 38.57142857 | AS120: 116 | AT120: 1 | AU120: 49.83397168 | AV120: 0.04652130167 | AW120: 45.47363549 | AX120: 46.86278555 | AY120: 49.83397168 | AZ120: 52.8051578 | BA120: 54.19430787 | BC120: 116 | BD120: 1 | BE120: 34.27142592 | BF120: 0.04231206195 | BG120: 31.5440878 | BH120: 32.41298455 | BI120: 34.27142592 | BJ120: 36.12986729 | BK120: 36.99876403
AG121: 38.71428571 | AH121: 117 | AI121: 0.6117467848 | AJ121: 3302.056977 | AK121: 0.1382400591 | AL121: 2487.737743 | AM121: 2737.433065 | AN121: 3302.056977 | AO121: 3906.941959 | AP121: 4203.134785 | AR121: 38.71428571 | AS121: 117 | AT121: 1 | AU121: 49.96969584 | AV121: 0.04624047572 | AW121: 45.62387697 | AX121: 47.00840199 | AY121: 49.96969584 | AZ121: 52.93098969 | BA121: 54.31551471 | BC121: 117 | BD121: 1 | BE121: 34.35178447 | BF121: 0.0421365707 | BG121: 31.62938962 | BH121: 32.4967115 | BI121: 34.35178447 | BJ121: 36.20685744 | BK121: 37.07417933
AG122: 38.85714286 | AH122: 118 | AI122: 0.6017519536 | AJ122: 3331.249407 | AK122: 0.1373867342 | AL122: 2515.5742 | AM122: 2765.519536 | AN122: 3331.249407 | AO122: 3938.126471 | AP122: 4235.585976 | AR122: 38.85714286 | AS122: 118 | AT122: 1 | AU122: 50.10454327 | AV122: 0.04596239613 | AW122: 45.77320205 | AX122: 47.15311467 | AY122: 50.10454327 | AZ122: 53.05597187 | BA122: 54.43588449 | BC122: 118 | BD122: 1 | BE122: 34.4313642 | BF122: 0.04196162172 | BG122: 31.713992 | BH122: 32.57971373 | BI122: 34.4313642 | BJ122: 36.28301468 | BK122: 37.14873641
AG123: 39 | AH123: 119 | AI123: 0.5919574766 | AJ123: 3360.477788 | AK123: 0.1365656202 | AL123: 2543.312074 | AM123: 2793.553717 | AN123: 3360.477788 | AO123: 3969.421626 | AP123: 4268.178792 | AR123: 39 | AS123: 119 | AT123: 1 | AU123: 50.23856877 | AV123: 0.04568718077 | AW123: 45.92164627 | AX123: 47.29696526 | AY123: 50.23856877 | AZ123: 53.18017228 | BA123: 54.55549127 | BC123: 119 | BD123: 1 | BE123: 34.51019432 | BF123: 0.04178725 | BG123: 31.79791861 | BH123: 32.66201666 | BI123: 34.51019432 | BJ123: 36.35837198 | BK123: 37.22247002
AG124: 39.14285714 | AH124: 120 | AI124: 0.5823585365 | AJ124: 3389.763799 | AK124: 0.1357771597 | AL124: 2570.962444 | AM124: 2821.549431 | AN124: 3389.763799 | AO124: 4000.85946 | AP124: 4300.95089 | AR124: 39.14285714 | AS124: 120 | AT124: 1 | AU124: 50.37182715 | AV124: 0.04541494751 | AW124: 46.06924516 | AX124: 47.43999544 | AY124: 50.37182715 | AZ124: 53.30365886 | BA124: 54.67440914 | BC124: 120 | BD124: 1 | BE124: 34.58830403 | BF124: 0.04161349052 | BG124: 31.88119312 | BH124: 32.74364573 | BI124: 34.58830403 | BJ124: 36.43296233 | BK124: 37.29541493
AG125: 39.28571429 | AH125: 121 | AI125: 0.5729503161 | AJ125: 3419.129118 | AK125: 0.1350217953 | AL125: 2598.536392 | AM125: 2849.520502 | AN125: 3419.129118 | AO125: 4032.472008 | AP125: 4333.939927 | AR125: 39.28571429 | AS125: 121 | AT125: 1 | AU125: 50.50437322 | AV125: 0.04514581423 | AW125: 46.21603427 | AX125: 47.58224689 | AY125: 50.50437322 | AZ125: 53.42649954 | BA125: 54.79271216 | BC125: 121 | BD125: 1 | BE125: 34.66572253 | BF125: 0.04144037828 | BG125: 31.96383919 | BH125: 32.82462636 | BI125: 34.66572253 | BJ125: 36.50681871 | BK125: 37.36760587
AG126: 39.42857143 | AH126: 122 | AI126: 0.5637279979 | AJ126: 3448.595426 | AK126: 0.1342999697 | AL126: 2626.044997 | AM126: 2877.480751 | AN126: 3448.595426 | AO126: 4064.291307 | AP126: 4367.183559 | AR126: 39.42857143 | AS126: 122 | AT126: 1 | AU126: 50.63626177 | AV126: 0.0448798988 | AW126: 46.36204912 | AX126: 47.72376128 | AY126: 50.63626177 | AZ126: 53.54876227 | BA126: 54.91047443 | BC126: 122 | BD126: 1 | BE126: 34.74247905 | BF126: 0.04126794825 | BG126: 32.04588048 | BH126: 32.90498398 | BI126: 34.74247905 | BJ126: 36.57997411 | BK126: 37.43907761
AG127: 39.57142857 | AH127: 123 | AI127: 0.5546867647 | AJ127: 3478.184401 | AK127: 0.1336121254 | AL127: 2653.499332 | AM127: 2905.443998 | AN127: 3478.184401 | AO127: 4096.3494 | AP127: 4400.719463 | AR127: 39.57142857 | AS127: 123 | AT127: 1 | AU127: 50.76754763 | AV127: 0.0446173191 | AW127: 46.50732526 | AX127: 47.86458028 | AY127: 50.76754763 | AZ127: 53.67051498 | BA127: 55.02777001 | BC127: 123 | BD127: 1 | BE127: 34.81860277 | BF127: 0.04109623542 | BG127: 32.12734066 | BH127: 32.98474403 | BI127: 34.81860277 | BJ127: 36.65246152 | BK127: 37.50986489
AG128: 39.71428571 | AH128: 124 | AI128: 0.5458217991 | AJ128: 3507.917724 | AK128: 0.132958705 | AL128: 2680.910281 | AM128: 2933.423938 | AN128: 3507.917724 | AO128: 4128.678565 | AP128: 4434.585732 | AR128: 39.71428571 | AS128: 124 | AT128: 1 | AU128: 50.8982856 | AV128: 0.04435819299 | AW128: 46.65189825 | AX128: 48.0047456 | AY128: 50.8982856 | AZ128: 53.79182559 | BA128: 55.14467294 | BC128: 124 | BD128: 1 | BE128: 34.89412292 | BF128: 0.04092527478 | BG128: 32.20824346 | BH128: 33.06393198 | BI128: 34.89412292 | BJ128: 36.72431386 | BK128: 37.58000239
AG129: 39.85714286 | AH129: 125 | AI129: 0.537128284 | AJ129: 3537.817073 | AK129: 0.1323401512 | AL129: 2708.288538 | AM129: 2961.434145 | AN129: 3537.817073 | AO129: 4161.311308 | AP129: 4468.820882 | AR129: 39.85714286 | AS129: 125 | AT129: 1 | AU129: 51.02853048 | AV129: 0.04410263836 | AW129: 46.79580371 | AX129: 48.14429897 | AY129: 51.02853048 | AZ129: 53.91276199 | BA129: 55.26125724 | BC129: 125 | BD129: 1 | BE129: 34.9690687 | BF129: 0.04075510131 | BG129: 32.28861271 | BH129: 33.14257338 | BI129: 34.9690687 | BJ129: 36.79556402 | BK129: 37.64952469
AG130: 40 | AH130: 126 | AI130: 0.5286014019 | AJ130: 3567.904128 | AK130: 0.1317569066 | AL130: 2735.644792 | AM130: 2989.48819 | AN130: 3567.904128 | AO130: 4194.280145 | AP130: 4503.463444 | AR130: 40 | AS130: 126 | AT130: 1 | AU130: 51.15833708 | AV130: 0.04385077308 | AW130: 46.93907724 | AX130: 48.2832821 | AY130: 51.15833708 | AZ130: 54.03339206 | BA130: 55.37759691 | BC130: 126 | BD130: 1 | BE130: 35.04346932 | BF130: 0.04058575 | BG130: 32.36847224 | BH130: 33.22069377 | BI130: 35.04346932 | BJ130: 36.86624487 | BK130: 37.7184664
AG131: 40.14285714 | AH131: 127 | AI131: 0.5202363355 | AJ131: 3598.200568 | AK131: 0.1312094137 | AL131: 2762.98973 | AM131: 3017.599641 | AN131: 3598.200568 | AO131: 4227.617593 | AP131: 4538.551952 | AR131: 40.14285714 | AS131: 127 | AT131: 1 | AU131: 51.2877602 | AV131: 0.04360271502 | AW131: 47.08175444 | AX131: 48.42173671 | AY131: 51.2877602 | AZ131: 54.1537837 | BA131: 55.49376596 | BC131: 127 | BD131: 1 | BE131: 35.11735398 | BF131: 0.04041725583 | BG131: 32.44784586 | BH131: 33.29831867 | BI131: 35.11735398 | BJ131: 36.93638929 | BK131: 37.7868621
AG132: 40.28571429 | AH132: 128 | AI132: 0.5120282676 | AJ132: 3628.728073 | AK132: 0.1306981151 | AL132: 2790.334039 | AM132: 3045.782068 | AN132: 3628.728073 | AO132: 4261.356167 | AP132: 4574.124937 | AR132: 40.28571429 | AS132: 128 | AT132: 1 | AU132: 51.41685467 | AV132: 0.04335858205 | AW132: 47.22387093 | AX132: 48.55970454 | AY132: 51.41685467 | AZ132: 54.27400479 | BA132: 55.6098384 | BC132: 128 | BD132: 1 | BE132: 35.19075189 | BF132: 0.04024965379 | BG132: 32.52675739 | BH132: 33.37547363 | BI132: 35.19075189 | BJ132: 37.00603015 | BK132: 37.85474639
AG133: 40.42857143 | AH133: 129 | AI133: 0.5039723809 | AJ133: 3659.508322 | AK133: 0.1302234536 | AL133: 2817.688406 | AM133: 3074.049039 | AN133: 3659.508322 | AO133: 4295.528384 | AP133: 4610.220933 | AR133: 40.42857143 | AS133: 129 | AT133: 1 | AU133: 51.54567527 | AV133: 0.04311849205 | AW133: 47.36546231 | AX133: 48.69722731 | AY133: 51.54567527 | AZ133: 54.39412323 | BA133: 55.72588822 | BC133: 129 | BD133: 1 | BE133: 35.26369226 | BF133: 0.04008297886 | BG133: 32.60523067 | BH133: 33.45218419 | BI133: 35.26369226 | BJ133: 37.07520034 | BK133: 37.92215386
AG134: 40.57142857 | AH134: 130 | AI134: 0.4960639233 | AJ134: 3690.56229 | AK134: 0.1297858288 | AL134: 2845.063232 | AM134: 3102.413718 | AN134: 3690.56229 | AO134: 4330.165704 | AP134: 4646.877233 | AR134: 40.57142857 | AS134: 130 | AT134: 1 | AU134: 51.67427546 | AV134: 0.04288255949 | AW134: 47.50656328 | AX134: 48.83434568 | AY134: 51.67427546 | AZ134: 54.51420524 | BA134: 55.84198765 | BC134: 130 | BD134: 1 | BE134: 35.33620382 | BF134: 0.03991726501 | BG134: 32.68328912 | BH134: 33.52847547 | BI134: 35.33620382 | BJ134: 37.14393216 | BK134: 37.98911851
AG135: =22+AH135/7 -> 40.71428571 | AH135: 131 | AI135: 0.4882996471 | AJ135: 3721.894757 | AK135: 0.1293846552 | AL135: 2872.462316 | AM135: 3130.879909 | AN135: 3721.894757 | AO135: 4365.275293 | AP135: 4684.102625 | AR135: 40.71428571 | AS135: 131 | AT135: 1 | AU135: 51.8026775 | AV135: 0.04265082042 | AW135: 47.64718752 | AX135: 48.97107608 | AY135: 51.8026775 | AZ135: 54.63427893 | BA135: 55.95816749 | BC135: 131 | BD135: 1 | BE135: 35.40830411 | BF135: 0.03975252274 | BG135: 32.76094752 | BH135: 33.60436312 | BI135: 35.40830411 | BJ135: 37.2122451 | BK135: 38.05566071
AG136: 40.85714286 | AH136: 132 | AI136: 0.4806778084 | AJ136: 3753.494308 | AK136: 0.1290183621 | AL136: 2899.882856 | AM136: 3159.442056 | AN136: 3753.494308 | AO136: 4400.840022 | AP136: 4721.877393 | AR136: 40.85714286 | AS136: 132 | AT136: 1 | AU136: 51.93087245 | AV136: 0.04242323251 | AW136: 47.78732772 | AX136: 49.10741067 | AY136: 51.93087245 | AZ136: 54.75433423 | BA136: 56.07441717 | BC136: 132 | BD136: 1 | BE136: 35.47999954 | BF136: 0.03958873907 | BG136: 32.8382119 | BH136: 33.6798533 | BI136: 35.47999954 | BJ136: 37.28014578 | BK136: 38.12178719
AG137: 41 | AH137: 133 | AI137: 0.4731967289 | AJ137: 3785.348823 | AK137: 0.1286853358 | AL137: 2927.321763 | AM137: 3188.094199 | AN137: 3785.348823 | AO137: 4436.841706 | AP137: 4760.180581 | AR137: 41 | AS137: 133 | AT137: 1 | AU137: 52.05885 | AV137: 0.04219975 | AW137: 47.92697566 | AX137: 49.24334056 | AY137: 52.05885 | AZ137: 54.87435944 | BA137: 56.19072434 | BC137: 133 | BD137: 1 | BE137: 35.55129602 | BF137: 0.0394259 | BG137: 32.91508794 | BH137: 33.75495177 | BI137: 35.55129602 | BJ137: 37.34764028 | BK137: 38.18750411
AG138: 41.14285714 | AH138: 134 | AI138: 0.46585473 | AJ138: 3817.44618 | AK138: 0.1283839627 | AL138: 2954.775947 | AM138: 3216.830375 | AN138: 3817.44618 | AO138: 4473.262161 | AP138: 4798.991232 | AR138: 41.14285714 | AS138: 134 | AT138: 1 | AU138: 52.18659986 | AV138: 0.04198032714 | AW138: 48.06612309 | AX138: 49.37885686 | AY138: 52.18659986 | AZ138: 54.99434286 | BA138: 56.30707663 | BC138: 134 | BD138: 1 | BE138: 35.62219946 | BF138: 0.03926399154 | BG138: 32.99158132 | BH138: 33.82966426 | BI138: 35.62219946 | BJ138: 37.41473466 | BK138: 38.25281759
AG139: 41.28571429 | AH139: 135 | AI139: 0.4586501334 | AJ139: 3849.774262 | AK139: 0.1281126292 | AL139: 2982.242321 | AM139: 3245.644624 | AN139: 3849.774262 | AO139: 4510.083201 | AP139: 4838.288392 | AR139: 41.28571429 | AS139: 135 | AT139: 1 | AU139: 52.31411173 | AV139: 0.0417649182 | AW139: 48.2047618 | AX139: 49.51395069 | AY139: 52.31411173 | AZ139: 55.11427276 | BA139: 56.42346166 | BC139: 135 | BD139: 1 | BE139: 35.69271576 | BF139: 0.03910299971 | BG139: 33.06769772 | BH139: 33.90399654 | BI139: 35.69271576 | BJ139: 37.48143499 | BK139: 38.3177338
AG140: 41.42857143 | AH140: 136 | AI140: 0.4515812607 | AJ140: 3882.320948 | AK140: 0.1278697217 | AL140: 3009.717794 | AM140: 3274.530983 | AN140: 3882.320948 | AO140: 4547.286642 | AP140: 4878.051105 | AR140: 41.42857143 | AS140: 136 | AT140: 1 | AU140: 52.44137531 | AV140: 0.0415534774 | AW140: 48.34288355 | AX140: 49.64861316 | AY140: 52.44137531 | AZ140: 55.23413745 | BA140: 56.53986707 | BC140: 136 | BD140: 1 | BE140: 35.76285084 | BF140: 0.0389429105 | BG140: 33.14344281 | BH140: 33.97795434 | BI140: 35.76285084 | BJ140: 37.54774734 | BK140: 38.38225888
AG141: 41.57142857 | AH141: 137 | AI141: 0.4446464334 | AJ141: 3915.074118 | AK141: 0.1276536266 | AL141: 3037.19931 | AM141: 3303.483518 | AN141: 3915.074118 | AO141: 4584.854256 | AP141: 4918.258345 | AR141: 41.57142857 | AS141: 137 | AT141: 1 | AU141: 52.5683803 | AV141: 0.04134595902 | AW141: 48.48048012 | AX141: 49.78283539 | AY141: 52.5683803 | AZ141: 55.35392521 | BA141: 56.65628048 | BC141: 137 | BD141: 1 | BE141: 35.83261061 | BF141: 0.03878370991 | BG141: 33.21882227 | BH141: 34.05154344 | BI141: 35.83261061 | BJ141: 37.61367779 | BK141: 38.44639896
AG142: 41.71428571 | AH142: 138 | AI142: 0.4378439731 | AJ142: 3948.021652 | AK142: 0.1274627302 | AL142: 3064.68455 | AM142: 3332.496876 | AN142: 3948.021652 | AO142: 4622.766835 | AP142: 4958.887498 | AR142: =22+AS142/7 -> 41.71428571 | AS142: 138 | AT142: 1 | AU142: 52.6951164 | AV142: 0.04114231728 | AW142: 48.61754343 | AX142: 49.91660857 | AY142: 52.6951164 | AZ142: 55.47362423 | BA142: 56.77268938 | BC142: 138 | BD142: 1 | BE142: 35.90200098 | BF142: 0.03862538397 | BG142: 33.29384183 | BH142: 34.12476961 | BI142: 35.90200098 | BJ142: 37.67923236 | BK142: 38.51016013
AG143: 41.85714286 | AH143: 139 | AI143: 0.4311722013 | AJ143: 3981.151432 | AK143: 0.1272954187 | AL143: 3092.171933 | AM143: 3361.566295 | AN143: 3981.151432 | AO143: 4661.004187 | AP143: 4999.914362 | AR143: 41.85714286 | AS143: 139 | AT143: 1 | AU143: 52.82157333 | AV143: 0.04094250646 | AW143: 48.75406553 | AX143: 50.04992403 | AY143: 52.82157333 | AZ143: 55.59322262 | BA143: 56.88908112 | BC143: 139 | BD143: 1 | BE143: 35.97102786 | BF143: 0.03846791866 | BG143: 33.3685073 | BH143: 34.19763869 | BI143: 35.97102786 | BJ143: 37.74441703 | BK143: 38.57354842
AG144: 42 | AH144: 140 | AI144: 0.4246294396 | AJ144: 4014.451338 | AK144: 0.1271500785 | AL144: 3119.659908 | AM144: 3390.687034 | AN144: 4014.451338 | AO144: 4699.546079 | AP144: 5041.314663 | AR144: 42 | AS144: 140 | AT144: 1 | AU144: 52.94774077 | AV144: 0.04074648078 | AW144: 48.89003849 | AX144: 50.18277307 | AY144: 52.94774077 | AZ144: 55.71270846 | BA144: 57.00544304 | BC144: 140 | BD144: 1 | BE144: 36.03969716 | BF144: 0.0383113 | BG144: 33.44282448 | BH144: 34.27015653 | BI144: 36.03969716 | BJ144: 37.80923779 | BK144: 38.63656983
AG145: 42.14285714 | AH145: 141 | AI145: 0.4182140095 | AJ145: 4047.909251 | AK145: 0.1270250959 | AL145: 3147.146928 | AM145: 3419.854354 | AN145: 4047.909251 | AO145: 4738.372278 | AP145: 5083.06413 | AR145: 42.14285714 | AS145: 141 | AT145: 1 | AU145: 53.07360843 | AV145: 0.04055419451 | AW145: 49.02545437 | AX145: 50.31514701 | AY145: 53.07360843 | AZ145: 55.83206985 | BA145: 57.12176249 | BC145: 141 | BD145: 1 | BE145: 36.10801479 | BF145: 0.038155514 | BG145: 33.51679917 | BH145: 34.34232895 | BI145: 36.10801479 | BJ145: 37.87370063 | BK145: 38.6992304
AG146: 42.28571429 | AH146: 142 | AI146: 0.4119242326 | AJ146: 4081.513052 | AK146: 0.126918857 | AL146: 3174.631442 | AM146: 3449.063517 | AN146: 4081.513052 | AO146: 4777.462551 | AP146: 5125.13849 | AR146: 42.28571429 | AS146: 142 | AT146: 1 | AU146: 53.19916601 | AV146: 0.04036560188 | AW146: 49.16030523 | AX146: 50.44703714 | AY146: 53.19916601 | AZ146: 55.95129488 | BA146: 57.23802679 | BC146: 142 | BD146: 1 | BE146: 36.17598666 | BF146: 0.03800054665 | BG146: 33.59043717 | BH146: 34.41416179 | BI146: 36.17598666 | BJ146: 37.93781153 | BK146: 38.76153614
AG147: 42.42857143 | AH147: 143 | AI147: 0.4057584304 | AJ147: 4115.250622 | AK147: 0.1268297483 | AL147: 3202.111902 | AM147: 3478.309782 | AN147: 4115.250622 | AO147: 4816.796663 | AP147: 5167.51347 | AR147: 42.42857143 | AS147: 143 | AT147: 1 | AU147: 53.32440322 | AV147: 0.04018065716 | AW147: 49.29458314 | AX147: 50.57843479 | AY147: 53.32440322 | AZ147: 56.07037164 | BA147: 57.3542233 | BC147: 143 | BD147: 1 | BE147: 36.24361868 | BF147: 0.03784638397 | BG147: 33.66374429 | BH147: 34.48566088 | BI147: 36.24361868 | BJ147: 38.00157647 | BK147: 38.82349307
AG148: 42.57142857 | AH148: 144 | AI148: 0.3997149245 | AJ148: 4149.109841 | AK148: 0.1267561559 | AL148: 3229.586797 | AM148: 3507.588441 | AN148: 4149.109841 | AO148: 4856.354335 | AP148: 5210.164722 | AR148: 42.57142857 | AS148: 144 | AT148: 1 | AU148: 53.44930975 | AV148: 0.03999931458 | AW148: 49.42828016 | AX148: 50.70933127 | AY148: 53.44930975 | AZ148: 56.18928823 | BA148: 57.47033934 | BC148: 144 | BD148: 1 | BE148: 36.31091676 | BF148: 0.03769301195 | BG148: 33.73672632 | BH148: 34.55683208 | BI148: 36.31091676 | BJ148: 38.06500144 | BK148: 38.8851072
AG149: 42.71428571 | AH149: 145 | AI149: 0.3937920364 | AJ149: 4183.078589 | AK149: 0.1266964664 | AL149: 3257.055513 | AM149: 3536.895473 | AN149: 4183.078589 | AO149: 4896.114206 | AP149: 5253.066163 | AR149: 42.71428571 | AS149: 145 | AT149: 1 | AU149: 53.57387531 | AV149: 0.03982152841 | AW149: 49.5613885 | AX149: 50.83971798 | AY149: 53.57387531 | AZ149: 56.30803264 | BA149: 57.58636212 | BC149: 145 | BD149: 1 | BE149: 36.37788681 | BF149: 0.03754041661 | BG149: 33.80938913 | BH149: 34.62768124 | BI149: 36.37788681 | BJ149: 38.12809238 | BK149: 38.9463845
AG150: 42.85714286 | AH150: 146 | AI150: 0.3879880879 | AJ150: 4217.144745 | AK150: 0.1266490664 | AL150: 3284.518335 | AM150: 3566.227547 | AN150: 4217.144745 | AO150: 4936.053833 | AP150: 5296.189968 | AR150: 42.85714286 | AS150: 146 | AT150: 1 | AU150: 53.6980896 | AV150: 0.03964725288 | AW150: 49.69390051 | AX150: 50.96958644 | AY150: 53.6980896 | AZ150: 56.42659276 | BA150: 57.70227869 | BC150: 146 | BD150: 1 | BE150: 36.44453475 | BF150: 0.03738858396 | BG150: 33.88173863 | BH150: 34.6982143 | BI150: 36.44453475 | BJ150: 38.19085521 | BK150: 39.00733087
AG151: 43 | AH151: 147 | AI151: 0.3823014006 | AJ151: 4251.296186 | AK151: 0.1266123425 | AL151: 3311.975585 | AM151: 3595.581363 | AN151: 4251.296186 | AO151: 4976.150727 | AP151: 5339.508241 | AR151: 43 | AS151: 147 | AT151: 1 | AU151: 53.82194232 | AV151: 0.03947644227 | AW151: 49.82580854 | AX151: 51.09892815 | AY151: 53.82194232 | AZ151: 56.54495648 | BA151: 57.81807609 | BC151: 147 | BD151: 1 | BE151: 36.51086648 | BF151: 0.03723749999 | BG151: 33.95378074 | BH151: 34.76843715 | BI151: 36.51086648 | BJ151: 38.25329581 | BK151: 39.06795222
AG152: 43.14285714 | AH152: 148 | AI152: 0.3767302961 | AJ152: 4285.520791 | AK152: 0.1265846816 | AL152: 3339.427584 | AM152: 3624.953619 | AN152: 4285.520791 | AO152: 5016.3824 | AP152: 5382.993084 | AR152: 43.14285714 | AS152: 148 | AT152: 1 | AU152: 53.94542316 | AV152: 0.03930905081 | AW152: 49.95710495 | AX152: 51.22773461 | AY152: 53.94542316 | AZ152: 56.66311172 | BA152: 57.93374138 | BC152: 148 | BD152: 1 | BE152: 36.57688791 | BF152: 0.03708715072 | BG152: 34.02552139 | BH152: 34.83835573 | BI152: 36.57688791 | BJ152: 38.3154201 | BK152: 39.12825443
AG153: 43.28571429 | AH153: 149 | AI153: 0.3712730963 | AJ153: 4319.806438 | AK153: 0.1265644701 | AL153: 3366.874655 | AM153: 3654.341014 | AN153: 4319.806438 | AO153: 5056.726363 | AP153: 5426.616598 | AR153: 43.28571429 | AS153: 149 | AT153: 1 | AU153: 54.06852184 | AV153: 0.03914503276 | AW153: 50.08778208 | AX153: 51.35599735 | AY153: 54.06852184 | AZ153: 56.78104634 | BA153: 58.0492616 | BC153: 149 | BD153: 1 | BE153: 36.64260496 | BF153: 0.03693752215 | BG153: 34.0969665 | BH153: 34.90797594 | BI153: 36.64260496 | BJ153: 38.37723397 | BK153: 39.18824342
AG154: 43.42857143 | AH154: 150 | AI154: 0.3659281227 | AJ154: 4354.141005 | AK154: 0.1265500948 | AL154: 3394.31712 | AM154: 3683.740248 | AN154: 4354.141005 | AO154: 5097.160126 | AP154: 5470.350887 | AR154: 43.42857143 | AS154: 150 | AT154: 1 | AU154: 54.19122806 | AV154: 0.03898434238 | AW154: 50.2178323 | AX154: 51.48370785 | AY154: 54.19122806 | AZ154: 56.89874826 | BA154: 58.16462381 | BC154: 150 | BD154: 1 | BE154: 36.70802353 | BF154: 0.03678860029 | BG154: 34.16812197 | BH154: 34.97730371 | BI154: 36.70802353 | BJ154: 38.43874334 | BK154: 39.24792508
AG155: 43.57142857 | AH155: 151 | AI155: 0.360693697 | AJ155: 4388.51237 | AK155: 0.1265399424 | AL155: 3421.755345 | AM155: 3713.148052 | AN155: 4388.51237 | AO155: 5137.66115 | AP155: 5514.167972 | AR155: 43.57142857 | AS155: 151 | AT155: 1 | AU155: 54.3135315 | AV155: 0.03882693392 | AW155: 50.34724797 | AX155: 51.61085765 | AY155: 54.3135315 | AZ155: 57.01620536 | BA155: 58.27981504 | BC155: 151 | BD155: 1 | BE155: 36.77314953 | BF155: 0.03664037114 | BG155: 34.23899375 | BH155: 35.04634495 | BI155: 36.77314953 | BJ155: 38.4999541 | BK155: 39.30730531
AG156: 43.71428571 | AH156: 152 | AI156: 0.3555681407 | AJ156: 4422.908418 | AK156: 0.1265323987 | AL156: 3449.190672 | AM156: 3742.561901 | AN156: 4422.908418 | AO156: 5178.205764 | AP156: 5558.038048 | AR156: 43.71428571 | AS156: 152 | AT156: 1 | AU156: 54.43542189 | AV156: 0.03867276162 | AW156: 50.47602159 | AX156: 51.73743835 | AY156: 54.43542189 | AZ156: 57.13340542 | BA156: 58.39482219 | BC156: 152 | BD156: 1 | BE156: 36.83798887 | BF156: 0.03649282071 | BG156: 34.30958779 | BH156: 35.11510561 | BI156: 36.83798887 | BJ156: 38.56087213 | BK156: 39.36638996
AG157: 43.85714286 | AH157: 153 | AI157: 0.3505497749 | AJ157: 4457.317035 | AK157: 0.126525849 | AL157: 3476.62542 | AM157: 3771.98002 | AN157: 4457.317035 | AO157: 5218.769157 | AP157: 5601.92948 | AR157: 43.85714286 | AS157: 153 | AT157: 1 | AU157: 54.55688891 | AV157: 0.03852177972 | AW157: 50.60414584 | AX157: 51.86344169 | AY157: 54.55688891 | AZ157: 57.25033612 | BA157: 58.50963198 | BC157: 153 | BD157: 1 | BE157: 36.90254747 | BF157: 0.03634593501 | BG157: 34.37991013 | BH157: 35.1835917 | BI157: 36.90254747 | BJ157: 38.62150325 | BK157: 39.42518482
AG158: 44 | AH158: 154 | AI158: 0.3456369208 | AJ158: 4491.726109 | AK158: 0.1265186785 | AL158: 3504.061952 | AM158: 3801.400663 | AN158: 4491.726109 | AO158: 5259.326472 | AP158: 5645.810553 | AR158: 44 | AS158: 154 | AT158: 1 | AU158: 54.67792228 | AV158: 0.03837394246 | AW158: 50.73161339 | AX158: 51.9888594 | AY158: 54.67792228 | AZ158: 57.36698516 | BA158: 58.62423116 | BC158: 154 | BD158: 1 | BE158: 36.96683124 | BF158: 0.03619970003 | BG158: 34.44996679 | BH158: 35.25180919 | BI158: 36.96683124 | BJ158: 38.68185329 | BK158: 39.48369569
AG159: 44.14285714 | AH159: 155 | AI159: 0.3408278996 | AJ159: 4526.123529 | AK159: 0.1265092725 | AL159: 3531.502631 | AM159: 3830.822084 | AN159: 4526.123529 | AO159: 5299.85285 | AP159: 5689.649553 | AR159: 44.14285714 | AS159: 155 | AT159: 1 | AU159: 54.79851169 | AV159: 0.03822920407 | AW159: 50.85841693 | AX159: 52.11368319 | AY159: 54.79851169 | AZ159: 57.48334019 | BA159: 58.73860645 | BC159: 155 | BD159: 1 | BE159: 37.03084608 | BF159: 0.03605410178 | BG159: 34.51976381 | BH159: 35.31976407 | BI159: 37.03084608 | BJ159: 38.74192809 | BK159: 39.54192836
AG160: 44.28571429 | AH160: 156 | AI160: 0.3361210324 | AJ160: 4560.497182 | AK160: 0.1264960161 | AL160: 3558.949819 | AM160: 3860.242538 | AN160: 4560.497182 | AO160: 5340.323434 | AP160: 5733.414765 | AR160: 44.28571429 | AS160: 156 | AT160: 1 | AU160: 54.91864686 | AV160: 0.0380875188 | AW160: 50.98454914 | AX160: 52.23790481 | AY160: 54.91864686 | AZ160: 57.59938891 | BA160: 58.85274459 | BC160: 156 | BD160: 1 | BE160: 37.09459792 | BF160: 0.03590912626 | BG160: 34.58930721 | BH160: 35.38746235 | BI160: 37.09459792 | BJ160: 38.80173348 | BK160: 39.59988862
AG161: 44.42857143 | AH161: 157 | AI161: 0.3315146405 | AJ161: 4594.834957 | AK161: 0.1264772946 | AL161: 3586.405878 | AM161: 3889.66028 | AN161: 4594.834957 | AO161: 5380.713365 | AP161: 5777.074476 | AR161: 44.42857143 | AS161: 157 | AT161: 1 | AU161: 55.03831749 | AV161: 0.03794884089 | AW161: 51.11000268 | AX161: 52.36151599 | AY161: 55.03831749 | AZ161: 57.71511899 | BA161: 58.9666323 | BC161: 157 | BD161: 1 | BE161: 37.15809265 | BF161: 0.03576475949 | BG161: 34.65860303 | BH161: 35.45491002 | BI161: 37.15809265 | BJ161: 38.86127529 | BK161: 39.65758228
AG162: 44.57142857 | AH162: 158 | AI162: 0.327007045 | AJ162: 4629.124741 | AK162: 0.1264514933 | AL162: 3613.87322 | AM162: 3919.0736 | AN162: 4629.124741 | AO162: 5420.99773 | AP162: 5820.596883 | AR162: 44.57142857 | AS162: 158 | AT162: 1 | AU162: 55.15751328 | AV162: 0.03781312456 | AW162: 51.23477025 | AX162: 52.48450846 | AY162: 55.15751328 | AZ162: 57.8305181 | BA162: 59.08025631 | BC162: 158 | BD162: 1 | BE162: 37.2213362 | BF162: 0.03562098745 | BG162: 34.72765729 | BH162: 35.52211305 | BI162: 37.2213362 | BJ162: 38.92055934 | BK162: 39.71501511
AG163: 44.71428571 | AH163: 159 | AI163: 0.3225965682 | AJ163: 4663.354403 | AK163: 0.1264170002 | AL163: 3641.355368 | AM163: 3948.481619 | AN163: 4663.354403 | AO163: 5461.150353 | AP163: 5863.948173 | AR163: 44.71428571 | AS163: 159 | AT163: 1 | AU163: 55.27622393 | AV163: 0.03768032409 | AW163: 51.35884466 | AX163: 52.60687404 | AY163: 55.27622393 | AZ163: 57.94557382 | BA163: 59.1936032 | BC163: 159 | BD163: 1 | BE163: 37.28433447 | BF163: 0.03547779616 | BG163: 34.79647607 | BH163: 35.58907749 | BI163: 37.28433447 | BJ163: 38.97959144 | BK163: 39.77219286
AG164: 44.85714286 | AH164: 160 | AI164: 0.3182815328 | AJ164: 4697.511797 | AK164: 0.1263722057 | AL164: 3668.856959 | AM164: 3977.884284 | AN164: 4697.511797 | AO164: 5501.143793 | AP164: 5907.092519 | AR164: 44.85714286 | AS164: 160 | AT164: 1 | AU164: 55.39443913 | AV164: 0.03755039378 | AW164: 51.48221889 | AX164: 52.72860467 | AY164: 55.39443913 | AZ164: 58.0602736 | BA164: 59.30665938 | BC164: 160 | BD164: 1 | BE164: 37.34709336 | BF164: 0.03533517164 | BG164: 34.86506552 | BH164: 35.65580939 | BI164: 37.34709336 | BJ164: 39.03837733 | BK164: 39.82912121
AG165: 45 | AH165: 161 | AI165: 0.3140602621 | AJ165: 4731.584772 | AK165: 0.1263155004 | AL165: 3696.382677 | AM165: 4007.281579 | AN165: 4731.584772 | AO165: 5540.950555 | AP165: 5949.994008 | AR165: 45 | AS165: 161 | AT165: 1 | AU165: 55.51214858 | AV165: 0.03742328791 | AW165: 51.60488589 | AX165: 52.84969225 | AY165: 55.51214858 | AZ165: 58.1746049 | BA165: 59.41941126 | BC165: 161 | BD165: 1 | BE165: 37.40961879 | BF165: 0.0351930999 | BG165: 34.93343175 | BH165: 35.72231482 | BI165: 37.40961879 | BJ165: 39.09692277 | BK165: 39.88580584
AG166: 45.14285714 | AH166: 162 | AI166: 0.3099310791 | AJ166: 4765.561181 | AK166: 0.1262452751 | AL166: 3723.937209 | AM166: 4036.673487 | AN166: 4765.561181 | AO166: 5580.543144 | AP166: 5992.616726 | AR166: 45.14285714 | AS166: 162 | AT166: 1 | AU166: 55.62934196 | AV166: 0.03729896078 | AW166: 51.72683865 | AX166: 52.97012873 | AY166: 55.62934196 | AZ166: 58.28855519 | BA166: 59.53184527 | BC166: 162 | BD166: 1 | BE166: 37.47191667 | BF166: 0.03505156694 | BG166: 35.0015809 | BH166: 35.78859983 | BI166: 37.47191667 | BJ166: 39.15523351 | BK166: 39.94225243
AG167: =22+AH167/7 -> 45.28571429 | AH167: 163 | AI167: 0.3058923068 | AJ167: 4799.428875 | AK167: 0.1261599203 | AL167: 3751.525238 | AM167: 4066.059994 | AN167: 4799.428875 | AO167: 5619.894064 | AP167: 6034.924761 | AR167: 45.28571429 | AS167: 163 | AT167: 1 | AU167: 55.74600897 | AV167: 0.03717736668 | AW167: 51.84807013 | AX167: 53.08990603 | AY167: 55.74600897 | AZ167: 58.40211192 | BA167: 59.64394782 | BC167: 163 | BD167: 1 | BE167: 37.53399289 | BF167: 0.0349105588 | BG167: 35.06951912 | BH167: 35.85467048 | BI167: 37.53399289 | BJ167: 39.2133153 | BK167: 39.99846666
AG168: 45.42857143 | AH168: 164 | AI168: 0.3019422682 | AJ168: 4833.175705 | AK168: 0.1260578268 | AL168: 3779.15145 | AM168: 4095.441082 | AN168: 4833.175705 | AO168: 5658.97582 | AP168: 6076.882197 | AR168: 45.42857143 | AS168: 164 | AT168: 1 | AU168: 55.86213931 | AV168: 0.03705845992 | AW168: 51.9685733 | AX168: 53.20901606 | AY168: 55.86213931 | AZ168: 58.51526255 | BA168: 59.75570532 | BC168: 164 | BD168: 1 | BE168: 37.59585337 | BF168: 0.03477006147 | BG168: 35.13725252 | BH168: 35.92053284 | BI168: 37.59585337 | BJ168: 39.27117389 | BK168: 40.05445421
AG169: 45.57142857 | AH169: 165 | AI169: 0.2980792699 | AJ169: 4866.789759 | AK169: 0.1259374474 | AL169: 3806.82024 | AM169: 4124.816593 | AN169: 4866.789759 | AO169: 5697.761627 | AP169: 6118.454093 | AR169: 45.57142857 | AS169: 165 | AT169: 1 | AU169: 55.9777232 | AV169: 0.03694219417 | AW169: 52.08834171 | AX169: 53.32745134 | AY169: 55.9777232 | AZ169: 58.62799507 | BA169: 59.8671047 | BC169: 165 | BD169: 1 | BE169: 37.65750401 | BF169: 0.03463006098 | BG169: 35.20478724 | BH169: 35.98619297 | BI169: 37.65750401 | BJ169: 39.32881504 | BK169: 40.11022077
AG170: 45.71428571 | AH170: 166 | AI170: 0.2943012391 | AJ170: 4900.264542 | AK170: 0.125798671 | AL170: 3834.529334 | AM170: 4154.183073 | AN170: 4900.264542 | AO170: 5736.241061 | AP170: 6159.627805 | AR170: 45.71428571 | AS170: 166 | AT170: 1 | AU170: 56.0927634 | AV170: 0.03682850908 | AW170: 52.20738225 | AX170: 53.44521742 | AY170: 56.0927634 | AZ170: 58.74030939 | BA170: 59.97814456 | BC170: 166 | BD170: 1 | BE170: 37.71895072 | BF170: 0.03449054332 | BG170: 35.27212947 | BH170: 36.05165696 | BI170: 37.71895072 | BJ170: 39.38624449 | BK170: 40.16577197
AG171: 45.85714286 | AH171: 167 | AI171: 0.2906057237 | AJ171: 4933.598979 | AK171: 0.125642822 | AL171: 3862.269786 | AM171: 4183.533775 | AN171: 4933.598979 | AO171: 5774.42005 | AP171: 6200.412994 | AR171: 45.85714286 | AS171: 167 | AT171: 1 | AU171: 56.20727518 | AV171: 0.0367173303 | AW171: 52.32571516 | AX171: 53.56233296 | AY171: 56.20727518 | AZ171: 58.85221739 | BA171: 60.0888352 | BC171: 167 | BD171: 1 | BE171: 37.78019944 | BF171: 0.03435149447 | BG171: 35.33928543 | BH171: 36.11693094 | BI171: 37.78019944 | BJ171: 39.44346794 | BK171: 40.22111345
AG172: 46 | AH172: 168 | AI172: 0.286990255 | AJ172: 4966.79223 | AK172: 0.1254712869 | AL172: 3890.032363 | AM172: 4212.861807 | AN172: 4966.79223 | AO172: 5812.305239 | AP172: 6240.820289 | AR172: 46 | AS172: 168 | AT172: 1 | AU172: 56.32127433 | AV172: 0.03660858284 | AW172: 52.44336125 | AX172: 53.67881718 | AY172: 56.32127433 | AZ172: 58.96373148 | BA172: 60.19918741 | BC172: 168 | BD172: 1 | BE172: 37.84125609 | BF172: 0.03421290039 | BG172: 35.40626135 | BH172: 36.18202105 | BI172: 37.84125609 | BJ172: 39.50049113 | BK172: 40.27625083
AG173: 46.14285714 | AH173: 169 | AI173: 0.2834523643 | AJ173: 4999.843455 | AK173: 0.1252854528 | AL173: 3917.80783 | AM173: 4242.160279 | AN173: 4999.843455 | AO173: 5849.903269 | AP173: 6280.860321 | AR173: 46.14285714 | AS173: 169 | AT173: 1 | AU173: 56.43477668 | AV173: 0.0365021917 | AW173: 52.56034135 | AX173: 53.79468931 | AY173: 56.43477668 | AZ173: 59.07486405 | BA173: 60.30921202 | BC173: 169 | BD173: 1 | BE173: 37.90212658 | BF173: 0.03407474706 | BG173: 35.47306344 | BH173: 36.2469334 | BI173: 37.90212658 | BJ173: 39.55731975 | BK173: 40.33118972
AG174: 46.28571429 | AH174: 170 | AI174: 0.279989583 | AJ174: 5032.751814 | AK174: 0.1250867062 | AL174: 3945.586953 | AM174: 4271.422301 | AN174: 5032.751814 | AO174: 5887.220783 | AP174: 6320.543718 | AR174: =22+AS174/7 -> 46.28571429 | AS174: 170 | AT174: 1 | AU174: 56.54779803 | AV174: 0.03639808193 | AW174: 52.67667627 | AX174: 53.90996857 | AY174: 56.54779803 | AZ174: 59.1856275 | BA174: 60.4189198 | BC174: 170 | BD174: 1 | BE174: 37.96281684 | BF174: 0.03393702046 | BG174: 35.53969793 | BH174: 36.31167414 | BI174: 37.96281684 | BJ174: 39.61395955 | BK174: 40.38593575
AG175: 46.42857143 | AH175: 171 | AI175: 0.2765994425 | AJ175: 5065.516467 | AK175: 0.1248764341 | AL175: 3973.360498 | AM175: 4300.64098 | AN175: 5065.516467 | AO175: 5924.264422 | AP175: 6359.881112 | AR175: 46.42857143 | AS175: 171 | AT175: 1 | AU175: 56.66035419 | AV175: 0.03629617852 | AW175: 52.79238682 | AX175: 54.02467417 | AY175: 56.66035419 | AZ175: 59.29603422 | BA175: 60.52832157 | BC175: 171 | BD175: 1 | BE175: 38.02333281 | BF175: 0.03379970657 | BG175: 35.60617106 | BH175: 36.37624939 | BI175: 38.02333281 | BJ175: 39.67041622 | BK175: 40.44049455
AG176: 46.57142857 | AH176: 172 | AI176: 0.2732794747 | AJ176: 5098.136563 | AK176: 0.1246560247 | AL176: 4001.119162 | AM176: 4329.809374 | AN176: 5098.136563 | AO176: 5961.040881 | AP176: 6398.883219 | AR176: 46.57142857 | AS176: 172 | AT176: 1 | AU176: 56.77246097 | AV176: 0.03619640651 | AW176: 52.90749383 | AX176: 54.13882534 | AY176: 56.77246097 | AZ176: 59.4060966 | BA176: 60.63742811 | BC176: 172 | BD176: 1 | BE176: 38.08368038 | BF176: 0.03366279135 | BG176: 35.67248905 | BH176: 36.44066528 | BI176: 38.08368038 | BJ176: 39.72669549 | BK176: 40.49487172
AG177: 46.71428571 | AH177: 173 | AI177: 0.2700272239 | AJ177: 5130.611009 | AK177: 0.1244269025 | AL177: 4028.852093 | AM177: 4358.919321 | AN177: 5130.611009 | AO177: 5997.558025 | AP177: 6437.562779 | AR177: 46.71428571 | AS177: 173 | AT177: 1 | AU177: 56.88413409 | AV177: 0.03609869133 | AW177: 53.02201835 | AX177: 54.25244144 | AY177: 56.88413409 | AZ177: 59.51582674 | BA177: 60.74624983 | BC177: 173 | BD177: 1 | BE177: 38.14386547 | BF177: 0.03352626086 | BG177: 35.73865817 | BH177: 36.50492796 | BI177: 38.14386547 | BJ177: 39.78280299 | BK177: 40.54907277
AG178: 46.85714286 | AH178: 174 | AI178: 0.2668402469 | AJ178: 5162.938464 | AK178: 0.1241905283 | AL178: 4056.546887 | AM178: 4387.961445 | AN178: 5162.938464 | AO178: 6033.824892 | AP178: 6475.934552 | AR178: 46.85714286 | AS178: 174 | AT178: 1 | AU178: 56.9953892 | AV178: 0.03600295875 | AW178: 53.13598165 | AX178: 54.36554194 | AY178: 56.9953892 | AZ178: 59.62523645 | BA178: 60.85479674 | BC178: 174 | BD178: 1 | BE178: 38.20389394 | BF178: 0.03339010123 | BG178: 35.80468477 | BH178: 36.56904363 | BI178: 38.20389394 | BJ178: 39.83874425 | BK178: 40.6031031
AG179: 47 | AH179: 175 | AI179: 0.2637161012 | AJ179: 5195.117581 | AK179: 0.1239483642 | AL179: 4084.191073 | AM179: 4416.926315 | AN179: 5195.117581 | AO179: 6069.850572 | AP179: 6514.013388 | AR179: 47 | AS179: 175 | AT179: 1 | AU179: 57.10624193 | AV179: 0.03590913459 | AW179: 53.24940501 | AX179: 54.47814633 | AY179: 57.10624193 | AZ179: 59.73433753 | BA179: 60.96307886 | BC179: 175 | BD179: 1 | BE179: 38.26377163 | BF179: 0.03325429856 | BG179: 35.87057518 | BH179: 36.63301845 | BI179: 38.26377163 | BJ179: 39.89452481 | BK179: 40.65696809
AG180: 47.14285714 | AH180: 176 | AI180: 0.260652344 | AJ180: 5227.14701 | AK180: 0.1237018726 | AL180: 4111.772178 | AM180: 4445.8045 | AN180: 5227.14701 | AO180: 6105.644153 | AP180: 6551.814135 | AR180: 47.14285714 | AS180: 176 | AT180: 1 | AU180: 57.21670794 | AV180: 0.03581714466 | AW180: 53.36230971 | AX180: 54.5902741 | AY180: 57.21670794 | AZ180: 59.84314179 | BA180: 61.07110618 | BC180: 176 | BD180: 1 | BE180: 38.32350442 | BF180: 0.03311883898 | BG180: 35.93633572 | BH180: 36.69685863 | BI180: 38.32350442 | BJ180: 39.95015022 | BK180: 40.71067312
AG181: 47.28571429 | AH181: 177 | AI181: 0.2576465328 | AJ181: 5259.0254 | AK181: 0.1234525156 | AL181: 4139.277733 | AM181: 4474.58657 | AN181: 5259.0254 | AO181: 6141.214726 | AP181: 6589.351643 | AR181: 47.28571429 | AS181: 177 | AT181: 1 | AU181: 57.32680287 | AV181: 0.03572691477 | AW181: 53.47471702 | AX181: 54.70194471 | AY181: 57.32680287 | AZ181: 59.95166103 | BA181: 61.17888871 | BC181: 177 | BD181: 1 | BE181: 38.38309817 | BF181: 0.03298370862 | BG181: 36.00197275 | BH181: 36.76057034 | BI181: 38.38309817 | BJ181: 40.005626 | BK181: 40.7642236
AG182: 47.42857143 | AH182: 178 | AI182: 0.254696225 | AJ182: 5290.751405 | AK182: 0.1232017555 | AL182: 4166.695264 | AM182: 4503.263096 | AN182: 5290.751405 | AO182: 6176.571378 | AP182: 6626.640759 | AR182: 47.42857143 | AS182: 178 | AT182: 1 | AU182: 57.43654235 | AV182: 0.03563837071 | AW182: 53.58664824 | AX182: 54.81317767 | AY182: 57.43654235 | AZ182: 60.05990704 | BA182: 61.28643647 | BC182: 178 | BD182: 1 | BE182: 38.44255874 | BF182: 0.0328488936 | BG182: 36.06749258 | BH182: 36.82415977 | BI182: 38.44255874 | BJ182: 40.06095771 | BK182: 40.81762489
AG183: 47.57142857 | AH183: 179 | AI183: 0.2517989758 | AJ183: 5322.323713 | AK183: 0.1229510488 | AL183: 4194.012349 | AM183: 4531.82469 | AN183: 5322.323713 | AO183: 6211.723234 | AP183: 6663.696365 | AR183: 47.57142857 | AS183: 179 | AT183: 1 | AU183: 57.54594205 | AV183: 0.03555143825 | AW183: 53.69812466 | AX183: 54.92399247 | AY183: 57.54594205 | AZ183: 60.16789163 | BA183: 61.39375944 | BC183: 179 | BD183: 1 | BE183: 38.50189199 | BF183: 0.03271438002 | BG183: 36.13290156 | BH183: 36.88763309 | BI183: 38.50189199 | BJ183: 40.11615088 | BK183: 40.87088241
AG184: 47.71428571 | AH184: 180 | AI184: 0.2489522942 | AJ184: 5353.741925 | AK184: 0.1227017167 | AL184: 4221.217651 | AM184: 4560.263005 | AN184: 5353.741925 | AO184: 6246.680204 | AP184: 6700.534083 | AR184: 47.71428571 | AS184: 180 | AT184: 1 | AU184: 57.65501791 | AV184: 0.03546604171 | AW184: 53.80916812 | AX184: 55.03440908 | AY184: 57.65501791 | AZ184: 60.27562675 | BA184: 61.5008677 | BC184: 180 | BD184: 1 | BE184: 38.5611039 | BF184: 0.03258015374 | BG184: 36.19820604 | BH184: 36.95099655 | BI184: 38.5611039 | BJ184: 40.17121124 | BK184: 40.92400176
AG185: 47.85714286 | AH185: 181 | AI185: 0.2461536423 | AJ185: 5385.006554 | AK185: 0.1224549458 | AL185: 4248.300923 | AM185: 4588.57073 | AN185: 5385.006554 | AO185: 6281.452987 | AP185: 6737.170274 | AR185: 47.85714286 | AS185: 181 | AT185: 1 | AU185: 57.7637862 | AV185: 0.03538210401 | AW185: 53.91980102 | AX185: 55.14444793 | AY185: 57.7637862 | AZ185: 60.38312446 | BA185: 61.60777138 | BC185: 181 | BD185: 1 | BE185: 38.62020056 | BF185: 0.03244620034 | BG185: 36.26341237 | BH185: 37.01425642 | BI185: 38.62020056 | BJ185: 40.2261447 | BK185: 40.97698875
AG186: 48 | AH186: 182 | AI186: 0.2434004805 | AJ186: 5416.118152 | AK186: 0.1222119166 | AL186: 4275.251964 | AM186: 4616.740599 | AN186: 5416.118152 | AO186: 6316.052313 | AP186: 6773.621334 | AR186: 48 | AS186: 182 | AT186: 1 | AU186: 57.87226316 | AV186: 0.03529954802 | AW186: 54.03004575 | AX186: 55.25412947 | AY186: 57.87226316 | AZ186: 60.49039685 | BA186: 61.71448058 | BC186: 182 | BD186: 1 | BE186: 38.67918807 | BF186: 0.03231250538 | BG186: 36.32852691 | BH186: 37.07741896 | BI186: 38.67918807 | BJ186: 40.28095717 | BK186: 41.02984922
AG187: 48.14285714 | AH187: 183 | AI187: 0.2406902691 | AJ187: 5447.07727 | AK187: 0.1219738097 | AL187: 4302.060574 | AM187: 4644.765345 | AN187: 5447.07727 | AO187: 6350.488915 | AP187: 6809.903658 | AR187: 48.14285714 | AS187: 183 | AT187: 1 | AU187: 57.98046507 | AV187: 0.03521829659 | AW187: 54.13992472 | AX187: 55.36347415 | AY187: 57.98046507 | AZ187: 60.59745599 | BA187: 61.82100543 | BC187: 183 | BD187: 1 | BE187: 38.73807251 | BF187: 0.03217905445 | BG187: 36.39355603 | BH187: 37.14049046 | BI187: 38.73807251 | BJ187: 40.33565457 | BK187: 41.082589
AG188: 48.28571429 | AH188: 184 | AI188: 0.2380204682 | AJ188: 5477.884459 | AK188: 0.1217418057 | AL188: 4328.716553 | AM188: 4672.637701 | AN188: 5477.884459 | AO188: 6384.773525 | AP188: 6846.033639 | AR188: 48.28571429 | AS188: 184 | AT188: 1 | AU188: 58.0884082 | AV188: 0.03513827258 | AW188: 54.24946034 | AX188: 55.47250242 | AY188: 58.0884082 | AZ188: 60.70431397 | BA188: 61.92735606 | BC188: 184 | BD188: 1 | BE188: 38.79685999 | BF188: 0.0320458331 | BG188: 36.45850608 | BH188: 37.20347719 | BI188: 38.79685999 | BJ188: 40.39024279 | BK188: 41.1352139
AG189: 48.42857143 | AH189: 185 | AI189: 0.2353885383 | AJ189: 5508.540271 | AK189: 0.1215170852 | AL189: 4355.2097 | AM189: 4700.350403 | AN189: 5508.540271 | AO189: 6418.916875 | AP189: 6882.027672 | AR189: 48.42857143 | AS189: 185 | AT189: 1 | AU189: 58.1961088 | AV189: 0.03505939885 | AW189: 54.35867501 | AX189: 55.58123473 | AY189: 58.1961088 | AZ189: 60.81098286 | BA189: 62.03354258 | BC189: 185 | BD189: 1 | BE189: 38.8555566 | BF189: 0.03191282692 | BG189: 36.52338342 | BH189: 37.26638542 | BI189: 38.8555566 | BJ189: 40.44472777 | BK189: 41.18772977
AG190: 48.57142857 | AH190: 186 | AI190: 0.2327919472 | AJ190: 5539.04511 | AK190: 0.1213008506 | AL190: 4381.529465 | AM190: 4727.895888 | AN190: 5539.04511 | AO190: 6452.929746 | AP190: 6917.902313 | AR190: 48.57142857 | AS190: 186 | AT190: 1 | AU190: 58.30358309 | AV190: 0.03498159849 | AW190: 54.46759111 | AX190: 55.68969149 | AY190: 58.30358309 | AZ190: 60.91747468 | BA190: 62.13957506 | BC190: 186 | BD190: 1 | BE190: 38.91416841 | BF190: 0.03178002151 | BG190: 36.58819443 | BH190: 37.32922144 | BI190: 38.91416841 | BJ190: 40.49911537 | BK190: 41.24014239
AG191: 48.71428571 | AH191: 187 | AI191: 0.2302283362 | AJ191: 5569.395981 | AK191: 0.1210948081 | AL191: 4407.657247 | AM191: 4755.259799 | AN191: 5569.395981 | AO191: 6486.824044 | AP191: 6953.677806 | AR191: 48.71428571 | AS191: 187 | AT191: 1 | AU191: 58.41084617 | AV191: 0.03490479986 | AW191: 54.57623021 | AX191: 55.7978922 | AY191: 58.41084617 | AZ191: 61.02380014 | BA191: 62.24546214 | BC191: 187 | BD191: 1 | BE191: 38.97270108 | BF191: 0.03164740347 | BG191: 36.65294561 | BH191: 37.39199148 | BI191: 38.97270108 | BJ191: 40.55341068 | BK191: 41.29245655
AG192: 48.85714286 | AH192: 188 | AI192: 0.2276955204 | AJ192: 5599.586488 | AK192: 0.1209011676 | AL192: 4433.566394 | AM192: 4782.420987 | AN192: 5599.586488 | AO192: 6520.6128 | AP192: 6989.378088 | AR192: 48.85714286 | AS192: 188 | AT192: 1 | AU192: 58.51791205 | AV192: 0.03482893659 | AW192: 54.68461304 | AX192: 55.90585547 | AY192: 58.51791205 | AZ192: 61.12996862 | BA192: 62.35121105 | BC192: 188 | BD192: 1 | BE192: 39.03115986 | BF192: 0.03151496039 | BG192: 36.71764365 | BH192: 37.45470177 | BI192: 39.03115986 | BJ192: 40.60761794 | BK192: 41.34467606
AG193: 49 | AH193: 189 | AI193: 0.2251913226 | AJ193: 5629.61009 | AK193: 0.1207221609 | AL193: 4459.229904 | AM193: 4809.358004 | AN193: 5629.61009 | AO193: 6554.309096 | AP193: 7025.027256 | AR193: 49 | AS193: 189 | AT193: 1 | AU193: 58.62479465 | AV193: 0.03475394256 | AW193: 54.79276033 | AX193: 56.01359985 | AY193: 58.62479465 | AZ193: 61.23598945 | BA193: 62.45682897 | BC193: 189 | BD193: 1 | BE193: 39.08954996 | BF193: 0.0313826799 | BG193: 36.78229523 | BH193: 37.51735852 | BI193: 39.08954996 | BJ193: 40.66174141 | BK193: 41.3968047
AG194: 49.14285714 | AH194: 190 | AI194: 0.2227135654 | AJ194: 5659.460243 | AK194: 0.1205600197 | AL194: 4484.620775 | AM194: 4836.049406 | AN194: 5659.460243 | AO194: 6587.92601 | AP194: 7060.649405 | AR194: 49.14285714 | AS194: 190 | AT194: 1 | AU194: 58.73150793 | AV194: 0.03467975163 | AW194: 54.9006928 | AX194: 56.1211439 | AY194: 58.73150793 | AZ194: 61.34187197 | BA194: 62.56232306 | BC194: 190 | BD194: 1 | BE194: 39.14787663 | BF194: 0.03125054964 | BG194: 36.84690704 | BH194: 37.57996796 | BI194: 39.14787663 | BJ194: 40.7157853 | BK194: 41.44884622
AG195: 49.28571429 | AH195: 191 | AI195: 0.2202600713 | AJ195: 5689.130406 | AK195: 0.1204169759 | AL195: 4509.712006 | AM195: 4862.473745 | AN195: 5689.130406 | AO195: 6621.476624 | AP195: 7096.268633 | AR195: 49.28571429 | AS195: 191 | AT195: 1 | AU195: 58.83806583 | AV195: 0.03460629766 | AW195: 55.00843117 | AX195: 56.22850618 | AY195: 58.83806583 | AZ195: 61.44762548 | BA195: 62.6677005 | BC195: 191 | BD195: 1 | BE195: 39.20614507 | BF195: 0.03111855722 | BG195: 36.91148575 | BH195: 37.64253629 | BI195: 39.20614507 | BJ195: 40.76975385 | BK195: 41.50080439
AG196: 49.42857143 | AH196: 192 | AI196: 0.2178286631 | AJ196: 5718.614036 | AK196: 0.1202952613 | AL196: 4534.476595 | AM196: 4888.609575 | AN196: 5718.614036 | AO196: 6654.974018 | AP196: 7131.909036 | AR196: 49.42857143 | AS196: 192 | AT196: 1 | AU196: 58.9444823 | AV196: 0.03453351452 | AW196: 55.11599614 | AX196: 56.33570526 | AY196: 58.9444823 | AZ196: 61.55325933 | BA196: 62.77296845 | BC196: 192 | BD196: 1 | BE196: 39.26436052 | BF196: 0.03098669028 | BG196: 36.97603805 | BH196: 37.70506975 | BI196: 39.26436052 | BJ196: 40.82365128 | BK196: 41.55268299
AG197: 49.57142857 | AH197: 193 | AI197: 0.2154170967 | AJ197: 5747.905895 | AK197: 0.1201969142 | AL197: 4558.890288 | AM197: 4914.437805 | AN197: 5747.905895 | AO197: 6688.4312 | AP197: 7167.593866 | AR197: 49.57142857 | AS197: 193 | AT197: 1 | AU197: 59.05077169 | AV197: 0.03446133405 | AW197: 55.22340887 | AX197: 56.4427601 | AY197: 59.05077169 | AZ197: 61.65878328 | BA197: 62.87813452 | BC197: 193 | BD197: 1 | BE197: 39.32252835 | BF197: 0.03085493607 | BG197: 37.04057058 | BH197: 37.76757457 | BI197: 39.32252835 | BJ197: 40.87748214 | BK197: 41.60448613
AG198: 49.71428571 | AH198: 194 | AI198: 0.2130215949 | AJ198: 5777.030762 | AK198: 0.1201195253 | AL198: 4582.992033 | AM198: 4939.993525 | AN198: 5777.030762 | AO198: 6721.85951 | AP198: 7203.326985 | AR198: 49.71428571 | AS198: 194 | AT198: 1 | AU198: 59.15695821 | AV198: 0.03438964152 | AW198: 55.33070002 | AX198: 56.54969933 | AY198: 59.15695821 | AZ198: 61.76421709 | BA198: 62.9832164 | BC198: 194 | BD198: 1 | BE198: 39.38065764 | BF198: 0.03072327313 | BG198: 37.10508902 | BH198: 37.8300575 | BI198: 39.38065764 | BJ198: 40.93125778 | BK198: 41.65622626
AG199: =22+AH199/7 -> 49.85714286 | AH199: 195 | AI199: 0.2106368472 | AJ199: 5806.043431 | AK199: 0.1200562374 | AL199: 4606.883981 | AM199: 4965.366 | AN199: 5806.043431 | AO199: 6755.26862 | AP199: 7239.092857 | AR199: 49.85714286 | AS199: 195 | AT199: 1 | AU199: 59.26307586 | AV199: 0.03431827564 | AW199: 55.43790986 | AX199: 56.65656121 | AY199: 59.26307586 | AZ199: 61.86959051 | BA199: 63.08824187 | BC199: 195 | BD199: 1 | BE199: 39.43876112 | BF199: 0.03059167129 | BG199: 37.1695981 | BH199: 37.89252584 | BI199: 39.43876112 | BJ199: 40.98499641 | BK199: 41.70792414
AG200: =22+AH200/7 -> 50 | AH200: 196 | AI200: 0.2082574766 | AJ200: 5835 | AK200: 0.12 | AL200: 4630.67103 | AM200: 4990.646853 | AN200: 5835 | AO200: 6788.66813 | AP200: 7274.875107 | AR200: 50 | AS200: 196 | AT200: 1 | AU200: 59.36915908 | AV200: 0.03424707308 | AW200: 55.54507903 | AX200: 56.76338442 | AY200: 59.36915908 | AZ200: 61.97493374 | BA200: 63.19323912 | BC200: 196 | BD200: 1 | BE200: 39.4968517 | BF200: 0.0304601 | BG200: 37.2341025 | BH200: 37.95498687 | BI200: 39.4968517 | BJ200: 41.03871654 | BK200: 41.75960091
... 24 more rows

Sheet bmi_girls (hidden)
B1: 1 | C1: 2 | D1: 3 | E1: 4 | F1: 5 | G1: 6 | H1: 7 | I1: 8 | J1: 9 | K1: 10 | L1: 11 | M1: 12 | N1: 13 | O1: 14 | P1: 15 | Q1: 16 | R1: 17 | S1: 18 | T1: 19 | U1: 20
A2: month | B2: days | C2: L | D2: M | E2: S | F2: P01 | G2: P1 | H2: P3 | I2: P5 | J2: P10 | K2: P15 | L2: P25 | M2: P50 | N2: P75 | O2: P85 | P2: P90 | Q2: P95 | R2: P97 | S2: P99 | T2: P999 | U2: sex
A3: =B3/30.4375 -> 0 | B3: 0 | C3: -0.0631 | D3: 13.3363 | E3: 0.09272 | F3: 10.039 | G3: 10.764 | H3: 11.213 | I3: 11.458 | J3: 11.847 | K3: 12.118 | L3: 12.529 | M3: 13.336 | N3: 14.199 | O3: 14.686 | P3: 15.026 | Q3: 15.545 | R3: 15.892 | S3: 16.571 | T3: 17.808 | U3: girls
A4: 0.03285420945 | B4: 1 | C4: 0.0362 | D4: 13.3185 | E4: 0.0936 | F4: 9.958 | G4: 10.703 | H4: 11.162 | I4: 11.413 | J4: 11.81 | K4: 12.085 | L4: 12.503 | M4: 13.319 | N4: 14.185 | O4: 14.673 | P4: 15.012 | Q4: 15.529 | R4: 15.873 | S4: 16.544 | T4: 17.759 | U4: girls
A5: 0.06570841889 | B5: 2 | C5: 0.1355 | D5: 13.3006 | E5: 0.09448 | F5: 9.874 | G5: 10.641 | H5: 11.111 | I5: 11.367 | J5: 11.772 | K5: 12.052 | L5: 12.476 | M5: 13.301 | N5: 14.172 | O5: 14.659 | P5: 14.998 | Q5: 15.512 | R5: 15.854 | S5: 16.517 | T5: 17.71 | U5: girls
A6: 0.09856262834 | B6: 3 | C6: 0.2347 | D6: 13.2828 | E6: 0.09535 | F6: 9.788 | G6: 10.577 | H6: 11.059 | I6: 11.321 | J6: 11.734 | K6: 12.019 | L6: 12.449 | M6: 13.283 | N6: 14.158 | O6: 14.646 | P6: 14.983 | Q6: 15.495 | R6: 15.834 | S6: 16.489 | T6: 17.661 | U6: girls
A7: 0.1314168378 | B7: 4 | C7: 0.334 | D7: 13.2649 | E7: 0.09623 | F7: 9.698 | G7: 10.511 | H7: 11.006 | I7: 11.274 | J7: 11.695 | K7: 11.985 | L7: 12.422 | M7: 13.265 | N7: 14.145 | O7: 14.632 | P7: 14.969 | Q7: 15.477 | R7: 15.813 | S7: 16.461 | T7: 17.613 | U7: girls
A8: 0.1642710472 | B8: 5 | C8: 0.4333 | D8: 13.247 | E8: 0.09711 | F8: 9.605 | G8: 10.444 | H8: 10.952 | I8: 11.226 | J8: 11.656 | K8: 11.952 | L8: 12.395 | M8: 13.247 | N8: 14.131 | O8: 14.618 | P8: 14.954 | Q8: 15.459 | R8: 15.793 | S8: 16.433 | T8: 17.565 | U8: girls
A9: 0.1971252567 | B9: 6 | C9: 0.5326 | D9: 13.2292 | E9: 0.09799 | F9: 9.509 | G9: 10.375 | H9: 10.897 | I9: 11.178 | J9: 11.617 | K9: 11.918 | L9: 12.368 | M9: 13.229 | N9: 14.117 | O9: 14.605 | P9: 14.939 | Q9: 15.442 | R9: 15.772 | S9: 16.405 | T9: 17.517 | U9: girls
A10: 0.2299794661 | B10: 7 | C10: 0.6319 | D10: 13.2113 | E10: 0.09887 | F10: 9.408 | G10: 10.304 | H10: 10.84 | I10: 11.128 | J10: 11.577 | K10: 11.883 | L10: 12.341 | M10: 13.211 | N10: 14.103 | O10: 14.59 | P10: 14.924 | Q10: 15.423 | R10: 15.751 | S10: 16.376 | T10: 17.469 | U10: girls
A11: 0.2628336756 | B11: 8 | C11: 0.6142 | D11: 13.2455 | E11: 0.09866 | F11: 9.451 | G11: 10.342 | H11: 10.877 | I11: 11.164 | J11: 11.612 | K11: 11.918 | L11: 12.375 | M11: 13.246 | N11: 14.138 | O11: 14.626 | P11: 14.961 | Q11: 15.461 | R11: 15.79 | S11: 16.418 | T11: 17.516 | U11: girls
A12: 0.295687885 | B12: 9 | C12: 0.5965 | D12: 13.2796 | E12: 0.09845 | F12: 9.493 | G12: 10.381 | H12: 10.914 | I12: 11.2 | J12: 11.647 | K12: 11.953 | L12: 12.41 | M12: 13.28 | N12: 14.173 | O12: 14.662 | P12: 14.997 | Q12: 15.5 | R12: 15.829 | S12: 16.46 | T12: 17.563 | U12: girls
A13: 0.3285420945 | B13: 10 | C13: 0.5789 | D13: 13.3137 | E13: 0.09824 | F13: 9.535 | G13: 10.419 | H13: 10.95 | I13: 11.236 | J13: 11.682 | K13: 11.987 | L13: 12.444 | M13: 13.314 | N13: 14.208 | O13: 14.698 | P13: 15.034 | Q13: 15.538 | R13: 15.868 | S13: 16.501 | T13: 17.61 | U13: girls
A14: 0.3613963039 | B14: 11 | C14: 0.5612 | D14: 13.3478 | E14: 0.09804 | F14: 9.576 | G14: 10.457 | H14: 10.987 | I14: 11.272 | J14: 11.717 | K14: 12.022 | L14: 12.478 | M14: 13.348 | N14: 14.243 | O14: 14.734 | P14: 15.071 | Q14: 15.576 | R14: 15.908 | S14: 16.543 | T14: 17.657 | U14: girls
A15: 0.3942505133 | B15: 12 | C15: 0.5435 | D15: 13.3819 | E15: 0.09783 | F15: 9.618 | G15: 10.496 | H15: 11.024 | I15: 11.308 | J15: 11.752 | K15: 12.057 | L15: 12.512 | M15: 13.382 | N15: 14.278 | O15: 14.77 | P15: 15.107 | Q15: 15.614 | R15: 15.947 | S15: 16.585 | T15: 17.704 | U15: girls
A16: 0.4271047228 | B16: 13 | C16: 0.5258 | D16: 13.416 | E16: 0.09762 | F16: 9.66 | G16: 10.534 | H16: 11.06 | I16: 11.344 | J16: 11.787 | K16: 12.091 | L16: 12.546 | M16: 13.416 | N16: 14.313 | O16: 14.806 | P16: 15.144 | Q16: 15.652 | R16: 15.986 | S16: 16.626 | T16: 17.751 | U16: girls
A17: 0.4599589322 | B17: 14 | C17: 0.5082 | D17: 13.4501 | E17: 0.09741 | F17: 9.702 | G17: 10.572 | H17: 11.097 | I17: 11.38 | J17: 11.823 | K17: 12.126 | L17: 12.581 | M17: 13.45 | N17: 14.348 | O17: 14.842 | P17: 15.181 | Q17: 15.69 | R17: 16.025 | S17: 16.668 | T17: 17.798 | U17: girls
A18: 0.4928131417 | B18: 15 | C18: 0.4947 | D18: 13.5169 | E18: 0.09726 | F18: 9.762 | G18: 10.633 | H18: 11.159 | I18: 11.442 | J18: 11.885 | K18: 12.189 | L18: 12.645 | M18: 13.517 | N18: 14.418 | O18: 14.914 | P18: 15.255 | Q18: 15.767 | R18: 16.104 | S18: 16.75 | T18: 17.888 | U18: girls
A19: 0.5256673511 | B19: 16 | C19: 0.482 | D19: 13.5873 | E19: 0.09711 | F19: 9.826 | G19: 10.697 | H19: 11.223 | I19: 11.507 | J19: 11.951 | K19: 12.255 | L19: 12.712 | M19: 13.587 | N19: 14.492 | O19: 14.991 | P19: 15.333 | Q19: 15.848 | R19: 16.187 | S19: 16.837 | T19: 17.983 | U19: girls
A20: 0.5585215606 | B20: 17 | C20: 0.4699 | D20: 13.6595 | E20: 0.09697 | F20: 9.889 | G20: 10.761 | H20: 11.288 | I20: 11.573 | J20: 12.018 | K20: 12.323 | L20: 12.782 | M20: 13.66 | N20: 14.568 | O20: 15.069 | P20: 15.413 | Q20: 15.931 | R20: 16.272 | S20: 16.926 | T20: 18.08 | U20: girls
A21: 0.59137577 | B21: 18 | C21: 0.4583 | D21: 13.7325 | E21: 0.09684 | F21: 9.953 | G21: 10.826 | H21: 11.354 | I21: 11.639 | J21: 12.085 | K21: 12.392 | L21: 12.851 | M21: 13.733 | N21: 14.645 | O21: 15.148 | P21: 15.494 | Q21: 16.015 | R21: 16.358 | S21: 17.016 | T21: 18.178 | U21: girls
A22: 0.6242299795 | B22: 19 | C22: 0.4472 | D22: 13.8056 | E22: 0.09671 | F22: 10.017 | G22: 10.891 | H22: 11.42 | I22: 11.706 | J22: 12.153 | K22: 12.46 | L22: 12.921 | M22: 13.806 | N22: 14.722 | O22: 15.228 | P22: 15.576 | Q22: 16.099 | R22: 16.444 | S22: 17.106 | T22: 18.276 | U22: girls
A23: 0.6570841889 | B23: 20 | C23: 0.4365 | D23: 13.8784 | E23: 0.09659 | F23: 10.08 | G23: 10.955 | H23: 11.485 | I23: 11.771 | J23: 12.22 | K23: 12.528 | L23: 12.991 | M23: 13.878 | N23: 14.799 | O23: 15.307 | P23: 15.657 | Q23: 16.183 | R23: 16.53 | S23: 17.196 | T23: 18.374 | U23: girls
A24: 0.6899383984 | B24: 21 | C24: 0.4263 | D24: 13.9505 | E24: 0.09647 | F24: 10.142 | G24: 11.019 | H24: 11.55 | I24: 11.837 | J24: 12.287 | K24: 12.595 | L24: 13.06 | M24: 13.951 | N24: 14.875 | O24: 15.386 | P24: 15.737 | Q24: 16.266 | R24: 16.615 | S24: 17.285 | T24: 18.47 | U24: girls
A25: 0.7227926078 | B25: 22 | C25: 0.4164 | D25: 14.0216 | E25: 0.09636 | F25: 10.203 | G25: 11.081 | H25: 11.613 | I25: 11.901 | J25: 12.352 | K25: 12.662 | L25: 13.128 | M25: 14.022 | N25: 14.95 | O25: 15.463 | P25: 15.816 | Q25: 16.348 | R25: 16.699 | S25: 17.373 | T25: 18.566 | U25: girls
A26: 0.7556468172 | B26: 23 | C26: 0.4069 | D26: 14.0916 | E26: 0.09625 | F26: 10.263 | G26: 11.143 | H26: 11.676 | I26: 11.964 | J26: 12.417 | K26: 12.727 | L26: 13.194 | M26: 14.092 | N26: 15.024 | O26: 15.539 | P26: 15.894 | Q26: 16.428 | R26: 16.781 | S26: 17.459 | T26: 18.659 | U26: girls
A27: 0.7885010267 | B27: 24 | C27: 0.3977 | D27: 14.1603 | E27: 0.09615 | F27: 10.322 | G27: 11.203 | H27: 11.737 | I27: 12.026 | J27: 12.48 | K27: 12.791 | L27: 13.26 | M27: 14.16 | N27: 15.097 | O27: 15.614 | P27: 15.97 | Q27: 16.508 | R27: 16.862 | S27: 17.544 | T27: 18.752 | U27: girls
A28: 0.8213552361 | B28: 25 | C28: 0.3888 | D28: 14.2276 | E28: 0.09605 | F28: 10.379 | G28: 11.262 | H28: 11.797 | I28: 12.087 | J28: 12.542 | K28: 12.854 | L28: 13.324 | M28: 14.228 | N28: 15.168 | O28: 15.687 | P28: 16.045 | Q28: 16.585 | R28: 16.942 | S28: 17.627 | T28: 18.842 | U28: girls
A29: 0.8542094456 | B29: 26 | C29: 0.3802 | D29: 14.2935 | E29: 0.09595 | F29: 10.435 | G29: 11.32 | H29: 11.856 | I29: 12.147 | J29: 12.602 | K29: 12.916 | L29: 13.387 | M29: 14.294 | N29: 15.237 | O29: 15.759 | P29: 16.119 | Q29: 16.661 | R29: 17.019 | S29: 17.709 | T29: 18.93 | U29: girls
A30: 0.887063655 | B30: 27 | C30: 0.3718 | D30: 14.3579 | E30: 0.09586 | F30: 10.49 | G30: 11.376 | H30: 11.914 | I30: 12.205 | J30: 12.661 | K30: 12.976 | L30: 13.448 | M30: 14.358 | N30: 15.305 | O30: 15.829 | P30: 16.191 | Q30: 16.735 | R30: 17.095 | S30: 17.788 | T30: 19.017 | U30: girls
A31: 0.9199178645 | B31: 28 | C31: 0.3637 | D31: 14.4208 | E31: 0.09577 | F31: 10.544 | G31: 11.431 | H31: 11.97 | I31: 12.261 | J31: 12.719 | K31: 13.034 | L31: 13.508 | M31: 14.421 | N31: 15.372 | O31: 15.898 | P31: 16.261 | Q31: 16.808 | R31: 17.17 | S31: 17.866 | T31: 19.101 | U31: girls
A32: 0.9527720739 | B32: 29 | C32: 0.3558 | D32: 14.4824 | E32: 0.09568 | F32: 10.596 | G32: 11.485 | H32: 12.025 | I32: 12.317 | J32: 12.776 | K32: 13.092 | L32: 13.567 | M32: 14.482 | N32: 15.437 | O32: 15.965 | P32: 16.329 | Q32: 16.879 | R32: 17.242 | S32: 17.942 | T32: 19.184 | U32: girls
A33: 0.9856262834 | B33: 30 | C33: 0.3481 | D33: 14.5422 | E33: 0.09559 | F33: 10.648 | G33: 11.537 | H33: 12.078 | I33: 12.371 | J33: 12.831 | K33: 13.148 | L33: 13.624 | M33: 14.542 | N33: 15.5 | O33: 16.03 | P33: 16.396 | Q33: 16.948 | R33: 17.313 | S33: 18.016 | T33: 19.264 | U33: girls
A34: 1.018480493 | B34: 31 | C34: 0.3406 | D34: 14.6003 | E34: 0.09551 | F34: 10.697 | G34: 11.588 | H34: 12.13 | I34: 12.423 | J34: 12.884 | K34: 13.202 | L34: 13.68 | M34: 14.6 | N34: 15.561 | O34: 16.093 | P34: 16.46 | Q34: 17.015 | R34: 17.381 | S34: 18.088 | T34: 19.342 | U34: girls
A35: 1.051334702 | B35: 32 | C35: 0.3333 | D35: 14.6566 | E35: 0.09543 | F35: 10.745 | G35: 11.638 | H35: 12.18 | I35: 12.474 | J35: 12.936 | K35: 13.254 | L35: 13.733 | M35: 14.657 | N35: 15.62 | O35: 16.155 | P35: 16.523 | Q35: 17.08 | R35: 17.448 | S35: 18.157 | T35: 19.418 | U35: girls
A36: 1.084188912 | B36: 33 | C36: 0.3262 | D36: 14.7112 | E36: 0.09535 | F36: 10.792 | G36: 11.686 | H36: 12.229 | I36: 12.524 | J36: 12.987 | K36: 13.305 | L36: 13.785 | M36: 14.711 | N36: 15.678 | O36: 16.214 | P36: 16.584 | Q36: 17.143 | R36: 17.512 | S36: 18.225 | T36: 19.491 | U36: girls
A37: 1.117043121 | B37: 34 | C37: 0.3192 | D37: 14.7642 | E37: 0.09527 | F37: 10.838 | G37: 11.732 | H37: 12.277 | I37: 12.572 | J37: 13.035 | K37: 13.355 | L37: 13.836 | M37: 14.764 | N37: 15.734 | O37: 16.272 | P37: 16.643 | Q37: 17.204 | R37: 17.575 | S37: 18.29 | T37: 19.562 | U37: girls
A38: 1.149897331 | B38: 35 | C38: 0.3124 | D38: 14.8157 | E38: 0.0952 | F38: 10.882 | G38: 11.777 | H38: 12.323 | I38: 12.618 | J38: 13.083 | K38: 13.403 | L38: 13.885 | M38: 14.816 | N38: 15.788 | O38: 16.328 | P38: 16.7 | Q38: 17.263 | R38: 17.635 | S38: 18.354 | T38: 19.631 | U38: girls
A39: 1.18275154 | B39: 36 | C39: 0.3058 | D39: 14.8657 | E39: 0.09513 | F39: 10.925 | G39: 11.821 | H39: 12.367 | I39: 12.663 | J39: 13.129 | K39: 13.45 | L39: 13.933 | M39: 14.866 | N39: 15.841 | O39: 16.382 | P39: 16.756 | Q39: 17.321 | R39: 17.694 | S39: 18.416 | T39: 19.699 | U39: girls
